Workbook

Sheet Course Follow-up and Resources
A2: General ideas on structuring models and spreadsheet style.
B4: Website Link Describing Modelling Crimes
B6: Video Describing Modelling Philosophy
B8: Powerpoint Slides Reference (beginning through 111)
B10: Chapter in Book Describing Modelling Structure | I10: Chapter 4 & Chapter 5 | M10: Find the Book in Chapter 2 of the USB Drive
A12: Project IRR Concepts and Calculations
B14: Website Link Describing IRR Concepts
B16: Video Describing IRR Problems and Issues
B18: Powerpoint Slides Reference (beginning on slide 112)
B20: Link to Relevant Page on this Workbook
A22: Developer and Sponsor IRR Flip and Dividends
B24: Website Link Describing Upside Incentives
B26: Video Describing Mechanics of Hurdle Rates
B28: Powerpoint Slides Reference (beginning on slide 312)
B30: Link to Relevant Part of this Workbook
B32: Chapter in Book Describing Flip Modelling | I32: Chapter 10 | M32: Find the Book in Chapter 2 of the USB Drive
A34: Debt Sizing with P50, P90 and Maximum Debt to Capital
B36: Website Link Describing Upside Incentives
B38: Video Describing Mechanics of Hurdle Rates
B40: Powerpoint Slides Reference (beginning on slide 312)
B42: Link to Relevant Part of this Workbook
B44: Chapter in Book Describing Flip Modelling | I44: Chapter 10 | M44: Find the Book in Chapter 2 of the USB Drive
A46: Cash Sweep, Re-Financing and Merchant Prices
B48: Website Link Describing IRR Concepts
B51: Video Describing IRR Problems and Issues
B54: Chapter in Book Describing Modelling Structure | I54: Chapter 4 & Chapter 5 | M54: Find the Book in Chapter 2 of the USB Drive
B57: Powerpoint Slides Reference
A60: Models for Evaluation of Existing Project

Sheet Summary
E2: IRR | F2: Discount Rate | G2: Value to Investment ratio | H2: NPV | I2: Weighted Average ROIC
C3: Pre tax project | E3: =FM!E77 -> 0.1199999988 | F3: =FM!F53 -> 0.077 | G3: =FM!F81 -> 1.257229034 | H3: =FM!F80 -> 1257.229034 | I3: =FM!E101 -> 0.1476267181 | K3: Cost per KW | P3: Target IRR | Q3: =target_irr -> 0.12
C4: After tax Project | E4: =FM!E106 -> 0.1199999988 | F4: =FM!F54 -> 0.056 | G4: =FM!H114 -> 1.544839709 | H4: =FM!H113 -> 1544.839709 | K4: Capacity factor
C5: Pre tax Debt | E5: =FM!F236 -> FALSE | K5: Levelized O&M per KW
C6: After tax debt
C7: Equity | E7: =FM!F235 -> 0.1248926038 | F7: =FM!F55 -> 0.097 | K7: Uses of funds | P7: Debt Structure
C8: Tax Rate | L8: CAPEX | N8: =FM!I130 -> 1000 | P8: Sculpting | Q8: =FM!F33 -> TRUE
L9: Developer fee | N9: =FM!I131 -> 0 | P9: DSCR | Q9: =FM!$F$30 -> 1.3
L10: IDC | N10: =FM!I132 -> 0 | P10: Tenure | Q10: =FM!$F$32 -> 15
L11: FDC | N11: =FM!I133 -> 0
L12: DSRA | N12: =FM!I134 -> 0
M13: Total uses | N13: =FM!I135 -> 1000
K15: Sources of Funds
L16: Debt funding | N16: =FM!I138 -> 0
L17: Developer | N17: =FM!I139 -> 30
L18: Sponsor | N18: =FM!I140 -> 970
M19: Total sources | N19: =FM!I141 -> 1000

Sheet FM
A1: Timeline
B2: Time Period | I2: 0 | J2: 1 | K2: 2 | L2: 3 | M2: 4 | N2: 5 | O2: 6 | P2: 7 | Q2: 8 | R2: 9 | S2: 10 | T2: 11 | U2: 12 | V2: 13 | W2: 14 | X2: 15 | Y2: 16 | Z2: 17 | AA2: 18 | AB2: 19 | AC2: 20 | AD2: 21 | AE2: 22 | AF2: 23 | AG2: 24 | AH2: 25 | AI2: 26 | AJ2: 27 | AK2: 28 | AL2: 29 | AM2: 30 | AN2: 31 | AO2: 32 | AP2: 33 | AQ2: 34 | AR2: 35 | AS2: 36 | AT2: 37 | AU2: 38 | AV2: 39 | AW2: 40 | AX2: 41
B3: Start date | G3: =EDATE(F8,-12) -> 2019-01-20 | I3: =EDATE(G3,12) -> 2020-01-20 | J3: =EDATE(I3,12) -> 2021-01-20 | K3: =EDATE(J3,12) -> 2022-01-20 | L3: 2023-01-20 | M3: 2024-01-20 | N3: 2025-01-20 | O3: 2026-01-20 | P3: 2027-01-20 | Q3: 2028-01-20 | R3: 2029-01-20 | S3: 2030-01-20 | T3: 2031-01-20 | U3: 2032-01-20 | V3: 2033-01-20 | W3: 2034-01-20 | X3: 2035-01-20 | Y3: 2036-01-20 | Z3: 2037-01-20 | AA3: 2038-01-20 | AB3: 2039-01-20 | AC3: 2040-01-20 | AD3: 2041-01-20 | AE3: 2042-01-20 | AF3: 2043-01-20 | AG3: 2044-01-20 | AH3: 2045-01-20 | AI3: =EDATE(AH3,12) -> 2046-01-20 | AJ3: 2047-01-20 | AK3: 2048-01-20 | AL3: 2049-01-20 | AM3: 2050-01-20 | AN3: 2051-01-20 | AO3: 2052-01-20 | AP3: 2053-01-20 | AQ3: 2054-01-20 | AR3: 2055-01-20 | AS3: 2056-01-20 | AT3: 2057-01-20 | AU3: 2058-01-20 | AV3: 2059-01-20 | AW3: 2060-01-20 | AX3: 2061-01-20
B4: Construction period | G4: =F10 -> 2021-01-20 | I4: =I3<$G$4 -> TRUE | J4: =J3<$G$4 -> FALSE | K4: FALSE | L4: FALSE | M4: FALSE | N4: FALSE | O4: FALSE | P4: FALSE | Q4: FALSE | R4: FALSE | S4: FALSE | T4: FALSE | U4: FALSE | V4: FALSE | W4: FALSE | X4: FALSE | Y4: FALSE | Z4: FALSE | AA4: FALSE | AB4: FALSE | AC4: FALSE | AD4: FALSE | AE4: FALSE | AF4: FALSE | AG4: FALSE | AH4: FALSE | AI4: =AI3<$G$4 -> FALSE | AJ4: FALSE | AK4: FALSE | AL4: FALSE | AM4: FALSE | AN4: FALSE | AO4: FALSE | AP4: FALSE | AQ4: FALSE | AR4: =AR3<$G$4 -> FALSE | AS4: FALSE | AT4: FALSE | AU4: FALSE | AV4: FALSE | AW4: FALSE | AX4: FALSE
B5: Operation Period | F5: =F10 -> 2021-01-20 | G5: =F12 -> 2051-01-20 | I5: =AND(I3>=$F$5,I3<$G$5) -> FALSE | J5: =AND(J3>=$F$5,J3<$G$5) -> TRUE | K5: =AND(K3>=$F$5,K3<$G$5) -> TRUE | L5: TRUE | M5: TRUE | N5: TRUE | O5: TRUE | P5: TRUE | Q5: TRUE | R5: TRUE | S5: TRUE | T5: TRUE | U5: TRUE | V5: TRUE | W5: TRUE | X5: TRUE | Y5: TRUE | Z5: TRUE | AA5: TRUE | AB5: TRUE | AC5: TRUE | AD5: TRUE | AE5: TRUE | AF5: TRUE | AG5: TRUE | AH5: TRUE | AI5: =AND(AI3>=$F$5,AI3<$G$5) -> TRUE | AJ5: TRUE | AK5: TRUE | AL5: TRUE | AM5: TRUE | AN5: FALSE | AO5: FALSE | AP5: FALSE | AQ5: FALSE | AR5: =AND(AR3>=$F$5,AR3<$G$5) -> FALSE | AS5: FALSE | AT5: FALSE | AU5: FALSE | AV5: FALSE | AW5: FALSE | AX5: FALSE
A7: Inputs
C8: Financial close | E8: date | F8: 2020-01-20
C9: Construction period | E9: Years | F9: 1
C10: COD | E10: date | F10: =EDATE(F8,F9*12) -> 2021-01-20
C11: Operation Period | E11: years | F11: 30
C12: Decommissioning date | F12: =EDATE(F10,F11*12) -> 2051-01-20
B14: Operational inputs
C15: EPC Capital Expenditures | E15: Euros | F15: 1000
C16: Development Fee | E16: % | F16: 0
C18: EBITDA | E18: Euros | F18: 108.5967854
C19: Inflation rate | E19: % p.a. | F19: 0.02
C20: Target IRR | E20: % p.a. | F20: =G20/1000 -> 0.12 | G20: 120
B22: Depreciation and Taxes
C23: Tax rate | E23: % | F23: 0
C24: Depreciation life | E24: 25 | F24: 30
C25: Percent Depreciation in Last Year | E25: % | F25: 0
B27: Financing assumptions
C28: Debt size
D29: Debt/capital | E29: % | F29: 0
D30: Min DSCR | E30: x | F30: 1.3
C31: Debt Repayment
D32: Debt repayment | E32: tenure | F32: ='Debt Structure'!D13 -> 15
D33: Sculpting | E33: switch | F33: TRUE
D34: Leveled repayments | E34: switch | F34: =NOT(F33) -> FALSE
C35: Interest Rate and Fees
D36: Base interest rate | E36: % | F36: 0.015
D37: Interest Rate Date | F37: =F8 -> 2020-01-20 | G37: =F10 -> 2021-01-20 | H37: =EDATE(G37,2*12) -> 2023-01-20 | I37: =EDATE(H37,2*12) -> 2025-01-20
D38: Credit spread | E38: % | F38: ='Debt Structure'!D9 -> 0.016 | G38: ='Debt Structure'!E9 -> 0.016 | H38: ='Debt Structure'!F9 -> 0.016 | I38: ='Debt Structure'!G9 -> 0.016
D39: Up-Front Fee | E39: % | F39: 0.015
D40: Cash Sweep | E40: % | F40: 0.3
B42: Re-Financing
C43: Date of Re-financing | E43: Period | F43: 50
C44: DSCR for Re-financing | E44: x | F44: 1.2
C45: Interest Rate for Re-financing | E45: % | F45: 0.03
C46: Tail for Re-financing | E46: Period | F46: 2
C47: End Date for Re-financing | E47: Period | F47: =F11-F46 -> 28
B49: Valuation | F49: 0 | G49: 1 | H49: 4 | I49: 7
C50: =Scenarios!B11 -> Flat discount rate | F50: =Scenarios!F11 -> 0.07 | G50: =Scenarios!G11 -> 0.07 | H50: =Scenarios!H11 -> 0.07 | I50: =Scenarios!I11 -> 0.07
C51: Holding period | E51: period | F51: 15
C53: Simple Pre-tax Discount Rate | F53: =G53/1000 -> 0.077 | G53: 77
C54: Simple After-tax Discount Rate | F54: =G54/1000 -> 0.056 | G54: 56
C55: Equity Discount Rate | F55: =G55/1000 -> 0.097 | G55: 97
B57: Developer Bouns - Ungeared
C58: Ownership Percent | F58: 0.15
C60: Cash Investment by Developer | F60: 0.03
C61: Dividends to Developer % pre Hurdle | F61: 0
C63: Hurdle rate for Sponsor from: | E63: =K63/100 -> 0 | F63: =L63/100 -> 0.07 | G63: 0.09 | H63: 0.11 | K63: 0 | L63: 7 | M63: 9 | N63: 11
C64: Hurdle rate for Sponsor to: | E64: =F63-0.01% -> 0.0699 | F64: =G63-0.01% -> 0.0899 | G64: 0.1099
C66: Sharing Percent Post Hurdle to Developer | E66: =K66/100 -> 0.01 | F66: =L66/100 -> 0.07 | G66: 0.33 | H66: 0.31 | K66: 1 | L66: 7 | M66: 33 | N66: 31
A68: Operations
C69: CAPEX | G69: =F15 -> 1000 | I69: =$G$69*I4 -> 1000 | J69: 0 | K69: 0 | L69: 0 | M69: 0 | N69: 0 | O69: 0 | P69: 0 | Q69: 0 | R69: 0 | S69: 0 | T69: 0 | U69: 0 | V69: 0 | W69: 0 | X69: 0 | Y69: 0 | Z69: 0 | AA69: 0 | AB69: 0 | AC69: 0 | AD69: 0 | AE69: 0 | AF69: 0 | AG69: 0 | AH69: 0 | AI69: 0 | AJ69: 0 | AK69: 0 | AL69: 0 | AM69: 0 | AN69: 0 | AO69: 0 | AP69: 0 | AQ69: 0 | AR69: 0 | AS69: 0 | AT69: 0 | AU69: 0 | AV69: 0 | AW69: 0 | AX69: 0
C71: EBIDTA | G71: =F18 -> 108.5967854 | I71: =$G$71*I5 -> 0 | J71: 108.5967854 | K71: 108.5967854 | L71: 108.5967854 | M71: 108.5967854 | N71: 108.5967854 | O71: 108.5967854 | P71: 108.5967854 | Q71: 108.5967854 | R71: 108.5967854 | S71: 108.5967854 | T71: 108.5967854 | U71: 108.5967854 | V71: 108.5967854 | W71: 108.5967854 | X71: 108.5967854 | Y71: 108.5967854 | Z71: 108.5967854 | AA71: 108.5967854 | AB71: 108.5967854 | AC71: 108.5967854 | AD71: 108.5967854 | AE71: 108.5967854 | AF71: 108.5967854 | AG71: 108.5967854 | AH71: 108.5967854 | AI71: 108.5967854 | AJ71: 108.5967854 | AK71: 108.5967854 | AL71: 108.5967854 | AM71: 108.5967854 | AN71: 0 | AO71: 0 | AP71: 0 | AQ71: 0 | AR71: 0 | AS71: 0 | AT71: 0 | AU71: 0 | AV71: 0 | AW71: 0 | AX71: 0
C72: Inflation index | F72: =F19 -> 0.02 | H72: 1 | I72: =H72*(1+$F$72*I5) -> 1 | J72: =I72*(1+$F$72) -> 1.02 | K72: =J72*(1+$F$72) -> 1.0404 | L72: 1.061208 | M72: 1.08243216 | N72: 1.104080803 | O72: 1.126162419 | P72: 1.148685668 | Q72: 1.171659381 | R72: 1.195092569 | S72: 1.21899442 | T72: 1.243374308 | U72: 1.268241795 | V72: 1.29360663 | W72: 1.319478763 | X72: 1.345868338 | Y72: 1.372785705 | Z72: 1.400241419 | AA72: 1.428246248 | AB72: 1.456811173 | AC72: 1.485947396 | AD72: 1.515666344 | AE72: 1.545979671 | AF72: 1.576899264 | AG72: 1.608437249 | AH72: 1.640605994 | AI72: =AH72*(1+$F$72) -> 1.673418114 | AJ72: 1.706886477 | AK72: 1.741024206 | AL72: 1.77584469 | AM72: 1.811361584 | AN72: 1.847588816 | AO72: 1.884540592 | AP72: 1.922231404 | AQ72: 1.960676032 | AR72: 1.999889553 | AS72: 2.039887344 | AT72: 2.080685091 | AU72: 2.122298792 | AV72: 2.164744768 | AW72: 2.208039664 | AX72: 2.252200457
C73: Inflated EBITDA | G73: =G71*H72 -> 108.5967854 | I73: =I71*I72 -> 0 | J73: =J71*J72 -> 110.7687211 | K73: 112.9840955 | L73: 115.2437774 | M73: 117.548653 | N73: 119.899626 | O73: 122.2976186 | P73: 124.7435709 | Q73: 127.2384423 | R73: 129.7832112 | S73: 132.3788754 | T73: 135.0264529 | U73: 137.726982 | V73: 140.4815216 | W73: 143.2911521 | X73: 146.1569751 | Y73: 149.0801146 | Z73: 152.0617169 | AA73: 155.1029512 | AB73: 158.2050102 | AC73: 161.3691105 | AD73: 164.5964927 | AE73: 167.8884225 | AF73: 171.246191 | AG73: 174.6711148 | AH73: 178.1645371 | AI73: =AI71*AI72 -> 181.7278278 | AJ73: 185.3623844 | AK73: 189.0696321 | AL73: 192.8510247 | AM73: 196.7080452 | AN73: 0 | AO73: 0 | AP73: 0 | AQ73: 0 | AR73: =AR71*AR72 -> 0 | AS73: 0 | AT73: 0 | AU73: 0 | AV73: 0 | AW73: 0 | AX73: 0
C75: Pre-Tax Free Cash Flow | I75: =I73-I69 -> -1000 | J75: =J73-J69 -> 110.7687211 | K75: =K73-K69 -> 112.9840955 | L75: 115.2437774 | M75: 117.548653 | N75: 119.899626 | O75: 122.2976186 | P75: 124.7435709 | Q75: 127.2384423 | R75: 129.7832112 | S75: 132.3788754 | T75: 135.0264529 | U75: 137.726982 | V75: 140.4815216 | W75: 143.2911521 | X75: 146.1569751 | Y75: 149.0801146 | Z75: 152.0617169 | AA75: 155.1029512 | AB75: 158.2050102 | AC75: 161.3691105 | AD75: 164.5964927 | AE75: 167.8884225 | AF75: 171.246191 | AG75: 174.6711148 | AH75: 178.1645371 | AI75: =AI73-AI69 -> 181.7278278 | AJ75: 185.3623844 | AK75: 189.0696321 | AL75: 192.8510247 | AM75: 196.7080452 | AN75: 0 | AO75: 0 | AP75: 0 | AQ75: 0 | AR75: =AR73-AR69 -> 0 | AS75: 0 | AT75: 0 | AU75: 0 | AV75: 0 | AW75: 0 | AX75: 0
C77: Pre-Tax Project IRR | E77: =XIRR(I75:AH75,I3:AH3) -> 0.1199999988 | F77: =IRR(I75:AX75) -> 0.1248926038
C79: PV of CAPEX | F79: =G69 -> 1000
C80: PV of OCF at Pre-tax Discount Rate | E80: =F53 -> 0.077 | F80: =XNPV(E80,I71:AX71,I3:AX3) -> 1257.229034
C81: Value to Investment Pre-tax | F81: =F80/F79 -> 1.257229034
A83: Taxes, Depreciaiton and After-tax Project IRR
C84: Plant Balance | I84: =H84+I69 -> 1000 | J84: 1000 | K84: 1000 | L84: 1000 | M84: 1000 | N84: 1000 | O84: 1000 | P84: 1000 | Q84: 1000 | R84: 1000 | S84: 1000 | T84: 1000 | U84: 1000 | V84: 1000 | W84: 1000 | X84: 1000 | Y84: 1000 | Z84: 1000 | AA84: 1000 | AB84: 1000 | AC84: 1000 | AD84: 1000 | AE84: 1000 | AF84: 1000 | AG84: 1000 | AH84: 1000 | AI84: 1000 | AJ84: 1000 | AK84: 1000 | AL84: 1000 | AM84: 1000 | AN84: 1000 | AO84: 1000 | AP84: 1000 | AQ84: 1000 | AR84: 1000 | AS84: 1000 | AT84: 1000 | AU84: 1000 | AV84: 1000 | AW84: 1000 | AX84: 1000
C85: Last Year | F85: =EDATE(G5,-12) -> 2050-01-20 | I85: =I3=$F$85 -> FALSE | J85: FALSE | K85: FALSE | L85: FALSE | M85: FALSE | N85: FALSE | O85: FALSE | P85: FALSE | Q85: FALSE | R85: FALSE | S85: FALSE | T85: FALSE | U85: FALSE | V85: FALSE | W85: FALSE | X85: FALSE | Y85: FALSE | Z85: FALSE | AA85: FALSE | AB85: FALSE | AC85: FALSE | AD85: FALSE | AE85: FALSE | AF85: FALSE | AG85: FALSE | AH85: FALSE | AI85: FALSE | AJ85: FALSE | AK85: FALSE | AL85: FALSE | AM85: TRUE | AN85: FALSE | AO85: FALSE | AP85: FALSE | AQ85: FALSE | AR85: FALSE | AS85: FALSE | AT85: FALSE | AU85: FALSE | AV85: FALSE | AW85: FALSE | AX85: FALSE
C86: Depreciation Base | F86: =F25 -> 0 | I86: =$F$86*I84*OR(I4,I5) -> 0 | J86: =$F$86*J84*OR(J4,J5) -> 0 | K86: 0 | L86: 0 | M86: 0 | N86: 0 | O86: 0 | P86: 0 | Q86: 0 | R86: 0 | S86: 0 | T86: 0 | U86: 0 | V86: 0 | W86: 0 | X86: 0 | Y86: 0 | Z86: 0 | AA86: 0 | AB86: 0 | AC86: 0 | AD86: 0 | AE86: 0 | AF86: 0 | AG86: 0 | AH86: 0 | AI86: 0 | AJ86: 0 | AK86: 0 | AL86: 0 | AM86: 0 | AN86: 0 | AO86: 0 | AP86: 0 | AQ86: 0 | AR86: 0 | AS86: 0 | AT86: 0 | AU86: 0 | AV86: 0 | AW86: 0 | AX86: 0
C87: Depreciation Last | I87: =I85*I86 -> 0 | J87: 0 | K87: 0 | L87: 0 | M87: 0 | N87: 0 | O87: 0 | P87: 0 | Q87: 0 | R87: 0 | S87: 0 | T87: 0 | U87: 0 | V87: 0 | W87: 0 | X87: 0 | Y87: 0 | Z87: 0 | AA87: 0 | AB87: 0 | AC87: 0 | AD87: 0 | AE87: 0 | AF87: 0 | AG87: 0 | AH87: 0 | AI87: 0 | AJ87: 0 | AK87: 0 | AL87: 0 | AM87: 0 | AN87: 0 | AO87: 0 | AP87: 0 | AQ87: 0 | AR87: 0 | AS87: 0 | AT87: 0 | AU87: 0 | AV87: 0 | AW87: 0 | AX87: 0
C89: Remaining Base | F89: =1-F86 -> 1 | I89: =I84*$F$89 -> 1000 | J89: 1000 | K89: 1000 | L89: 1000 | M89: 1000 | N89: 1000 | O89: 1000 | P89: 1000 | Q89: 1000 | R89: 1000 | S89: 1000 | T89: 1000 | U89: 1000 | V89: 1000 | W89: 1000 | X89: 1000 | Y89: 1000 | Z89: 1000 | AA89: 1000 | AB89: 1000 | AC89: 1000 | AD89: 1000 | AE89: 1000 | AF89: 1000 | AG89: 1000 | AH89: 1000 | AI89: 1000 | AJ89: 1000 | AK89: 1000 | AL89: 1000 | AM89: 1000 | AN89: 1000 | AO89: 1000 | AP89: 1000 | AQ89: 1000 | AR89: 1000 | AS89: 1000 | AT89: 1000 | AU89: 1000 | AV89: 1000 | AW89: 1000 | AX89: 1000
C90: Depreciation expense | F90: =1/$F$24 -> 0.03333333333 | I90: =MIN(I89*$F$90*I5,H92) -> 0 | J90: 33.33333333 | K90: 33.33333333 | L90: 33.33333333 | M90: 33.33333333 | N90: 33.33333333 | O90: 33.33333333 | P90: 33.33333333 | Q90: 33.33333333 | R90: 33.33333333 | S90: 33.33333333 | T90: 33.33333333 | U90: 33.33333333 | V90: 33.33333333 | W90: 33.33333333 | X90: 33.33333333 | Y90: 33.33333333 | Z90: 33.33333333 | AA90: 33.33333333 | AB90: 33.33333333 | AC90: 33.33333333 | AD90: 33.33333333 | AE90: 33.33333333 | AF90: 33.33333333 | AG90: 33.33333333 | AH90: 33.33333333 | AI90: 33.33333333 | AJ90: 33.33333333 | AK90: 33.33333333 | AL90: 33.33333333 | AM90: 33.33333333 | AN90: 0 | AO90: 0 | AP90: 0 | AQ90: 0 | AR90: 0 | AS90: 0 | AT90: 0 | AU90: 0 | AV90: 0 | AW90: 0 | AX90: 0
C91: Accumulated Depreciation | I91: =H91+I90 -> 0 | J91: =I91+J90 -> 33.33333333 | K91: 66.66666667 | L91: 100 | M91: 133.3333333 | N91: 166.6666667 | O91: 200 | P91: 233.3333333 | Q91: 266.6666667 | R91: 300 | S91: 333.3333333 | T91: 366.6666667 | U91: 400 | V91: 433.3333333 | W91: 466.6666667 | X91: 500 | Y91: 533.3333333 | Z91: 566.6666667 | AA91: 600 | AB91: 633.3333333 | AC91: 666.6666667 | AD91: 700 | AE91: 733.3333333 | AF91: 766.6666667 | AG91: 800 | AH91: 833.3333333 | AI91: =AH91+AI90 -> 866.6666667 | AJ91: 900 | AK91: 933.3333333 | AL91: 966.6666667 | AM91: 1000 | AN91: 1000 | AO91: 1000 | AP91: 1000 | AQ91: 1000 | AR91: 1000 | AS91: 1000 | AT91: 1000 | AU91: 1000 | AV91: 1000 | AW91: 1000 | AX91: 1000
C92: Net Plant | I92: =I89-I91+I86 -> 1000 | J92: 966.6666667 | K92: 933.3333333 | L92: 900 | M92: 866.6666667 | N92: 833.3333333 | O92: 800 | P92: 766.6666667 | Q92: 733.3333333 | R92: 700 | S92: 666.6666667 | T92: 633.3333333 | U92: 600 | V92: 566.6666667 | W92: 533.3333333 | X92: 500 | Y92: 466.6666667 | Z92: 433.3333333 | AA92: 400 | AB92: 366.6666667 | AC92: 333.3333333 | AD92: 300 | AE92: 266.6666667 | AF92: 233.3333333 | AG92: 200 | AH92: 166.6666667 | AI92: 133.3333333 | AJ92: 100 | AK92: 66.66666667 | AL92: 33.33333333 | AM92: 0 | AN92: 0 | AO92: 0 | AP92: 0 | AQ92: 0 | AR92: 0 | AS92: 0 | AT92: 0 | AU92: 0 | AV92: 0 | AW92: 0 | AX92: 0
C94: EBIT | I94: =I73-I90 -> 0 | J94: 77.43538776 | K94: 79.65076218 | L94: 81.91044409 | M94: 84.21531964 | N94: 86.5662927 | O94: 88.96428522 | P94: 91.41023759 | Q94: 93.90510901 | R94: 96.44987786 | S94: 99.04554208 | T94: 101.6931196 | U94: 104.3936486 | V94: 107.1481883 | W94: 109.9578187 | X94: 112.8236418 | Y94: 115.7467813 | Z94: 118.7283836 | AA94: 121.7696179 | AB94: 124.8716769 | AC94: 128.0357771 | AD94: 131.2631593 | AE94: 134.5550892 | AF94: 137.9128576 | AG94: 141.3377815 | AH94: 144.8312037 | AI94: 148.3944945 | AJ94: 152.029051 | AK94: 155.7362987 | AL94: 159.5176914 | AM94: 163.3747119 | AN94: 0 | AO94: 0 | AP94: 0 | AQ94: 0 | AR94: 0 | AS94: 0 | AT94: 0 | AU94: 0 | AV94: 0 | AW94: 0 | AX94: 0
C95: Return on Investment - Pre-tax | I95: =IF(H92,I94/H92) -> FALSE | J95: =IF(I92,J94/I92) -> 0.07743538776 | K95: 0.08239734019 | L95: 0.0877611901 | M95: 0.09357257738 | N95: 0.09988418388 | O95: 0.1067571423 | P95: 0.114262797 | Q95: 0.1224849248 | R95: 0.1315225607 | S95: 0.1414936315 | T95: 0.1525396794 | U95: 0.1648320768 | V95: 0.1785803138 | W95: 0.1940432095 | X95: 0.2115443283 | Y95: 0.2314935625 | Z95: 0.2544179648 | AA95: 0.2810068105 | AB95: 0.3121791923 | AC95: 0.3491884831 | AD95: 0.393789478 | AE95: 0.4485169639 | AF95: 0.5171732161 | AG95: 0.6057333491 | AH95: 0.7241560187 | AI95: =IF(AH92,AI94/AH92) -> 0.8903669669 | AJ95: 1.140217883 | AK95: 1.557362987 | AL95: 2.392765371 | AM95: 4.901241356 | AN95: FALSE | AO95: FALSE | AP95: FALSE | AQ95: FALSE | AR95: FALSE | AS95: FALSE | AT95: FALSE | AU95: FALSE | AV95: FALSE | AW95: FALSE | AX95: FALSE
C97: Compound interest factor | G97: =F53 -> 0.077 | H97: 1 | I97: =H97*(1+$G$97*I5) -> 1 | J97: 1.077 | K97: 1.159929 | L97: 1.249243533 | M97: 1.345435285 | N97: 1.449033802 | O97: 1.560609405 | P97: 1.680776329 | Q97: 1.810196106 | R97: 1.949581206 | S97: 2.099698959 | T97: 2.261375779 | U97: 2.435501714 | V97: 2.623035346 | W97: 2.825009068 | X97: 3.042534766 | Y97: 3.276809943 | Z97: 3.529124309 | AA97: 3.80086688 | AB97: 4.09353363 | AC97: 4.40873572 | AD97: 4.74820837 | AE97: 5.113820415 | AF97: 5.507584587 | AG97: 5.9316686 | AH97: 6.388407082 | AI97: 6.880314427 | AJ97: 7.410098638 | AK97: 7.980676233 | AL97: 8.595188303 | AM97: 9.257017803 | AN97: 9.257017803 | AO97: 9.257017803 | AP97: 9.257017803 | AQ97: 9.257017803 | AR97: 9.257017803 | AS97: 9.257017803 | AT97: 9.257017803 | AU97: 9.257017803 | AV97: 9.257017803 | AW97: 9.257017803 | AX97: 9.257017803
C98: PV of the Investment | I98: =H92/H97 -> 0 | J98: =I92/I97 -> 1000 | K98: 897.5549366 | L98: 804.6469511 | M98: 720.4359888 | N98: 644.1533653 | O98: 575.095855 | P98: 512.6202608 | Q98: 456.1384245 | R98: 405.1126454 | S98: 359.051471 | T98: 317.5058328 | U98: 280.0654978 | V98: 246.355811 | W98: 216.0347048 | X98: 188.7899545 | Y98: 164.3366595 | Z98: 142.4149324 | AA98: 122.7877783 | AB98: 105.2391501 | AC98: 89.57216425 | AD98: 75.60746539 | AE98: 63.18172595 | AF98: 52.14627129 | AG98: 42.36581929 | AH98: 33.71732534 | AI98: =AH92/AH97 -> 26.08892397 | AJ98: 19.37895931 | AK98: 13.49509701 | AL98: 8.353510996 | AM98: 3.878138809 | AN98: 0 | AO98: 0 | AP98: 0 | AQ98: 0 | AR98: 0 | AS98: 0 | AT98: 0 | AU98: 0 | AV98: 0 | AW98: 0 | AX98: 0
C100: Weighting | G100: =SUM(I100:AX100) -> 1 | I100: =I98/SUM(98:98) -> 0 | J100: =J98/SUM(98:98) -> 0.1164669659 | K100: 0.1045355002 | L100: 0.09371478902 | M100: 0.08390699375 | N100: 0.07502258803 | O100: 0.06697966934 | P100: 0.05970332643 | Q100: 0.05312505834 | R100: 0.04718224066 | S100: 0.04181763543 | T100: 0.036978941 | U100: 0.03261837878 | V100: 0.02869231384 | W100: 0.0251609066 | X100: 0.02198779319 | Y100: 0.01913979212 | Z100: 0.01658663508 | AA100: 0.01430071999 | AB100: 0.0122568845 | AC100: 0.0104321982 | AD100: 0.008805772093 | AE100: 0.007358583922 | AF100: 0.006073318 | AG100: 0.004934218431 | AH100: 0.003926954581 | AI100: =AI98/SUM(98:98) -> 0.003038497819 | AJ100: 0.002257008593 | AK100: 0.001571733004 | AL100: 0.0009729080803 | AM100: 0.0004516750605 | AN100: 0 | AO100: 0 | AP100: 0 | AQ100: 0 | AR100: =AR98/SUM(98:98) -> 0 | AS100: 0 | AT100: 0 | AU100: 0 | AV100: 0 | AW100: 0 | AX100: 0
C101: Weighted ROIC (Proof of IRR) | E101: =SUMPRODUCT(100:100,95:95) -> 0.1476267181
C103: Taxes on EBIT | G103: =F23 -> 0 | I103: =I94*$G$103 -> 0 | J103: =J94*$G$103 -> 0 | K103: 0 | L103: 0 | M103: 0 | N103: 0 | O103: 0 | P103: 0 | Q103: 0 | R103: 0 | S103: 0 | T103: 0 | U103: 0 | V103: 0 | W103: 0 | X103: 0 | Y103: 0 | Z103: 0 | AA103: 0 | AB103: 0 | AC103: 0 | AD103: 0 | AE103: 0 | AF103: 0 | AG103: 0 | AH103: 0 | AI103: =AI94*$G$103 -> 0 | AJ103: 0 | AK103: 0 | AL103: 0 | AM103: 0 | AN103: 0 | AO103: 0 | AP103: 0 | AQ103: 0 | AR103: =AR94*$G$103 -> 0 | AS103: 0 | AT103: 0 | AU103: 0 | AV103: 0 | AW103: 0 | AX103: 0
C104: After Tax Cash Flow | I104: =I75-I103 -> -1000 | J104: 110.7687211 | K104: 112.9840955 | L104: 115.2437774 | M104: 117.548653 | N104: 119.899626 | O104: 122.2976186 | P104: 124.7435709 | Q104: 127.2384423 | R104: 129.7832112 | S104: 132.3788754 | T104: 135.0264529 | U104: 137.726982 | V104: 140.4815216 | W104: 143.2911521 | X104: 146.1569751 | Y104: 149.0801146 | Z104: 152.0617169 | AA104: 155.1029512 | AB104: 158.2050102 | AC104: 161.3691105 | AD104: 164.5964927 | AE104: 167.8884225 | AF104: 171.246191 | AG104: 174.6711148 | AH104: 178.1645371 | AI104: 181.7278278 | AJ104: 185.3623844 | AK104: 189.0696321 | AL104: 192.8510247 | AM104: 196.7080452 | AN104: 0 | AO104: 0 | AP104: 0 | AQ104: 0 | AR104: 0 | AS104: 0 | AT104: 0 | AU104: 0 | AV104: 0 | AW104: 0 | AX104: 0
C106: Project IRR | E106: =XIRR(I104:AH104,I3:AH3) -> 0.1199999988 | G106: =F11 -> 30
C107: NPV at Target IRR | E107: =target_irr -> 0.12 | F107: =XNPV(E107,I104:AH104,I3:AH3) -> 1.12976295e-12
C109: Operating Cash Flow | I109: =I73-I103 -> 0 | J109: 110.7687211 | K109: 112.9840955 | L109: 115.2437774 | M109: 117.548653 | N109: 119.899626 | O109: 122.2976186 | P109: 124.7435709 | Q109: 127.2384423 | R109: 129.7832112 | S109: 132.3788754 | T109: 135.0264529 | U109: 137.726982 | V109: 140.4815216 | W109: 143.2911521 | X109: 146.1569751 | Y109: 149.0801146 | Z109: 152.0617169 | AA109: 155.1029512 | AB109: 158.2050102 | AC109: 161.3691105 | AD109: 164.5964927 | AE109: 167.8884225 | AF109: 171.246191 | AG109: 174.6711148 | AH109: 178.1645371 | AI109: 181.7278278 | AJ109: 185.3623844 | AK109: 189.0696321 | AL109: 192.8510247 | AM109: 196.7080452 | AN109: 0 | AO109: 0 | AP109: 0 | AQ109: 0 | AR109: 0 | AS109: 0 | AT109: 0 | AU109: 0 | AV109: 0 | AW109: 0 | AX109: 0
B111: Valuation from After Tax Free Cash Flow
C112: PV of CAPEX | G112: =F50 -> 0.07 | H112: =XNPV(G112,I69:AH69,I3:AH3) -> 1000
C113: PV of OCF | G113: =G112 -> 0.07 | H113: =XNPV(G113,I109:AH109,I3:AH3) -> 1544.839709
C114: Bruno ratio | H114: =H113/H112 -> 1.544839709
B116: Value of plant for buyer
C117: Buyer's discount rate | I117: =LOOKUP(I2,49:49,50:50) -> 0.07 | J117: 0.07 | K117: 0.07 | L117: 0.07 | M117: 0.07 | N117: 0.07 | O117: 0.07 | P117: 0.07 | Q117: 0.07 | R117: 0.07 | S117: 0.07 | T117: 0.07 | U117: 0.07 | V117: 0.07 | W117: 0.07 | X117: 0.07 | Y117: 0.07 | Z117: 0.07 | AA117: 0.07 | AB117: 0.07 | AC117: 0.07 | AD117: 0.07 | AE117: 0.07 | AF117: 0.07 | AG117: 0.07 | AH117: 0.07 | AI117: 0.07 | AJ117: 0.07 | AK117: 0.07 | AL117: 0.07 | AM117: 0.07 | AN117: 0.07 | AO117: 0.07 | AP117: 0.07 | AQ117: 0.07 | AR117: 0.07 | AS117: 0.07 | AT117: 0.07 | AU117: 0.07 | AV117: 0.07 | AW117: 0.07 | AX117: 0.07
C118: Buyer's discount rate (Interpolate) | I118: =interpolate_look_up(I2,49:49,50:50) -> 0.07 | J118: 0.07 | K118: 0.07 | L118: 0.07 | M118: 0.07 | N118: 0.07 | O118: 0.07 | P118: 0.07 | Q118: 0.07 | R118: 0.07 | S118: 0.07 | T118: 0.07 | U118: 0.07 | V118: 0.07 | W118: 0.07 | X118: 0.07 | Y118: 0.07 | Z118: 0.07 | AA118: 0.07 | AB118: 0.07 | AC118: 0.07 | AD118: 0.07 | AE118: 0.07 | AF118: 0.07 | AG118: 0.07 | AH118: 0.07 | AI118: 0.07 | AJ118: 0.07 | AK118: 0.07 | AL118: 0.07 | AM118: 0.07 | AN118: 0.07 | AO118: 0.07 | AP118: 0.07 | AQ118: 0.07 | AR118: 0.07 | AS118: 0.07 | AT118: 0.07 | AU118: 0.07 | AV118: 0.07 | AW118: 0.07 | AX118: 0.07
B120: Value of Project in Future Years | I120: =NPV(I117,I104:AH104) -> 510.0096875 | J120: 1577.003079 | K120: 1608.54314 | L120: 1640.714003 | M120: 1673.528283 | N120: 1706.998849 | O120: 1706.589142 | P120: 1703.752763 | Q120: 1698.271886 | R120: 1689.912476 | S120: 1678.423138 | T120: 1663.533882 | U120: 1644.954801 | V120: 1622.374655 | W120: 1595.459359 | X120: 1563.850362 | Y120: 1527.162912 | Z120: 1484.984202 | AA120: 1436.871379 | AB120: 1382.349424 | AC120: 1320.908874 | AD120: 1252.003384 | AE120: 1175.047129 | AF120: 1089.412005 | AG120: 994.4246544 | AH120: 889.3632655 | AI120: 773.454157 | AJ120: 645.8681201 | AK120: 505.7165041 | AL120: 352.0470274 | AM120: 183.8392946 | AN120: 0 | AO120: 0 | AP120: 0 | AQ120: 0 | AR120: 0 | AS120: 0 | AT120: 0 | AU120: 0 | AV120: 0 | AW120: 0 | AX120: 0
C122: Holding period | F122: =F51 -> 15 | I122: =I2<=$F$122 -> TRUE | J122: TRUE | K122: TRUE | L122: TRUE | M122: TRUE | N122: TRUE | O122: TRUE | P122: TRUE | Q122: TRUE | R122: TRUE | S122: TRUE | T122: TRUE | U122: TRUE | V122: TRUE | W122: TRUE | X122: TRUE | Y122: FALSE | Z122: FALSE | AA122: FALSE | AB122: FALSE | AC122: FALSE | AD122: FALSE | AE122: FALSE | AF122: FALSE | AG122: FALSE | AH122: FALSE | AI122: FALSE | AJ122: FALSE | AK122: FALSE | AL122: FALSE | AM122: FALSE | AN122: FALSE | AO122: FALSE | AP122: FALSE | AQ122: FALSE | AR122: FALSE | AS122: FALSE | AT122: FALSE | AU122: FALSE | AV122: FALSE | AW122: FALSE | AX122: FALSE
C123: Terminal Period | F123: =F122 -> 15 | I123: =I2=$F$123 -> FALSE | J123: FALSE | K123: FALSE | L123: FALSE | M123: FALSE | N123: FALSE | O123: FALSE | P123: FALSE | Q123: FALSE | R123: FALSE | S123: FALSE | T123: FALSE | U123: FALSE | V123: FALSE | W123: FALSE | X123: TRUE | Y123: FALSE | Z123: FALSE | AA123: FALSE | AB123: FALSE | AC123: FALSE | AD123: FALSE | AE123: FALSE | AF123: FALSE | AG123: FALSE | AH123: FALSE | AI123: FALSE | AJ123: FALSE | AK123: FALSE | AL123: FALSE | AM123: FALSE | AN123: FALSE | AO123: FALSE | AP123: FALSE | AQ123: FALSE | AR123: FALSE | AS123: FALSE | AT123: FALSE | AU123: FALSE | AV123: FALSE | AW123: FALSE | AX123: FALSE
C125: Holding period CF | I125: =I122*I104+I123*I120 -> -1000 | J125: 110.7687211 | K125: 112.9840955 | L125: 115.2437774 | M125: 117.548653 | N125: 119.899626 | O125: 122.2976186 | P125: 124.7435709 | Q125: 127.2384423 | R125: 129.7832112 | S125: 132.3788754 | T125: 135.0264529 | U125: 137.726982 | V125: 140.4815216 | W125: 143.2911521 | X125: 1710.007337 | Y125: 0 | Z125: 0 | AA125: 0 | AB125: 0 | AC125: 0 | AD125: 0 | AE125: 0 | AF125: 0 | AG125: 0 | AH125: 0 | AI125: 0 | AJ125: 0 | AK125: 0 | AL125: 0 | AM125: 0 | AN125: 0 | AO125: 0 | AP125: 0 | AQ125: 0 | AR125: 0 | AS125: 0 | AT125: 0 | AU125: 0 | AV125: 0 | AW125: 0 | AX125: 0
C126: After Tax Project IRR | G126: =XIRR(I125:AH125,I3:AH3) -> 0.1353324354
A128: Uses & Sources of Funds
B129: Uses of funds
C130: EPC Capital Expenditures | I130: =SUM(I69:AH69) -> 1000
C131: Developer fee | G131: =F16 -> 0 | I131: =G131*I135 -> 0
C132: Interest During Construction
C133: Fees During Construction
C134: DSRA
D135: Total uses | I135: =I130/(1-G131) -> 1000
B137: Sources of Funds
C138: Debt funding | E138: =F33 -> TRUE | F138: =F29 -> 0 | I138: =I135*F138 -> 0
C139: Developer | F139: =F60 -> 0.03 | I139: =I135*$F$139 -> 30
C140: Sponsor | I140: =I135-I139-I138 -> 970
D141: Total sources | I141: =SUM(I138:I140) -> 1000
A143: Debt section
B144: Repayment - Initial Debt
C145: Operating period | I145: =H145+I5 -> 0 | J145: 1 | K145: 2 | L145: 3 | M145: 4 | N145: 5 | O145: 6 | P145: 7 | Q145: 8 | R145: 9 | S145: 10 | T145: 11 | U145: 12 | V145: 13 | W145: 14 | X145: 15 | Y145: 16 | Z145: 17 | AA145: 18 | AB145: 19 | AC145: 20 | AD145: 21 | AE145: 22 | AF145: 23 | AG145: 24 | AH145: 25 | AI145: 26 | AJ145: 27 | AK145: 28 | AL145: 29 | AM145: 30 | AN145: 30 | AO145: 30 | AP145: 30 | AQ145: 30 | AR145: 30 | AS145: 30 | AT145: 30 | AU145: 30 | AV145: 30 | AW145: 30 | AX145: 30
C146: Debt repayment flag | F146: =F32 -> 15 | I146: =AND(I145>0,I145<=$F$146) -> FALSE | J146: =AND(J145>0,J145<=$F$146) -> TRUE | K146: TRUE | L146: TRUE | M146: TRUE | N146: TRUE | O146: TRUE | P146: TRUE | Q146: TRUE | R146: TRUE | S146: TRUE | T146: TRUE | U146: TRUE | V146: TRUE | W146: TRUE | X146: TRUE | Y146: FALSE | Z146: FALSE | AA146: FALSE | AB146: FALSE | AC146: FALSE | AD146: FALSE | AE146: FALSE | AF146: FALSE | AG146: FALSE | AH146: FALSE | AI146: FALSE | AJ146: FALSE | AK146: FALSE | AL146: FALSE | AM146: FALSE | AN146: FALSE | AO146: FALSE | AP146: FALSE | AQ146: FALSE | AR146: FALSE | AS146: FALSE | AT146: FALSE | AU146: FALSE | AV146: FALSE | AW146: FALSE | AX146: FALSE
C147: Leveled repayment | F147: =I138 -> 0 | G147: =F32 -> 15 | I147: =$F$147/$G$147*I146 -> 0 | J147: =$F$147/$G$147*J146 -> 0 | K147: 0 | L147: 0 | M147: 0 | N147: 0 | O147: 0 | P147: 0 | Q147: 0 | R147: 0 | S147: 0 | T147: 0 | U147: 0 | V147: 0 | W147: 0 | X147: 0 | Y147: 0 | Z147: 0 | AA147: 0 | AB147: 0 | AC147: 0 | AD147: 0 | AE147: 0 | AF147: 0 | AG147: 0 | AH147: 0 | AI147: 0 | AJ147: 0 | AK147: 0 | AL147: 0 | AM147: 0 | AN147: 0 | AO147: 0 | AP147: 0 | AQ147: 0 | AR147: 0 | AS147: 0 | AT147: 0 | AU147: 0 | AV147: 0 | AW147: 0 | AX147: 0
C149: Sculpted repayment
C150: CFADS | I150: =I227 -> 0 | J150: =J227 -> 110.7687211 | K150: 112.9840955 | L150: 115.2437774 | M150: 117.548653 | N150: 119.899626 | O150: 122.2976186 | P150: 124.7435709 | Q150: 127.2384423 | R150: 129.7832112 | S150: 132.3788754 | T150: 135.0264529 | U150: 137.726982 | V150: 140.4815216 | W150: 143.2911521 | X150: 146.1569751 | Y150: 149.0801146 | Z150: 152.0617169 | AA150: 155.1029512 | AB150: 158.2050102 | AC150: 161.3691105 | AD150: 164.5964927 | AE150: 167.8884225 | AF150: 171.246191 | AG150: 174.6711148 | AH150: 178.1645371 | AI150: 181.7278278 | AJ150: 185.3623844 | AK150: 189.0696321 | AL150: 192.8510247 | AM150: 196.7080452 | AN150: 0 | AO150: 0 | AP150: 0 | AQ150: 0 | AR150: 0 | AS150: 0 | AT150: 0 | AU150: 0 | AV150: 0 | AW150: 0 | AX150: 0
C151: Debt Service | I151: =I224*I146 -> 0 | J151: 110.7687211 | K151: 112.9840955 | L151: 115.2437774 | M151: 117.548653 | N151: 119.899626 | O151: 122.2976186 | P151: 124.7435709 | Q151: 127.2384423 | R151: 129.7832112 | S151: 132.3788754 | T151: 135.0264529 | U151: 137.726982 | V151: 140.4815216 | W151: 143.2911521 | X151: 146.1569751 | Y151: 0 | Z151: 0 | AA151: 0 | AB151: 0 | AC151: 0 | AD151: 0 | AE151: 0 | AF151: 0 | AG151: 0 | AH151: 0 | AI151: 0 | AJ151: 0 | AK151: 0 | AL151: 0 | AM151: 0 | AN151: 0 | AO151: 0 | AP151: 0 | AQ151: 0 | AR151: 0 | AS151: 0 | AT151: 0 | AU151: 0 | AV151: 0 | AW151: 0 | AX151: 0
C152: Interest Rate | I152: =I164 -> 0.031 | J152: =J164 -> 0.031 | K152: 0.031 | L152: 0.031 | M152: 0.031 | N152: 0.031 | O152: 0.031 | P152: 0.031 | Q152: 0.031 | R152: 0.031 | S152: 0.031 | T152: 0.031 | U152: 0.031 | V152: 0.031 | W152: 0.031 | X152: 0.031 | Y152: 0.031 | Z152: 0.031 | AA152: 0.031 | AB152: 0.031 | AC152: 0.031 | AD152: 0.031 | AE152: 0.031 | AF152: 0.031 | AG152: 0.031 | AH152: 0.031 | AI152: 0.031 | AJ152: 0.031 | AK152: 0.031 | AL152: 0.031 | AM152: 0.031 | AN152: 0.031 | AO152: 0.031 | AP152: 0.031 | AQ152: 0.031 | AR152: 0.031 | AS152: 0.031 | AT152: 0.031 | AU152: 0.031 | AV152: 0.031 | AW152: 0.031 | AX152: 0.031
C153: Compound Interest Rate | H153: 1 | I153: =H153*(1+I152*I146) -> 1 | J153: =I153*(1+J152*J146) -> 1.031 | K153: 1.062961 | L153: 1.095912791 | M153: 1.129886088 | N153: 1.164912556 | O153: 1.201024845 | P153: 1.238256616 | Q153: 1.276642571 | R153: 1.31621849 | S153: 1.357021264 | T153: 1.399088923 | U153: 1.442460679 | V153: 1.487176961 | W153: 1.533279446 | X153: 1.580811109 | Y153: 1.580811109 | Z153: 1.580811109 | AA153: 1.580811109 | AB153: 1.580811109 | AC153: 1.580811109 | AD153: 1.580811109 | AE153: 1.580811109 | AF153: 1.580811109 | AG153: 1.580811109 | AH153: 1.580811109 | AI153: 1.580811109 | AJ153: 1.580811109 | AK153: 1.580811109 | AL153: 1.580811109 | AM153: 1.580811109 | AN153: 1.580811109 | AO153: 1.580811109 | AP153: 1.580811109 | AQ153: 1.580811109 | AR153: 1.580811109 | AS153: 1.580811109 | AT153: 1.580811109 | AU153: 1.580811109 | AV153: 1.580811109 | AW153: 1.580811109 | AX153: 1.580811109
C155: Opening balance | I155: =H160 -> 0 | J155: =I160 -> 0 | K155: 0 | L155: 0 | M155: 0 | N155: 0 | O155: 0 | P155: 0 | Q155: 0 | R155: 0 | S155: 0 | T155: 0 | U155: 0 | V155: 0 | W155: 0 | X155: 0 | Y155: 0 | Z155: 0 | AA155: 0 | AB155: 0 | AC155: 0 | AD155: 0 | AE155: 0 | AF155: 0 | AG155: 0 | AH155: 0 | AI155: 0 | AJ155: 0 | AK155: 0 | AL155: 0 | AM155: 0 | AN155: 0 | AO155: 0 | AP155: 0 | AQ155: 0 | AR155: 0 | AS155: 0 | AT155: 0 | AU155: 0 | AV155: 0 | AW155: 0 | AX155: 0
C156: Add Debt draws | I156: =I138 -> 0 | J156: 0 | K156: 0 | L156: 0 | M156: 0 | N156: 0 | O156: 0 | P156: 0 | Q156: 0 | R156: 0 | S156: 0 | T156: 0 | U156: 0 | V156: 0 | W156: 0 | X156: 0 | Y156: 0 | Z156: 0 | AA156: 0 | AB156: 0 | AC156: 0 | AD156: 0 | AE156: 0 | AF156: 0 | AG156: 0 | AH156: 0 | AI156: 0 | AJ156: 0 | AK156: 0 | AL156: 0 | AM156: 0 | AN156: 0 | AO156: 0 | AP156: 0 | AQ156: 0 | AR156: 0 | AS156: 0 | AT156: 0 | AU156: 0 | AV156: 0 | AW156: 0 | AX156: 0
C157: Less Debt repayments | F157: =F33 -> TRUE | I157: =IF($F$157,I149,I147) -> 0 | J157: 0 | K157: 0 | L157: 0 | M157: 0 | N157: 0 | O157: 0 | P157: 0 | Q157: 0 | R157: 0 | S157: 0 | T157: 0 | U157: 0 | V157: 0 | W157: 0 | X157: 0 | Y157: 0 | Z157: 0 | AA157: 0 | AB157: 0 | AC157: 0 | AD157: 0 | AE157: 0 | AF157: 0 | AG157: 0 | AH157: 0 | AI157: 0 | AJ157: 0 | AK157: 0 | AL157: 0 | AM157: 0 | AN157: 0 | AO157: 0 | AP157: 0 | AQ157: 0 | AR157: 0 | AS157: 0 | AT157: 0 | AU157: 0 | AV157: 0 | AW157: 0 | AX157: 0
C158: Less prepayment from sweep
C159: Less: Re-financed Debt
C160: Closing balance | I160: =I155+I156-I157-I158 -> 0 | J160: 0 | K160: 0 | L160: 0 | M160: 0 | N160: 0 | O160: 0 | P160: 0 | Q160: 0 | R160: 0 | S160: 0 | T160: 0 | U160: 0 | V160: 0 | W160: 0 | X160: 0 | Y160: 0 | Z160: 0 | AA160: 0 | AB160: 0 | AC160: 0 | AD160: 0 | AE160: 0 | AF160: 0 | AG160: 0 | AH160: 0 | AI160: 0 | AJ160: 0 | AK160: 0 | AL160: 0 | AM160: 0 | AN160: 0 | AO160: 0 | AP160: 0 | AQ160: 0 | AR160: 0 | AS160: 0 | AT160: 0 | AU160: 0 | AV160: 0 | AW160: 0 | AX160: 0
C162: Base rate | F162: =F36 -> 0.015 | I162: =$F$162 -> 0.015 | J162: =$F$162 -> 0.015 | K162: 0.015 | L162: 0.015 | M162: 0.015 | N162: 0.015 | O162: 0.015 | P162: 0.015 | Q162: 0.015 | R162: 0.015 | S162: 0.015 | T162: 0.015 | U162: 0.015 | V162: 0.015 | W162: 0.015 | X162: 0.015 | Y162: 0.015 | Z162: 0.015 | AA162: 0.015 | AB162: 0.015 | AC162: 0.015 | AD162: 0.015 | AE162: 0.015 | AF162: 0.015 | AG162: 0.015 | AH162: 0.015 | AI162: 0.015 | AJ162: 0.015 | AK162: 0.015 | AL162: 0.015 | AM162: 0.015 | AN162: 0.015 | AO162: 0.015 | AP162: 0.015 | AQ162: 0.015 | AR162: 0.015 | AS162: 0.015 | AT162: 0.015 | AU162: 0.015 | AV162: 0.015 | AW162: 0.015 | AX162: 0.015
C163: Credit spread | I163: =LOOKUP(I3,37:37,38:38) -> 0.016 | J163: 0.016 | K163: 0.016 | L163: 0.016 | M163: 0.016 | N163: 0.016 | O163: 0.016 | P163: 0.016 | Q163: 0.016 | R163: 0.016 | S163: 0.016 | T163: 0.016 | U163: 0.016 | V163: 0.016 | W163: 0.016 | X163: 0.016 | Y163: 0.016 | Z163: 0.016 | AA163: 0.016 | AB163: 0.016 | AC163: 0.016 | AD163: 0.016 | AE163: 0.016 | AF163: 0.016 | AG163: 0.016 | AH163: 0.016 | AI163: 0.016 | AJ163: 0.016 | AK163: 0.016 | AL163: 0.016 | AM163: 0.016 | AN163: 0.016 | AO163: 0.016 | AP163: 0.016 | AQ163: 0.016 | AR163: 0.016 | AS163: 0.016 | AT163: 0.016 | AU163: 0.016 | AV163: 0.016 | AW163: 0.016 | AX163: 0.016
C164: Interest rate | I164: =SUM(I162:I163) -> 0.031 | J164: =SUM(J162:J163) -> 0.031 | K164: 0.031 | L164: 0.031 | M164: 0.031 | N164: 0.031 | O164: 0.031 | P164: 0.031 | Q164: 0.031 | R164: 0.031 | S164: 0.031 | T164: 0.031 | U164: 0.031 | V164: 0.031 | W164: 0.031 | X164: 0.031 | Y164: 0.031 | Z164: 0.031 | AA164: 0.031 | AB164: 0.031 | AC164: 0.031 | AD164: 0.031 | AE164: 0.031 | AF164: 0.031 | AG164: 0.031 | AH164: 0.031 | AI164: 0.031 | AJ164: 0.031 | AK164: 0.031 | AL164: 0.031 | AM164: 0.031 | AN164: 0.031 | AO164: 0.031 | AP164: 0.031 | AQ164: 0.031 | AR164: 0.031 | AS164: 0.031 | AT164: 0.031 | AU164: 0.031 | AV164: 0.031 | AW164: 0.031 | AX164: 0.031
C165: Interest expense | I165: =I164*I155 -> 0 | J165: 0 | K165: 0 | L165: 0 | M165: 0 | N165: 0 | O165: 0 | P165: 0 | Q165: 0 | R165: 0 | S165: 0 | T165: 0 | U165: 0 | V165: 0 | W165: 0 | X165: 0 | Y165: 0 | Z165: 0 | AA165: 0 | AB165: 0 | AC165: 0 | AD165: 0 | AE165: 0 | AF165: 0 | AG165: 0 | AH165: 0 | AI165: 0 | AJ165: 0 | AK165: 0 | AL165: 0 | AM165: 0 | AN165: 0 | AO165: 0 | AP165: 0 | AQ165: 0 | AR165: 0 | AS165: 0 | AT165: 0 | AU165: 0 | AV165: 0 | AW165: 0 | AX165: 0
C166: IDC
B168: Re-Financing
C169: Re-Finance Period Flag | F169: =F43 -> 50 | I169: =$F$169=I2 -> FALSE | J169: FALSE | K169: FALSE | L169: FALSE | M169: FALSE | N169: FALSE | O169: FALSE | P169: FALSE | Q169: FALSE | R169: FALSE | S169: FALSE | T169: FALSE | U169: FALSE | V169: FALSE | W169: FALSE | X169: FALSE | Y169: FALSE | Z169: FALSE | AA169: FALSE | AB169: FALSE | AC169: FALSE | AD169: FALSE | AE169: FALSE | AF169: FALSE | AG169: FALSE | AH169: FALSE | AI169: FALSE | AJ169: FALSE | AK169: FALSE | AL169: FALSE | AM169: FALSE | AN169: FALSE | AO169: FALSE | AP169: FALSE | AQ169: FALSE | AR169: FALSE | AS169: FALSE | AT169: FALSE | AU169: FALSE | AV169: FALSE | AW169: FALSE | AX169: FALSE
C170: Re-finance Repayment Flag | E170: =F169 -> 50 | F170: =F47 -> 28 | I170: =AND(I2>$E$170,I2<=$F$170) -> FALSE | J170: FALSE | K170: FALSE | L170: FALSE | M170: FALSE | N170: FALSE | O170: FALSE | P170: FALSE | Q170: FALSE | R170: FALSE | S170: FALSE | T170: FALSE | U170: FALSE | V170: FALSE | W170: FALSE | X170: FALSE | Y170: FALSE | Z170: FALSE | AA170: FALSE | AB170: FALSE | AC170: FALSE | AD170: FALSE | AE170: FALSE | AF170: FALSE | AG170: FALSE | AH170: FALSE | AI170: FALSE | AJ170: FALSE | AK170: FALSE | AL170: FALSE | AM170: FALSE | AN170: FALSE | AO170: FALSE | AP170: FALSE | AQ170: FALSE | AR170: FALSE | AS170: FALSE | AT170: FALSE | AU170: FALSE | AV170: FALSE | AW170: FALSE | AX170: FALSE
C172: CFADS | I172: =I210*I170 -> 0 | J172: 0 | K172: 0 | L172: 0 | M172: 0 | N172: 0 | O172: 0 | P172: 0 | Q172: 0 | R172: 0 | S172: 0 | T172: 0 | U172: 0 | V172: 0 | W172: 0 | X172: 0 | Y172: 0 | Z172: 0 | AA172: 0 | AB172: 0 | AC172: 0 | AD172: 0 | AE172: 0 | AF172: 0 | AG172: 0 | AH172: 0 | AI172: 0 | AJ172: 0 | AK172: 0 | AL172: 0 | AM172: 0 | AN172: 0 | AO172: 0 | AP172: 0 | AQ172: 0 | AR172: 0 | AS172: 0 | AT172: 0 | AU172: 0 | AV172: 0 | AW172: 0 | AX172: 0
C173: DSCR and Debt Service | F173: =F44 -> 1.2 | I173: =I172/$F$173 -> 0 | J173: =J172/$F$173 -> 0 | K173: 0 | L173: 0 | M173: 0 | N173: 0 | O173: 0 | P173: 0 | Q173: 0 | R173: 0 | S173: 0 | T173: 0 | U173: 0 | V173: 0 | W173: 0 | X173: 0 | Y173: 0 | Z173: 0 | AA173: 0 | AB173: 0 | AC173: 0 | AD173: 0 | AE173: 0 | AF173: 0 | AG173: 0 | AH173: 0 | AI173: 0 | AJ173: 0 | AK173: 0 | AL173: 0 | AM173: 0 | AN173: 0 | AO173: 0 | AP173: 0 | AQ173: 0 | AR173: 0 | AS173: 0 | AT173: 0 | AU173: 0 | AV173: 0 | AW173: 0 | AX173: 0
C174: Interest Rate | F174: =F45 -> 0.03 | I174: =$F$174 -> 0.03 | J174: =$F$174 -> 0.03 | K174: 0.03 | L174: 0.03 | M174: 0.03 | N174: 0.03 | O174: 0.03 | P174: 0.03 | Q174: 0.03 | R174: 0.03 | S174: 0.03 | T174: 0.03 | U174: 0.03 | V174: 0.03 | W174: 0.03 | X174: 0.03 | Y174: 0.03 | Z174: 0.03 | AA174: 0.03 | AB174: 0.03 | AC174: 0.03 | AD174: 0.03 | AE174: 0.03 | AF174: 0.03 | AG174: 0.03 | AH174: 0.03 | AI174: 0.03 | AJ174: 0.03 | AK174: 0.03 | AL174: 0.03 | AM174: 0.03 | AN174: 0.03 | AO174: 0.03 | AP174: 0.03 | AQ174: 0.03 | AR174: 0.03 | AS174: 0.03 | AT174: 0.03 | AU174: 0.03 | AV174: 0.03 | AW174: 0.03 | AX174: 0.03
C175: Compound Interest Rate | H175: 1 | I175: =H175*(1+I174*I170) -> 1 | J175: =I175*(1+J174*J170) -> 1 | K175: 1 | L175: 1 | M175: 1 | N175: 1 | O175: 1 | P175: 1 | Q175: 1 | R175: 1 | S175: 1 | T175: 1 | U175: 1 | V175: 1 | W175: 1 | X175: 1 | Y175: 1 | Z175: 1 | AA175: 1 | AB175: 1 | AC175: 1 | AD175: 1 | AE175: 1 | AF175: 1 | AG175: 1 | AH175: 1 | AI175: 1 | AJ175: 1 | AK175: 1 | AL175: 1 | AM175: 1 | AN175: 1 | AO175: 1 | AP175: 1 | AQ175: 1 | AR175: 1 | AS175: 1 | AT175: 1 | AU175: 1 | AV175: 1 | AW175: 1 | AX175: 1
C176: PV of Debt Service | F176: =SUMPRODUCT(I173:AX173/I175:AX175) -> 0
C178: Opening Balance | I178: =H181 -> 0 | J178: =I181 -> 0 | K178: 0 | L178: 0 | M178: 0 | N178: 0 | O178: 0 | P178: 0 | Q178: 0 | R178: 0 | S178: 0 | T178: 0 | U178: 0 | V178: 0 | W178: 0 | X178: 0 | Y178: 0 | Z178: 0 | AA178: 0 | AB178: 0 | AC178: 0 | AD178: 0 | AE178: 0 | AF178: 0 | AG178: 0 | AH178: 0 | AI178: 0 | AJ178: 0 | AK178: 0 | AL178: 0 | AM178: 0 | AN178: 0 | AO178: 0 | AP178: 0 | AQ178: 0 | AR178: 0 | AS178: 0 | AT178: 0 | AU178: 0 | AV178: 0 | AW178: 0 | AX178: 0
C179: Add: Re-financing Proceeds | F179: =F176 -> 0 | I179: =$F$179*I169 -> 0 | J179: =$F$179*J169 -> 0 | K179: 0 | L179: 0 | M179: 0 | N179: 0 | O179: 0 | P179: 0 | Q179: 0 | R179: 0 | S179: 0 | T179: 0 | U179: 0 | V179: 0 | W179: 0 | X179: 0 | Y179: 0 | Z179: 0 | AA179: 0 | AB179: 0 | AC179: 0 | AD179: 0 | AE179: 0 | AF179: 0 | AG179: 0 | AH179: 0 | AI179: 0 | AJ179: 0 | AK179: 0 | AL179: 0 | AM179: 0 | AN179: 0 | AO179: 0 | AP179: 0 | AQ179: 0 | AR179: 0 | AS179: 0 | AT179: 0 | AU179: 0 | AV179: 0 | AW179: 0 | AX179: 0
C180: Less: Re-financing Repayment | I180: =I173-I184 -> 0 | J180: =J173-J184 -> 0 | K180: 0 | L180: 0 | M180: 0 | N180: 0 | O180: 0 | P180: 0 | Q180: 0 | R180: 0 | S180: 0 | T180: 0 | U180: 0 | V180: 0 | W180: 0 | X180: 0 | Y180: 0 | Z180: 0 | AA180: 0 | AB180: 0 | AC180: 0 | AD180: 0 | AE180: 0 | AF180: 0 | AG180: 0 | AH180: 0 | AI180: 0 | AJ180: 0 | AK180: 0 | AL180: 0 | AM180: 0 | AN180: 0 | AO180: 0 | AP180: 0 | AQ180: 0 | AR180: 0 | AS180: 0 | AT180: 0 | AU180: 0 | AV180: 0 | AW180: 0 | AX180: 0
C181: Closing Balance | I181: =I178+I179-I180 -> 0 | J181: =J178+J179-J180 -> 0 | K181: 0 | L181: 0 | M181: 0 | N181: 0 | O181: 0 | P181: 0 | Q181: 0 | R181: 0 | S181: 0 | T181: 0 | U181: 0 | V181: 0 | W181: 0 | X181: 0 | Y181: 0 | Z181: 0 | AA181: 0 | AB181: 0 | AC181: 0 | AD181: 0 | AE181: 0 | AF181: 0 | AG181: 0 | AH181: 0 | AI181: 0 | AJ181: 0 | AK181: 0 | AL181: 0 | AM181: 0 | AN181: 0 | AO181: 0 | AP181: 0 | AQ181: 0 | AR181: 0 | AS181: 0 | AT181: 0 | AU181: 0 | AV181: 0 | AW181: 0 | AX181: 0
C183: Interest Rate | I183: =I174 -> 0.03 | J183: =J174 -> 0.03 | K183: 0.03 | L183: 0.03 | M183: 0.03 | N183: 0.03 | O183: 0.03 | P183: 0.03 | Q183: 0.03 | R183: 0.03 | S183: 0.03 | T183: 0.03 | U183: 0.03 | V183: 0.03 | W183: 0.03 | X183: 0.03 | Y183: 0.03 | Z183: 0.03 | AA183: 0.03 | AB183: 0.03 | AC183: 0.03 | AD183: 0.03 | AE183: 0.03 | AF183: 0.03 | AG183: 0.03 | AH183: 0.03 | AI183: 0.03 | AJ183: 0.03 | AK183: 0.03 | AL183: 0.03 | AM183: 0.03 | AN183: 0.03 | AO183: 0.03 | AP183: 0.03 | AQ183: 0.03 | AR183: 0.03 | AS183: 0.03 | AT183: 0.03 | AU183: 0.03 | AV183: 0.03 | AW183: 0.03 | AX183: 0.03
C184: Interest Expense | I184: =I183*I178 -> 0 | J184: =J183*J178 -> 0 | K184: 0 | L184: 0 | M184: 0 | N184: 0 | O184: 0 | P184: 0 | Q184: 0 | R184: 0 | S184: 0 | T184: 0 | U184: 0 | V184: 0 | W184: 0 | X184: 0 | Y184: 0 | Z184: 0 | AA184: 0 | AB184: 0 | AC184: 0 | AD184: 0 | AE184: 0 | AF184: 0 | AG184: 0 | AH184: 0 | AI184: 0 | AJ184: 0 | AK184: 0 | AL184: 0 | AM184: 0 | AN184: 0 | AO184: 0 | AP184: 0 | AQ184: 0 | AR184: 0 | AS184: 0 | AT184: 0 | AU184: 0 | AV184: 0 | AW184: 0 | AX184: 0
B186: Sponsor tracking account - First Hurdle
C187: Openning balance | I187: =H191 -> 0 | J187: =I191 -> 970 | K187: 928.2389661 | L187: 881.3614392 | M187: 828.9654003 | N187: 770.6198119 | O187: 705.8625689 | P187: 634.1983064 | Q187: 555.0960526 | R187: 467.9867184 | S187: 372.2604096 | T187: 267.2635516 | U187: 152.2958118 | V187: 26.60680648 | W187: 0 | X187: 0 | Y187: 0 | Z187: 0 | AA187: 0 | AB187: 0 | AC187: 0 | AD187: 0 | AE187: 0 | AF187: 0 | AG187: 0 | AH187: 0 | AI187: =AH191 -> 0 | AJ187: 0 | AK187: 0 | AL187: 0 | AM187: 0 | AN187: 0 | AO187: 0 | AP187: 0 | AQ187: 0 | AR187: 0 | AS187: 0 | AT187: 0 | AU187: 0 | AV187: 0 | AW187: 0 | AX187: 0
C188: plus cost of capital of tracking | E188: 1st Hurdle | F188: =F63 -> 0.07 | I188: =(I187)*$F$188 -> 0 | J188: =(J187)*$F$188 -> 67.9 | K188: =(K187)*$F$188 -> 64.97672763 | L188: 61.69530074 | M188: 58.02757802 | N188: 53.94338683 | O188: 49.41037982 | P188: 44.39388145 | Q188: 38.85672368 | R188: 32.75907029 | S188: 26.05822867 | T188: 18.70844861 | U188: 10.66070683 | V188: 1.862476453 | W188: 0 | X188: 0 | Y188: 0 | Z188: 0 | AA188: 0 | AB188: 0 | AC188: 0 | AD188: 0 | AE188: 0 | AF188: 0 | AG188: 0 | AH188: 0 | AI188: 0 | AJ188: 0 | AK188: 0 | AL188: 0 | AM188: 0 | AN188: 0 | AO188: 0 | AP188: 0 | AQ188: 0 | AR188: 0 | AS188: 0 | AT188: 0 | AU188: 0 | AV188: 0 | AW188: 0 | AX188: 0
C189: plus Investment | I189: =I140 -> 970 | J189: 0 | K189: 0 | L189: 0 | M189: 0 | N189: 0 | O189: 0 | P189: 0 | Q189: 0 | R189: 0 | S189: 0 | T189: 0 | U189: 0 | V189: 0 | W189: 0 | X189: 0 | Y189: 0 | Z189: 0 | AA189: 0 | AB189: 0 | AC189: 0 | AD189: 0 | AE189: 0 | AF189: 0 | AG189: 0 | AH189: 0 | AI189: 0 | AJ189: 0 | AK189: 0 | AL189: 0 | AM189: 0 | AN189: 0 | AO189: 0 | AP189: 0 | AQ189: 0 | AR189: 0 | AS189: 0 | AT189: 0 | AU189: 0 | AV189: 0 | AW189: 0 | AX189: 0
C190: less Dividends First Tranch | I190: =I239 -> 0 | J190: 109.6610339 | K190: 111.8542546 | L190: 114.0913396 | M190: 116.3731664 | N190: 118.7006298 | O190: 121.0746424 | P190: 123.4961352 | Q190: 125.9660579 | R190: 128.4853791 | S190: 131.0550867 | T190: 133.6761884 | U190: 136.3497122 | V190: 28.46928293 | W190: 0 | X190: 0 | Y190: 0 | Z190: 0 | AA190: 0 | AB190: 0 | AC190: 0 | AD190: 0 | AE190: 0 | AF190: 0 | AG190: 0 | AH190: 0 | AI190: 0 | AJ190: 0 | AK190: 0 | AL190: 0 | AM190: 0 | AN190: 0 | AO190: 0 | AP190: 0 | AQ190: 0 | AR190: 0 | AS190: 0 | AT190: 0 | AU190: 0 | AV190: 0 | AW190: 0 | AX190: 0
C191: Closing Balance | I191: =I187+I189+I188-I190 -> 970 | J191: 928.2389661 | K191: 881.3614392 | L191: 828.9654003 | M191: 770.6198119 | N191: 705.8625689 | O191: 634.1983064 | P191: 555.0960526 | Q191: 467.9867184 | R191: 372.2604096 | S191: 267.2635516 | T191: 152.2958118 | U191: 26.60680648 | V191: 0 | W191: 0 | X191: 0 | Y191: 0 | Z191: 0 | AA191: 0 | AB191: 0 | AC191: 0 | AD191: 0 | AE191: 0 | AF191: 0 | AG191: 0 | AH191: 0 | AI191: 0 | AJ191: 0 | AK191: 0 | AL191: 0 | AM191: 0 | AN191: 0 | AO191: 0 | AP191: 0 | AQ191: 0 | AR191: 0 | AS191: 0 | AT191: 0 | AU191: 0 | AV191: 0 | AW191: 0 | AX191: 0
B193: Sponsor tracking account - Second Hurdle
C194: Openning balance | I194: =H198 -> 0 | J194: =I198 -> 970 | K194: 947.6389661 | L194: 921.0722185 | M194: 889.8773785 | N194: 853.5931762 | O194: 811.7159322 | P194: 763.6957238 | Q194: 708.9322037 | R194: 646.7700441 | S194: 576.493969 | T194: 497.3233395 | U194: 408.4062517 | V194: 308.8131022 | W194: 204.2330552 | X194: 89.35325878 | Y194: 0 | Z194: 0 | AA194: 0 | AB194: 0 | AC194: 0 | AD194: 0 | AE194: 0 | AF194: 0 | AG194: 0 | AH194: 0 | AI194: 0 | AJ194: 0 | AK194: 0 | AL194: 0 | AM194: 0 | AN194: 0 | AO194: 0 | AP194: 0 | AQ194: 0 | AR194: 0 | AS194: 0 | AT194: 0 | AU194: 0 | AV194: 0 | AW194: 0 | AX194: 0
C195: plus: cost of capital of tracking | E195: 2nd Hurdle | F195: =G63 -> 0.09 | I195: =I194*$F$195 -> 0 | J195: =J194*$F$195 -> 87.3 | K195: 85.28750695 | L195: 82.89649967 | M195: 80.08896407 | N195: 76.82338585 | O195: 73.0544339 | P195: 68.73261514 | Q195: 63.80389833 | R195: 58.20930397 | S195: 51.88445721 | T195: 44.75910056 | U195: 36.75656265 | V195: 27.7931792 | W195: 18.38097497 | X195: 8.04179329 | Y195: 0 | Z195: 0 | AA195: 0 | AB195: 0 | AC195: 0 | AD195: 0 | AE195: 0 | AF195: 0 | AG195: 0 | AH195: 0 | AI195: 0 | AJ195: 0 | AK195: 0 | AL195: 0 | AM195: 0 | AN195: 0 | AO195: 0 | AP195: 0 | AQ195: 0 | AR195: 0 | AS195: 0 | AT195: 0 | AU195: 0 | AV195: 0 | AW195: 0 | AX195: 0
C196: plus: Investment | I196: =I189 -> 970 | J196: 0 | K196: 0 | L196: 0 | M196: 0 | N196: 0 | O196: 0 | P196: 0 | Q196: 0 | R196: 0 | S196: 0 | T196: 0 | U196: 0 | V196: 0 | W196: 0 | X196: 0 | Y196: 0 | Z196: 0 | AA196: 0 | AB196: 0 | AC196: 0 | AD196: 0 | AE196: 0 | AF196: 0 | AG196: 0 | AH196: 0 | AI196: 0 | AJ196: 0 | AK196: 0 | AL196: 0 | AM196: 0 | AN196: 0 | AO196: 0 | AP196: 0 | AQ196: 0 | AR196: 0 | AS196: 0 | AT196: 0 | AU196: 0 | AV196: 0 | AW196: 0 | AX196: 0
C197: less: Dividends to Second Tranche | I197: =I243 -> 0 | J197: =J243 -> 109.6610339 | K197: 111.8542546 | L197: 114.0913396 | M197: 116.3731664 | N197: 118.7006298 | O197: 121.0746424 | P197: 123.4961352 | Q197: 125.9660579 | R197: 128.4853791 | S197: 131.0550867 | T197: 133.6761884 | U197: 136.3497122 | V197: 132.3732262 | W197: 133.2607714 | X197: 97.39505207 | Y197: 0 | Z197: 0 | AA197: 0 | AB197: 0 | AC197: 0 | AD197: 0 | AE197: 0 | AF197: 0 | AG197: 0 | AH197: 0 | AI197: 0 | AJ197: 0 | AK197: 0 | AL197: 0 | AM197: 0 | AN197: 0 | AO197: 0 | AP197: 0 | AQ197: 0 | AR197: 0 | AS197: 0 | AT197: 0 | AU197: 0 | AV197: 0 | AW197: 0 | AX197: 0
C198: Closing Balance | I198: =I194+I195+I196-I197 -> 970 | J198: =J194+J195+J196-J197 -> 947.6389661 | K198: 921.0722185 | L198: 889.8773785 | M198: 853.5931762 | N198: 811.7159322 | O198: 763.6957238 | P198: 708.9322037 | Q198: 646.7700441 | R198: 576.493969 | S198: 497.3233395 | T198: 408.4062517 | U198: 308.8131022 | V198: 204.2330552 | W198: 89.35325878 | X198: 0 | Y198: 0 | Z198: 0 | AA198: 0 | AB198: 0 | AC198: 0 | AD198: 0 | AE198: 0 | AF198: 0 | AG198: 0 | AH198: 0 | AI198: 0 | AJ198: 0 | AK198: 0 | AL198: 0 | AM198: 0 | AN198: 0 | AO198: 0 | AP198: 0 | AQ198: 0 | AR198: 0 | AS198: 0 | AT198: 0 | AU198: 0 | AV198: 0 | AW198: 0 | AX198: 0
B200: Sponsor tracking account - Third Hurdle
C201: Openning balance | I201: =H205 -> 0 | J201: =I205 -> 970 | K201: 967.0389661 | L201: 961.5589978 | M201: 953.2391479 | N201: 941.7222878 | O201: 926.6111097 | P201: 907.4636894 | Q201: 883.78856 | R201: 855.0392436 | S201: 820.6081814 | T201: 779.8199947 | U201: 731.9240057 | V201: 676.0859342 | W201: 618.0821607 | X201: 552.810427 | Y201: 487.6370542 | Z201: 438.411851 | AA201: 381.71457 | AB201: 316.6821364 | AC201: 242.3557143 | AD201: 157.6701567 | AE201: 61.44229395 | AF201: 0 | AG201: 0 | AH201: 0 | AI201: 0 | AJ201: 0 | AK201: 0 | AL201: 0 | AM201: 0 | AN201: 0 | AO201: 0 | AP201: 0 | AQ201: 0 | AR201: 0 | AS201: 0 | AT201: 0 | AU201: 0 | AV201: 0 | AW201: 0 | AX201: 0
C202: plus: cost of capital of tracking | E202: 3rd Hurdle | F202: =H63 -> 0.11 | I202: =$F$202*I201 -> 0 | J202: 106.7 | K202: 106.3742863 | L202: 105.7714898 | M202: 104.8563063 | N202: 103.5894517 | O202: 101.9272221 | P202: 99.82100583 | Q202: 97.2167416 | R202: 94.0543168 | S202: 90.26689995 | T202: 85.78019941 | U202: 80.51164063 | V202: 74.36945276 | W202: 67.98903768 | X202: 60.80914697 | Y202: 53.64007596 | Z202: 48.22530361 | AA202: 41.9886027 | AB202: 34.835035 | AC202: 26.65912857 | AD202: 17.34371723 | AE202: 6.758652334 | AF202: 0 | AG202: 0 | AH202: 0 | AI202: 0 | AJ202: 0 | AK202: 0 | AL202: 0 | AM202: 0 | AN202: 0 | AO202: 0 | AP202: 0 | AQ202: 0 | AR202: 0 | AS202: 0 | AT202: 0 | AU202: 0 | AV202: 0 | AW202: 0 | AX202: 0
C203: plus: Investment | I203: =I196 -> 970 | J203: =J196 -> 0 | K203: 0 | L203: 0 | M203: 0 | N203: 0 | O203: 0 | P203: 0 | Q203: 0 | R203: 0 | S203: 0 | T203: 0 | U203: 0 | V203: 0 | W203: 0 | X203: 0 | Y203: 0 | Z203: 0 | AA203: 0 | AB203: 0 | AC203: 0 | AD203: 0 | AE203: 0 | AF203: 0 | AG203: 0 | AH203: 0 | AI203: 0 | AJ203: 0 | AK203: 0 | AL203: 0 | AM203: 0 | AN203: 0 | AO203: 0 | AP203: 0 | AQ203: 0 | AR203: 0 | AS203: 0 | AT203: 0 | AU203: 0 | AV203: 0 | AW203: 0 | AX203: 0
C204: less: Dividends to Second Tranche | I204: =I248 -> 0 | J204: 109.6610339 | K204: 111.8542546 | L204: 114.0913396 | M204: 116.3731664 | N204: 118.7006298 | O204: 121.0746424 | P204: 123.4961352 | Q204: 125.9660579 | R204: 128.4853791 | S204: 131.0550867 | T204: 133.6761884 | U204: 136.3497122 | V204: 132.3732262 | W204: 133.2607714 | X204: 125.9825198 | Y204: 102.8652791 | Z204: 104.9225847 | AA204: 107.0210363 | AB204: 109.1614571 | AC204: 111.3446862 | AD204: 113.5715799 | AE204: 68.20094628 | AF204: 0 | AG204: 0 | AH204: 0 | AI204: 0 | AJ204: 0 | AK204: 0 | AL204: 0 | AM204: 0 | AN204: 0 | AO204: 0 | AP204: 0 | AQ204: 0 | AR204: 0 | AS204: 0 | AT204: 0 | AU204: 0 | AV204: 0 | AW204: 0 | AX204: 0
C205: Closing Balance | I205: =I201+I202+I203-I204 -> 970 | J205: =J201+J202+J203-J204 -> 967.0389661 | K205: 961.5589978 | L205: 953.2391479 | M205: 941.7222878 | N205: 926.6111097 | O205: 907.4636894 | P205: 883.78856 | Q205: 855.0392436 | R205: 820.6081814 | S205: 779.8199947 | T205: 731.9240057 | U205: 676.0859342 | V205: 618.0821607 | W205: 552.810427 | X205: 487.6370542 | Y205: 438.411851 | Z205: 381.71457 | AA205: 316.6821364 | AB205: 242.3557143 | AC205: 157.6701567 | AD205: 61.44229395 | AE205: 0 | AF205: 0 | AG205: 0 | AH205: 0 | AI205: 0 | AJ205: 0 | AK205: 0 | AL205: 0 | AM205: 0 | AN205: 0 | AO205: 0 | AP205: 0 | AQ205: 0 | AR205: 0 | AS205: 0 | AT205: 0 | AU205: 0 | AV205: 0 | AW205: 0 | AX205: 0
A207: Profit and Loss
B208: Revenues
B209: Less: Operating Expenses
C210: EBITDA | I210: =I73 -> 0 | J210: 110.7687211 | K210: 112.9840955 | L210: 115.2437774 | M210: 117.548653 | N210: 119.899626 | O210: 122.2976186 | P210: 124.7435709 | Q210: 127.2384423 | R210: 129.7832112 | S210: 132.3788754 | T210: 135.0264529 | U210: 137.726982 | V210: 140.4815216 | W210: 143.2911521 | X210: 146.1569751 | Y210: 149.0801146 | Z210: 152.0617169 | AA210: 155.1029512 | AB210: 158.2050102 | AC210: 161.3691105 | AD210: 164.5964927 | AE210: 167.8884225 | AF210: 171.246191 | AG210: 174.6711148 | AH210: 178.1645371 | AI210: 181.7278278 | AJ210: 185.3623844 | AK210: 189.0696321 | AL210: 192.8510247 | AM210: 196.7080452 | AN210: 0 | AO210: 0 | AP210: 0 | AQ210: 0 | AR210: 0 | AS210: 0 | AT210: 0 | AU210: 0 | AV210: 0 | AW210: 0 | AX210: 0
B211: Less: Depreciation Expense | I211: =I90 -> 0 | J211: 33.33333333 | K211: 33.33333333 | L211: 33.33333333 | M211: 33.33333333 | N211: 33.33333333 | O211: 33.33333333 | P211: 33.33333333 | Q211: 33.33333333 | R211: 33.33333333 | S211: 33.33333333 | T211: 33.33333333 | U211: 33.33333333 | V211: 33.33333333 | W211: 33.33333333 | X211: 33.33333333 | Y211: 33.33333333 | Z211: 33.33333333 | AA211: 33.33333333 | AB211: 33.33333333 | AC211: 33.33333333 | AD211: 33.33333333 | AE211: 33.33333333 | AF211: 33.33333333 | AG211: 33.33333333 | AH211: 33.33333333 | AI211: 33.33333333 | AJ211: 33.33333333 | AK211: 33.33333333 | AL211: 33.33333333 | AM211: 33.33333333 | AN211: 0 | AO211: 0 | AP211: 0 | AQ211: 0 | AR211: 0 | AS211: 0 | AT211: 0 | AU211: 0 | AV211: 0 | AW211: 0 | AX211: 0
C212: EBIT | I212: =I210-I211 -> 0 | J212: =J210-J211 -> 77.43538776 | K212: 79.65076218 | L212: 81.91044409 | M212: 84.21531964 | N212: 86.5662927 | O212: 88.96428522 | P212: 91.41023759 | Q212: 93.90510901 | R212: 96.44987786 | S212: 99.04554208 | T212: 101.6931196 | U212: 104.3936486 | V212: 107.1481883 | W212: 109.9578187 | X212: 112.8236418 | Y212: 115.7467813 | Z212: 118.7283836 | AA212: 121.7696179 | AB212: 124.8716769 | AC212: 128.0357771 | AD212: 131.2631593 | AE212: 134.5550892 | AF212: 137.9128576 | AG212: 141.3377815 | AH212: 144.8312037 | AI212: 148.3944945 | AJ212: 152.029051 | AK212: 155.7362987 | AL212: 159.5176914 | AM212: 163.3747119 | AN212: 0 | AO212: 0 | AP212: 0 | AQ212: 0 | AR212: 0 | AS212: 0 | AT212: 0 | AU212: 0 | AV212: 0 | AW212: 0 | AX212: 0
B213: Less: Interest | I213: =I165 -> 0 | J213: 0 | K213: 0 | L213: 0 | M213: 0 | N213: 0 | O213: 0 | P213: 0 | Q213: 0 | R213: 0 | S213: 0 | T213: 0 | U213: 0 | V213: 0 | W213: 0 | X213: 0 | Y213: 0 | Z213: 0 | AA213: 0 | AB213: 0 | AC213: 0 | AD213: 0 | AE213: 0 | AF213: 0 | AG213: 0 | AH213: 0 | AI213: 0 | AJ213: 0 | AK213: 0 | AL213: 0 | AM213: 0 | AN213: 0 | AO213: 0 | AP213: 0 | AQ213: 0 | AR213: 0 | AS213: 0 | AT213: 0 | AU213: 0 | AV213: 0 | AW213: 0 | AX213: 0
C214: EBT | I214: =I212-I213 -> 0 | J214: =J212-J213 -> 77.43538776 | K214: 79.65076218 | L214: 81.91044409 | M214: 84.21531964 | N214: 86.5662927 | O214: 88.96428522 | P214: 91.41023759 | Q214: 93.90510901 | R214: 96.44987786 | S214: 99.04554208 | T214: 101.6931196 | U214: 104.3936486 | V214: 107.1481883 | W214: 109.9578187 | X214: 112.8236418 | Y214: 115.7467813 | Z214: 118.7283836 | AA214: 121.7696179 | AB214: 124.8716769 | AC214: 128.0357771 | AD214: 131.2631593 | AE214: 134.5550892 | AF214: 137.9128576 | AG214: 141.3377815 | AH214: 144.8312037 | AI214: 148.3944945 | AJ214: 152.029051 | AK214: 155.7362987 | AL214: 159.5176914 | AM214: 163.3747119 | AN214: 0 | AO214: 0 | AP214: 0 | AQ214: 0 | AR214: 0 | AS214: 0 | AT214: 0 | AU214: 0 | AV214: 0 | AW214: 0 | AX214: 0
B215: Opening NOL | I215: =H218 -> 0 | J215: =I218 -> 0 | K215: 0 | L215: 0 | M215: 0 | N215: 0 | O215: 0 | P215: 0 | Q215: 0 | R215: 0 | S215: 0 | T215: 0 | U215: 0 | V215: 0 | W215: 0 | X215: 0 | Y215: 0 | Z215: 0 | AA215: 0 | AB215: 0 | AC215: 0 | AD215: 0 | AE215: 0 | AF215: 0 | AG215: 0 | AH215: 0 | AI215: 0 | AJ215: 0 | AK215: 0 | AL215: 0 | AM215: 0 | AN215: 0 | AO215: 0 | AP215: 0 | AQ215: 0 | AR215: 0 | AS215: 0 | AT215: 0 | AU215: 0 | AV215: 0 | AW215: 0 | AX215: 0
B216: Add NOL Created | I216: =MAX(-I214,0) -> 0 | J216: =MAX(-J214,0) -> 0 | K216: 0 | L216: 0 | M216: 0 | N216: 0 | O216: 0 | P216: 0 | Q216: 0 | R216: 0 | S216: 0 | T216: 0 | U216: 0 | V216: 0 | W216: 0 | X216: 0 | Y216: 0 | Z216: 0 | AA216: 0 | AB216: 0 | AC216: 0 | AD216: 0 | AE216: 0 | AF216: 0 | AG216: 0 | AH216: 0 | AI216: 0 | AJ216: 0 | AK216: 0 | AL216: 0 | AM216: 0 | AN216: 0 | AO216: 0 | AP216: 0 | AQ216: 0 | AR216: 0 | AS216: 0 | AT216: 0 | AU216: 0 | AV216: 0 | AW216: 0 | AX216: 0
B217: Less NOL Used | I217: =MIN(I215,MAX(I214,0)) -> 0 | J217: =MIN(J215,MAX(J214,0)) -> 0 | K217: 0 | L217: 0 | M217: 0 | N217: 0 | O217: 0 | P217: 0 | Q217: 0 | R217: 0 | S217: 0 | T217: 0 | U217: 0 | V217: 0 | W217: 0 | X217: 0 | Y217: 0 | Z217: 0 | AA217: 0 | AB217: 0 | AC217: 0 | AD217: 0 | AE217: 0 | AF217: 0 | AG217: 0 | AH217: 0 | AI217: 0 | AJ217: 0 | AK217: 0 | AL217: 0 | AM217: 0 | AN217: 0 | AO217: 0 | AP217: 0 | AQ217: 0 | AR217: 0 | AS217: 0 | AT217: 0 | AU217: 0 | AV217: 0 | AW217: 0 | AX217: 0
B218: Closing NOL | I218: =I215+I216-I217 -> 0 | J218: =J215+J216-J217 -> 0 | K218: 0 | L218: 0 | M218: 0 | N218: 0 | O218: 0 | P218: 0 | Q218: 0 | R218: 0 | S218: 0 | T218: 0 | U218: 0 | V218: 0 | W218: 0 | X218: 0 | Y218: 0 | Z218: 0 | AA218: 0 | AB218: 0 | AC218: 0 | AD218: 0 | AE218: 0 | AF218: 0 | AG218: 0 | AH218: 0 | AI218: 0 | AJ218: 0 | AK218: 0 | AL218: 0 | AM218: 0 | AN218: 0 | AO218: 0 | AP218: 0 | AQ218: 0 | AR218: 0 | AS218: 0 | AT218: 0 | AU218: 0 | AV218: 0 | AW218: 0 | AX218: 0
C219: EBT After NOL | I219: =I214+I216-I217 -> 0 | J219: =J214+J216-J217 -> 77.43538776 | K219: 79.65076218 | L219: 81.91044409 | M219: 84.21531964 | N219: 86.5662927 | O219: 88.96428522 | P219: 91.41023759 | Q219: 93.90510901 | R219: 96.44987786 | S219: 99.04554208 | T219: 101.6931196 | U219: 104.3936486 | V219: 107.1481883 | W219: 109.9578187 | X219: 112.8236418 | Y219: 115.7467813 | Z219: 118.7283836 | AA219: 121.7696179 | AB219: 124.8716769 | AC219: 128.0357771 | AD219: 131.2631593 | AE219: 134.5550892 | AF219: 137.9128576 | AG219: 141.3377815 | AH219: 144.8312037 | AI219: 148.3944945 | AJ219: 152.029051 | AK219: 155.7362987 | AL219: 159.5176914 | AM219: 163.3747119 | AN219: 0 | AO219: 0 | AP219: 0 | AQ219: 0 | AR219: 0 | AS219: 0 | AT219: 0 | AU219: 0 | AV219: 0 | AW219: 0 | AX219: 0
B220: Less: Taxes Paid | F220: =F23 -> 0 | I220: =I219*$F$220 -> 0 | J220: =J219*$F$220 -> 0 | K220: 0 | L220: 0 | M220: 0 | N220: 0 | O220: 0 | P220: 0 | Q220: 0 | R220: 0 | S220: 0 | T220: 0 | U220: 0 | V220: 0 | W220: 0 | X220: 0 | Y220: 0 | Z220: 0 | AA220: 0 | AB220: 0 | AC220: 0 | AD220: 0 | AE220: 0 | AF220: 0 | AG220: 0 | AH220: 0 | AI220: 0 | AJ220: 0 | AK220: 0 | AL220: 0 | AM220: 0 | AN220: 0 | AO220: 0 | AP220: 0 | AQ220: 0 | AR220: 0 | AS220: 0 | AT220: 0 | AU220: 0 | AV220: 0 | AW220: 0 | AX220: 0
C221: Net Income | I221: =I219-I220 -> 0 | J221: =J219-J220 -> 77.43538776 | K221: 79.65076218 | L221: 81.91044409 | M221: 84.21531964 | N221: 86.5662927 | O221: 88.96428522 | P221: 91.41023759 | Q221: 93.90510901 | R221: 96.44987786 | S221: 99.04554208 | T221: 101.6931196 | U221: 104.3936486 | V221: 107.1481883 | W221: 109.9578187 | X221: 112.8236418 | Y221: 115.7467813 | Z221: 118.7283836 | AA221: 121.7696179 | AB221: 124.8716769 | AC221: 128.0357771 | AD221: 131.2631593 | AE221: 134.5550892 | AF221: 137.9128576 | AG221: 141.3377815 | AH221: 144.8312037 | AI221: 148.3944945 | AJ221: 152.029051 | AK221: 155.7362987 | AL221: 159.5176914 | AM221: 163.3747119 | AN221: 0 | AO221: 0 | AP221: 0 | AQ221: 0 | AR221: 0 | AS221: 0 | AT221: 0 | AU221: 0 | AV221: 0 | AW221: 0 | AX221: 0
A223: Cash flow waterfall
B224: EBITDA | I224: =I73 -> 0 | J224: 110.7687211 | K224: 112.9840955 | L224: 115.2437774 | M224: 117.548653 | N224: 119.899626 | O224: 122.2976186 | P224: 124.7435709 | Q224: 127.2384423 | R224: 129.7832112 | S224: 132.3788754 | T224: 135.0264529 | U224: 137.726982 | V224: 140.4815216 | W224: 143.2911521 | X224: 146.1569751 | Y224: 149.0801146 | Z224: 152.0617169 | AA224: 155.1029512 | AB224: 158.2050102 | AC224: 161.3691105 | AD224: 164.5964927 | AE224: 167.8884225 | AF224: 171.246191 | AG224: 174.6711148 | AH224: 178.1645371 | AI224: 181.7278278 | AJ224: 185.3623844 | AK224: 189.0696321 | AL224: 192.8510247 | AM224: 196.7080452 | AN224: 0 | AO224: 0 | AP224: 0 | AQ224: 0 | AR224: 0 | AS224: 0 | AT224: 0 | AU224: 0 | AV224: 0 | AW224: 0 | AX224: 0
B225: less Taxes | I225: =I220 -> 0 | J225: =J220 -> 0 | K225: 0 | L225: 0 | M225: 0 | N225: 0 | O225: 0 | P225: 0 | Q225: 0 | R225: 0 | S225: 0 | T225: 0 | U225: 0 | V225: 0 | W225: 0 | X225: 0 | Y225: 0 | Z225: 0 | AA225: 0 | AB225: 0 | AC225: 0 | AD225: 0 | AE225: 0 | AF225: 0 | AG225: 0 | AH225: 0 | AI225: 0 | AJ225: 0 | AK225: 0 | AL225: 0 | AM225: 0 | AN225: 0 | AO225: 0 | AP225: 0 | AQ225: 0 | AR225: 0 | AS225: 0 | AT225: 0 | AU225: 0 | AV225: 0 | AW225: 0 | AX225: 0
B226: less WC changes
C227: CFADS | I227: =I224-I225-I226 -> 0 | J227: =J224-J225-J226 -> 110.7687211 | K227: 112.9840955 | L227: 115.2437774 | M227: 117.548653 | N227: 119.899626 | O227: 122.2976186 | P227: 124.7435709 | Q227: 127.2384423 | R227: 129.7832112 | S227: 132.3788754 | T227: 135.0264529 | U227: 137.726982 | V227: 140.4815216 | W227: 143.2911521 | X227: 146.1569751 | Y227: 149.0801146 | Z227: 152.0617169 | AA227: 155.1029512 | AB227: 158.2050102 | AC227: 161.3691105 | AD227: 164.5964927 | AE227: 167.8884225 | AF227: 171.246191 | AG227: 174.6711148 | AH227: 178.1645371 | AI227: =AI224-AI225-AI226 -> 181.7278278 | AJ227: 185.3623844 | AK227: 189.0696321 | AL227: 192.8510247 | AM227: 196.7080452 | AN227: 0 | AO227: 0 | AP227: 0 | AQ227: 0 | AR227: =AR224-AR225-AR226 -> 0 | AS227: 0 | AT227: 0 | AU227: 0 | AV227: 0 | AW227: 0 | AX227: 0
B228: Less Interest | I228: =I165 -> 0 | J228: 0 | K228: 0 | L228: 0 | M228: 0 | N228: 0 | O228: 0 | P228: 0 | Q228: 0 | R228: 0 | S228: 0 | T228: 0 | U228: 0 | V228: 0 | W228: 0 | X228: 0 | Y228: 0 | Z228: 0 | AA228: 0 | AB228: 0 | AC228: 0 | AD228: 0 | AE228: 0 | AF228: 0 | AG228: 0 | AH228: 0 | AI228: 0 | AJ228: 0 | AK228: 0 | AL228: 0 | AM228: 0 | AN228: 0 | AO228: 0 | AP228: 0 | AQ228: 0 | AR228: 0 | AS228: 0 | AT228: 0 | AU228: 0 | AV228: 0 | AW228: 0 | AX228: 0
B229: Less principal repayment | I229: =I157 -> 0 | J229: 0 | K229: 0 | L229: 0 | M229: 0 | N229: 0 | O229: 0 | P229: 0 | Q229: 0 | R229: 0 | S229: 0 | T229: 0 | U229: 0 | V229: 0 | W229: 0 | X229: 0 | Y229: 0 | Z229: 0 | AA229: 0 | AB229: 0 | AC229: 0 | AD229: 0 | AE229: 0 | AF229: 0 | AG229: 0 | AH229: 0 | AI229: 0 | AJ229: 0 | AK229: 0 | AL229: 0 | AM229: 0 | AN229: 0 | AO229: 0 | AP229: 0 | AQ229: 0 | AR229: 0 | AS229: 0 | AT229: 0 | AU229: 0 | AV229: 0 | AW229: 0 | AX229: 0
C230: Net cash flow | I230: =I227-I228-I229 -> 0 | J230: =J227-J228-J229 -> 110.7687211 | K230: 112.9840955 | L230: 115.2437774 | M230: 117.548653 | N230: 119.899626 | O230: 122.2976186 | P230: 124.7435709 | Q230: 127.2384423 | R230: 129.7832112 | S230: 132.3788754 | T230: 135.0264529 | U230: 137.726982 | V230: 140.4815216 | W230: 143.2911521 | X230: 146.1569751 | Y230: 149.0801146 | Z230: 152.0617169 | AA230: 155.1029512 | AB230: 158.2050102 | AC230: 161.3691105 | AD230: 164.5964927 | AE230: 167.8884225 | AF230: 171.246191 | AG230: 174.6711148 | AH230: 178.1645371 | AI230: =AI227-AI228-AI229 -> 181.7278278 | AJ230: 185.3623844 | AK230: 189.0696321 | AL230: 192.8510247 | AM230: 196.7080452 | AN230: 0 | AO230: 0 | AP230: 0 | AQ230: 0 | AR230: =AR227-AR228-AR229 -> 0 | AS230: 0 | AT230: 0 | AU230: 0 | AV230: 0 | AW230: 0 | AX230: 0
B231: Less cash trapped
B232: Less cash sweeped
C233: Total Cash to Equity holders | I233: =I230-I231-I232 -> 0 | J233: =J230-J231-J232 -> 110.7687211 | K233: 112.9840955 | L233: 115.2437774 | M233: 117.548653 | N233: 119.899626 | O233: 122.2976186 | P233: 124.7435709 | Q233: 127.2384423 | R233: 129.7832112 | S233: 132.3788754 | T233: 135.0264529 | U233: 137.726982 | V233: 140.4815216 | W233: 143.2911521 | X233: 146.1569751 | Y233: 149.0801146 | Z233: 152.0617169 | AA233: 155.1029512 | AB233: 158.2050102 | AC233: 161.3691105 | AD233: 164.5964927 | AE233: 167.8884225 | AF233: 171.246191 | AG233: 174.6711148 | AH233: 178.1645371 | AI233: =AI230-AI231-AI232 -> 181.7278278 | AJ233: 185.3623844 | AK233: 189.0696321 | AL233: 192.8510247 | AM233: 196.7080452 | AN233: 0 | AO233: 0 | AP233: 0 | AQ233: 0 | AR233: =AR230-AR231-AR232 -> 0 | AS233: 0 | AT233: 0 | AU233: 0 | AV233: 0 | AW233: 0 | AX233: 0
B235: Net cash flow to equity Including Development Fee | F235: =IRR(I235:AX235) -> 0.1248926038 | I235: =-I139-I140 -> -1000 | J235: =-J140+J233 -> 110.7687211 | K235: 112.9840955 | L235: 115.2437774 | M235: 117.548653 | N235: 119.899626 | O235: 122.2976186 | P235: 124.7435709 | Q235: 127.2384423 | R235: 129.7832112 | S235: 132.3788754 | T235: 135.0264529 | U235: 137.726982 | V235: 140.4815216 | W235: 143.2911521 | X235: 146.1569751 | Y235: 149.0801146 | Z235: 152.0617169 | AA235: 155.1029512 | AB235: 158.2050102 | AC235: 161.3691105 | AD235: 164.5964927 | AE235: 167.8884225 | AF235: 171.246191 | AG235: 174.6711148 | AH235: 178.1645371 | AI235: 181.7278278 | AJ235: 185.3623844 | AK235: 189.0696321 | AL235: 192.8510247 | AM235: 196.7080452 | AN235: 0 | AO235: 0 | AP235: 0 | AQ235: 0 | AR235: 0 | AS235: 0 | AT235: 0 | AU235: 0 | AV235: 0 | AW235: 0 | AX235: 0
B236: Net cash flow to debt | F236: =IFERROR(IRR(I236:AX236),FALSE) -> FALSE | I236: =-I138+I228+I229 -> 0 | J236: 0 | K236: 0 | L236: 0 | M236: 0 | N236: 0 | O236: 0 | P236: 0 | Q236: 0 | R236: 0 | S236: 0 | T236: 0 | U236: 0 | V236: 0 | W236: 0 | X236: 0 | Y236: 0 | Z236: 0 | AA236: 0 | AB236: 0 | AC236: 0 | AD236: 0 | AE236: 0 | AF236: 0 | AG236: 0 | AH236: 0 | AI236: 0 | AJ236: 0 | AK236: 0 | AL236: 0 | AM236: 0 | AN236: 0 | AO236: 0 | AP236: 0 | AQ236: 0 | AR236: 0 | AS236: 0 | AT236: 0 | AU236: 0 | AV236: 0 | AW236: 0 | AX236: 0
B238: Equity Cash Flow Allocation
C239: Sponsor Cash Flow to First Hurdle | E239: Sr % | F239: =1-E66 -> 0.99 | I239: =MIN($F$239*I233,I187+I188) -> 0 | J239: =MIN($F$239*J233,J187+J188) -> 109.6610339 | K239: 111.8542546 | L239: 114.0913396 | M239: 116.3731664 | N239: 118.7006298 | O239: 121.0746424 | P239: 123.4961352 | Q239: =MIN($F$239*Q233,Q187+Q188) -> 125.9660579 | R239: 128.4853791 | S239: 131.0550867 | T239: 133.6761884 | U239: 136.3497122 | V239: 28.46928293 | W239: 0 | X239: 0 | Y239: 0 | Z239: 0 | AA239: 0 | AB239: 0 | AC239: 0 | AD239: 0 | AE239: 0 | AF239: 0 | AG239: 0 | AH239: 0 | AI239: 0 | AJ239: 0 | AK239: 0 | AL239: 0 | AM239: 0 | AN239: 0 | AO239: 0 | AP239: 0 | AQ239: 0 | AR239: 0 | AS239: 0 | AT239: 0 | AU239: 0 | AV239: 0 | AW239: 0 | AX239: 0
C240: Basis for Developer Allocation (Total Cash) | E240: Sr % | F240: =F239 -> 0.99 | I240: =I239/$F$240 -> 0 | J240: 110.7687211 | K240: 112.9840955 | L240: 115.2437774 | M240: 117.548653 | N240: 119.899626 | O240: 122.2976186 | P240: 124.7435709 | Q240: 127.2384423 | R240: 129.7832112 | S240: 132.3788754 | T240: 135.0264529 | U240: 137.726982 | V240: 28.75685145 | W240: 0 | X240: 0 | Y240: 0 | Z240: 0 | AA240: 0 | AB240: 0 | AC240: 0 | AD240: 0 | AE240: 0 | AF240: 0 | AG240: 0 | AH240: 0 | AI240: 0 | AJ240: 0 | AK240: 0 | AL240: 0 | AM240: 0 | AN240: 0 | AO240: 0 | AP240: 0 | AQ240: 0 | AR240: 0 | AS240: 0 | AT240: 0 | AU240: 0 | AV240: 0 | AW240: 0 | AX240: 0
C241: Developer Cash to First Hurdle | E241: Dev % | F241: =E66 -> 0.01 | I241: =I240*$F$241 -> 0 | J241: 1.107687211 | K241: 1.129840955 | L241: 1.152437774 | M241: 1.17548653 | N241: 1.19899626 | O241: 1.222976186 | P241: 1.247435709 | Q241: 1.272384423 | R241: 1.297832112 | S241: 1.323788754 | T241: 1.350264529 | U241: 1.37726982 | V241: 0.2875685145 | W241: 0 | X241: 0 | Y241: 0 | Z241: 0 | AA241: 0 | AB241: 0 | AC241: 0 | AD241: 0 | AE241: 0 | AF241: 0 | AG241: 0 | AH241: 0 | AI241: 0 | AJ241: 0 | AK241: 0 | AL241: 0 | AM241: 0 | AN241: 0 | AO241: 0 | AP241: 0 | AQ241: 0 | AR241: 0 | AS241: 0 | AT241: 0 | AU241: 0 | AV241: 0 | AW241: 0 | AX241: 0
C242: Incremental Cash Flow to Second Hurdle | I242: =I233-I240 -> 0 | J242: 0 | K242: 0 | L242: 0 | M242: 0 | N242: 0 | O242: 0 | P242: 0 | Q242: 0 | R242: 0 | S242: 0 | T242: 0 | U242: 0 | V242: 111.7246702 | W242: 143.2911521 | X242: 146.1569751 | Y242: 149.0801146 | Z242: 152.0617169 | AA242: 155.1029512 | AB242: 158.2050102 | AC242: 161.3691105 | AD242: 164.5964927 | AE242: 167.8884225 | AF242: 171.246191 | AG242: 174.6711148 | AH242: 178.1645371 | AI242: 181.7278278 | AJ242: 185.3623844 | AK242: 189.0696321 | AL242: 192.8510247 | AM242: 196.7080452 | AN242: 0 | AO242: 0 | AP242: 0 | AQ242: 0 | AR242: 0 | AS242: 0 | AT242: 0 | AU242: 0 | AV242: 0 | AW242: 0 | AX242: 0
C243: Cash Flow to Senior for 2nd Hurdle | E243: Sr % | F243: =1-F66 -> 0.93 | I243: =MIN(I242*$F$243+I239,I194+I195) -> 0 | J243: =MIN(J242*$F$243+J239,J194+J195) -> 109.6610339 | K243: 111.8542546 | L243: 114.0913396 | M243: 116.3731664 | N243: 118.7006298 | O243: 121.0746424 | P243: 123.4961352 | Q243: 125.9660579 | R243: 128.4853791 | S243: 131.0550867 | T243: 133.6761884 | U243: 136.3497122 | V243: 132.3732262 | W243: 133.2607714 | X243: 97.39505207 | Y243: 0 | Z243: 0 | AA243: 0 | AB243: 0 | AC243: 0 | AD243: 0 | AE243: 0 | AF243: 0 | AG243: 0 | AH243: 0 | AI243: 0 | AJ243: 0 | AK243: 0 | AL243: 0 | AM243: 0 | AN243: 0 | AO243: 0 | AP243: 0 | AQ243: 0 | AR243: 0 | AS243: 0 | AT243: 0 | AU243: 0 | AV243: 0 | AW243: 0 | AX243: 0
C244: Incremental Cash Flowt to Senior 2nd Hurdle | I244: =I243-I239 -> 0 | J244: =J243-J239 -> 0 | K244: 0 | L244: 0 | M244: 0 | N244: 0 | O244: 0 | P244: 0 | Q244: 0 | R244: 0 | S244: 0 | T244: 0 | U244: 0 | V244: 103.9039433 | W244: 133.2607714 | X244: 97.39505207 | Y244: 0 | Z244: 0 | AA244: 0 | AB244: 0 | AC244: 0 | AD244: 0 | AE244: 0 | AF244: 0 | AG244: 0 | AH244: 0 | AI244: 0 | AJ244: 0 | AK244: 0 | AL244: 0 | AM244: 0 | AN244: 0 | AO244: 0 | AP244: 0 | AQ244: 0 | AR244: 0 | AS244: 0 | AT244: 0 | AU244: 0 | AV244: 0 | AW244: 0 | AX244: 0
C245: Incremental Cash Flow Basis for Developer Allocation | E245: Sr % | F245: =F243 -> 0.93 | I245: =I244/$F$245 -> 0 | J245: =J244/$F$245 -> 0 | K245: 0 | L245: 0 | M245: 0 | N245: 0 | O245: 0 | P245: 0 | Q245: 0 | R245: 0 | S245: 0 | T245: 0 | U245: 0 | V245: 111.7246702 | W245: 143.2911521 | X245: 104.7258624 | Y245: 0 | Z245: 0 | AA245: 0 | AB245: 0 | AC245: 0 | AD245: 0 | AE245: 0 | AF245: 0 | AG245: 0 | AH245: 0 | AI245: 0 | AJ245: 0 | AK245: 0 | AL245: 0 | AM245: 0 | AN245: 0 | AO245: 0 | AP245: 0 | AQ245: 0 | AR245: 0 | AS245: 0 | AT245: 0 | AU245: 0 | AV245: 0 | AW245: 0 | AX245: 0
C246: Developer Cash Second Hurdle | E246: Dev % | F246: =F66 -> 0.07 | I246: =I245*$F$246 -> 0 | J246: 0 | K246: 0 | L246: 0 | M246: 0 | N246: 0 | O246: 0 | P246: 0 | Q246: 0 | R246: 0 | S246: 0 | T246: 0 | U246: 0 | V246: 7.820726912 | W246: 10.03038064 | X246: 7.330810371 | Y246: 0 | Z246: 0 | AA246: 0 | AB246: 0 | AC246: 0 | AD246: 0 | AE246: 0 | AF246: 0 | AG246: 0 | AH246: 0 | AI246: 0 | AJ246: 0 | AK246: 0 | AL246: 0 | AM246: 0 | AN246: 0 | AO246: 0 | AP246: 0 | AQ246: 0 | AR246: 0 | AS246: 0 | AT246: 0 | AU246: 0 | AV246: 0 | AW246: 0 | AX246: 0
C247: Incremental Cash Flow to Third Hurdle | I247: =I242-I245 -> 0 | J247: =J242-J245 -> 0 | K247: 0 | L247: 0 | M247: 0 | N247: 0 | O247: 0 | P247: 0 | Q247: 0 | R247: 0 | S247: 0 | T247: 0 | U247: 0 | V247: 0 | W247: 0 | X247: 41.43111265 | Y247: 149.0801146 | Z247: 152.0617169 | AA247: 155.1029512 | AB247: 158.2050102 | AC247: 161.3691105 | AD247: 164.5964927 | AE247: 167.8884225 | AF247: 171.246191 | AG247: 174.6711148 | AH247: 178.1645371 | AI247: 181.7278278 | AJ247: 185.3623844 | AK247: 189.0696321 | AL247: 192.8510247 | AM247: 196.7080452 | AN247: 0 | AO247: 0 | AP247: 0 | AQ247: 0 | AR247: 0 | AS247: 0 | AT247: 0 | AU247: 0 | AV247: 0 | AW247: 0 | AX247: 0
... 58 more rows

Sheet Debt Structure
C2: Credit Spread Code | D2: 1
C4: Credit Spread | D4: =FM!F37 -> 2020-01-20 | E4: =FM!G37 -> 2021-01-20 | F4: =FM!H37 -> 2023-01-20 | G4: =FM!I37 -> 2025-01-20
C5: Flat | D5: 0.016 | E5: 0.016 | F5: 0.016 | G5: 0.016
C6: Increasing | D6: 0.01 | E6: 0.0175 | F6: 0.0195 | G6: 0.0215
C7: Low Spread | D7: 0.01 | E7: 0.014 | F7: =E7+0.01% -> 0.0141 | G7: =F7+0.01% -> 0.0142
C9: =INDEX(C5:C7,$D$2) -> Flat | D9: =INDEX(D5:D7,$D$2) -> 0.016 | E9: =INDEX(E5:E7,$D$2) -> 0.016 | F9: =INDEX(F5:F7,$D$2) -> 0.016 | G9: =INDEX(G5:G7,$D$2) -> 0.016
C12: Credit spread | D12: 0.0175
C13: Tenure | D13: 15 | G13: =FM!F235 -> 0.1248926038 | H13: 10 | I13: 12 | J13: 15 | K13: 20
C14: Debt to Capital ratio | D14: 0.8 | G14: 0.01 | H14: 0.1248926038 | I14: 0.1248926038 | J14: 0.1248926038 | K14: 0.1248926038
G15: 0.012 | H15: 0.1248926038 | I15: 0.1248926038 | J15: 0.1248926038 | K15: 0.1248926038
G16: 0.015 | H16: 0.1248926038 | I16: 0.1248926038 | J16: 0.1248926038 | K16: 0.1248926038
G17: 0.017 | H17: 0.1248926038 | I17: 0.1248926038 | J17: 0.1248926038 | K17: 0.1248926038
G18: 0.02 | H18: 0.1248926038 | I18: 0.1248926038 | J18: 0.1248926038 | K18: 0.1248926038
G19: 0.025 | H19: 0.1248926038 | I19: 0.1248926038 | J19: 0.1248926038 | K19: 0.1248926038
G20: 0.03 | H20: 0.1248926038 | I20: 0.1248926038 | J20: 0.1248926038 | K20: 0.1248926038
G23: =G13 -> 0.1248926038 | H23: 10 | I23: 12 | J23: 15 | K23: 20
G24: 0.6 | H24: 0.1248926038 | I24: 0.1248926038 | J24: 0.1248926038 | K24: 0.1248926038
G25: 0.65 | H25: 0.1248926038 | I25: 0.1248926038 | J25: 0.1248926038 | K25: 0.1248926038
G26: 0.7 | H26: 0.1248926038 | I26: 0.1248926038 | J26: 0.1248926038 | K26: 0.1248926038
G27: 0.75 | H27: 0.1248926038 | I27: 0.1248926038 | J27: 0.1248926038 | K27: 0.1248926038
G28: 0.8 | H28: 0.1248926038 | I28: 0.1248926038 | J28: 0.1248926038 | K28: 0.1248926038

Sheet Scenarios
B2: Code | H2: 2
A5: Valuation | F5: 0 | G5: 1 | H5: 3 | I5: 5
B6: Base case | E6: % | F6: 0.1 | G6: 0.08 | H6: 0.06 | I6: 0.05
B7: Flat discount rate | F7: 0.07 | G7: 0.07 | H7: 0.07 | I7: 0.07
B8: Small risk reduction | F8: 0.1 | G8: 0.09 | H8: 0.08 | I8: 0.075
B9: Big risk reduction | F9: 0.11 | G9: 0.07 | H9: 0.06 | I9: 0.04
B11: =INDEX(B6:B9,$H$2) -> Flat discount rate | F11: =INDEX(F6:F9,$H$2) -> 0.07 | G11: =INDEX(G6:G9,$H$2) -> 0.07 | H11: =INDEX(H6:H9,$H$2) -> 0.07 | I11: =INDEX(I6:I9,$H$2) -> 0.07

Sheet Table VBA
E2: Developer Performance Incentive Analysis
L3: Start row | M3: =ROW(E11) -> 11
D4: From | E4: =FM!E63 -> 0 | F4: =FM!F63 -> 0.07 | G4: =FM!G63 -> 0.09 | H4: =FM!H63 -> 0.11 | L4: End row | M4: =ROW(E23) -> 23
D5: To | E5: =F4-0.0001 -> 0.0699 | F5: =G4-0.0001 -> 0.0899 | G5: 0.1099 | L5: Start col | M5: =COLUMN(F11) -> 6
L6: End col | M6: =COLUMN(H11) -> 8
D7: Developer % | E7: =FM!E66 -> 0.01 | F7: =FM!F66 -> 0.07 | G7: =FM!G66 -> 0.33 | H7: =FM!H66 -> 0.31
D8: Sponsor % | E8: =1-E7 -> 0.99 | F8: =1-F7 -> 0.93 | G8: 0.67 | H8: 0.69
E9: Overall IRR
F10: IRR to Sponsor | G10: IRR to Developer | H10: NPV to Developer
E11: 0.06 | F11: 0.07064571958 | G11: -0.000462509018 | H11: -21.2479
E12: 0.065 | F12: 0.07504712677 | G12: 0.02645178247 | H12: -20.2002
E13: 0.07 | F13: 0.07949486088 | G13: 0.04102996726 | H13: -19.031
E14: 0.075 | F14: 0.08398024182 | G14: 0.05186616473 | H14: -17.7456
E15: 0.08 | F15: 0.08849726325 | G15: 0.06091325058 | H15: -16.351
E16: 0.085 | F16: 0.0922898854 | G16: 0.08720725957 | H16: -11.8153
E17: 0.09 | F17: 0.09583409655 | G17: 0.1081141544 | H17: -5.2464
E18: 0.095 | F18: 0.09949416573 | G18: 0.1236866241 | H18: 1.8576
E19: 0.1 | F19: 0.1032471595 | G19: 0.1369682003 | H19: 9.4307
E20: 0.105 | F20: 0.1070756418 | G20: 0.1490327872 | H20: 17.4274
E21: 0.11 | F21: 0.1109684805 | G21: 0.1603297317 | H21: 25.789
E22: 0.115 | F22: 0.114913752 | G22: 0.1711825286 | H22: 34.4988
E23: 0.12 | F23: 0.1189043582 | G23: 0.181727089 | H23: 43.5174
I32: Start Row
I33: End Row
F35: IRR
E36: 2 | F36: 0.05700074136 | K36: Holding_period | L36: =FM!$F$33
E37: 3 | F37: 0.06758262217 | K37: IRR_HoldP | L37: =FM!$G$81
E38: 4 | F38: 0.08791190684
E39: 5 | F39: 0.08691714108
E40: 6 | F40: 0.08630520999
E41: 8 | F41: 0.08808300197
E43: Max IRR | F43: =MAX(F36:F41) -> 0.08808300197
G45: ebitda
F46: 0.07 | G46: 89.19938035
F47: 0.075 | G47: 93.68604361
F48: 0.08 | G48: 98.26843054
F49: 0.085 | G49: 102.9442832
F50: 0.09 | G50: 107.7112616

Sheet IRR Flip Instructions
C3: Performance
C4: Principles:
C5: 1. Set-up Initial Account with Cost of Capital Tracker
C6: 2. Include Basis for Develpoper Cash Flow as Senior/Senior Pct
C7: 3. Once you have the Developer basis, the allocation is easy
C9: 4. For subsequent tranches, start with incremental cash flow that is the basis for allocations. This is total less the developer basis (Total equicy cash - basis from part 2)
C10: 5. Compute total to senior with MIN function and include cash flow from prior tranche
C11: 6. Compute Incremental senior as well as total senior. Incremental is senior from this tranche - senior from prior tranche
C12: 7. Use the Incremental Senior to compute basis for developer allocation as incemental/senior Incemental percent
C13: 8. Compute the developer amount as the basis x Developer percent
C15: Re-start from point 4 for incremental tranche
C18: ROI with Different depreciation rates
C19: Put in small Depreciation at end year

Sheet IRR Theory
C1: Period | D1: 0 | E1: 1 | F1: 2 | G1: 3 | H1: 4 | I1: 5
A2: Simple Case -- 25 Cash Flow
C3: Cash Flow | D3: -10 | E3: 5 | F3: 5 | G3: 5 | H3: 5 | I3: 5
C4: Operating | D4: 0 | E4: =E3 -> 5 | F4: =F3 -> 5 | G4: =G3 -> 5 | H4: =H3 -> 5 | I4: =I3 -> 5
C6: Invested capital | E6: 10 | F6: 8 | G6: 6 | H6: 4 | I6: 2
C7: ROIC | E7: =(E3-2)/E6 -> 0.3 | F7: =(F3-2)/F6 -> 0.375 | G7: =(G3-2)/G6 -> 0.5 | H7: =(H3-2)/H6 -> 0.75 | I7: =(I3-2)/I6 -> 1.5
C8: PV of Inv Capital | E8: =E6/(1+$D$13)^E$1 -> 8.695652174 | F8: =F6/(1+$D$13)^F$1 -> 6.049149338 | G8: =G6/(1+$D$13)^G$1 -> 3.945097395 | H8: =H6/(1+$D$13)^H$1 -> 2.287012982 | I8: =I6/(1+$D$13)^I$1 -> 0.9943534706
C9: Weight Inv Capital | E9: =E8/SUM(8:8) -> 0.3957738451 | F9: =F8/SUM(8:8) -> 0.2753209357 | G9: =G8/SUM(8:8) -> 0.179557132 | H9: =H8/SUM(8:8) -> 0.104091091 | I9: =I8/SUM(8:8) -> 0.0452569961
C11: WROIC | D11: =SUMPRODUCT(7:7,9:9) -> 0.4577098829
C12: IRR | D12: =IRR(D3:K3) -> 0.410414965
C13: WACC | D13: 0.15
C14: NPV | D14: =NPV(D13,3:3) -> 5.878935209
C15: MIRR | D15: =MIRR(D3:K3,0,D13) -> 0.2751364553
C17: NPV Operating | D17: =NPV(D13,D4:I4) -> 14.57458738
C18: Bruno Ratio | D18: =-D17/D3 -> 1.457458738
A20: Simple Case - 50 One Time Cash Flow
C21: Cash Flow | D21: -10 | E21: 0 | F21: 0 | G21: 0 | H21: 0 | I21: 50
C22: Operating | D22: 0 | E22: =E21 -> 0 | F22: =F21 -> 0 | G22: =G21 -> 0 | H22: =H21 -> 0 | I22: =I21 -> 50
C24: Invested capital | E24: 10 | F24: 8 | G24: 6 | H24: 4 | I24: 2
C25: ROIC | E25: =(E21-2)/E24 -> -0.2 | F25: =(F21-2)/F24 -> -0.25 | G25: =(G21-2)/G24 -> -0.3333333333 | H25: =(H21-2)/H24 -> -0.5 | I25: =(I21-2)/I24 -> 24
C26: PV of Inv Capital | E26: =E24/(1+$D$13)^E$1 -> 8.695652174 | F26: =F24/(1+$D$13)^F$1 -> 6.049149338 | G26: =G24/(1+$D$13)^G$1 -> 3.945097395 | H26: =H24/(1+$D$13)^H$1 -> 2.287012982 | I26: =I24/(1+$D$13)^I$1 -> 0.9943534706
C27: Weight IC | E27: =E26/SUM(26:26) -> 0.3957738451 | F27: =F26/SUM(26:26) -> 0.2753209357 | G27: =G26/SUM(26:26) -> 0.179557132 | H27: =H26/SUM(26:26) -> 0.104091091 | I27: =I26/SUM(26:26) -> 0.0452569961
C29: WROIC | D29: =SUMPRODUCT(25:25,27:27) -> 0.8262849805
C30: IRR | D30: =IRR(21:21) -> 0.3797296615
C31: WACC | D31: =D13 -> 0.15
C32: NPV | D32: =NPV(D31,21:21) -> 12.92072762
C33: CAGR | D33: =(-I21/D21)^(1/5)-1 -> 0.3797296615
C34: MIRR | D34: =MIRR(D21:I21,0,D31) -> 0.3797296615
C36: NPV Operating | D36: =NPV(D31,D22:I22) -> 21.6163798
C37: Bruno Ratio | D37: =-D36/D21 -> 2.16163798
A39: Shorter Depreciation Life
B40: Period | D40: 0 | E40: 1 | F40: 2 | G40: 3 | H40: 4 | I40: 5 | J40: 6 | K40: 7 | L40: 8 | M40: 9 | N40: 10 | O40: 11 | P40: 12 | Q40: 13 | R40: 14 | S40: 15 | T40: 16 | U40: 17 | V40: 18 | W40: 19 | X40: 20 | Y40: 21 | Z40: 22 | AA40: 23 | AB40: 24 | AC40: 25
B41: Depreciation Life | D41: 10 | E41: =E40<=$D$41 -> TRUE | F41: =F40<=$D$41 -> TRUE | G41: TRUE | H41: TRUE | I41: TRUE | J41: TRUE | K41: TRUE | L41: TRUE | M41: TRUE | N41: TRUE | O41: FALSE | P41: FALSE | Q41: FALSE | R41: FALSE | S41: FALSE | T41: FALSE | U41: FALSE | V41: FALSE | W41: FALSE | X41: FALSE | Y41: FALSE | Z41: FALSE | AA41: FALSE | AB41: FALSE | AC41: FALSE
B43: Operating Cash | E43: 100 | F43: =E43*1.02 -> 102 | G43: =F43*1.02 -> 104.04 | H43: 106.1208 | I43: 108.243216 | J43: 110.4080803 | K43: 112.6162419 | L43: 114.8685668 | M43: 117.1659381 | N43: 119.5092569 | O43: 121.899442 | P43: 124.3374308 | Q43: 126.8241795 | R43: 129.360663 | S43: 131.9478763 | T43: 134.5868338 | U43: 137.2785705 | V43: 140.0241419 | W43: 142.8246248 | X43: 145.6811173 | Y43: 148.5947396 | Z43: 151.5666344 | AA43: 154.5979671 | AB43: 157.6899264 | AC43: 160.8437249
B44: Capital Cost | D44: 500
B45: Net Cash Flow | D45: =D43-D44 -> -500 | E45: =E43-E44 -> 100 | F45: 102 | G45: 104.04 | H45: 106.1208 | I45: 108.243216 | J45: 110.4080803 | K45: 112.6162419 | L45: 114.8685668 | M45: 117.1659381 | N45: 119.5092569 | O45: 121.899442 | P45: 124.3374308 | Q45: 126.8241795 | R45: 129.360663 | S45: 131.9478763 | T45: 134.5868338 | U45: 137.2785705 | V45: 140.0241419 | W45: 142.8246248 | X45: 145.6811173 | Y45: 148.5947396 | Z45: 151.5666344 | AA45: 154.5979671 | AB45: 157.6899264 | AC45: 160.8437249
B46: Project IRR | D46: =IRR(45:45) -> 0.2176103979
B48: Percent for Base for Depreciation | D48: 0.99
B49: Base Depreciation | D49: =D44*D48 -> 495 | E49: =$D$49/$D$41*E41 -> 49.5 | F49: =$D$49/$D$41*F41 -> 49.5 | G49: 49.5 | H49: 49.5 | I49: 49.5 | J49: 49.5 | K49: 49.5 | L49: 49.5 | M49: 49.5 | N49: 49.5 | O49: 0 | P49: 0 | Q49: 0 | R49: 0 | S49: 0 | T49: 0 | U49: 0 | V49: 0 | W49: 0 | X49: 0 | Y49: 0 | Z49: 0 | AA49: 0 | AB49: 0 | AC49: 0
B50: End | D50: =AC40 -> 25 | E50: =E40=$D$50 -> FALSE | F50: =F40=$D$50 -> FALSE | G50: FALSE | H50: FALSE | I50: FALSE | J50: FALSE | K50: FALSE | L50: FALSE | M50: FALSE | N50: FALSE | O50: FALSE | P50: FALSE | Q50: FALSE | R50: FALSE | S50: FALSE | T50: FALSE | U50: FALSE | V50: FALSE | W50: FALSE | X50: FALSE | Y50: FALSE | Z50: FALSE | AA50: FALSE | AB50: FALSE | AC50: TRUE
B51: Other Depreciation | D51: =D44-D49 -> 5 | E51: =$D$51*E50 -> 0 | F51: =$D$51*F50 -> 0 | G51: 0 | H51: 0 | I51: 0 | J51: 0 | K51: 0 | L51: 0 | M51: 0 | N51: 0 | O51: 0 | P51: 0 | Q51: 0 | R51: 0 | S51: 0 | T51: 0 | U51: 0 | V51: 0 | W51: 0 | X51: 0 | Y51: 0 | Z51: 0 | AA51: 0 | AB51: 0 | AC51: 5
B53: Depreciation | D53: =D44 -> 500 | E53: =E49+E51 -> 49.5 | F53: =F49+F51 -> 49.5 | G53: 49.5 | H53: 49.5 | I53: 49.5 | J53: 49.5 | K53: 49.5 | L53: 49.5 | M53: 49.5 | N53: 49.5 | O53: 0 | P53: 0 | Q53: 0 | R53: 0 | S53: 0 | T53: 0 | U53: 0 | V53: 0 | W53: 0 | X53: 0 | Y53: 0 | Z53: 0 | AA53: 0 | AB53: 0 | AC53: 5
B54: Accumulated Depreciation | E54: =D54+E53 -> 49.5 | F54: =E54+F53 -> 99 | G54: 148.5 | H54: 198 | I54: 247.5 | J54: 297 | K54: 346.5 | L54: 396 | M54: 445.5 | N54: 495 | O54: 495 | P54: 495 | Q54: 495 | R54: 495 | S54: 495 | T54: 495 | U54: 495 | V54: 495 | W54: 495 | X54: 495 | Y54: 495 | Z54: 495 | AA54: 495 | AB54: 495 | AC54: 500
B56: EBIT | E56: =E43-E53 -> 50.5 | F56: =F43-F53 -> 52.5 | G56: 54.54 | H56: 56.6208 | I56: 58.743216 | J56: 60.90808032 | K56: 63.11624193 | L56: 65.36856676 | M56: 67.6659381 | N56: 70.00925686 | O56: 121.899442 | P56: 124.3374308 | Q56: 126.8241795 | R56: 129.360663 | S56: 131.9478763 | T56: 134.5868338 | U56: 137.2785705 | V56: 140.0241419 | W56: 142.8246248 | X56: 145.6811173 | Y56: 148.5947396 | Z56: 151.5666344 | AA56: 154.5979671 | AB56: 157.6899264 | AC56: 155.8437249
B58: Investment | D58: =D53 -> 500 | E58: =$D$58-E54 -> 450.5 | F58: =$D$58-F54 -> 401 | G58: 351.5 | H58: 302 | I58: 252.5 | J58: 203 | K58: 153.5 | L58: 104 | M58: 54.5 | N58: 5 | O58: 5 | P58: 5 | Q58: 5 | R58: 5 | S58: 5 | T58: 5 | U58: 5 | V58: 5 | W58: 5 | X58: 5 | Y58: 5 | Z58: 5 | AA58: 5 | AB58: 5 | AC58: 0
B60: ROIC | E60: =E56/D58 -> 0.101 | F60: =F56/E58 -> 0.1165371809 | G60: 0.1360099751 | H60: 0.161083357 | I60: 0.1945139603 | J60: 0.2412201201 | K60: 0.3109174479 | L60: 0.4258538551 | M60: 0.6506340202 | N60: 1.28457352 | O60: 24.3798884 | P60: 24.86748617 | Q60: 25.36483589 | R60: 25.87213261 | S60: 26.38957526 | T60: 26.91736677 | U60: 27.4557141 | V60: 28.00482838 | W60: 28.56492495 | X60: 29.13622345 | Y60: 29.71894792 | Z60: 30.31332688 | AA60: 30.91959342 | AB60: 31.53798528 | AC60: 31.16874499
B62: Discount Rate | D62: 0.06
B64: PV of Investment | E64: =D58/(1+$D$62)^E40 -> 471.6981132 | F64: 400.9433962 | G64: 336.6873325 | H64: 278.4209226 | I64: 225.6719682 | J64: 178.0025365 | K64: 135.0065941 | L64: 96.307799 | M64: 61.55744021 | N64: 30.43251534 | O64: 2.633937627 | P64: 2.484846818 | Q64: 2.344195111 | R64: 2.211504822 | S64: 2.086325304 | T64: 1.968231419 | U64: 1.856822093 | V64: 1.751718956 | W64: 1.652565052 | X64: 1.559023634 | Y64: 1.470777014 | Z64: 1.387525485 | AA64: 1.308986306 | AB64: 1.234892742 | AC64: 1.164993153
B65: Weighting | E65: =E64/SUM(64:64) -> 0.2104062149 | F65: =F64/SUM(64:64) -> 0.1788452827 | G65: 0.1501831474 | H65: 0.1241927641 | I65: 0.1006635035 | J65: 0.07940002068 | K65: 0.06022120007 | L65: 0.04295917005 | M65: 0.02745838415 | N65: 0.01357476357 | O65: 0.001174897314 | P65: 0.001108393693 | Q65: 0.001045654427 | R65: 0.0009864664408 | S65: 0.0009306287178 | T65: 0.0008779516205 | U65: 0.0008282562458 | V65: 0.0007813738168 | W65: 0.0007371451102 | X65: 0.0006954199152 | Y65: 0.0006560565238 | Z65: 0.0006189212489 | AA65: 0.0005838879706 | AB65: 0.0005508377082 | AC65: 0.0005196582152
B67: Weighted ROIC | D67: =SUMPRODUCT(65:65,60:60) -> 0.5258451598
A69: Economic Depreciation
B70: Period | D70: 0 | E70: 1 | F70: 2 | G70: 3 | H70: 4 | I70: 5 | J70: 6 | K70: 7 | L70: 8 | M70: 9 | N70: 10 | O70: 11 | P70: 12 | Q70: 13 | R70: 14 | S70: 15 | T70: 16 | U70: 17 | V70: 18 | W70: 19 | X70: 20 | Y70: 21 | Z70: 22 | AA70: 23 | AB70: 24 | AC70: 25
B71: EconomicLife | D71: 25 | E71: =E70<=$D$41 -> TRUE | F71: =F70<=$D$41 -> TRUE | G71: TRUE | H71: TRUE | I71: TRUE | J71: TRUE | K71: TRUE | L71: TRUE | M71: TRUE | N71: TRUE | O71: FALSE | P71: FALSE | Q71: FALSE | R71: FALSE | S71: FALSE | T71: FALSE | U71: FALSE | V71: FALSE | W71: FALSE | X71: FALSE | Y71: FALSE | Z71: FALSE | AA71: FALSE | AB71: FALSE | AC71: FALSE
B73: Year | E73: 1 | F73: 6 | G73: 12 | H73: 17 | I73: 22
B74: Flat Growth | D74: 1 | E74: 0.02 | F74: 0.02 | G74: 0.02 | H74: 0.02 | I74: 0.02 | L74: Need a number to compare to
B75: Chaning Growth | D75: 2 | E75: 0.1 | F75: 0.1 | G75: 0.02 | H75: 0.02 | I75: 0.02 | L75: Comparing IRR does not do the trick because over life
B76: Zero Growth | D76: 3 | E76: 0.1 | F76: 0.1 | G76: 0.1 | H76: 0.1 | I76: 0.1
B78: =INDEX(B74:B76,$D$78) -> Flat Growth | D78: 1 | E78: =INDEX(E74:E76,$D$78) -> 0.02 | F78: =INDEX(F74:F76,$D$78) -> 0.02 | G78: 0.02 | H78: 0.02 | I78: 0.02
B81: Growth Rate | E81: =LOOKUP(E70,73:73,78:78) -> 0.02 | F81: =LOOKUP(F70,73:73,78:78) -> 0.02 | G81: 0.02 | H81: 0.02 | I81: 0.02 | J81: 0.02 | K81: 0.02 | L81: 0.02 | M81: 0.02 | N81: 0.02 | O81: 0.02 | P81: 0.02 | Q81: 0.02 | R81: 0.02 | S81: 0.02 | T81: 0.02 | U81: 0.02 | V81: 0.02 | W81: 0.02 | X81: 0.02 | Y81: 0.02 | Z81: 0.02 | AA81: 0.02 | AB81: 0.02 | AC81: 0.02
B82: Growth Index | D82: 1 | E82: =D82*(1+E81) -> 1.02 | F82: =E82*(1+F81) -> 1.0404 | G82: 1.061208 | H82: 1.08243216 | I82: 1.104080803 | J82: 1.126162419 | K82: 1.148685668 | L82: 1.171659381 | M82: 1.195092569 | N82: 1.21899442 | O82: 1.243374308 | P82: 1.268241795 | Q82: 1.29360663 | R82: 1.319478763 | S82: 1.345868338 | T82: 1.372785705 | U82: 1.400241419 | V82: 1.428246248 | W82: 1.456811173 | X82: 1.485947396 | Y82: 1.515666344 | Z82: 1.545979671 | AA82: 1.576899264 | AB82: 1.608437249 | AC82: 1.640605994
B83: Operating Cash | D83: 100 | E83: =$D$83*E82 -> 102 | F83: =$D$83*F82 -> 104.04 | G83: 106.1208 | H83: 108.243216 | I83: 110.4080803 | J83: 112.6162419 | K83: 114.8685668 | L83: 117.1659381 | M83: 119.5092569 | N83: 121.899442 | O83: 124.3374308 | P83: 126.8241795 | Q83: 129.360663 | R83: 131.9478763 | S83: 134.5868338 | T83: 137.2785705 | U83: 140.0241419 | V83: 142.8246248 | W83: 145.6811173 | X83: 148.5947396 | Y83: 151.5666344 | Z83: 154.5979671 | AA83: 157.6899264 | AB83: 160.8437249 | AC83: 164.0605994
B84: Compound Growth | D84: =($AC$83/D83)^(1/($D$71-D1))-1 -> 0.02 | E84: =($AC$83/E83)^(1/($D$71-E70))-1 -> 0.02 | F84: =($AC$83/F83)^(1/($D$71-F70))-1 -> 0.02 | G84: 0.02 | H84: 0.02 | I84: 0.02 | J84: 0.02 | K84: 0.02 | L84: 0.02 | M84: 0.02 | N84: 0.02 | O84: 0.02 | P84: 0.02 | Q84: 0.02 | R84: 0.02 | S84: 0.02 | T84: 0.02 | U84: 0.02 | V84: 0.02 | W84: 0.02 | X84: 0.02 | Y84: 0.02 | Z84: 0.02 | AA84: 0.02 | AB84: 0.02
B85: Index with Compound Growth | D85: 1 | E85: =D85*(1+D84) -> 1.02 | F85: =E85*(1+E84) -> 1.0404 | G85: 1.061208 | H85: 1.08243216 | I85: 1.104080803 | J85: 1.126162419 | K85: 1.148685668 | L85: 1.171659381 | M85: 1.195092569 | N85: 1.21899442 | O85: 1.243374308 | P85: 1.268241795 | Q85: 1.29360663 | R85: 1.319478763 | S85: 1.345868338 | T85: 1.372785705 | U85: 1.400241419 | V85: 1.428246248 | W85: 1.456811173 | X85: 1.485947396 | Y85: 1.515666344 | Z85: 1.545979671 | AA85: 1.576899264 | AB85: 1.608437249 | AC85: 1.640605994
B87: Capital Cost | D87: 1400
B88: Net Cash Flow | D88: =-D87 -> -1400 | E88: =E83-E87 -> 102 | F88: 104.04 | G88: 106.1208 | H88: 108.243216 | I88: 110.4080803 | J88: 112.6162419 | K88: 114.8685668 | L88: 117.1659381 | M88: 119.5092569 | N88: 121.899442 | O88: 124.3374308 | P88: 126.8241795 | Q88: 129.360663 | R88: 131.9478763 | S88: 134.5868338 | T88: 137.2785705 | U88: 140.0241419 | V88: 142.8246248 | W88: 145.6811173 | X88: 148.5947396 | Y88: 151.5666344 | Z88: 154.5979671 | AA88: 157.6899264 | AB88: 160.8437249 | AC88: 164.0605994
B89: Project IRR | D89: =IRR(88:88) -> 0.07168183886 | E89: =$D$89 -> 0.07168183886 | F89: =$D$89 -> 0.07168183886 | G89: 0.07168183886 | H89: 0.07168183886 | I89: 0.07168183886 | J89: 0.07168183886 | K89: 0.07168183886 | L89: 0.07168183886 | M89: 0.07168183886 | N89: 0.07168183886 | O89: 0.07168183886 | P89: 0.07168183886 | Q89: 0.07168183886 | R89: 0.07168183886 | S89: 0.07168183886 | T89: 0.07168183886 | U89: 0.07168183886 | V89: 0.07168183886 | W89: 0.07168183886 | X89: 0.07168183886 | Y89: 0.07168183886 | Z89: 0.07168183886 | AA89: 0.07168183886 | AB89: 0.07168183886 | AC89: 0.07168183886
B91: Percent for Base for Depreciation | D91: 1
B92: Straight Line Depreciation | D92: =D87*D91 -> 1400 | E92: =$D$49/$D$41*E71 -> 49.5 | F92: =$D$49/$D$41*F71 -> 49.5 | G92: 49.5 | H92: 49.5 | I92: 49.5 | J92: 49.5 | K92: 49.5 | L92: 49.5 | M92: 49.5 | N92: 49.5 | O92: 0 | P92: 0 | Q92: 0 | R92: 0 | S92: 0 | T92: 0 | U92: 0 | V92: 0 | W92: 0 | X92: 0 | Y92: 0 | Z92: 0 | AA92: 0 | AB92: 0 | AC92: 0
B93: PPMT Function with IRR (No Growth) | E93: =PPMT($D$89,E70,$D$71,$D$88) -> 21.60589801 | F93: =PPMT($D$89,F70,$D$71,$D$88) -> 23.15464851 | G93: 24.81441629 | H93: 26.59315928 | I93: 28.49940584 | J93: 30.54229566 | K93: 32.73162357 | L93: 35.07788654 | M93: 37.59233395 | N93: 40.28702157 | O93: 43.17486936 | P93: 46.26972339 | Q93: 49.58642225 | R93: 53.14086818 | S93: 56.95010333 | T93: 61.03239146 | U93: 65.40730551 | V93: 70.09582144 | W93: 75.12041882 | X93: 80.50518857 | Y93: 86.27594853 | Z93: 92.46036717 | AA93: 99.08809631 | AB93: 106.1909133 | AC93: 113.8028732
B94: Real Rate | D94: =(1+D89)/(1+D84)-1 -> 0.05066846947 | E94: =(1+E89)/(1+E81)-1 -> 0.05066846947 | F94: =(1+F89)/(1+F81)-1 -> 0.05066846947 | G94: 0.05066846947 | H94: 0.05066846947 | I94: 0.05066846947 | J94: 0.05066846947 | K94: 0.05066846947 | L94: 0.05066846947 | M94: 0.05066846947 | N94: 0.05066846947 | O94: 0.05066846947 | P94: 0.05066846947 | Q94: 0.05066846947 | R94: 0.05066846947 | S94: 0.05066846947 | T94: 0.05066846947 | U94: 0.05066846947 | V94: 0.05066846947 | W94: 0.05066846947 | X94: 0.05066846947 | Y94: 0.05066846947 | Z94: 0.05066846947 | AA94: 0.05066846947 | AB94: 0.05066846947 | AC94: 0.05066846947
B96: PMT with Real Rate | D96: =PMT($D$94,$D$71,-$D$87) -> 100 | E96: =PMT(D94,$D$71,-$D$87) -> 100 | F96: =PMT(E94,$D$71,-$D$87) -> 100 | G96: 100 | H96: 100 | I96: 100 | J96: 100 | K96: 100 | L96: 100 | M96: 100 | N96: 100 | O96: 100 | P96: 100 | Q96: 100 | R96: 100 | S96: 100 | T96: 100 | U96: 100 | V96: 100 | W96: 100 | X96: 100 | Y96: 100 | Z96: 100 | AA96: 100 | AB96: 100 | AC96: 100
B97: PMT with Growth Rate | D97: =D96 -> 100 | E97: =$D$97*E82 -> 102 | F97: =$D$97*F82 -> 104.04 | G97: 106.1208 | H97: 108.243216 | I97: 110.4080803 | J97: 112.6162419 | K97: 114.8685668 | L97: 117.1659381 | M97: 119.5092569 | N97: 121.899442 | O97: 124.3374308 | P97: 126.8241795 | Q97: 129.360663 | R97: 131.9478763 | S97: 134.5868338 | T97: 137.2785705 | U97: 140.0241419 | V97: 142.8246248 | W97: 145.6811173 | X97: 148.5947396 | Y97: 151.5666344 | Z97: 154.5979671 | AA97: 157.6899264 | AB97: 160.8437249 | AC97: 164.0605994
B99: Opening Balance | E99: =D101 -> 1400 | F99: =E101 -> 1398.354574 | G99: 1394.551202 | H99: 1388.394396 | I99: 1379.673844 | J99: 1368.163321 | K99: 1353.619542 | L99: 1335.780913 | M99: 1314.366207 | N99: 1289.073137 | O99: 1259.576828 | P99: 1225.528181 | Q99: 1186.552115 | R99: 1142.245689 | S99: 1092.176084 | T99: 1035.87844 | U99: 972.8535414 | V99: 902.5653302 | W99: 824.4382481 | X99: 737.8543804 | Y99: 642.1503996 | Z99: 536.6142867 | AA99: 420.4818185 | AB99: 292.932802 | AC99: 153.087039
B100: Less: Economic Depreciation | E100: =E97-E102 -> 1.645425596 | F100: =F97-F102 -> 3.803372728 | G100: 6.156805479 | H100: 8.720552617 | I100: 11.51052218 | J100: 14.54377919 | K100: 17.83862886 | L100: 21.41470592 | M100: 25.29307018 | N100: 29.4963091 | O100: 34.04864761 | P100: 38.9760659 | Q100: 44.30642556 | R100: 50.06960488 | S100: 56.29764376 | T100: 63.02489906 | U100: 70.28821113 | V100: 78.12708219 | W100: 86.58386761 | X100: 95.7039808 | Y100: 105.5361129 | Z100: 116.1324682 | AA100: 127.5490165 | AB100: 139.845763 | AC100: 153.087039
B101: Closing Balance of Investment | D101: =D87 -> 1400 | E101: =E99-E100 -> 1398.354574 | F101: =F99-F100 -> 1394.551202 | G101: 1388.394396 | H101: 1379.673844 | I101: 1368.163321 | J101: 1353.619542 | K101: 1335.780913 | L101: 1314.366207 | M101: 1289.073137 | N101: 1259.576828 | O101: 1225.528181 | P101: 1186.552115 | Q101: 1142.245689 | R101: 1092.176084 | S101: 1035.87844 | T101: 972.8535414 | U101: 902.5653302 | V101: 824.4382481 | W101: 737.8543804 | X101: 642.1503996 | Y101: 536.6142867 | Z101: 420.4818185 | AA101: 292.932802 | AB101: 153.087039 | AC101: -4.291678124e-12
B102: Carrying Cost - Nominal | D102: =D89 -> 0.07168183886 | E102: =E99*$D$102 -> 100.3545744 | F102: =F99*$D$102 -> 100.2366273 | G102: 99.96399452 | H102: 99.52266338 | I102: 98.89755814 | J102: 98.07246274 | K102: 97.0299379 | L102: 95.75123218 | M102: 94.21618668 | N102: 92.4031329 | O102: 90.28878323 | P102: 87.84811356 | Q102: 85.05423748 | R102: 81.87827142 | S102: 78.28919007 | T102: 74.25367145 | U102: 69.73593079 | V102: 64.69754256 | W102: 59.09724965 | X102: 52.8907588 | Y102: 46.03052147 | Z102: 38.46549883 | AA102: 30.14090996 | AB102: 20.99796191 | AC102: 10.97356046
B104: EBIT with Economic Depreciation | E104: =E88-E100 -> 100.3545744 | F104: =F88-F100 -> 100.2366273 | G104: 99.96399452 | H104: 99.52266338 | I104: 98.89755814 | J104: 98.07246274 | K104: 97.0299379 | L104: 95.75123218 | M104: 94.21618668 | N104: 92.4031329 | O104: 90.28878323 | P104: 87.84811356 | Q104: 85.05423748 | R104: 81.87827142 | S104: 78.28919007 | T104: 74.25367145 | U104: 69.73593079 | V104: 64.69754256 | W104: 59.09724965 | X104: 52.8907588 | Y104: 46.03052147 | Z104: 38.46549883 | AA104: 30.14090996 | AB104: 20.99796191 | AC104: 10.97356046
B105: Invested Capital with Economic Depreciation | E105: =E99 -> 1400 | F105: =F99 -> 1398.354574 | G105: 1394.551202 | H105: 1388.394396 | I105: 1379.673844 | J105: 1368.163321 | K105: 1353.619542 | L105: 1335.780913 | M105: 1314.366207 | N105: 1289.073137 | O105: 1259.576828 | P105: 1225.528181 | Q105: 1186.552115 | R105: 1142.245689 | S105: 1092.176084 | T105: 1035.87844 | U105: 972.8535414 | V105: 902.5653302 | W105: 824.4382481 | X105: 737.8543804 | Y105: 642.1503996 | Z105: 536.6142867 | AA105: 420.4818185 | AB105: 292.932802 | AC105: 153.087039
B107: ROIC with Economic Depreciation | E107: =E104/E105 -> 0.07168183886 | F107: =F104/F105 -> 0.07168183886 | G107: 0.07168183886 | H107: 0.07168183886 | I107: 0.07168183886 | J107: =J104/J105 -> 0.07168183886 | K107: 0.07168183886 | L107: 0.07168183886 | M107: 0.07168183886 | N107: 0.07168183886 | O107: 0.07168183886 | P107: 0.07168183886 | Q107: 0.07168183886 | R107: 0.07168183886 | S107: 0.07168183886 | T107: 0.07168183886 | U107: 0.07168183886 | V107: 0.07168183886 | W107: 0.07168183886 | X107: 0.07168183886 | Y107: 0.07168183886 | Z107: 0.07168183886 | AA107: 0.07168183886 | AB107: 0.07168183886 | AC107: 0.07168183886
C110: =IRR(E110:AC110) -> 0.07168183886 | D110: 1 | E110: =-E101 -> -1398.354574 | F110: =F88 -> 104.04 | G110: =G88 -> 106.1208 | H110: 108.243216 | I110: 110.4080803 | J110: 112.6162419 | K110: 114.8685668 | L110: 117.1659381 | M110: 119.5092569 | N110: 121.899442 | O110: 124.3374308 | P110: 126.8241795 | Q110: 129.360663 | R110: 131.9478763 | S110: 134.5868338 | T110: 137.2785705 | U110: 140.0241419 | V110: 142.8246248 | W110: 145.6811173 | X110: 148.5947396 | Y110: 151.5666344 | Z110: 154.5979671 | AA110: 157.6899264 | AB110: 160.8437249 | AC110: 164.0605994
C111: =IRR(E111:AC111) -> 0.07168183886 | D111: 2 | E111: =IF(E$70=$D111,-E$101,IF(E$70>$D111,E$88)) -> FALSE | F111: =IF(F$70=$D111,-F$101,IF(F$70>$D111,F$88)) -> -1394.551202 | G111: 106.1208 | H111: 108.243216 | I111: 110.4080803 | J111: 112.6162419 | K111: 114.8685668 | L111: 117.1659381 | M111: 119.5092569 | N111: 121.899442 | O111: 124.3374308 | P111: 126.8241795 | Q111: 129.360663 | R111: 131.9478763 | S111: 134.5868338 | T111: 137.2785705 | U111: 140.0241419 | V111: 142.8246248 | W111: 145.6811173 | X111: 148.5947396 | Y111: 151.5666344 | Z111: 154.5979671 | AA111: 157.6899264 | AB111: 160.8437249 | AC111: 164.0605994
C112: =IRR(E112:AC112) -> 0.07168183886 | D112: 3 | E112: =IF(E$70=$D112,-E$101,IF(E$70>$D112,E$88)) -> FALSE | F112: FALSE | G112: -1388.394396 | H112: 108.243216 | I112: 110.4080803 | J112: 112.6162419 | K112: 114.8685668 | L112: 117.1659381 | M112: 119.5092569 | N112: 121.899442 | O112: 124.3374308 | P112: 126.8241795 | Q112: 129.360663 | R112: 131.9478763 | S112: 134.5868338 | T112: 137.2785705 | U112: 140.0241419 | V112: 142.8246248 | W112: 145.6811173 | X112: 148.5947396 | Y112: 151.5666344 | Z112: 154.5979671 | AA112: 157.6899264 | AB112: 160.8437249 | AC112: 164.0605994
C113: 0.07168183886 | D113: 4 | E113: FALSE | F113: FALSE | G113: FALSE | H113: -1379.673844 | I113: 110.4080803 | J113: 112.6162419 | K113: 114.8685668 | L113: 117.1659381 | M113: 119.5092569 | N113: 121.899442 | O113: 124.3374308 | P113: 126.8241795 | Q113: 129.360663 | R113: 131.9478763 | S113: 134.5868338 | T113: 137.2785705 | U113: 140.0241419 | V113: 142.8246248 | W113: 145.6811173 | X113: 148.5947396 | Y113: 151.5666344 | Z113: 154.5979671 | AA113: 157.6899264 | AB113: 160.8437249 | AC113: 164.0605994
C114: 0.07168183887 | D114: 5 | E114: FALSE | F114: FALSE | G114: FALSE | H114: FALSE | I114: -1368.163321 | J114: 112.6162419 | K114: 114.8685668 | L114: 117.1659381 | M114: 119.5092569 | N114: 121.899442 | O114: 124.3374308 | P114: 126.8241795 | Q114: 129.360663 | R114: 131.9478763 | S114: 134.5868338 | T114: 137.2785705 | U114: 140.0241419 | V114: 142.8246248 | W114: 145.6811173 | X114: 148.5947396 | Y114: 151.5666344 | Z114: 154.5979671 | AA114: 157.6899264 | AB114: 160.8437249 | AC114: 164.0605994
C115: 0.07168183886 | D115: 6 | E115: FALSE | F115: FALSE | G115: FALSE | H115: FALSE | I115: FALSE | J115: -1353.619542 | K115: 114.8685668 | L115: 117.1659381 | M115: 119.5092569 | N115: 121.899442 | O115: 124.3374308 | P115: 126.8241795 | Q115: 129.360663 | R115: 131.9478763 | S115: 134.5868338 | T115: 137.2785705 | U115: 140.0241419 | V115: 142.8246248 | W115: 145.6811173 | X115: 148.5947396 | Y115: 151.5666344 | Z115: 154.5979671 | AA115: 157.6899264 | AB115: 160.8437249 | AC115: 164.0605994
C116: 0.07168183886 | D116: 7 | E116: FALSE | F116: FALSE | G116: FALSE | H116: FALSE | I116: FALSE | J116: FALSE | K116: -1335.780913 | L116: 117.1659381 | M116: 119.5092569 | N116: 121.899442 | O116: 124.3374308 | P116: 126.8241795 | Q116: 129.360663 | R116: 131.9478763 | S116: 134.5868338 | T116: 137.2785705 | U116: 140.0241419 | V116: 142.8246248 | W116: 145.6811173 | X116: 148.5947396 | Y116: 151.5666344 | Z116: 154.5979671 | AA116: 157.6899264 | AB116: 160.8437249 | AC116: 164.0605994
C117: 0.07168183886 | D117: 8 | E117: FALSE | F117: FALSE | G117: FALSE | H117: FALSE | I117: FALSE | J117: FALSE | K117: FALSE | L117: -1314.366207 | M117: 119.5092569 | N117: 121.899442 | O117: 124.3374308 | P117: 126.8241795 | Q117: 129.360663 | R117: 131.9478763 | S117: 134.5868338 | T117: 137.2785705 | U117: 140.0241419 | V117: 142.8246248 | W117: 145.6811173 | X117: 148.5947396 | Y117: 151.5666344 | Z117: 154.5979671 | AA117: 157.6899264 | AB117: 160.8437249 | AC117: 164.0605994
C118: 0.07168183886 | D118: 9 | E118: FALSE | F118: FALSE | G118: FALSE | H118: FALSE | I118: FALSE | J118: FALSE | K118: FALSE | L118: FALSE | M118: -1289.073137 | N118: 121.899442 | O118: 124.3374308 | P118: 126.8241795 | Q118: 129.360663 | R118: 131.9478763 | S118: 134.5868338 | T118: 137.2785705 | U118: 140.0241419 | V118: 142.8246248 | W118: 145.6811173 | X118: 148.5947396 | Y118: 151.5666344 | Z118: 154.5979671 | AA118: 157.6899264 | AB118: 160.8437249 | AC118: 164.0605994
C119: 0.07168183886 | D119: 10 | E119: FALSE | F119: FALSE | G119: FALSE | H119: FALSE | I119: FALSE | J119: FALSE | K119: FALSE | L119: FALSE | M119: FALSE | N119: -1259.576828 | O119: 124.3374308 | P119: 126.8241795 | Q119: 129.360663 | R119: 131.9478763 | S119: 134.5868338 | T119: 137.2785705 | U119: 140.0241419 | V119: 142.8246248 | W119: 145.6811173 | X119: 148.5947396 | Y119: 151.5666344 | Z119: 154.5979671 | AA119: 157.6899264 | AB119: 160.8437249 | AC119: 164.0605994
C120: 0.07168183886 | D120: 11 | E120: FALSE | F120: FALSE | G120: FALSE | H120: FALSE | I120: FALSE | J120: FALSE | K120: FALSE | L120: FALSE | M120: FALSE | N120: FALSE | O120: -1225.528181 | P120: 126.8241795 | Q120: 129.360663 | R120: 131.9478763 | S120: 134.5868338 | T120: 137.2785705 | U120: 140.0241419 | V120: 142.8246248 | W120: 145.6811173 | X120: 148.5947396 | Y120: 151.5666344 | Z120: 154.5979671 | AA120: 157.6899264 | AB120: 160.8437249 | AC120: 164.0605994
C121: 0.07168183886 | D121: 12 | E121: FALSE | F121: FALSE | G121: FALSE | H121: FALSE | I121: FALSE | J121: FALSE | K121: FALSE | L121: FALSE | M121: FALSE | N121: FALSE | O121: FALSE | P121: -1186.552115 | Q121: 129.360663 | R121: 131.9478763 | S121: 134.5868338 | T121: 137.2785705 | U121: =IF(U$70=$D121,-U$101,IF(U$70>$D121,U$88)) -> 140.0241419 | V121: 142.8246248 | W121: 145.6811173 | X121: 148.5947396 | Y121: 151.5666344 | Z121: 154.5979671 | AA121: 157.6899264 | AB121: 160.8437249 | AC121: 164.0605994
C122: 0.07168183886 | D122: 13 | E122: FALSE | F122: FALSE | G122: FALSE | H122: FALSE | I122: FALSE | J122: FALSE | K122: FALSE | L122: FALSE | M122: FALSE | N122: FALSE | O122: FALSE | P122: FALSE | Q122: -1142.245689 | R122: 131.9478763 | S122: 134.5868338 | T122: 137.2785705 | U122: 140.0241419 | V122: 142.8246248 | W122: 145.6811173 | X122: 148.5947396 | Y122: 151.5666344 | Z122: 154.5979671 | AA122: 157.6899264 | AB122: 160.8437249 | AC122: 164.0605994
C123: 0.07168183886 | D123: 14 | E123: FALSE | F123: FALSE | G123: FALSE | H123: FALSE | I123: FALSE | J123: FALSE | K123: FALSE | L123: FALSE | M123: FALSE | N123: FALSE | O123: FALSE | P123: FALSE | Q123: FALSE | R123: -1092.176084 | S123: 134.5868338 | T123: 137.2785705 | U123: 140.0241419 | V123: 142.8246248 | W123: 145.6811173 | X123: 148.5947396 | Y123: 151.5666344 | Z123: 154.5979671 | AA123: 157.6899264 | AB123: 160.8437249 | AC123: 164.0605994
C124: 0.07168183886 | D124: 15 | E124: FALSE | F124: FALSE | G124: FALSE | H124: FALSE | I124: FALSE | J124: FALSE | K124: FALSE | L124: FALSE | M124: FALSE | N124: FALSE | O124: FALSE | P124: FALSE | Q124: FALSE | R124: FALSE | S124: -1035.87844 | T124: 137.2785705 | U124: 140.0241419 | V124: 142.8246248 | W124: 145.6811173 | X124: 148.5947396 | Y124: 151.5666344 | Z124: 154.5979671 | AA124: 157.6899264 | AB124: 160.8437249 | AC124: 164.0605994
C125: 0.07168183886 | D125: 16 | E125: FALSE | F125: FALSE | G125: FALSE | H125: FALSE | I125: FALSE | J125: FALSE | K125: FALSE | L125: FALSE | M125: FALSE | N125: FALSE | O125: FALSE | P125: FALSE | Q125: FALSE | R125: FALSE | S125: FALSE | T125: -972.8535414 | U125: 140.0241419 | V125: 142.8246248 | W125: 145.6811173 | X125: 148.5947396 | Y125: 151.5666344 | Z125: 154.5979671 | AA125: 157.6899264 | AB125: 160.8437249 | AC125: 164.0605994
C126: 0.07168183886 | D126: 17 | E126: FALSE | F126: FALSE | G126: FALSE | H126: FALSE | I126: FALSE | J126: FALSE | K126: FALSE | L126: FALSE | M126: FALSE | N126: FALSE | O126: FALSE | P126: FALSE | Q126: FALSE | R126: FALSE | S126: FALSE | T126: FALSE | U126: -902.5653302 | V126: 142.8246248 | W126: 145.6811173 | X126: 148.5947396 | Y126: 151.5666344 | Z126: 154.5979671 | AA126: 157.6899264 | AB126: 160.8437249 | AC126: 164.0605994
C127: 0.07168183886 | D127: 18 | E127: FALSE | F127: FALSE | G127: FALSE | H127: FALSE | I127: FALSE | J127: FALSE | K127: FALSE | L127: FALSE | M127: FALSE | N127: FALSE | O127: FALSE | P127: FALSE | Q127: FALSE | R127: FALSE | S127: FALSE | T127: FALSE | U127: FALSE | V127: -824.4382481 | W127: 145.6811173 | X127: 148.5947396 | Y127: 151.5666344 | Z127: 154.5979671 | AA127: 157.6899264 | AB127: 160.8437249 | AC127: 164.0605994
C128: 0.07168183885 | D128: 19 | E128: FALSE | F128: FALSE | G128: FALSE | H128: FALSE | I128: FALSE | J128: FALSE | K128: FALSE | L128: FALSE | M128: FALSE | N128: FALSE | O128: FALSE | P128: FALSE | Q128: FALSE | R128: FALSE | S128: FALSE | T128: FALSE | U128: FALSE | V128: FALSE | W128: -737.8543804 | X128: 148.5947396 | Y128: 151.5666344 | Z128: 154.5979671 | AA128: 157.6899264 | AB128: 160.8437249 | AC128: 164.0605994
C129: 0.07168183886 | D129: 20 | E129: FALSE | F129: FALSE | G129: FALSE | H129: FALSE | I129: FALSE | J129: FALSE | K129: FALSE | L129: FALSE | M129: FALSE | N129: FALSE | O129: FALSE | P129: FALSE | Q129: FALSE | R129: FALSE | S129: FALSE | T129: FALSE | U129: FALSE | V129: FALSE | W129: FALSE | X129: -642.1503996 | Y129: 151.5666344 | Z129: 154.5979671 | AA129: 157.6899264 | AB129: 160.8437249 | AC129: 164.0605994
C130: 0.07168183886 | D130: 21 | E130: FALSE | F130: FALSE | G130: FALSE | H130: FALSE | I130: FALSE | J130: FALSE | K130: FALSE | L130: FALSE | M130: FALSE | N130: FALSE | O130: FALSE | P130: FALSE | Q130: FALSE | R130: FALSE | S130: FALSE | T130: FALSE | U130: FALSE | V130: FALSE | W130: FALSE | X130: FALSE | Y130: -536.6142867 | Z130: 154.5979671 | AA130: 157.6899264 | AB130: 160.8437249 | AC130: 164.0605994
C131: 0.07168183886 | D131: 22 | E131: FALSE | F131: FALSE | G131: FALSE | H131: FALSE | I131: FALSE | J131: FALSE | K131: FALSE | L131: FALSE | M131: FALSE | N131: FALSE | O131: FALSE | P131: FALSE | Q131: FALSE | R131: FALSE | S131: FALSE | T131: FALSE | U131: FALSE | V131: FALSE | W131: FALSE | X131: FALSE | Y131: FALSE | Z131: -420.4818185 | AA131: 157.6899264 | AB131: 160.8437249 | AC131: 164.0605994
C132: 0.07168183886 | D132: 23 | E132: FALSE | F132: FALSE | G132: FALSE | H132: FALSE | I132: FALSE | J132: FALSE | K132: FALSE | L132: FALSE | M132: FALSE | N132: FALSE | O132: FALSE | P132: FALSE | Q132: FALSE | R132: FALSE | S132: FALSE | T132: FALSE | U132: FALSE | V132: FALSE | W132: FALSE | X132: FALSE | Y132: FALSE | Z132: FALSE | AA132: -292.932802 | AB132: 160.8437249 | AC132: 164.0605994
C133: 0.07168183886 | D133: 24 | E133: FALSE | F133: FALSE | G133: FALSE | H133: FALSE | I133: FALSE | J133: FALSE | K133: FALSE | L133: FALSE | M133: FALSE | N133: FALSE | O133: FALSE | P133: FALSE | Q133: FALSE | R133: FALSE | S133: FALSE | T133: FALSE | U133: FALSE | V133: FALSE | W133: FALSE | X133: FALSE | Y133: FALSE | Z133: FALSE | AA133: FALSE | AB133: -153.087039 | AC133: 164.0605994
D134: 25 | E134: FALSE | F134: FALSE | G134: FALSE | H134: FALSE | I134: FALSE | J134: FALSE | K134: FALSE | L134: FALSE | M134: FALSE | N134: FALSE | O134: FALSE | P134: FALSE | Q134: FALSE | R134: FALSE | S134: FALSE | T134: FALSE | U134: FALSE | V134: FALSE | W134: FALSE | X134: FALSE | Y134: FALSE | Z134: FALSE | AA134: FALSE | AB134: FALSE | AC134: 4.291678124e-12
B140: Investment | E140: =E99 -> 1400 | F140: =F99 -> 1398.354574 | G140: 1394.551202 | H140: 1388.394396 | I140: 1379.673844 | J140: 1368.163321 | K140: 1353.619542 | L140: 1335.780913 | M140: 1314.366207 | N140: 1289.073137 | O140: 1259.576828 | P140: 1225.528181 | Q140: 1186.552115 | R140: 1142.245689 | S140: 1092.176084 | T140: 1035.87844 | U140: 972.8535414 | V140: 902.5653302 | W140: 824.4382481 | X140: 737.8543804 | Y140: 642.1503996 | Z140: 536.6142867 | AA140: 420.4818185 | AB140: 292.932802 | AC140: 153.087039
B141: ROIC | E141: =E104/E140 -> 0.07168183886 | F141: 0.07168183886 | G141: 0.07168183886 | H141: 0.07168183886 | I141: 0.07168183886 | J141: 0.07168183886 | K141: 0.07168183886 | L141: 0.07168183886 | M141: 0.07168183886 | N141: 0.07168183886 | O141: 0.07168183886 | P141: 0.07168183886 | Q141: 0.07168183886 | R141: 0.07168183886 | S141: 0.07168183886 | T141: 0.07168183886 | U141: 0.07168183886 | V141: 0.07168183886 | W141: 0.07168183886 | X141: 0.07168183886 | Y141: 0.07168183886 | Z141: 0.07168183886 | AA141: 0.07168183886 | AB141: 0.07168183886 | AC141: 0.07168183886
B143: Discount Rate | D143: 0.1
B145: PV of Investment | E145: =E140/(1+$D$62)^E70 -> 1320.754717 | F145: 1244.530593 | G145: 1170.89208 | H145: 1099.738403 | I145: 1030.972556 | J145: 964.5011545 | K145: 900.2343057 | L145: 838.0854704 | M145: 777.9713387 | N145: 719.8117069 | O145: 663.5293603 | P145: 609.0499599 | Q145: 556.3019333 | R145: 505.2163698 | S145: 455.7269201 | T145: 407.7696985 | U145: 361.2831898 | V145: 316.2081595 | W145: 272.4875673 | X145: 230.0664836 | Y145: 188.8920094 | Z145: 148.9131996 | AA145: 110.0809885 | AB145: 72.3481182 | AC145: 35.66907043
B146: Weighting | E146: =E145/SUM(145:145) -> 0.08804423734 | F146: =F145/SUM(145:145) -> 0.08296297981 | G146: 0.07805408444 | H146: 0.07331083338 | I146: 0.06872675993 | J146: 0.06429563905 | K146: 0.06001147817 | L146: 0.05586850845 | M146: 0.05186117627 | N146: 0.04798413509 | O146: 0.04423223762 | P146: 0.04060052827 | Q146: 0.03708423587 | R146: 0.03367876669 | S146: 0.03037969776 | T146: 0.02718277031 | U146: 0.02408388363 | V146: 0.02107908902 | W146: 0.01816458404 | X146: 0.01533670698 | Y146: 0.01259193149 | Z146: 0.009926861455 | AA146: 0.007338226055 | AB146: 0.004822874988 | AC146: 0.002377773906
B148: Weighted ROIC | D148: =SUMPRODUCT(146:146,141:141) -> 0.07168183886
C151: Period | D151: 0 | E151: 1 | F151: 2 | G151: 3
C152: Investment | D152: 1000
C153: Expected Cash Flow | E153: 300 | F153: 400 | G153: 500
C154: Net Cash Flow | D154: =D153-D152 -> -1000 | E154: =E153-E152 -> 300 | F154: 400 | G154: 500
C155: Nominal IRR | D155: =IRR(D154:G154) -> 0.08896339469
C157: Prospective IRR | E157: -788.9633947 | F157: =F154 -> 400 | G157: =G154 -> 500
C158: NPV | D158: =D155 -> 0.08896339469 | E158: =NPV(D158,E157:G157) -> 0
C160: Depreciation | E160: =-D154+E157 -> 211.0366053
C162: Prospective IRR | F162: -459.1522566 | G162: =G157 -> 500
C163: NPV | D163: =D155 -> 0.08896339469 | E163: =NPV(D163,E162:G162) -> 0
C165: Depreciation | F165: =-E157+F162 -> 329.8111381
C167: Total Depreciation | E167: =E160 -> 211.0366053 | F167: =F165 -> 329.8111381 | G167: =-F162 -> 459.1522566
C168: EBIT | E168: =E154-E167 -> 88.96339469 | F168: =F154-F167 -> 70.18886188 | G168: 40.84774343
C170: Net Investment | D170: =D152 -> 1000 | E170: =D170-E167 -> 788.9633947 | F170: =E170-F167 -> 459.1522566 | G170: 0 | H170: 0
C172: ROIC | E172: =E168/D170 -> 0.08896339469 | F172: =F168/E170 -> 0.08896339469 | G172: 0.08896339469
A174: Case 1
C175: Period | D175: 0 | E175: 1 | F175: 2 | G175: 3
C176: Actual Cash Flow | E176: 250
C177: Actual and Expected | E177: =E176 -> 250 | F177: =F153 -> 400 | G177: =G153 -> 500
C178: Cash Flow | D178: =D154 -> -1000 | E178: =E177 -> 250 | F178: =F177 -> 400 | G178: 500
C179: IRR | D179: =IRR(D178:G178) -> 0.0656499057
C181: Depreciation | E181: =E167 -> 211.0366053 | F181: =F167 -> 329.8111381 | G181: 459.1522566
C182: EBIT | E182: =E178-E181 -> 38.96339469 | F182: =F178-F181 -> 70.18886188 | G182: 40.84774343
C184: Investment | D184: =D170 -> 1000 | E184: =D184-E181 -> 788.9633947 | F184: =E184-F181 -> 459.1522566 | G184: 0
C186: ROIC | E186: =E182/D184 -> 0.03896339469 | F186: =F182/E184 -> 0.08896339469 | G186: 0.08896339469
A188: Case 1
C189: Period | D189: 0 | E189: 1 | F189: 2 | G189: 3
C190: Actual Cash Flow | E190: 250
C191: Actual and Expected | E191: =E190 -> 250 | F191: 350 | G191: 450
C192: Cash Flow | D192: =D178 -> -1000 | E192: =E191 -> 250 | F192: =F191 -> 350 | G192: =G191 -> 450
C193: IRR | D193: =IRR(D192:G192) -> 0.02259730508
C195: Depreciation without write-off | E195: =E181 -> 211.0366053 | F195: =F181 -> 329.8111381 | G195: 459.1522566
C196: EBIT | E196: =E192-E195 -> 38.96339469 | F196: =F192-F195 -> 20.18886188 | G196: =G192-G195 -> -9.152256574
C198: Investment | D198: =D184 -> 1000 | E198: =D198-E195 -> 788.9633947 | F198: =E198-F195 -> 459.1522566 | G198: 0
C200: ROIC | E200: =E196/D198 -> 0.03896339469 | F200: =F196/E198 -> 0.02558909832 | G200: -0.01993294478
C202: Impariment Analysis | D202: =D163 -> 0.08896339469
C203: Cash Flow | E203: -700.8840101 | F203: =F191 -> 350 | G203: =G191 -> 450
C204: NPV | D204: =NPV(D202,E203:G203) -> 0
C206: New Depreciation | E206: =-D192+E203 -> 299.1159899
C208: Cash Flow for period 2 | F208: -413.2370309 | G208: =G203 -> 450
C209: NPV | D209: =NPV(D202,F208:G208) -> 0
C211: New Depreciation | F211: =-E203+F208 -> 287.6469792
C213: Total Depreciation | E213: =E206 -> 299.1159899 | F213: =F211 -> 287.6469792 | G213: =-F208 -> 413.2370309
C214: Net Invetment | D214: =D198 -> 1000 | E214: =D214-E213 -> 700.8840101 | F214: =E214-F213 -> 413.2370309 | G214: 0
C216: EBIT | E216: =E192-E213 -> -49.11598991 | F216: =F192-F213 -> 62.35302082 | G216: 36.76296908
C217: ROIC | E217: =E216/D214 -> -0.04911598991 | F217: =F216/E214 -> 0.08896339469 | G217: 0.08896339469

Sheet Dev Fee
E5: development fee = total * percent
E6: total = development fee + other
E7: total = total * percent + other
E8: total * (1-percent) = other
E9: total = other/(1-percent

Sheet Debt Sizing Analysis
B2: Time period | J2: 1 | K2: 2 | L2: 3 | M2: 4 | N2: 5 | O2: 6 | P2: 7 | Q2: 8 | R2: 9 | S2: 10 | T2: 11 | U2: 12 | V2: 13 | W2: 14 | X2: 15 | Y2: 16 | Z2: 17 | AA2: 18 | AB2: 19 | AC2: 20 | AD2: 21 | AE2: 22 | AF2: 23 | AG2: 24 | AH2: 25 | AI2: 26 | AJ2: 27 | AK2: 28 | AL2: 29 | AM2: 30
B3: Debt Repayment Period | E3: flag | F3: Comparative Test | G3: Maturity | H3: =H19 -> 12 | J3: =J2<=$H$3 -> TRUE | K3: TRUE | L3: TRUE | M3: TRUE | N3: TRUE | O3: TRUE | P3: TRUE | Q3: TRUE | R3: TRUE | S3: TRUE | T3: TRUE | U3: TRUE | V3: FALSE | W3: FALSE | X3: FALSE | Y3: FALSE | Z3: FALSE | AA3: FALSE | AB3: FALSE | AC3: FALSE | AD3: FALSE | AE3: FALSE | AF3: FALSE | AG3: FALSE | AH3: FALSE | AI3: FALSE | AJ3: FALSE | AK3: FALSE | AL3: FALSE | AM3: FALSE
A5: Inputs
B6: Operations | N6: Summary
C7: Base Cost | E7: Euro | H7: 600 | N7: Debt P50 | O7: =G43 -> 310.7369861
C8: Cost Adders | E8: Euro | H8: 0 | N8: Debt P99 | O8: =G46 -> 299.6392366
N9: Debt to Cap | O9: =H38 -> 480
C10: Base CFADS | E10: Euro | H10: 38
C11: CFADS Growth | E11: % p.a. | H11: 0.02 | N11: Selected | O11: =MIN(O7:O9) -> 299.6392366
C12: P99 Divisor | E12: Factor | H12: =J12/100 -> 1.4 | J12: 140
B14: Financing
C15: DSCR P50 | E15: x | F15: See Term Sheet | H15: 1.35
C16: DSCR P99 | E16: x | F16: See Term Sheet | H16: 1
C17: Maximum Debt to Capital | E17: % | H17: 0.8
C19: Debt Maturity | E19: years | H19: 12
C21: Year of Debt | H21: 1 | I21: 3 | J21: 5 | K21: 8
C22: Interest Rate | E22: % | F22: Use Lookup Function | H22: 0.03 | I22: 0.0325 | J22: 0.035 | K22: 0.0375
A24: Operations
B25: Growth Index | E25: Index | H25: =H11 -> 0.02 | I25: 1 | J25: =I25*(1+$H$25) -> 1.02 | K25: =J25*(1+$H$25) -> 1.0404 | L25: 1.061208 | M25: 1.08243216 | N25: 1.104080803 | O25: 1.126162419 | P25: 1.148685668 | Q25: 1.171659381 | R25: 1.195092569 | S25: 1.21899442 | T25: 1.243374308 | U25: 1.268241795 | V25: 1.29360663 | W25: 1.319478763 | X25: 1.345868338 | Y25: 1.372785705 | Z25: 1.400241419 | AA25: 1.428246248 | AB25: 1.456811173 | AC25: 1.485947396 | AD25: 1.515666344 | AE25: 1.545979671 | AF25: 1.576899264 | AG25: 1.608437249 | AH25: 1.640605994 | AI25: 1.673418114 | AJ25: 1.706886477 | AK25: 1.741024206 | AL25: 1.77584469 | AM25: 1.811361584
B26: CFADS P50 | E26: Euro | H26: =H10 -> 38 | J26: =$H$26*J25 -> 38.76 | K26: =$H$26*K25 -> 39.5352 | L26: 40.325904 | M26: 41.13242208 | N26: 41.95507052 | O26: 42.79417193 | P26: 43.65005537 | Q26: 44.52305648 | R26: 45.41351761 | S26: 46.32178796 | T26: 47.24822372 | U26: 48.19318819 | V26: 49.15705196 | W26: 50.140193 | X26: 51.14299686 | Y26: 52.16585679 | Z26: 53.20917393 | AA26: 54.27335741 | AB26: 55.35882456 | AC26: 56.46600105 | AD26: 57.59532107 | AE26: 58.74722749 | AF26: 59.92217204 | AG26: 61.12061548 | AH26: 62.34302779 | AI26: 63.58988835 | AJ26: 64.86168611 | AK26: 66.15891983 | AL26: 67.48209823 | AM26: 68.8317402
B27: CFADS P99 | E27: Euro | F27: CFADS/Factor | G27: Factor | H27: =H12 -> 1.4 | J27: =J26/$H$27 -> 27.68571429 | K27: =K26/$H$27 -> 28.23942857 | L27: 28.80421714 | M27: 29.38030149 | N27: 29.96790752 | O27: 30.56726567 | P27: 31.17861098 | Q27: 31.8021832 | R27: 32.43822686 | S27: 33.0869914 | T27: 33.74873123 | U27: 34.42370585 | V27: 35.11217997 | W27: 35.81442357 | X27: 36.53071204 | Y27: 37.26132628 | Z27: 38.00655281 | AA27: 38.76668386 | AB27: 39.54201754 | AC27: 40.33285789 | AD27: 41.13951505 | AE27: 41.96230535 | AF27: 42.80155146 | AG27: 43.65758249 | AH27: 44.53073414 | AI27: 45.42134882 | AJ27: 46.32977579 | AK27: 47.25637131 | AL27: 48.20149874 | AM27: 49.16552871
B28: Percent Difference | J28: =J27/J26 -> 0.7142857143 | K28: =K27/K26 -> 0.7142857143 | L28: 0.7142857143 | M28: 0.7142857143 | N28: 0.7142857143 | O28: 0.7142857143 | P28: 0.7142857143 | Q28: 0.7142857143 | R28: 0.7142857143 | S28: 0.7142857143 | T28: 0.7142857143 | U28: 0.7142857143 | V28: 0.7142857143 | W28: 0.7142857143 | X28: 0.7142857143 | Y28: 0.7142857143 | Z28: 0.7142857143 | AA28: 0.7142857143 | AB28: 0.7142857143 | AC28: 0.7142857143 | AD28: 0.7142857143 | AE28: 0.7142857143 | AF28: 0.7142857143 | AG28: 0.7142857143 | AH28: 0.7142857143 | AI28: 0.7142857143 | AJ28: 0.7142857143 | AK28: 0.7142857143 | AL28: 0.7142857143 | AM28: 0.7142857143
B30: True Outlays for Project Cost | E30: Euro | I30: =H7 -> 600
B31: Cost Padding (Jean Benard Salary Allocation) | E31: Euro | I31: =H8 -> 0
B32: Project Cost | E32: Euro | I32: =SUM(I30:I31) -> 600
B34: Project Cash Flow P50 | E34: Euro | I34: =H26-I32 -> -562 | J34: =J26-J32 -> 38.76 | K34: 39.5352 | L34: 40.325904 | M34: 41.13242208 | N34: 41.95507052 | O34: 42.79417193 | P34: 43.65005537 | Q34: 44.52305648 | R34: 45.41351761 | S34: 46.32178796 | T34: 47.24822372 | U34: 48.19318819 | V34: 49.15705196 | W34: 50.140193 | X34: 51.14299686 | Y34: 52.16585679 | Z34: 53.20917393 | AA34: 54.27335741 | AB34: 55.35882456 | AC34: 56.46600105 | AD34: 57.59532107 | AE34: 58.74722749 | AF34: 59.92217204 | AG34: 61.12061548 | AH34: 62.34302779 | AI34: 63.58988835 | AJ34: 64.86168611 | AK34: 66.15891983 | AL34: 67.48209823 | AM34: 68.8317402
B35: Project IRR | E35: % | H35: =IRR(34:34) -> 0.07449707278
A37: Debt Sizing
B38: Debt to Capital Size | E38: Euro | H38: =H17*I32 -> 480
B40: P50 Debt Service | E40: Euro | F40: CFADS/DSCR | G40: DSCR | H40: =H15 -> 1.35 | J40: =J26/$H$40*J3 -> 28.71111111 | K40: 29.28533333 | L40: 29.87104 | M40: 30.4684608 | N40: 31.07783002 | O40: 31.69938662 | P40: 32.33337435 | Q40: 32.98004184 | R40: 33.63964267 | S40: 34.31243553 | T40: 34.99868424 | U40: 35.69865792 | V40: 0 | W40: 0 | X40: 0 | Y40: 0 | Z40: 0 | AA40: 0 | AB40: 0 | AC40: 0 | AD40: 0 | AE40: 0 | AF40: 0 | AG40: 0 | AH40: 0 | AI40: 0 | AJ40: 0 | AK40: 0 | AL40: 0 | AM40: 0
B41: Interest Rate | E41: % | F41: Recher/Lookup | J41: =LOOKUP(J2,21:21,22:22) -> 0.03 | K41: 0.03 | L41: 0.0325 | M41: 0.0325 | N41: 0.035 | O41: 0.035 | P41: 0.035 | Q41: 0.0375 | R41: 0.0375 | S41: 0.0375 | T41: 0.0375 | U41: 0.0375 | V41: 0.0375 | W41: 0.0375 | X41: 0.0375 | Y41: 0.0375 | Z41: 0.0375 | AA41: 0.0375 | AB41: 0.0375 | AC41: 0.0375 | AD41: 0.0375 | AE41: 0.0375 | AF41: 0.0375 | AG41: 0.0375 | AH41: 0.0375 | AI41: 0.0375 | AJ41: 0.0375 | AK41: 0.0375 | AL41: 0.0375 | AM41: 0.0375
B42: Compound Interest | H42: 1 | J42: =H42*(1+J41) -> 1.03 | K42: =J42*(1+K41) -> 1.0609 | L42: 1.09537925 | M42: 1.130979076 | N42: 1.170563343 | O42: 1.21153306 | P42: 1.253936717 | Q42: 1.300959344 | R42: 1.34974532 | S42: 1.400360769 | T42: 1.452874298 | U42: 1.507357084 | V42: 1.563882975 | W42: 1.622528586 | X42: 1.683373408 | Y42: 1.746499911 | Z42: 1.811993658 | AA42: 1.87994342 | AB42: 1.950441298 | AC42: 2.023582847 | AD42: 2.099467204 | AE42: 2.178197224 | AF42: 2.25987962 | AG42: 2.344625106 | AH42: 2.432548547 | AI42: 2.523769118 | AJ42: 2.618410459 | AK42: 2.716600852 | AL42: 2.818473384 | AM42: 2.924166136
B43: NPV Debt Service | E43: Euro | G43: =SUMPRODUCT(J40:AM40/J42:AM42) -> 310.7369861
B45: P99 Debt Service | H45: =H16 -> 1 | J45: =J27*J3/$H$45 -> 27.68571429 | K45: 28.23942857 | L45: 28.80421714 | M45: 29.38030149 | N45: 29.96790752 | O45: 30.56726567 | P45: 31.17861098 | Q45: 31.8021832 | R45: 32.43822686 | S45: 33.0869914 | T45: 33.74873123 | U45: 34.42370585 | V45: 0 | W45: 0 | X45: 0 | Y45: 0 | Z45: 0 | AA45: 0 | AB45: 0 | AC45: 0 | AD45: 0 | AE45: 0 | AF45: 0 | AG45: 0 | AH45: 0 | AI45: 0 | AJ45: 0 | AK45: 0 | AL45: 0 | AM45: 0
B46: NPV of Debt Service | E46: Euro | F46: Sumproduct | G46: =SUMPRODUCT(J45:AM45/J42:AM42) -> 299.6392366
B48: P50 Proof
C49: Debt Service | J49: =J40 -> 28.71111111 | K49: =K40 -> 29.28533333 | L49: 29.87104 | M49: 30.4684608 | N49: 31.07783002 | O49: 31.69938662 | P49: 32.33337435 | Q49: 32.98004184 | R49: 33.63964267 | S49: 34.31243553 | T49: 34.99868424 | U49: 35.69865792 | V49: 0 | W49: 0 | X49: 0 | Y49: 0 | Z49: 0 | AA49: 0 | AB49: 0 | AC49: 0 | AD49: 0 | AE49: 0 | AF49: 0 | AG49: 0 | AH49: 0 | AI49: 0 | AJ49: 0 | AK49: 0 | AL49: 0 | AM49: 0
C50: Opening Balance | E50: Euro | J50: =H52 -> 310.7369861 | K50: =J52 -> 291.3479846 | L50: 270.8030908 | M50: 249.7331512 | N50: 227.3810179 | O50: 204.2615235 | P50: 179.7112902 | Q50: 153.667811 | R50: 126.4503121 | S50: 97.55255609 | T50: 66.89834142 | U50: 34.40834498 | V50: 2.131628207e-13 | W50: 2.211564265e-13 | X50: 2.294497925e-13 | Y50: 2.380541597e-13 | Z50: 2.469811907e-13 | AA50: 2.562429854e-13 | AB50: 2.658520973e-13 | AC50: 2.75821551e-13 | AD50: 2.861648591e-13 | AE50: 2.968960413e-13 | AF50: 3.080296429e-13 | AG50: 3.195807545e-13 | AH50: 3.315650328e-13 | AI50: 3.439987215e-13 | AJ50: 3.568986736e-13 | AK50: 3.702823738e-13 | AL50: 3.841679629e-13 | AM50: 3.985742615e-13
C51: Less: Repayment | E51: Euro | J51: =J49-J53 -> 19.38900153 | K51: =K49-K53 -> 20.5448938 | L51: 21.06993955 | M51: 22.35213338 | N51: 23.11949439 | O51: 24.55023329 | P51: 26.04347919 | Q51: 27.21749892 | R51: 28.89775597 | S51: 30.65421467 | T51: 32.48999643 | U51: 34.40834498 | V51: -7.993605777e-15 | W51: -8.293365994e-15 | X51: -8.604367219e-15 | Y51: -8.927030989e-15 | Z51: -9.261794652e-15 | AA51: -9.609111951e-15 | AB51: -9.969453649e-15 | AC51: -1.034330816e-14 | AD51: -1.073118222e-14 | AE51: -1.113360155e-14 | AF51: -1.155111161e-14 | AG51: -1.198427829e-14 | AH51: -1.243368873e-14 | AI51: -1.289995206e-14 | AJ51: -1.338370026e-14 | AK51: -1.388558902e-14 | AL51: -1.440629861e-14 | AM51: -1.49465348e-14
C52: Closing Balance | E52: Euro | H52: =G43 -> 310.7369861 | J52: =J50-J51 -> 291.3479846 | K52: =K50-K51 -> 270.8030908 | L52: 249.7331512 | M52: 227.3810179 | N52: 204.2615235 | O52: 179.7112902 | P52: 153.667811 | Q52: 126.4503121 | R52: 97.55255609 | S52: 66.89834142 | T52: 34.40834498 | U52: 2.131628207e-13 | V52: 2.211564265e-13 | W52: 2.294497925e-13 | X52: 2.380541597e-13 | Y52: 2.469811907e-13 | Z52: 2.562429854e-13 | AA52: 2.658520973e-13 | AB52: 2.75821551e-13 | AC52: 2.861648591e-13 | AD52: 2.968960413e-13 | AE52: 3.080296429e-13 | AF52: 3.195807545e-13 | AG52: 3.315650328e-13 | AH52: 3.439987215e-13 | AI52: 3.568986736e-13 | AJ52: 3.702823738e-13 | AK52: 3.841679629e-13 | AL52: 3.985742615e-13 | AM52: 4.135207963e-13
C53: Interest | E53: Euro | J53: =J50*J41 -> 9.322109584 | K53: =K50*K41 -> 8.740439538 | L53: 8.801100451 | M53: 8.116327416 | N53: 7.958335625 | O53: 7.149153321 | P53: 6.289895156 | Q53: 5.762542912 | R53: 4.741886702 | S53: 3.658220853 | T53: 2.508687803 | U53: 1.290312937 | V53: 7.993605777e-15 | W53: 8.293365994e-15 | X53: 8.604367219e-15 | Y53: 8.927030989e-15 | Z53: 9.261794652e-15 | AA53: 9.609111951e-15 | AB53: 9.969453649e-15 | AC53: 1.034330816e-14 | AD53: 1.073118222e-14 | AE53: 1.113360155e-14 | AF53: 1.155111161e-14 | AG53: 1.198427829e-14 | AH53: 1.243368873e-14 | AI53: 1.289995206e-14 | AJ53: 1.338370026e-14 | AK53: 1.388558902e-14 | AL53: 1.440629861e-14 | AM53: 1.49465348e-14
C55: Closing Balance Test | F55: Recher/Lookup | G55: =LOOKUP(H3,2:2,52:52) -> 2.131628207e-13
B57: P99 Proof
C58: Debt Service | J58: =J45 -> 27.68571429 | K58: =K45 -> 28.23942857 | L58: 28.80421714 | M58: 29.38030149 | N58: 29.96790752 | O58: 30.56726567 | P58: 31.17861098 | Q58: 31.8021832 | R58: 32.43822686 | S58: 33.0869914 | T58: 33.74873123 | U58: 34.42370585 | V58: 0 | W58: 0 | X58: 0 | Y58: 0 | Z58: 0 | AA58: 0 | AB58: 0 | AC58: 0 | AD58: 0 | AE58: 0 | AF58: 0 | AG58: 0 | AH58: 0 | AI58: 0 | AJ58: 0 | AK58: 0 | AL58: 0 | AM58: 0
C59: Opening Balance | E59: Euro | J59: =H61 -> 299.6392366 | K59: =J61 -> 280.9426994 | L59: 261.1315518 | M59: 240.8141101 | N59: 219.2602672 | O59: 196.9664691 | P59: 173.2930298 | Q59: 148.1796749 | R59: 121.9342295 | S59: 94.06853623 | T59: 64.50911494 | U59: 33.17947552 | V59: 1.065814104e-13 | W59: 1.105782133e-13 | X59: 1.147248962e-13 | Y59: 1.190270799e-13 | Z59: 1.234905954e-13 | AA59: 1.281214927e-13 | AB59: 1.329260487e-13 | AC59: 1.379107755e-13 | AD59: 1.430824296e-13 | AE59: 1.484480207e-13 | AF59: 1.540148214e-13 | AG59: 1.597903772e-13 | AH59: 1.657825164e-13 | AI59: 1.719993608e-13 | AJ59: 1.784493368e-13 | AK59: 1.851411869e-13 | AL59: 1.920839814e-13 | AM59: 1.992871307e-13
C60: Less: Repayment | E60: Euro | J60: =J58-J62 -> 18.69653719 | K60: =K58-K62 -> 19.81114759 | L60: 20.31744171 | M60: 21.55384291 | N60: 22.29379816 | O60: 23.67343925 | P60: 25.11335494 | Q60: 26.24544539 | R60: 27.86569326 | S60: 29.55942129 | T60: 31.32963942 | U60: 33.17947552 | V60: -3.996802889e-15 | W60: -4.146682997e-15 | X60: -4.302183609e-15 | Y60: -4.463515495e-15 | Z60: -4.630897326e-15 | AA60: -4.804555975e-15 | AB60: -4.984726825e-15 | AC60: -5.17165408e-15 | AD60: -5.365591109e-15 | AE60: -5.566800775e-15 | AF60: -5.775555804e-15 | AG60: -5.992139147e-15 | AH60: -6.216844365e-15 | AI60: -6.449976028e-15 | AJ60: -6.69185013e-15 | AK60: -6.942794509e-15 | AL60: -7.203149304e-15 | AM60: -7.473267402e-15
C61: Closing Balance | E61: Euro | H61: =G46 -> 299.6392366 | J61: =J59-J60 -> 280.9426994 | K61: =K59-K60 -> 261.1315518 | L61: 240.8141101 | M61: 219.2602672 | N61: 196.9664691 | O61: 173.2930298 | P61: 148.1796749 | Q61: 121.9342295 | R61: 94.06853623 | S61: 64.50911494 | T61: 33.17947552 | U61: 1.065814104e-13 | V61: 1.105782133e-13 | W61: 1.147248962e-13 | X61: 1.190270799e-13 | Y61: 1.234905954e-13 | Z61: 1.281214927e-13 | AA61: 1.329260487e-13 | AB61: 1.379107755e-13 | AC61: 1.430824296e-13 | AD61: 1.484480207e-13 | AE61: 1.540148214e-13 | AF61: 1.597903772e-13 | AG61: 1.657825164e-13 | AH61: 1.719993608e-13 | AI61: 1.784493368e-13 | AJ61: 1.851411869e-13 | AK61: 1.920839814e-13 | AL61: 1.992871307e-13 | AM61: 2.067603981e-13
C62: Interest | E62: Euro | J62: =J59*J41 -> 8.989177098 | K62: =K59*K41 -> 8.428280983 | L62: 8.486775435 | M62: 7.826458579 | N62: 7.674109353 | O62: 6.893826417 | P62: 6.065256043 | Q62: 5.556737808 | R62: 4.572533606 | S62: 3.527570109 | T62: 2.41909181 | U62: 1.244230332 | V62: 3.996802889e-15 | W62: 4.146682997e-15 | X62: 4.302183609e-15 | Y62: 4.463515495e-15 | Z62: 4.630897326e-15 | AA62: 4.804555975e-15 | AB62: 4.984726825e-15 | AC62: 5.17165408e-15 | AD62: 5.365591109e-15 | AE62: 5.566800775e-15 | AF62: 5.775555804e-15 | AG62: 5.992139147e-15 | AH62: 6.216844365e-15 | AI62: 6.449976028e-15 | AJ62: 6.69185013e-15 | AK62: 6.942794509e-15 | AL62: 7.203149304e-15 | AM62: 7.473267402e-15
C64: Closing Balance Test | F64: Recher/Lookup | G64: =LOOKUP(H3,2:2,61:61) -> 1.065814104e-13

Sheet Intermediate Financial Model
A1: Time Line | H1: 1 | I1: 2 | J1: 3 | K1: 4 | L1: 5 | M1: 6 | N1: 7 | O1: 8 | P1: 9 | Q1: 10 | R1: 11 | S1: 12 | T1: 13 | U1: 14 | V1: 15 | W1: 16 | X1: 17 | Y1: 18 | Z1: 19 | AA1: 20 | AB1: 21 | AC1: 22 | AD1: 23 | AE1: 24 | AF1: 25 | AG1: 26 | AH1: 27 | AI1: 28 | AJ1: 29 | AK1: 30 | AL1: 31 | AM1: 32 | AN1: 33 | AO1: 34 | AP1: 35 | AQ1: 36 | AR1: 37 | AS1: 38 | AT1: 39 | AU1: 40 | AV1: 41 | AW1: 42 | AX1: 43 | AY1: 44 | AZ1: 45 | BA1: 46 | BB1: 47 | BC1: 48 | BD1: 49 | BE1: 50 | BF1: 51 | BG1: 52 | BH1: 53 | BI1: 54 | BJ1: 55 | BK1: 56 | BL1: 57 | BM1: 58 | BN1: 59 | BO1: 60 | BP1: 61 | BQ1: 62 | BR1: 63 | BS1: 64 | BT1: 65 | BU1: 66 | BV1: 67 | BW1: 68 | BX1: 69 | BY1: 70 | BZ1: 71 | CA1: 72 | CB1: 73 | CC1: 74 | CD1: 75 | CE1: 76 | CF1: 77 | CG1: 78 | CH1: 79 | CI1: 80 | CJ1: 81 | CK1: 82 | CL1: 83 | CM1: 84 | CN1: 85 | CO1: 86 | CP1: 87 | CQ1: 88 | CR1: 89 | CS1: 90 | CT1: 91 | CU1: 92 | CV1: 93 | CW1: 94 | CX1: 95 | CY1: 96 | CZ1: 97 | DA1: 98 | DB1: 99 | DC1: 100
B2: Start of period | E2: Price | F2: =price -> 32.91300051 | H2: =$F$9 -> 2020-08-01 | I2: =EDATE(H2,6) -> 2021-02-01 | J2: =EDATE(I2,6) -> 2021-08-01 | K2: 2022-02-01 | L2: 2022-08-01 | M2: 2023-02-01 | N2: 2023-08-01 | O2: 2024-02-01 | P2: 2024-08-01 | Q2: 2025-02-01 | R2: 2025-08-01 | S2: 2026-02-01 | T2: 2026-08-01 | U2: 2027-02-01 | V2: 2027-08-01 | W2: 2028-02-01 | X2: 2028-08-01 | Y2: 2029-02-01 | Z2: 2029-08-01 | AA2: 2030-02-01 | AB2: 2030-08-01 | AC2: 2031-02-01 | AD2: 2031-08-01 | AE2: 2032-02-01 | AF2: 2032-08-01 | AG2: 2033-02-01 | AH2: 2033-08-01 | AI2: 2034-02-01 | AJ2: 2034-08-01 | AK2: 2035-02-01 | AL2: 2035-08-01 | AM2: 2036-02-01 | AN2: 2036-08-01 | AO2: 2037-02-01 | AP2: 2037-08-01 | AQ2: 2038-02-01 | AR2: 2038-08-01 | AS2: 2039-02-01 | AT2: 2039-08-01 | AU2: 2040-02-01 | AV2: 2040-08-01 | AW2: 2041-02-01 | AX2: 2041-08-01 | AY2: 2042-02-01 | AZ2: 2042-08-01 | BA2: 2043-02-01 | BB2: 2043-08-01 | BC2: 2044-02-01 | BD2: 2044-08-01 | BE2: 2045-02-01 | BF2: 2045-08-01 | BG2: 2046-02-01 | BH2: 2046-08-01 | BI2: 2047-02-01 | BJ2: 2047-08-01 | BK2: 2048-02-01 | BL2: 2048-08-01 | BM2: 2049-02-01 | BN2: 2049-08-01 | BO2: 2050-02-01 | BP2: 2050-08-01 | BQ2: 2051-02-01 | BR2: 2051-08-01 | BS2: 2052-02-01 | BT2: 2052-08-01 | BU2: 2053-02-01 | BV2: =EDATE(BU2,6) -> 2053-08-01 | BW2: 2054-02-01 | BX2: 2054-08-01 | BY2: 2055-02-01 | BZ2: 2055-08-01 | CA2: 2056-02-01 | CB2: 2056-08-01 | CC2: 2057-02-01 | CD2: 2057-08-01 | CE2: 2058-02-01 | CF2: 2058-08-01 | CG2: 2059-02-01 | CH2: 2059-08-01 | CI2: 2060-02-01 | CJ2: 2060-08-01 | CK2: 2061-02-01 | CL2: 2061-08-01 | CM2: 2062-02-01 | CN2: 2062-08-01 | CO2: 2063-02-01 | CP2: 2063-08-01 | CQ2: 2064-02-01 | CR2: 2064-08-01 | CS2: 2065-02-01 | CT2: 2065-08-01 | CU2: 2066-02-01 | CV2: 2066-08-01 | CW2: 2067-02-01 | CX2: 2067-08-01 | CY2: 2068-02-01 | CZ2: 2068-08-01 | DA2: 2069-02-01 | DB2: 2069-08-01 | DC2: 2070-02-01
B3: End of period | E3: Equity IRR | F3: =E268 -> 0.07500000298 | H3: =EDATE(H2,6)-1 -> 2021-01-31 | I3: =EDATE(I2,6)-1 -> 2021-07-31 | J3: 2022-01-31 | K3: 2022-07-31 | L3: 2023-01-31 | M3: 2023-07-31 | N3: 2024-01-31 | O3: 2024-07-31 | P3: 2025-01-31 | Q3: 2025-07-31 | R3: 2026-01-31 | S3: 2026-07-31 | T3: 2027-01-31 | U3: 2027-07-31 | V3: 2028-01-31 | W3: 2028-07-31 | X3: 2029-01-31 | Y3: 2029-07-31 | Z3: 2030-01-31 | AA3: 2030-07-31 | AB3: 2031-01-31 | AC3: 2031-07-31 | AD3: 2032-01-31 | AE3: 2032-07-31 | AF3: 2033-01-31 | AG3: 2033-07-31 | AH3: 2034-01-31 | AI3: 2034-07-31 | AJ3: 2035-01-31 | AK3: 2035-07-31 | AL3: 2036-01-31 | AM3: 2036-07-31 | AN3: 2037-01-31 | AO3: 2037-07-31 | AP3: 2038-01-31 | AQ3: 2038-07-31 | AR3: 2039-01-31 | AS3: 2039-07-31 | AT3: 2040-01-31 | AU3: 2040-07-31 | AV3: 2041-01-31 | AW3: 2041-07-31 | AX3: 2042-01-31 | AY3: 2042-07-31 | AZ3: 2043-01-31 | BA3: 2043-07-31 | BB3: 2044-01-31 | BC3: 2044-07-31 | BD3: 2045-01-31 | BE3: 2045-07-31 | BF3: 2046-01-31 | BG3: 2046-07-31 | BH3: 2047-01-31 | BI3: 2047-07-31 | BJ3: 2048-01-31 | BK3: 2048-07-31 | BL3: 2049-01-31 | BM3: 2049-07-31 | BN3: 2050-01-31 | BO3: 2050-07-31 | BP3: 2051-01-31 | BQ3: 2051-07-31 | BR3: 2052-01-31 | BS3: 2052-07-31 | BT3: 2053-01-31 | BU3: =EDATE(BU2,6)-1 -> 2053-07-31 | BV3: 2054-01-31 | BW3: 2054-07-31 | BX3: 2055-01-31 | BY3: 2055-07-31 | BZ3: 2056-01-31 | CA3: 2056-07-31 | CB3: 2057-01-31 | CC3: 2057-07-31 | CD3: 2058-01-31 | CE3: 2058-07-31 | CF3: 2059-01-31 | CG3: 2059-07-31 | CH3: 2060-01-31 | CI3: 2060-07-31 | CJ3: 2061-01-31 | CK3: 2061-07-31 | CL3: 2062-01-31 | CM3: 2062-07-31 | CN3: 2063-01-31 | CO3: 2063-07-31 | CP3: 2064-01-31 | CQ3: 2064-07-31 | CR3: 2065-01-31 | CS3: 2065-07-31 | CT3: 2066-01-31 | CU3: 2066-07-31 | CV3: 2067-01-31 | CW3: 2067-07-31 | CX3: 2068-01-31 | CY3: 2068-07-31 | CZ3: 2069-01-31 | DA3: 2069-07-31 | DB3: 2070-01-31 | DC3: 2070-07-31
B4: Construction phase | F4: =F11 -> 2021-02-01 | H4: =H2<$F$4 -> TRUE | I4: =I2<$F$4 -> FALSE | J4: FALSE | K4: FALSE | L4: FALSE | M4: FALSE | N4: FALSE | O4: FALSE | P4: FALSE | Q4: FALSE | R4: FALSE | S4: FALSE | T4: FALSE | U4: FALSE | V4: FALSE | W4: FALSE | X4: FALSE | Y4: FALSE | Z4: FALSE | AA4: FALSE | AB4: FALSE | AC4: FALSE | AD4: FALSE | AE4: FALSE | AF4: FALSE | AG4: FALSE | AH4: FALSE | AI4: FALSE | AJ4: FALSE | AK4: FALSE | AL4: FALSE | AM4: FALSE | AN4: FALSE | AO4: FALSE | AP4: FALSE | AQ4: FALSE | AR4: FALSE | AS4: FALSE | AT4: FALSE | AU4: FALSE | AV4: FALSE | AW4: FALSE | AX4: FALSE | AY4: FALSE | AZ4: FALSE | BA4: FALSE | BB4: FALSE | BC4: FALSE | BD4: FALSE | BE4: FALSE | BF4: FALSE | BG4: FALSE | BH4: FALSE | BI4: FALSE | BJ4: FALSE | BK4: FALSE | BL4: FALSE | BM4: FALSE | BN4: FALSE | BO4: FALSE | BP4: FALSE | BQ4: FALSE | BR4: FALSE | BS4: FALSE | BT4: FALSE | BU4: =BU2<$F$4 -> FALSE | BV4: FALSE | BW4: FALSE | BX4: FALSE | BY4: FALSE | BZ4: FALSE | CA4: FALSE | CB4: FALSE | CC4: FALSE | CD4: FALSE | CE4: FALSE | CF4: FALSE | CG4: FALSE | CH4: FALSE | CI4: FALSE | CJ4: FALSE | CK4: FALSE | CL4: FALSE | CM4: FALSE | CN4: FALSE | CO4: FALSE | CP4: FALSE | CQ4: FALSE | CR4: FALSE | CS4: FALSE | CT4: FALSE | CU4: FALSE | CV4: FALSE | CW4: FALSE | CX4: FALSE | CY4: FALSE | CZ4: FALSE | DA4: FALSE | DB4: FALSE | DC4: FALSE
B5: Operating phase | F5: =F11 -> 2021-02-01 | G5: =F13 -> 2051-02-01 | H5: =AND(H2>=$F$5,H2<$G$5) -> FALSE | I5: =AND(I2>=$F$5,I2<$G$5) -> TRUE | J5: TRUE | K5: TRUE | L5: TRUE | M5: TRUE | N5: TRUE | O5: TRUE | P5: TRUE | Q5: TRUE | R5: TRUE | S5: TRUE | T5: TRUE | U5: TRUE | V5: TRUE | W5: TRUE | X5: TRUE | Y5: TRUE | Z5: TRUE | AA5: TRUE | AB5: TRUE | AC5: TRUE | AD5: TRUE | AE5: TRUE | AF5: TRUE | AG5: TRUE | AH5: TRUE | AI5: TRUE | AJ5: TRUE | AK5: TRUE | AL5: TRUE | AM5: TRUE | AN5: TRUE | AO5: TRUE | AP5: TRUE | AQ5: TRUE | AR5: TRUE | AS5: TRUE | AT5: TRUE | AU5: TRUE | AV5: TRUE | AW5: TRUE | AX5: TRUE | AY5: TRUE | AZ5: TRUE | BA5: TRUE | BB5: TRUE | BC5: TRUE | BD5: TRUE | BE5: TRUE | BF5: TRUE | BG5: TRUE | BH5: TRUE | BI5: TRUE | BJ5: TRUE | BK5: TRUE | BL5: TRUE | BM5: TRUE | BN5: TRUE | BO5: TRUE | BP5: TRUE | BQ5: FALSE | BR5: FALSE | BS5: FALSE | BT5: FALSE | BU5: =AND(BU2>=$F$5,BU2<$G$5) -> FALSE | BV5: FALSE | BW5: FALSE | BX5: FALSE | BY5: FALSE | BZ5: FALSE | CA5: FALSE | CB5: FALSE | CC5: FALSE | CD5: FALSE | CE5: FALSE | CF5: FALSE | CG5: FALSE | CH5: FALSE | CI5: FALSE | CJ5: FALSE | CK5: FALSE | CL5: FALSE | CM5: FALSE | CN5: FALSE | CO5: FALSE | CP5: FALSE | CQ5: FALSE | CR5: FALSE | CS5: FALSE | CT5: FALSE | CU5: FALSE | CV5: FALSE | CW5: FALSE | CX5: FALSE | CY5: FALSE | CZ5: FALSE | DA5: FALSE | DB5: FALSE | DC5: FALSE
A7: Non-Financing Inputs
B8: Timing Inputs
C9: Construction Start | E9: Date | F9: 2020-08-01
C10: Construction Period | E10: Periods | F10: 1
C11: Commercial Operation | E11: Date | F11: =EDATE(F9,F10*6) -> 2021-02-01
C12: Operating Period | E12: Years | F12: 30
C13: Decommissioning | E13: Date | F13: =EDATE(F11,F12*12) -> 2051-02-01
B15: Operation Inputs
D16: Capacity | E16: MW | F16: ='Wind Study Back-up (2)'!C2 -> 94
D17: P50 Capacity Factor | E17: % p.a. | F17: ='Wind Study Back-up (2)'!C11/100 -> 0.413
F19: 1-yr | G19: 10-yr | H19: 20-yr
D20: Uncertainty Percent | F20: ='Wind Study Back-up (2)'!D23 -> 0.1084 | G20: ='Wind Study Back-up (2)'!D24 -> 0.07434616515 | H20: ='Wind Study Back-up (2)'!D25 -> 0.07228915663
D21: Curtailment Percent
D23: Case applied (P50=1, P90=2, P99=3) | E23: Code | F23: 1 | J23: P50
J24: P90
B25: EPC, O&M and PPA contracts | J25: P99
C26: EPC and Development
D27: EPC Cost | E27: Euro/kW | F27: 1200
D28: Development Cost | E28: Euro/kW | F28: =F27*3% -> 36
D29: Owners Cost | E29: Euro/kW | F29: 46
D30: Total Cost | E30: Euro/kW | F30: =SUM(F27:F29) -> 1282
C32: General Inflation Rate | E32: % | F32: 0.025
C34: O&M Cost | F34: Euro/kW/yr | G34: Fixed | H34: Variable | I34: Euro/MWh
D35: Contracted Turbine O&M ($/MWh) | E35: Euro/kW-yr | F35: 18.53841379 | G35: FALSE | H35: =NOT(G35) -> TRUE | I35: =F35*1000/(8760*$F$17) -> 5.124109641
D36: BOP O&M | E36: Euro/kW-yr | F36: 4.211448549 | G36: FALSE | H36: =NOT(G36) -> TRUE | I36: =F36*1000/(8760*$F$17) -> 1.164065295
D37: BOP O&M Fee | E37: Euro/kW-yr | F37: 1.346821869 | G37: FALSE | H37: TRUE | I37: 0.3722682535
D38: Operation Expenses | E38: Euro/kW-yr | F38: 1.44934195 | G38: FALSE | H38: TRUE | I38: 0.400605313
D39: Maintenance Expenses | E39: Euro/kW-yr | F39: 1.41528473 | G39: FALSE | H39: TRUE | I39: 0.3911917284
D40: G&A | E40: Euro/kW-yr | F40: 0.7683580345 | G40: FALSE | H40: TRUE | I40: 0.2123779767
D41: Asset Management | E41: Euro/kW-yr | F41: 0 | G41: FALSE | H41: TRUE | I41: 0
D42: Community Support | E42: Euro/kW-yr | F42: 0.0439061734 | G42: FALSE | H42: TRUE | I42: 0.01213588438
D43: 3rd Party Professional Services | E43: Euro/kW-yr | F43: 0.7244518611 | G43: FALSE | H43: TRUE | I43: 0.2002420924
D44: Landowner and Easement Royalties | E44: Euro/kW-yr | F44: 3.512650602 | G44: FALSE | H44: TRUE | I44: 0.9709140719
D45: Royalties - based on % Revenues | E45: Euro/kW-yr | F45: 2.373185734 | G45: FALSE | H45: TRUE | I45: 0.6559603233
D46: Property Taxes | E46: Euro/kW-yr | F46: 10.69409011 | G46: FALSE | H46: TRUE | I46: 2.955899618
D47: Environmental Monitoring | E47: Euro/kW-yr | F47: 0 | G47: FALSE | H47: TRUE | I47: 0
D48: Insurance | E48: Euro/kW-yr | F48: 1.56745039 | G48: FALSE | H48: TRUE | I48: 0.4332510725
D49: Annual Insurance Cash Premium & Origination Fee | E49: Euro/kW-yr | F49: 7.463545105 | G49: FALSE | H49: TRUE | I49: 2.062960934
D50: Total Operating Expenses | E50: Euro/kW-yr | F50: =SUM(F35:F49) -> 54.1089489 | I50: =SUM(I35:I49) -> 14.9559822
C52: PPA Price
D53: Starting Price | E53: USD/MWH | F53: 32.91300051 | G53: Price
D54: Inflate | E54: Switch | F54: TRUE
D55: Target Equity IRR | E55: % | F55: =G55/1000 -> 0.075 | G55: 75
A57: Financing Inputs
B58: Debt Size
C59: DSCR
D60: P50 Minimum | E60: x | F60: =G60/100 -> 1.35 | G60: 135
D61: P90 Minimum | E61: x | F61: =G61/100 -> 1.15 | G61: 115
D62: P99 Minimum | E62: x | F62: =G62/100 -> 1 | G62: 100
C64: Max Debt to Capital | E64: % | F64: =G64/100 -> 0.82 | G64: 82
B66: Debt Funding | E66: Pro-Rata | F66: TRUE
B68: Debt Repayment
D69: Sculpting (Not True is Level Repayment) | E69: Type | F69: TRUE
D70: Maturity | E70: Years | F70: =G70 -> 20 | G70: 20
D71: Grace Period | E71: Periods | F71: 1
D72: Start of Repayment | F72: =EDATE(F11,F71*6) -> 2021-08-01
D73: End of Repayment | F73: =EDATE(F11,F70*12) -> 2041-02-01
B75: Interest Rate and Fee
D76: Base Rate | E76: % p.a. | F76: 0.015
D77: Credit Spread | E77: % p.a. | F77: 0.018
D78: Annual interest rate | E78: % p.a. | F78: =F76+F77 -> 0.033
D80: Up-Front and Commitment Fee | E80: % | F80: 0.019
B82: DSRA, Covenants, Sweeps
A84: Operations and Pre-tax Free Cash Flow
B85: Operations
C86: Capacity and Generation
D87: Capacity | E87: MW | F87: =F16 -> 94 | H87: =$F87*H$5 -> 0 | I87: =$F87*I$5 -> 94 | J87: 94 | K87: 94 | L87: 94 | M87: 94 | N87: 94 | O87: 94 | P87: 94 | Q87: 94 | R87: 94 | S87: 94 | T87: 94 | U87: 94 | V87: 94 | W87: 94 | X87: 94 | Y87: 94 | Z87: 94 | AA87: 94 | AB87: 94 | AC87: 94 | AD87: 94 | AE87: 94 | AF87: 94 | AG87: 94 | AH87: 94 | AI87: 94 | AJ87: 94 | AK87: 94 | AL87: 94 | AM87: 94 | AN87: 94 | AO87: 94 | AP87: 94 | AQ87: 94 | AR87: 94 | AS87: 94 | AT87: 94 | AU87: 94 | AV87: 94 | AW87: 94 | AX87: 94 | AY87: 94 | AZ87: 94 | BA87: 94 | BB87: 94 | BC87: 94 | BD87: 94 | BE87: 94 | BF87: 94 | BG87: 94 | BH87: 94 | BI87: 94 | BJ87: 94 | BK87: 94 | BL87: 94 | BM87: 94 | BN87: 94 | BO87: 94 | BP87: 94 | BQ87: 0 | BR87: 0 | BS87: 0 | BT87: 0 | BU87: =$F87*BU$5 -> 0 | BV87: 0 | BW87: 0 | BX87: 0 | BY87: 0 | BZ87: 0 | CA87: 0 | CB87: 0 | CC87: 0 | CD87: 0 | CE87: 0 | CF87: 0 | CG87: 0 | CH87: 0 | CI87: 0 | CJ87: 0 | CK87: 0 | CL87: 0 | CM87: 0 | CN87: 0 | CO87: 0 | CP87: 0 | CQ87: 0 | CR87: 0 | CS87: 0 | CT87: 0 | CU87: 0 | CV87: 0 | CW87: 0 | CX87: 0 | CY87: 0 | CZ87: 0 | DA87: 0 | DB87: 0 | DC87: 0
D88: P50 Capacity Factor | E88: % | F88: =F17 -> 0.413 | H88: =$F88*H$5 -> 0 | I88: 0.413 | J88: 0.413 | K88: 0.413 | L88: 0.413 | M88: 0.413 | N88: 0.413 | O88: 0.413 | P88: 0.413 | Q88: 0.413 | R88: 0.413 | S88: 0.413 | T88: 0.413 | U88: 0.413 | V88: 0.413 | W88: 0.413 | X88: 0.413 | Y88: 0.413 | Z88: 0.413 | AA88: 0.413 | AB88: 0.413 | AC88: 0.413 | AD88: 0.413 | AE88: 0.413 | AF88: 0.413 | AG88: 0.413 | AH88: 0.413 | AI88: 0.413 | AJ88: 0.413 | AK88: 0.413 | AL88: 0.413 | AM88: 0.413 | AN88: 0.413 | AO88: 0.413 | AP88: 0.413 | AQ88: 0.413 | AR88: 0.413 | AS88: 0.413 | AT88: 0.413 | AU88: 0.413 | AV88: 0.413 | AW88: 0.413 | AX88: 0.413 | AY88: 0.413 | AZ88: 0.413 | BA88: 0.413 | BB88: 0.413 | BC88: 0.413 | BD88: 0.413 | BE88: 0.413 | BF88: 0.413 | BG88: 0.413 | BH88: 0.413 | BI88: 0.413 | BJ88: 0.413 | BK88: 0.413 | BL88: 0.413 | BM88: 0.413 | BN88: 0.413 | BO88: 0.413 | BP88: 0.413 | BQ88: 0 | BR88: 0 | BS88: 0 | BT88: 0 | BU88: 0 | BV88: 0 | BW88: 0 | BX88: 0 | BY88: 0 | BZ88: 0 | CA88: 0 | CB88: 0 | CC88: 0 | CD88: 0 | CE88: 0 | CF88: 0 | CG88: 0 | CH88: 0 | CI88: 0 | CJ88: 0 | CK88: 0 | CL88: 0 | CM88: 0 | CN88: 0 | CO88: 0 | CP88: 0 | CQ88: 0 | CR88: 0 | CS88: 0 | CT88: 0 | CU88: 0 | CV88: 0 | CW88: 0 | CX88: 0 | CY88: 0 | CZ88: 0 | DA88: 0 | DB88: 0 | DC88: 0
D89: 1-Year Standard Deviation as Percent | E89: % | F89: =F20 -> 0.1084 | H89: 0 | I89: 0.1084 | J89: 0.1084 | K89: 0.1084 | L89: 0.1084 | M89: 0.1084 | N89: 0.1084 | O89: 0.1084 | P89: 0.1084 | Q89: 0.1084 | R89: 0.1084 | S89: 0.1084 | T89: 0.1084 | U89: 0.1084 | V89: 0.1084 | W89: 0.1084 | X89: 0.1084 | Y89: 0.1084 | Z89: 0.1084 | AA89: 0.1084 | AB89: 0.1084 | AC89: 0.1084 | AD89: 0.1084 | AE89: 0.1084 | AF89: 0.1084 | AG89: 0.1084 | AH89: 0.1084 | AI89: 0.1084 | AJ89: 0.1084 | AK89: 0.1084 | AL89: 0.1084 | AM89: 0.1084 | AN89: 0.1084 | AO89: 0.1084 | AP89: 0.1084 | AQ89: 0.1084 | AR89: 0.1084 | AS89: 0.1084 | AT89: 0.1084 | AU89: 0.1084 | AV89: 0.1084 | AW89: 0.1084 | AX89: 0.1084 | AY89: 0.1084 | AZ89: 0.1084 | BA89: 0.1084 | BB89: 0.1084 | BC89: 0.1084 | BD89: 0.1084 | BE89: 0.1084 | BF89: 0.1084 | BG89: 0.1084 | BH89: 0.1084 | BI89: 0.1084 | BJ89: 0.1084 | BK89: 0.1084 | BL89: 0.1084 | BM89: 0.1084 | BN89: 0.1084 | BO89: 0.1084 | BP89: 0.1084 | BQ89: 0 | BR89: 0 | BS89: 0 | BT89: 0 | BU89: 0 | BV89: 0 | BW89: 0 | BX89: 0 | BY89: 0 | BZ89: 0 | CA89: 0 | CB89: 0 | CC89: 0 | CD89: 0 | CE89: 0 | CF89: 0 | CG89: 0 | CH89: 0 | CI89: 0 | CJ89: 0 | CK89: 0 | CL89: 0 | CM89: 0 | CN89: 0 | CO89: 0 | CP89: 0 | CQ89: 0 | CR89: 0 | CS89: 0 | CT89: 0 | CU89: 0 | CV89: 0 | CW89: 0 | CX89: 0 | CY89: 0 | CZ89: 0 | DA89: 0 | DB89: 0 | DC89: 0
D90: P90 Capacity Factor | E90: % | F90: =_xlfn.NORM.INV(0.1,F88,F88*F89) -> 0.3556259617 | H90: 0 | I90: 0.3556259617 | J90: 0.3556259617 | K90: 0.3556259617 | L90: 0.3556259617 | M90: 0.3556259617 | N90: 0.3556259617 | O90: 0.3556259617 | P90: 0.3556259617 | Q90: 0.3556259617 | R90: 0.3556259617 | S90: 0.3556259617 | T90: 0.3556259617 | U90: 0.3556259617 | V90: 0.3556259617 | W90: 0.3556259617 | X90: 0.3556259617 | Y90: 0.3556259617 | Z90: 0.3556259617 | AA90: 0.3556259617 | AB90: 0.3556259617 | AC90: 0.3556259617 | AD90: 0.3556259617 | AE90: 0.3556259617 | AF90: 0.3556259617 | AG90: 0.3556259617 | AH90: 0.3556259617 | AI90: 0.3556259617 | AJ90: 0.3556259617 | AK90: 0.3556259617 | AL90: 0.3556259617 | AM90: 0.3556259617 | AN90: 0.3556259617 | AO90: 0.3556259617 | AP90: 0.3556259617 | AQ90: 0.3556259617 | AR90: 0.3556259617 | AS90: 0.3556259617 | AT90: 0.3556259617 | AU90: 0.3556259617 | AV90: 0.3556259617 | AW90: 0.3556259617 | AX90: 0.3556259617 | AY90: 0.3556259617 | AZ90: 0.3556259617 | BA90: 0.3556259617 | BB90: 0.3556259617 | BC90: 0.3556259617 | BD90: 0.3556259617 | BE90: 0.3556259617 | BF90: 0.3556259617 | BG90: 0.3556259617 | BH90: 0.3556259617 | BI90: 0.3556259617 | BJ90: 0.3556259617 | BK90: 0.3556259617 | BL90: 0.3556259617 | BM90: 0.3556259617 | BN90: 0.3556259617 | BO90: 0.3556259617 | BP90: 0.3556259617 | BQ90: 0 | BR90: 0 | BS90: 0 | BT90: 0 | BU90: 0 | BV90: 0 | BW90: 0 | BX90: 0 | BY90: 0 | BZ90: 0 | CA90: 0 | CB90: 0 | CC90: 0 | CD90: 0 | CE90: 0 | CF90: 0 | CG90: 0 | CH90: 0 | CI90: 0 | CJ90: 0 | CK90: 0 | CL90: 0 | CM90: 0 | CN90: 0 | CO90: 0 | CP90: 0 | CQ90: 0 | CR90: 0 | CS90: 0 | CT90: 0 | CU90: 0 | CV90: 0 | CW90: 0 | CX90: 0 | CY90: 0 | CZ90: 0 | DA90: 0 | DB90: 0 | DC90: 0
D91: P99 Capacity Factor | E91: % | F91: =_xlfn.NORM.INV(0.01,F88,F88*F89) -> 0.3088512668 | H91: 0 | I91: 0.3088512668 | J91: 0.3088512668 | K91: 0.3088512668 | L91: 0.3088512668 | M91: 0.3088512668 | N91: 0.3088512668 | O91: 0.3088512668 | P91: 0.3088512668 | Q91: 0.3088512668 | R91: 0.3088512668 | S91: 0.3088512668 | T91: 0.3088512668 | U91: 0.3088512668 | V91: 0.3088512668 | W91: 0.3088512668 | X91: 0.3088512668 | Y91: 0.3088512668 | Z91: 0.3088512668 | AA91: 0.3088512668 | AB91: 0.3088512668 | AC91: 0.3088512668 | AD91: 0.3088512668 | AE91: 0.3088512668 | AF91: 0.3088512668 | AG91: 0.3088512668 | AH91: 0.3088512668 | AI91: 0.3088512668 | AJ91: 0.3088512668 | AK91: 0.3088512668 | AL91: 0.3088512668 | AM91: 0.3088512668 | AN91: 0.3088512668 | AO91: 0.3088512668 | AP91: 0.3088512668 | AQ91: 0.3088512668 | AR91: 0.3088512668 | AS91: 0.3088512668 | AT91: 0.3088512668 | AU91: 0.3088512668 | AV91: 0.3088512668 | AW91: 0.3088512668 | AX91: 0.3088512668 | AY91: 0.3088512668 | AZ91: 0.3088512668 | BA91: 0.3088512668 | BB91: 0.3088512668 | BC91: 0.3088512668 | BD91: 0.3088512668 | BE91: 0.3088512668 | BF91: 0.3088512668 | BG91: 0.3088512668 | BH91: 0.3088512668 | BI91: 0.3088512668 | BJ91: 0.3088512668 | BK91: 0.3088512668 | BL91: 0.3088512668 | BM91: 0.3088512668 | BN91: 0.3088512668 | BO91: 0.3088512668 | BP91: =$F91*BP$5 -> 0.3088512668 | BQ91: 0 | BR91: 0 | BS91: 0 | BT91: 0 | BU91: 0 | BV91: 0 | BW91: 0 | BX91: 0 | BY91: 0 | BZ91: 0 | CA91: 0 | CB91: 0 | CC91: 0 | CD91: 0 | CE91: 0 | CF91: 0 | CG91: 0 | CH91: 0 | CI91: 0 | CJ91: 0 | CK91: 0 | CL91: 0 | CM91: 0 | CN91: 0 | CO91: 0 | CP91: 0 | CQ91: 0 | CR91: 0 | CS91: 0 | CT91: 0 | CU91: 0 | CV91: 0 | CW91: 0 | CX91: 0 | CY91: 0 | CZ91: 0 | DA91: 0 | DB91: 0 | DC91: 0
D92: Hours in the period | E92: Hours | H92: =(H3-H2+1)*24 -> 4416 | I92: 4344 | J92: 4416 | K92: 4344 | L92: 4416 | M92: 4344 | N92: 4416 | O92: 4368 | P92: 4416 | Q92: 4344 | R92: 4416 | S92: 4344 | T92: 4416 | U92: 4344 | V92: 4416 | W92: 4368 | X92: 4416 | Y92: 4344 | Z92: 4416 | AA92: 4344 | AB92: 4416 | AC92: 4344 | AD92: 4416 | AE92: 4368 | AF92: 4416 | AG92: 4344 | AH92: 4416 | AI92: 4344 | AJ92: 4416 | AK92: 4344 | AL92: 4416 | AM92: 4368 | AN92: 4416 | AO92: 4344 | AP92: 4416 | AQ92: 4344 | AR92: 4416 | AS92: 4344 | AT92: 4416 | AU92: 4368 | AV92: 4416 | AW92: 4344 | AX92: 4416 | AY92: 4344 | AZ92: 4416 | BA92: 4344 | BB92: 4416 | BC92: 4368 | BD92: 4416 | BE92: 4344 | BF92: 4416 | BG92: 4344 | BH92: 4416 | BI92: 4344 | BJ92: 4416 | BK92: 4368 | BL92: 4416 | BM92: 4344 | BN92: 4416 | BO92: 4344 | BP92: 4416 | BQ92: 4344 | BR92: 4416 | BS92: 4368 | BT92: =(BT3-BT2+1)*24 -> 4416 | BU92: 4344 | BV92: 4416 | BW92: 4344 | BX92: 4416 | BY92: 4344 | BZ92: 4416 | CA92: 4368 | CB92: 4416 | CC92: 4344 | CD92: 4416 | CE92: 4344 | CF92: 4416 | CG92: 4344 | CH92: 4416 | CI92: 4368 | CJ92: 4416 | CK92: 4344 | CL92: 4416 | CM92: 4344 | CN92: 4416 | CO92: 4344 | CP92: 4416 | CQ92: 4368 | CR92: 4416 | CS92: 4344 | CT92: 4416 | CU92: 4344 | CV92: 4416 | CW92: 4344 | CX92: 4416 | CY92: 4368 | CZ92: 4416 | DA92: 4344 | DB92: 4416 | DC92: 4344
D94: Generation at P50 | E94: MWH | H94: =H$87*H88*H$92 -> 0 | I94: 168642.768 | J94: 171437.952 | K94: 168642.768 | L94: 171437.952 | M94: 168642.768 | N94: 171437.952 | O94: 169574.496 | P94: 171437.952 | Q94: 168642.768 | R94: 171437.952 | S94: 168642.768 | T94: 171437.952 | U94: 168642.768 | V94: 171437.952 | W94: 169574.496 | X94: 171437.952 | Y94: 168642.768 | Z94: 171437.952 | AA94: 168642.768 | AB94: 171437.952 | AC94: 168642.768 | AD94: 171437.952 | AE94: 169574.496 | AF94: 171437.952 | AG94: 168642.768 | AH94: 171437.952 | AI94: 168642.768 | AJ94: 171437.952 | AK94: 168642.768 | AL94: 171437.952 | AM94: 169574.496 | AN94: 171437.952 | AO94: 168642.768 | AP94: 171437.952 | AQ94: 168642.768 | AR94: 171437.952 | AS94: 168642.768 | AT94: 171437.952 | AU94: 169574.496 | AV94: 171437.952 | AW94: 168642.768 | AX94: 171437.952 | AY94: 168642.768 | AZ94: 171437.952 | BA94: 168642.768 | BB94: 171437.952 | BC94: 169574.496 | BD94: 171437.952 | BE94: 168642.768 | BF94: 171437.952 | BG94: 168642.768 | BH94: 171437.952 | BI94: 168642.768 | BJ94: 171437.952 | BK94: 169574.496 | BL94: 171437.952 | BM94: 168642.768 | BN94: 171437.952 | BO94: 168642.768 | BP94: 171437.952 | BQ94: 0 | BR94: 0 | BS94: 0 | BT94: =BT$87*BT88*BT$92 -> 0 | BU94: 0 | BV94: 0 | BW94: 0 | BX94: 0 | BY94: 0 | BZ94: 0 | CA94: 0 | CB94: 0 | CC94: 0 | CD94: 0 | CE94: 0 | CF94: 0 | CG94: 0 | CH94: 0 | CI94: 0 | CJ94: 0 | CK94: 0 | CL94: 0 | CM94: 0 | CN94: 0 | CO94: 0 | CP94: 0 | CQ94: 0 | CR94: 0 | CS94: 0 | CT94: 0 | CU94: 0 | CV94: 0 | CW94: 0 | CX94: 0 | CY94: 0 | CZ94: 0 | DA94: 0 | DB94: 0 | DC94: 0
D95: Generation at P90 | E95: MWH | H95: =H$87*H90*H$92 -> 0 | I95: =I$87*I90*I$92 -> 145214.8827 | J95: 147621.7592 | K95: 145214.8827 | L95: 147621.7592 | M95: 145214.8827 | N95: 147621.7592 | O95: 146017.1748 | P95: 147621.7592 | Q95: 145214.8827 | R95: 147621.7592 | S95: 145214.8827 | T95: 147621.7592 | U95: 145214.8827 | V95: 147621.7592 | W95: 146017.1748 | X95: 147621.7592 | Y95: 145214.8827 | Z95: 147621.7592 | AA95: 145214.8827 | AB95: 147621.7592 | AC95: 145214.8827 | AD95: 147621.7592 | AE95: 146017.1748 | AF95: 147621.7592 | AG95: 145214.8827 | AH95: 147621.7592 | AI95: 145214.8827 | AJ95: 147621.7592 | AK95: 145214.8827 | AL95: 147621.7592 | AM95: 146017.1748 | AN95: 147621.7592 | AO95: 145214.8827 | AP95: 147621.7592 | AQ95: 145214.8827 | AR95: 147621.7592 | AS95: 145214.8827 | AT95: 147621.7592 | AU95: 146017.1748 | AV95: 147621.7592 | AW95: 145214.8827 | AX95: 147621.7592 | AY95: 145214.8827 | AZ95: 147621.7592 | BA95: 145214.8827 | BB95: 147621.7592 | BC95: 146017.1748 | BD95: 147621.7592 | BE95: 145214.8827 | BF95: 147621.7592 | BG95: 145214.8827 | BH95: 147621.7592 | BI95: 145214.8827 | BJ95: 147621.7592 | BK95: 146017.1748 | BL95: 147621.7592 | BM95: 145214.8827 | BN95: 147621.7592 | BO95: 145214.8827 | BP95: 147621.7592 | BQ95: 0 | BR95: 0 | BS95: 0 | BT95: 0 | BU95: =BU$87*BU90*BU$92 -> 0 | BV95: 0 | BW95: 0 | BX95: 0 | BY95: 0 | BZ95: 0 | CA95: 0 | CB95: 0 | CC95: 0 | CD95: 0 | CE95: 0 | CF95: 0 | CG95: 0 | CH95: 0 | CI95: 0 | CJ95: 0 | CK95: 0 | CL95: 0 | CM95: 0 | CN95: 0 | CO95: 0 | CP95: 0 | CQ95: 0 | CR95: 0 | CS95: 0 | CT95: 0 | CU95: 0 | CV95: 0 | CW95: 0 | CX95: 0 | CY95: 0 | CZ95: 0 | DA95: 0 | DB95: 0 | DC95: 0
D96: Generation at P99 | E96: MWH | H96: =H$87*H91*H$92 -> 0 | I96: 126115.0909 | J96: 128205.3962 | K96: 126115.0909 | L96: 128205.3962 | M96: 126115.0909 | N96: 128205.3962 | O96: 126811.8593 | P96: 128205.3962 | Q96: 126115.0909 | R96: 128205.3962 | S96: 126115.0909 | T96: 128205.3962 | U96: 126115.0909 | V96: 128205.3962 | W96: 126811.8593 | X96: 128205.3962 | Y96: 126115.0909 | Z96: 128205.3962 | AA96: 126115.0909 | AB96: 128205.3962 | AC96: 126115.0909 | AD96: 128205.3962 | AE96: 126811.8593 | AF96: 128205.3962 | AG96: 126115.0909 | AH96: 128205.3962 | AI96: 126115.0909 | AJ96: 128205.3962 | AK96: 126115.0909 | AL96: 128205.3962 | AM96: 126811.8593 | AN96: 128205.3962 | AO96: 126115.0909 | AP96: 128205.3962 | AQ96: 126115.0909 | AR96: 128205.3962 | AS96: 126115.0909 | AT96: 128205.3962 | AU96: 126811.8593 | AV96: 128205.3962 | AW96: 126115.0909 | AX96: 128205.3962 | AY96: 126115.0909 | AZ96: 128205.3962 | BA96: 126115.0909 | BB96: 128205.3962 | BC96: 126811.8593 | BD96: 128205.3962 | BE96: 126115.0909 | BF96: 128205.3962 | BG96: 126115.0909 | BH96: 128205.3962 | BI96: 126115.0909 | BJ96: 128205.3962 | BK96: 126811.8593 | BL96: 128205.3962 | BM96: 126115.0909 | BN96: 128205.3962 | BO96: 126115.0909 | BP96: 128205.3962 | BQ96: 0 | BR96: 0 | BS96: 0 | BT96: 0 | BU96: 0 | BV96: 0 | BW96: 0 | BX96: 0 | BY96: 0 | BZ96: 0 | CA96: 0 | CB96: 0 | CC96: 0 | CD96: 0 | CE96: 0 | CF96: 0 | CG96: 0 | CH96: 0 | CI96: 0 | CJ96: 0 | CK96: 0 | CL96: 0 | CM96: 0 | CN96: 0 | CO96: 0 | CP96: 0 | CQ96: 0 | CR96: 0 | CS96: 0 | CT96: 0 | CU96: 0 | CV96: 0 | CW96: 0 | CX96: 0 | CY96: 0 | CZ96: 0 | DA96: 0 | DB96: 0 | DC96: 0
D97: MWH Applied | E97: MWH | F97: =F23 -> 1 | H97: =INDEX(H94:H96,$F$97) -> 0 | I97: 168642.768 | J97: 171437.952 | K97: 168642.768 | L97: 171437.952 | M97: 168642.768 | N97: 171437.952 | O97: 169574.496 | P97: 171437.952 | Q97: 168642.768 | R97: 171437.952 | S97: 168642.768 | T97: 171437.952 | U97: 168642.768 | V97: 171437.952 | W97: 169574.496 | X97: 171437.952 | Y97: 168642.768 | Z97: 171437.952 | AA97: 168642.768 | AB97: 171437.952 | AC97: 168642.768 | AD97: 171437.952 | AE97: 169574.496 | AF97: 171437.952 | AG97: 168642.768 | AH97: 171437.952 | AI97: 168642.768 | AJ97: 171437.952 | AK97: 168642.768 | AL97: 171437.952 | AM97: 169574.496 | AN97: 171437.952 | AO97: 168642.768 | AP97: 171437.952 | AQ97: 168642.768 | AR97: 171437.952 | AS97: 168642.768 | AT97: 171437.952 | AU97: 169574.496 | AV97: 171437.952 | AW97: 168642.768 | AX97: 171437.952 | AY97: 168642.768 | AZ97: 171437.952 | BA97: 168642.768 | BB97: 171437.952 | BC97: 169574.496 | BD97: 171437.952 | BE97: 168642.768 | BF97: 171437.952 | BG97: 168642.768 | BH97: 171437.952 | BI97: 168642.768 | BJ97: 171437.952 | BK97: 169574.496 | BL97: 171437.952 | BM97: 168642.768 | BN97: 171437.952 | BO97: 168642.768 | BP97: 171437.952 | BQ97: 0 | BR97: 0 | BS97: 0 | BT97: =INDEX(BT94:BT96,$F$97) -> 0 | BU97: 0 | BV97: 0 | BW97: 0 | BX97: 0 | BY97: 0 | BZ97: 0 | CA97: 0 | CB97: 0 | CC97: 0 | CD97: 0 | CE97: 0 | CF97: 0 | CG97: 0 | CH97: 0 | CI97: 0 | CJ97: 0 | CK97: 0 | CL97: 0 | CM97: 0 | CN97: 0 | CO97: 0 | CP97: 0 | CQ97: 0 | CR97: 0 | CS97: 0 | CT97: 0 | CU97: 0 | CV97: 0 | CW97: 0 | CX97: 0 | CY97: 0 | CZ97: 0 | DA97: 0 | DB97: 0 | DC97: 0
B99: Construction Costs
D100: EPC Cost | E100: Euro 000's | F100: =F27*$F$87 -> 112800 | H100: =$F100*H$4 -> 112800 | I100: =$F100*I$4 -> 0 | J100: 0 | K100: 0 | L100: 0 | M100: 0 | N100: 0 | O100: 0 | P100: 0 | Q100: 0 | R100: 0 | S100: 0 | T100: 0 | U100: 0 | V100: 0 | W100: 0 | X100: 0 | Y100: 0 | Z100: 0 | AA100: 0 | AB100: 0 | AC100: 0 | AD100: 0 | AE100: 0 | AF100: 0 | AG100: 0 | AH100: 0 | AI100: 0 | AJ100: 0 | AK100: 0 | AL100: 0 | AM100: 0 | AN100: 0 | AO100: 0 | AP100: 0 | AQ100: 0 | AR100: 0 | AS100: 0 | AT100: 0 | AU100: 0 | AV100: 0 | AW100: 0 | AX100: 0 | AY100: 0 | AZ100: 0 | BA100: 0 | BB100: 0 | BC100: 0 | BD100: 0 | BE100: 0 | BF100: 0 | BG100: 0 | BH100: 0 | BI100: 0 | BJ100: 0 | BK100: 0 | BL100: 0 | BM100: 0 | BN100: 0 | BO100: 0 | BP100: 0 | BQ100: 0 | BR100: 0 | BS100: 0 | BT100: 0 | BU100: =$F100*BU$4 -> 0 | BV100: 0 | BW100: 0 | BX100: 0 | BY100: 0 | BZ100: 0 | CA100: 0 | CB100: 0 | CC100: 0 | CD100: 0 | CE100: 0 | CF100: 0 | CG100: 0 | CH100: 0 | CI100: 0 | CJ100: 0 | CK100: 0 | CL100: 0 | CM100: 0 | CN100: 0 | CO100: 0 | CP100: 0 | CQ100: 0 | CR100: 0 | CS100: 0 | CT100: 0 | CU100: 0 | CV100: 0 | CW100: 0 | CX100: 0 | CY100: 0 | CZ100: 0 | DA100: 0 | DB100: 0 | DC100: 0
D101: Development Cost | E101: Euro 000's | F101: =F28*$F$87 -> 3384 | H101: =$F101*H$4 -> 3384 | I101: 0 | J101: 0 | K101: 0 | L101: 0 | M101: 0 | N101: 0 | O101: 0 | P101: 0 | Q101: 0 | R101: 0 | S101: 0 | T101: 0 | U101: 0 | V101: 0 | W101: 0 | X101: 0 | Y101: 0 | Z101: 0 | AA101: 0 | AB101: 0 | AC101: 0 | AD101: 0 | AE101: 0 | AF101: 0 | AG101: 0 | AH101: 0 | AI101: 0 | AJ101: 0 | AK101: 0 | AL101: 0 | AM101: 0 | AN101: 0 | AO101: 0 | AP101: 0 | AQ101: 0 | AR101: 0 | AS101: 0 | AT101: 0 | AU101: 0 | AV101: 0 | AW101: 0 | AX101: 0 | AY101: 0 | AZ101: 0 | BA101: 0 | BB101: 0 | BC101: 0 | BD101: 0 | BE101: 0 | BF101: 0 | BG101: 0 | BH101: 0 | BI101: 0 | BJ101: 0 | BK101: 0 | BL101: 0 | BM101: 0 | BN101: 0 | BO101: 0 | BP101: 0 | BQ101: 0 | BR101: 0 | BS101: 0 | BT101: 0 | BU101: 0 | BV101: 0 | BW101: 0 | BX101: 0 | BY101: 0 | BZ101: 0 | CA101: 0 | CB101: 0 | CC101: 0 | CD101: 0 | CE101: 0 | CF101: 0 | CG101: 0 | CH101: 0 | CI101: 0 | CJ101: 0 | CK101: 0 | CL101: 0 | CM101: 0 | CN101: 0 | CO101: 0 | CP101: 0 | CQ101: 0 | CR101: 0 | CS101: 0 | CT101: 0 | CU101: 0 | CV101: 0 | CW101: 0 | CX101: 0 | CY101: 0 | CZ101: 0 | DA101: 0 | DB101: 0 | DC101: 0
D102: Owners Cost | E102: Euro 000's | F102: =F29*$F$87 -> 4324 | H102: 4324 | I102: 0 | J102: 0 | K102: 0 | L102: 0 | M102: 0 | N102: 0 | O102: 0 | P102: 0 | Q102: 0 | R102: 0 | S102: 0 | T102: 0 | U102: 0 | V102: 0 | W102: 0 | X102: 0 | Y102: 0 | Z102: 0 | AA102: 0 | AB102: 0 | AC102: 0 | AD102: 0 | AE102: 0 | AF102: 0 | AG102: 0 | AH102: 0 | AI102: 0 | AJ102: 0 | AK102: 0 | AL102: 0 | AM102: 0 | AN102: 0 | AO102: 0 | AP102: 0 | AQ102: 0 | AR102: 0 | AS102: 0 | AT102: 0 | AU102: 0 | AV102: 0 | AW102: 0 | AX102: 0 | AY102: 0 | AZ102: 0 | BA102: 0 | BB102: 0 | BC102: 0 | BD102: 0 | BE102: 0 | BF102: 0 | BG102: 0 | BH102: 0 | BI102: 0 | BJ102: 0 | BK102: 0 | BL102: 0 | BM102: 0 | BN102: 0 | BO102: 0 | BP102: 0 | BQ102: 0 | BR102: 0 | BS102: 0 | BT102: 0 | BU102: 0 | BV102: 0 | BW102: 0 | BX102: 0 | BY102: 0 | BZ102: 0 | CA102: 0 | CB102: 0 | CC102: 0 | CD102: 0 | CE102: 0 | CF102: 0 | CG102: 0 | CH102: 0 | CI102: 0 | CJ102: 0 | CK102: 0 | CL102: 0 | CM102: 0 | CN102: 0 | CO102: 0 | CP102: 0 | CQ102: 0 | CR102: 0 | CS102: 0 | CT102: 0 | CU102: 0 | CV102: 0 | CW102: 0 | CX102: 0 | CY102: 0 | CZ102: 0 | DA102: 0 | DB102: 0 | DC102: 0
D103: Total Cost | E103: Euro 000's | F103: =F30*$F$87 -> 120508 | H103: 120508 | I103: 0 | J103: 0 | K103: 0 | L103: 0 | M103: 0 | N103: 0 | O103: 0 | P103: 0 | Q103: 0 | R103: 0 | S103: 0 | T103: 0 | U103: 0 | V103: 0 | W103: 0 | X103: 0 | Y103: 0 | Z103: 0 | AA103: 0 | AB103: 0 | AC103: 0 | AD103: 0 | AE103: 0 | AF103: 0 | AG103: 0 | AH103: 0 | AI103: 0 | AJ103: 0 | AK103: 0 | AL103: 0 | AM103: 0 | AN103: 0 | AO103: 0 | AP103: 0 | AQ103: 0 | AR103: 0 | AS103: 0 | AT103: 0 | AU103: 0 | AV103: 0 | AW103: 0 | AX103: 0 | AY103: 0 | AZ103: 0 | BA103: 0 | BB103: 0 | BC103: 0 | BD103: 0 | BE103: 0 | BF103: 0 | BG103: 0 | BH103: 0 | BI103: 0 | BJ103: 0 | BK103: 0 | BL103: 0 | BM103: 0 | BN103: 0 | BO103: 0 | BP103: 0 | BQ103: 0 | BR103: 0 | BS103: 0 | BT103: 0 | BU103: 0 | BV103: 0 | BW103: 0 | BX103: 0 | BY103: 0 | BZ103: 0 | CA103: 0 | CB103: 0 | CC103: 0 | CD103: 0 | CE103: 0 | CF103: 0 | CG103: 0 | CH103: 0 | CI103: 0 | CJ103: 0 | CK103: 0 | CL103: 0 | CM103: 0 | CN103: 0 | CO103: 0 | CP103: 0 | CQ103: 0 | CR103: 0 | CS103: 0 | CT103: 0 | CU103: 0 | CV103: 0 | CW103: 0 | CX103: 0 | CY103: 0 | CZ103: 0 | DA103: 0 | DB103: 0 | DC103: 0
B105: Operations and Maintenance Cost
D106: Real Variable Cost per MWH | E106: Euro/MWH | F106: =SUMPRODUCT(I35:I49*H35:H49) -> 14.9559822 | H106: =$F$106*H5 -> 0 | I106: 14.9559822 | J106: 14.9559822 | K106: 14.9559822 | L106: 14.9559822 | M106: 14.9559822 | N106: 14.9559822 | O106: 14.9559822 | P106: 14.9559822 | Q106: 14.9559822 | R106: 14.9559822 | S106: 14.9559822 | T106: 14.9559822 | U106: 14.9559822 | V106: 14.9559822 | W106: 14.9559822 | X106: 14.9559822 | Y106: 14.9559822 | Z106: 14.9559822 | AA106: 14.9559822 | AB106: 14.9559822 | AC106: 14.9559822 | AD106: 14.9559822 | AE106: 14.9559822 | AF106: 14.9559822 | AG106: 14.9559822 | AH106: 14.9559822 | AI106: 14.9559822 | AJ106: 14.9559822 | AK106: 14.9559822 | AL106: 14.9559822 | AM106: 14.9559822 | AN106: 14.9559822 | AO106: 14.9559822 | AP106: 14.9559822 | AQ106: 14.9559822 | AR106: 14.9559822 | AS106: 14.9559822 | AT106: 14.9559822 | AU106: 14.9559822 | AV106: 14.9559822 | AW106: 14.9559822 | AX106: 14.9559822 | AY106: 14.9559822 | AZ106: 14.9559822 | BA106: 14.9559822 | BB106: 14.9559822 | BC106: 14.9559822 | BD106: 14.9559822 | BE106: 14.9559822 | BF106: 14.9559822 | BG106: 14.9559822 | BH106: 14.9559822 | BI106: 14.9559822 | BJ106: 14.9559822 | BK106: 14.9559822 | BL106: 14.9559822 | BM106: 14.9559822 | BN106: 14.9559822 | BO106: 14.9559822 | BP106: 14.9559822 | BQ106: 0 | BR106: 0 | BS106: 0 | BT106: =$F$106*BT5 -> 0 | BU106: 0 | BV106: 0 | BW106: 0 | BX106: 0 | BY106: 0 | BZ106: 0 | CA106: 0 | CB106: 0 | CC106: 0 | CD106: 0 | CE106: 0 | CF106: 0 | CG106: 0 | CH106: 0 | CI106: 0 | CJ106: 0 | CK106: 0 | CL106: 0 | CM106: 0 | CN106: 0 | CO106: 0 | CP106: 0 | CQ106: 0 | CR106: 0 | CS106: 0 | CT106: 0 | CU106: 0 | CV106: 0 | CW106: 0 | CX106: 0 | CY106: 0 | CZ106: 0 | DA106: 0 | DB106: 0 | DC106: 0
D107: Real Fixed Cost per kW-year | E107: Euro/kW-yr | F107: =SUMPRODUCT(G35:G49*F35:F49) -> 0 | H107: =$F$107/2*H5 -> 0 | I107: 0 | J107: 0 | K107: 0 | L107: 0 | M107: 0 | N107: 0 | O107: 0 | P107: 0 | Q107: 0 | R107: 0 | S107: 0 | T107: 0 | U107: 0 | V107: 0 | W107: 0 | X107: 0 | Y107: 0 | Z107: 0 | AA107: 0 | AB107: 0 | AC107: 0 | AD107: 0 | AE107: 0 | AF107: 0 | AG107: 0 | AH107: 0 | AI107: 0 | AJ107: 0 | AK107: 0 | AL107: 0 | AM107: 0 | AN107: 0 | AO107: 0 | AP107: 0 | AQ107: 0 | AR107: 0 | AS107: 0 | AT107: 0 | AU107: 0 | AV107: 0 | AW107: 0 | AX107: 0 | AY107: 0 | AZ107: 0 | BA107: 0 | BB107: 0 | BC107: 0 | BD107: 0 | BE107: 0 | BF107: 0 | BG107: 0 | BH107: 0 | BI107: 0 | BJ107: 0 | BK107: 0 | BL107: 0 | BM107: 0 | BN107: 0 | BO107: 0 | BP107: 0 | BQ107: 0 | BR107: 0 | BS107: 0 | BT107: =$F$107/2*BT5 -> 0 | BU107: 0 | BV107: 0 | BW107: 0 | BX107: 0 | BY107: 0 | BZ107: 0 | CA107: 0 | CB107: 0 | CC107: 0 | CD107: 0 | CE107: 0 | CF107: 0 | CG107: 0 | CH107: 0 | CI107: 0 | CJ107: 0 | CK107: 0 | CL107: 0 | CM107: 0 | CN107: 0 | CO107: 0 | CP107: 0 | CQ107: 0 | CR107: 0 | CS107: 0 | CT107: 0 | CU107: 0 | CV107: 0 | CW107: 0 | CX107: 0 | CY107: 0 | CZ107: 0 | DA107: 0 | DB107: 0 | DC107: 0
D109: Inflation Rate | E109: % | F109: =F32 -> 0.025 | H109: =(1+$F$109)^(1/2)-1 -> 0.01242283657 | I109: =(1+$F$109)^(1/2)-1 -> 0.01242283657 | J109: 0.01242283657 | K109: 0.01242283657 | L109: 0.01242283657 | M109: 0.01242283657 | N109: 0.01242283657 | O109: 0.01242283657 | P109: 0.01242283657 | Q109: 0.01242283657 | R109: 0.01242283657 | S109: 0.01242283657 | T109: 0.01242283657 | U109: 0.01242283657 | V109: 0.01242283657 | W109: 0.01242283657 | X109: 0.01242283657 | Y109: 0.01242283657 | Z109: 0.01242283657 | AA109: 0.01242283657 | AB109: 0.01242283657 | AC109: 0.01242283657 | AD109: 0.01242283657 | AE109: 0.01242283657 | AF109: 0.01242283657 | AG109: 0.01242283657 | AH109: 0.01242283657 | AI109: 0.01242283657 | AJ109: 0.01242283657 | AK109: 0.01242283657 | AL109: 0.01242283657 | AM109: 0.01242283657 | AN109: 0.01242283657 | AO109: 0.01242283657 | AP109: 0.01242283657 | AQ109: 0.01242283657 | AR109: 0.01242283657 | AS109: 0.01242283657 | AT109: 0.01242283657 | AU109: 0.01242283657 | AV109: 0.01242283657 | AW109: 0.01242283657 | AX109: 0.01242283657 | AY109: 0.01242283657 | AZ109: 0.01242283657 | BA109: 0.01242283657 | BB109: 0.01242283657 | BC109: 0.01242283657 | BD109: 0.01242283657 | BE109: 0.01242283657 | BF109: 0.01242283657 | BG109: 0.01242283657 | BH109: 0.01242283657 | BI109: 0.01242283657 | BJ109: 0.01242283657 | BK109: 0.01242283657 | BL109: 0.01242283657 | BM109: 0.01242283657 | BN109: 0.01242283657 | BO109: 0.01242283657 | BP109: 0.01242283657 | BQ109: 0.01242283657 | BR109: 0.01242283657 | BS109: 0.01242283657 | BT109: 0.01242283657 | BU109: =(1+$F$109)^(1/2)-1 -> 0.01242283657 | BV109: 0.01242283657 | BW109: 0.01242283657 | BX109: 0.01242283657 | BY109: 0.01242283657 | BZ109: 0.01242283657 | CA109: 0.01242283657 | CB109: 0.01242283657 | CC109: 0.01242283657 | CD109: 0.01242283657 | CE109: 0.01242283657 | CF109: 0.01242283657 | CG109: 0.01242283657 | CH109: 0.01242283657 | CI109: 0.01242283657 | CJ109: 0.01242283657 | CK109: 0.01242283657 | CL109: 0.01242283657 | CM109: 0.01242283657 | CN109: 0.01242283657 | CO109: 0.01242283657 | CP109: 0.01242283657 | CQ109: 0.01242283657 | CR109: 0.01242283657 | CS109: 0.01242283657 | CT109: 0.01242283657 | CU109: 0.01242283657 | CV109: 0.01242283657 | CW109: 0.01242283657 | CX109: 0.01242283657 | CY109: 0.01242283657 | CZ109: 0.01242283657 | DA109: 0.01242283657 | DB109: 0.01242283657 | DC109: 0.01242283657
D110: Inflation Index | E110: Index | G110: 1 | H110: =G110*(1+H109*H5) -> 1 | I110: 1.012422837 | J110: 1.025 | K110: 1.037733407 | L110: 1.050625 | M110: 1.063676743 | N110: 1.076890625 | O110: 1.090268661 | P110: 1.103812891 | Q110: 1.117525378 | R110: 1.131408213 | S110: 1.145463512 | T110: 1.159693418 | U110: 1.1741001 | V110: 1.188685754 | W110: 1.203452603 | X110: 1.218402898 | Y110: 1.233538918 | Z110: 1.24886297 | AA110: 1.264377391 | AB110: 1.280084544 | AC110: 1.295986825 | AD110: 1.312086658 | AE110: 1.328386496 | AF110: 1.344888824 | AG110: 1.361596158 | AH110: 1.378511045 | AI110: 1.395636062 | AJ110: 1.412973821 | AK110: 1.430526964 | AL110: 1.448298166 | AM110: 1.466290138 | AN110: 1.484505621 | AO110: 1.502947391 | AP110: 1.521618261 | AQ110: 1.540521076 | AR110: 1.559658718 | AS110: 1.579034103 | AT110: 1.598650186 | AU110: 1.618509956 | AV110: 1.63861644 | AW110: 1.658972705 | AX110: 1.679581851 | AY110: 1.700447022 | AZ110: 1.721571398 | BA110: 1.742958198 | BB110: 1.764610683 | BC110: 1.786532153 | BD110: 1.80872595 | BE110: 1.831195456 | BF110: 1.853944098 | BG110: 1.876975343 | BH110: 1.900292701 | BI110: 1.923899726 | BJ110: 1.947800018 | BK110: 1.97199722 | BL110: 1.996495019 | BM110: 2.02129715 | BN110: 2.046407394 | BO110: 2.071829579 | BP110: 2.097567579 | BQ110: 2.097567579 | BR110: 2.097567579 | BS110: 2.097567579 | BT110: =BS110*(1+BT109*BT5) -> 2.097567579 | BU110: 2.097567579 | BV110: 2.097567579 | BW110: 2.097567579 | BX110: 2.097567579 | BY110: 2.097567579 | BZ110: 2.097567579 | CA110: 2.097567579 | CB110: 2.097567579 | CC110: 2.097567579 | CD110: 2.097567579 | CE110: 2.097567579 | CF110: 2.097567579 | CG110: 2.097567579 | CH110: 2.097567579 | CI110: 2.097567579 | CJ110: 2.097567579 | CK110: 2.097567579 | CL110: 2.097567579 | CM110: 2.097567579 | CN110: 2.097567579 | CO110: 2.097567579 | CP110: 2.097567579 | CQ110: 2.097567579 | CR110: 2.097567579 | CS110: 2.097567579 | CT110: 2.097567579 | CU110: 2.097567579 | CV110: 2.097567579 | CW110: 2.097567579 | CX110: 2.097567579 | CY110: 2.097567579 | CZ110: 2.097567579 | DA110: 2.097567579 | DB110: 2.097567579 | DC110: 2.097567579
D112: Nominal Variable Cost per MWH | H112: =H106*H110 -> 0 | I112: =I106*I110 -> 15.14177793 | J112: 15.32988176 | K112: 15.52032237 | L112: 15.7131288 | M112: 15.90833043 | N112: 16.10595702 | O112: 16.3060387 | P112: 16.50860595 | Q112: 16.71368966 | R112: 16.9213211 | S112: 17.1315319 | T112: 17.34435412 | U112: 17.5598202 | V112: 17.77796298 | W112: 17.99881571 | X112: 18.22241205 | Y112: 18.4487861 | Z112: 18.67797235 | AA112: 18.91000575 | AB112: 19.14492166 | AC112: 19.3827559 | AD112: 19.6235447 | AE112: 19.86732479 | AF112: 20.11413332 | AG112: 20.36400791 | AH112: 20.61698665 | AI112: 20.87310811 | AJ112: 21.13241132 | AK112: 21.39493581 | AL112: 21.6607216 | AM112: 21.92980921 | AN112: 22.20223964 | AO112: 22.47805444 | AP112: 22.75729564 | AQ112: 23.0400058 | AR112: 23.32622803 | AS112: 23.61600594 | AT112: 23.90938373 | AU112: 24.20640609 | AV112: 24.50711832 | AW112: 24.81156625 | AX112: 25.11979628 | AY112: 25.4318554 | AZ112: 25.74779119 | BA112: 26.06765179 | BB112: 26.39148596 | BC112: 26.71934308 | BD112: 27.05127311 | BE112: 27.38732666 | BF112: 27.72755494 | BG112: 28.07200983 | BH112: 28.42074382 | BI112: 28.77381007 | BJ112: 29.13126241 | BK112: 29.49315532 | BL112: 29.85954397 | BM112: 30.23048421 | BN112: 30.60603257 | BO112: 30.98624631 | BP112: 31.37118338 | BQ112: 0 | BR112: 0 | BS112: 0 | BT112: 0 | BU112: =BU106*BU110 -> 0 | BV112: 0 | BW112: 0 | BX112: 0 | BY112: 0 | BZ112: 0 | CA112: 0 | CB112: 0 | CC112: 0 | CD112: 0 | CE112: 0 | CF112: 0 | CG112: 0 | CH112: 0 | CI112: 0 | CJ112: 0 | CK112: 0 | CL112: 0 | CM112: 0 | CN112: 0 | CO112: 0 | CP112: 0 | CQ112: 0 | CR112: 0 | CS112: 0 | CT112: 0 | CU112: 0 | CV112: 0 | CW112: 0 | CX112: 0 | CY112: 0 | CZ112: 0 | DA112: 0 | DB112: 0 | DC112: 0
D113: Nominal Fixed Cost per kW-year | H113: =H107*H110 -> 0 | I113: =I107*I110 -> 0 | J113: 0 | K113: 0 | L113: 0 | M113: 0 | N113: 0 | O113: 0 | P113: 0 | Q113: 0 | R113: 0 | S113: 0 | T113: 0 | U113: 0 | V113: 0 | W113: 0 | X113: 0 | Y113: 0 | Z113: 0 | AA113: 0 | AB113: 0 | AC113: 0 | AD113: 0 | AE113: 0 | AF113: 0 | AG113: 0 | AH113: 0 | AI113: 0 | AJ113: 0 | AK113: 0 | AL113: 0 | AM113: 0 | AN113: 0 | AO113: 0 | AP113: 0 | AQ113: 0 | AR113: 0 | AS113: 0 | AT113: 0 | AU113: 0 | AV113: 0 | AW113: 0 | AX113: 0 | AY113: 0 | AZ113: 0 | BA113: 0 | BB113: 0 | BC113: 0 | BD113: 0 | BE113: 0 | BF113: 0 | BG113: 0 | BH113: 0 | BI113: 0 | BJ113: 0 | BK113: 0 | BL113: 0 | BM113: 0 | BN113: 0 | BO113: 0 | BP113: 0 | BQ113: 0 | BR113: 0 | BS113: 0 | BT113: 0 | BU113: =BU107*BU110 -> 0 | BV113: 0 | BW113: 0 | BX113: 0 | BY113: 0 | BZ113: 0 | CA113: 0 | CB113: 0 | CC113: 0 | CD113: 0 | CE113: 0 | CF113: 0 | CG113: 0 | CH113: 0 | CI113: 0 | CJ113: 0 | CK113: 0 | CL113: 0 | CM113: 0 | CN113: 0 | CO113: 0 | CP113: 0 | CQ113: 0 | CR113: 0 | CS113: 0 | CT113: 0 | CU113: 0 | CV113: 0 | CW113: 0 | CX113: 0 | CY113: 0 | CZ113: 0 | DA113: 0 | DB113: 0 | DC113: 0
D115: Inflated Variable Cost | E115: Euro 000's | H115: =H97*H106*H110/1000 -> 0 | I115: 2553.551342 | J115: 2628.123533 | K115: 2617.390126 | L115: 2693.826622 | M115: 2682.824879 | N115: 2761.172287 | O115: 2765.088293 | P115: 2830.201594 | Q115: 2818.642888 | R115: 2900.956634 | S115: 2889.10896 | T115: 2973.48055 | U115: 2961.336684 | V115: 3047.817564 | W115: 3052.140102 | X115: 3124.013003 | Y115: 3111.254354 | Z115: 3202.113328 | AA115: 3189.035713 | AB115: 3282.166161 | AC115: 3268.761606 | AD115: 3364.220315 | AE115: 3368.991589 | AF115: 3448.325823 | AG115: 3434.242662 | AH115: 3534.533969 | AI115: 3520.098729 | AJ115: 3622.897318 | AK115: 3608.101197 | AL115: 3713.469751 | AM115: 3718.736344 | AN115: 3806.306494 | AO115: 3790.76132 | AP115: 3901.464157 | AQ115: 3885.530353 | AR115: 3999.000761 | AS115: 3982.668612 | AT115: 4098.97578 | AU115: 4104.789113 | AV115: 4201.450174 | AW115: 4184.29121 | AX115: 4306.486429 | AY115: 4288.89849 | AZ115: 4414.148589 | BA115: 4396.120953 | BB115: 4524.502304 | BC115: 4530.919137 | BD115: 4637.614862 | BE115: 4618.674576 | BF115: 4753.555233 | BG115: 4734.14144 | BH115: 4872.394114 | BI115: 4852.494976 | BJ115: 4994.203967 | BK115: 5001.286949 | BL115: 5119.059066 | BM115: 5098.152534 | BN115: 5247.035543 | BO115: 5225.606348 | BP115: 5378.211431 | BQ115: 0 | BR115: 0 | BS115: 0 | BT115: =BT97*BT106*BT110/1000 -> 0 | BU115: 0 | BV115: 0 | BW115: 0 | BX115: 0 | BY115: 0 | BZ115: 0 | CA115: 0 | CB115: 0 | CC115: 0 | CD115: 0 | CE115: 0 | CF115: 0 | CG115: 0 | CH115: 0 | CI115: 0 | CJ115: 0 | CK115: 0 | CL115: 0 | CM115: 0 | CN115: 0 | CO115: 0 | CP115: 0 | CQ115: 0 | CR115: 0 | CS115: 0 | CT115: 0 | CU115: 0 | CV115: 0 | CW115: 0 | CX115: 0 | CY115: 0 | CZ115: 0 | DA115: 0 | DB115: 0 | DC115: 0
D116: Inflated Fixed Cost | E116: Euro 000's | H116: =H87*H107*H110 -> 0 | I116: 0 | J116: 0 | K116: 0 | L116: 0 | M116: 0 | N116: 0 | O116: 0 | P116: 0 | Q116: 0 | R116: 0 | S116: 0 | T116: 0 | U116: 0 | V116: 0 | W116: 0 | X116: 0 | Y116: 0 | Z116: 0 | AA116: 0 | AB116: 0 | AC116: 0 | AD116: 0 | AE116: 0 | AF116: 0 | AG116: 0 | AH116: 0 | AI116: 0 | AJ116: 0 | AK116: 0 | AL116: 0 | AM116: 0 | AN116: 0 | AO116: 0 | AP116: 0 | AQ116: 0 | AR116: 0 | AS116: 0 | AT116: 0 | AU116: 0 | AV116: 0 | AW116: 0 | AX116: 0 | AY116: 0 | AZ116: 0 | BA116: 0 | BB116: 0 | BC116: 0 | BD116: 0 | BE116: 0 | BF116: 0 | BG116: 0 | BH116: 0 | BI116: 0 | BJ116: 0 | BK116: 0 | BL116: 0 | BM116: 0 | BN116: 0 | BO116: 0 | BP116: 0 | BQ116: 0 | BR116: 0 | BS116: 0 | BT116: =BT87*BT107*BT110 -> 0 | BU116: 0 | BV116: 0 | BW116: 0 | BX116: 0 | BY116: 0 | BZ116: 0 | CA116: 0 | CB116: 0 | CC116: 0 | CD116: 0 | CE116: 0 | CF116: 0 | CG116: 0 | CH116: 0 | CI116: 0 | CJ116: 0 | CK116: 0 | CL116: 0 | CM116: 0 | CN116: 0 | CO116: 0 | CP116: 0 | CQ116: 0 | CR116: 0 | CS116: 0 | CT116: 0 | CU116: 0 | CV116: 0 | CW116: 0 | CX116: 0 | CY116: 0 | CZ116: 0 | DA116: 0 | DB116: 0 | DC116: 0
D117: Total O&M Cost | E117: Euro 000's | H117: =SUM(H115:H116) -> 0 | I117: =SUM(I115:I116) -> 2553.551342 | J117: 2628.123533 | K117: 2617.390126 | L117: 2693.826622 | M117: 2682.824879 | N117: 2761.172287 | O117: 2765.088293 | P117: 2830.201594 | Q117: 2818.642888 | R117: 2900.956634 | S117: 2889.10896 | T117: 2973.48055 | U117: 2961.336684 | V117: 3047.817564 | W117: 3052.140102 | X117: 3124.013003 | Y117: 3111.254354 | Z117: 3202.113328 | AA117: 3189.035713 | AB117: 3282.166161 | AC117: 3268.761606 | AD117: 3364.220315 | AE117: 3368.991589 | AF117: 3448.325823 | AG117: 3434.242662 | AH117: 3534.533969 | AI117: 3520.098729 | AJ117: 3622.897318 | AK117: 3608.101197 | AL117: 3713.469751 | AM117: 3718.736344 | AN117: 3806.306494 | AO117: 3790.76132 | AP117: 3901.464157 | AQ117: 3885.530353 | AR117: 3999.000761 | AS117: 3982.668612 | AT117: 4098.97578 | AU117: 4104.789113 | AV117: 4201.450174 | AW117: 4184.29121 | AX117: 4306.486429 | AY117: 4288.89849 | AZ117: 4414.148589 | BA117: 4396.120953 | BB117: 4524.502304 | BC117: 4530.919137 | BD117: 4637.614862 | BE117: 4618.674576 | BF117: 4753.555233 | BG117: 4734.14144 | BH117: 4872.394114 | BI117: 4852.494976 | BJ117: 4994.203967 | BK117: 5001.286949 | BL117: 5119.059066 | BM117: 5098.152534 | BN117: 5247.035543 | BO117: 5225.606348 | BP117: 5378.211431 | BQ117: 0 | BR117: 0 | BS117: 0 | BT117: 0 | BU117: =SUM(BU115:BU116) -> 0 | BV117: 0 | BW117: 0 | BX117: 0 | BY117: 0 | BZ117: 0 | CA117: 0 | CB117: 0 | CC117: 0 | CD117: 0 | CE117: 0 | CF117: 0 | CG117: 0 | CH117: 0 | CI117: 0 | CJ117: 0 | CK117: 0 | CL117: 0 | CM117: 0 | CN117: 0 | CO117: 0 | CP117: 0 | CQ117: 0 | CR117: 0 | CS117: 0 | CT117: 0 | CU117: 0 | CV117: 0 | CW117: 0 | CX117: 0 | CY117: 0 | CZ117: 0 | DA117: 0 | DB117: 0 | DC117: 0
B119: Revenues and PPA
C120: PPA Contract
D121: Base Price | E121: USD/MWH | F121: =F53 -> 32.91300051 | H121: =$F$121*H5 -> 0 | I121: 32.91300051 | J121: 32.91300051 | K121: 32.91300051 | L121: 32.91300051 | M121: 32.91300051 | N121: 32.91300051 | O121: 32.91300051 | P121: 32.91300051 | Q121: 32.91300051 | R121: 32.91300051 | S121: 32.91300051 | T121: 32.91300051 | U121: 32.91300051 | V121: 32.91300051 | W121: 32.91300051 | X121: 32.91300051 | Y121: 32.91300051 | Z121: 32.91300051 | AA121: 32.91300051 | AB121: 32.91300051 | AC121: 32.91300051 | AD121: 32.91300051 | AE121: 32.91300051 | AF121: 32.91300051 | AG121: 32.91300051 | AH121: 32.91300051 | AI121: 32.91300051 | AJ121: 32.91300051 | AK121: 32.91300051 | AL121: 32.91300051 | AM121: 32.91300051 | AN121: 32.91300051 | AO121: 32.91300051 | AP121: 32.91300051 | AQ121: 32.91300051 | AR121: 32.91300051 | AS121: 32.91300051 | AT121: 32.91300051 | AU121: 32.91300051 | AV121: 32.91300051 | AW121: 32.91300051 | AX121: 32.91300051 | AY121: 32.91300051 | AZ121: 32.91300051 | BA121: 32.91300051 | BB121: 32.91300051 | BC121: 32.91300051 | BD121: 32.91300051 | BE121: 32.91300051 | BF121: 32.91300051 | BG121: 32.91300051 | BH121: 32.91300051 | BI121: 32.91300051 | BJ121: 32.91300051 | BK121: 32.91300051 | BL121: 32.91300051 | BM121: 32.91300051 | BN121: 32.91300051 | BO121: 32.91300051 | BP121: 32.91300051 | BQ121: 0 | BR121: 0 | BS121: 0 | BT121: =$F$121*BT5 -> 0 | BU121: 0 | BV121: 0 | BW121: 0 | BX121: 0 | BY121: 0 | BZ121: 0 | CA121: 0 | CB121: 0 | CC121: 0 | CD121: 0 | CE121: 0 | CF121: 0 | CG121: 0 | CH121: 0 | CI121: 0 | CJ121: 0 | CK121: 0 | CL121: 0 | CM121: 0 | CN121: 0 | CO121: 0 | CP121: 0 | CQ121: 0 | CR121: 0 | CS121: 0 | CT121: 0 | CU121: 0 | CV121: 0 | CW121: 0 | CX121: 0 | CY121: 0 | CZ121: 0 | DA121: 0 | DB121: 0 | DC121: 0
D122: Inflation Index/Applied | E122: Index | F122: =F54 -> TRUE | H122: =IF($F$122,H110,1) -> 1 | I122: =IF($F$122,I110,1) -> 1.012422837 | J122: 1.025 | K122: 1.037733407 | L122: 1.050625 | M122: 1.063676743 | N122: 1.076890625 | O122: 1.090268661 | P122: 1.103812891 | Q122: 1.117525378 | R122: 1.131408213 | S122: 1.145463512 | T122: 1.159693418 | U122: 1.1741001 | V122: 1.188685754 | W122: 1.203452603 | X122: 1.218402898 | Y122: 1.233538918 | Z122: 1.24886297 | AA122: 1.264377391 | AB122: 1.280084544 | AC122: 1.295986825 | AD122: 1.312086658 | AE122: 1.328386496 | AF122: 1.344888824 | AG122: 1.361596158 | AH122: 1.378511045 | AI122: 1.395636062 | AJ122: 1.412973821 | AK122: 1.430526964 | AL122: 1.448298166 | AM122: 1.466290138 | AN122: 1.484505621 | AO122: 1.502947391 | AP122: 1.521618261 | AQ122: 1.540521076 | AR122: 1.559658718 | AS122: 1.579034103 | AT122: 1.598650186 | AU122: 1.618509956 | AV122: 1.63861644 | AW122: 1.658972705 | AX122: 1.679581851 | AY122: 1.700447022 | AZ122: 1.721571398 | BA122: 1.742958198 | BB122: 1.764610683 | BC122: 1.786532153 | BD122: 1.80872595 | BE122: 1.831195456 | BF122: 1.853944098 | BG122: 1.876975343 | BH122: 1.900292701 | BI122: 1.923899726 | BJ122: 1.947800018 | BK122: 1.97199722 | BL122: 1.996495019 | BM122: 2.02129715 | BN122: 2.046407394 | BO122: 2.071829579 | BP122: 2.097567579 | BQ122: 2.097567579 | BR122: 2.097567579 | BS122: 2.097567579 | BT122: 2.097567579 | BU122: =IF($F$122,BU110,1) -> 2.097567579 | BV122: 2.097567579 | BW122: 2.097567579 | BX122: 2.097567579 | BY122: 2.097567579 | BZ122: 2.097567579 | CA122: 2.097567579 | CB122: 2.097567579 | CC122: 2.097567579 | CD122: 2.097567579 | CE122: 2.097567579 | CF122: 2.097567579 | CG122: 2.097567579 | CH122: 2.097567579 | CI122: 2.097567579 | CJ122: 2.097567579 | CK122: 2.097567579 | CL122: 2.097567579 | CM122: 2.097567579 | CN122: 2.097567579 | CO122: 2.097567579 | CP122: 2.097567579 | CQ122: 2.097567579 | CR122: 2.097567579 | CS122: 2.097567579 | CT122: 2.097567579 | CU122: 2.097567579 | CV122: 2.097567579 | CW122: 2.097567579 | CX122: 2.097567579 | CY122: 2.097567579 | CZ122: 2.097567579 | DA122: 2.097567579 | DB122: 2.097567579 | DC122: 2.097567579
D123: Inflated Price | E123: USD/MWH | H123: =H121*H122 -> 0 | I123: =I121*I122 -> 33.32187334 | J123: 33.73582553 | K123: 34.15492017 | L123: 34.57922116 | M123: 35.00879318 | N123: 35.44370169 | O123: 35.88401301 | P123: 36.32979424 | Q123: 36.78111333 | R123: 37.23803909 | S123: 37.70064116 | T123: 38.16899007 | U123: 38.64315719 | V123: 39.12321482 | W123: 39.60923612 | X123: 40.10129519 | Y123: 40.59946703 | Z123: 41.10382757 | AA123: 41.6144537 | AB123: 42.13142326 | AC123: 42.65481505 | AD123: 43.18470884 | AE123: 43.72118542 | AF123: 44.26432656 | AG123: 44.81421506 | AH123: 45.37093473 | AI123: 45.93457043 | AJ123: 46.50520809 | AK123: 47.08293469 | AL123: 47.6678383 | AM123: 48.26000806 | AN123: 48.85953425 | AO123: 49.46650826 | AP123: 50.08102261 | AQ123: 50.70317097 | AR123: 51.33304818 | AS123: 51.97075024 | AT123: 52.61637438 | AU123: 53.270019 | AV123: 53.93178374 | AW123: 54.60176947 | AX123: 55.28007833 | AY123: 55.96681371 | AZ123: 56.66208029 | BA123: 57.36598405 | BB123: 58.0786323 | BC123: 58.80013366 | BD123: 59.53059811 | BE123: 60.270137 | BF123: 61.01886306 | BG123: 61.77689042 | BH123: 62.54433464 | BI123: 63.32131268 | BJ123: 64.107943 | BK123: 64.9043455 | BL123: 65.71064158 | BM123: 66.52695414 | BN123: 67.35340762 | BO123: 68.19012799 | BP123: 69.03724281 | BQ123: 0 | BR123: 0 | BS123: 0 | BT123: 0 | BU123: =BU121*BU122 -> 0 | BV123: 0 | BW123: 0 | BX123: 0 | BY123: 0 | BZ123: 0 | CA123: 0 | CB123: 0 | CC123: 0 | CD123: 0 | CE123: 0 | CF123: 0 | CG123: 0 | CH123: 0 | CI123: 0 | CJ123: 0 | CK123: 0 | CL123: 0 | CM123: 0 | CN123: 0 | CO123: 0 | CP123: 0 | CQ123: 0 | CR123: 0 | CS123: 0 | CT123: 0 | CU123: 0 | CV123: 0 | CW123: 0 | CX123: 0 | CY123: 0 | CZ123: 0 | DA123: 0 | DB123: 0 | DC123: 0
D124: Revenues | E124: Euro 000's | H124: =H123*H97/1000 -> 0 | I124: 5619.492955 | J124: 5783.600837 | K124: 5759.980279 | L124: 5928.190858 | M124: 5903.979786 | N124: 6076.39563 | O124: 6085.01342 | P124: 6228.30552 | Q124: 6202.868762 | R124: 6384.013158 | S124: 6357.940481 | T124: 6543.613487 | U124: 6516.888993 | V124: 6707.203824 | W124: 6716.716253 | X124: 6874.88392 | Y124: 6846.806499 | Z124: 7046.756018 | AA124: 7017.976661 | AB124: 7222.924918 | AC124: 7193.426078 | AD124: 7403.498041 | AE124: 7413.997982 | AF124: 7588.585492 | AG124: 7557.593273 | AH124: 7778.30013 | AI124: 7746.533105 | AJ124: 7972.757633 | AK124: 7940.196432 | AL124: 8172.076574 | AM124: 8183.666544 | AN124: 8376.378488 | AO124: 8342.168877 | AP124: 8585.78795 | AQ124: 8550.723099 | AR124: 8800.432649 | AS124: 8764.491176 | AT124: 9020.443465 | AU124: 9033.236624 | AV124: 9245.954552 | AW124: 9208.193542 | AX124: 9477.103416 | AY124: 9438.39838 | AZ124: 9714.031001 | BA124: 9674.35834 | BB124: 9956.881776 | BC124: 9971.003029 | BD124: 10205.80382 | BE124: 10164.12273 | BF124: 10460.94892 | BG124: 10418.2258 | BH124: 10722.47264 | BI124: 10678.68144 | BJ124: 10990.53446 | BK124: 11006.12168 | BL124: 11265.29782 | BM124: 11219.28969 | BN124: 11546.93026 | BO124: 11499.77193 | BP124: 11835.60352 | BQ124: 0 | BR124: 0 | BS124: 0 | BT124: =BT123*BT97/1000 -> 0 | BU124: 0 | BV124: 0 | BW124: 0 | BX124: 0 | BY124: 0 | BZ124: 0 | CA124: 0 | CB124: 0 | CC124: 0 | CD124: 0 | CE124: 0 | CF124: 0 | CG124: 0 | CH124: 0 | CI124: 0 | CJ124: 0 | CK124: 0 | CL124: 0 | CM124: 0 | CN124: 0 | CO124: 0 | CP124: 0 | CQ124: 0 | CR124: 0 | CS124: 0 | CT124: 0 | CU124: 0 | CV124: 0 | CW124: 0 | CX124: 0 | CY124: 0 | CZ124: 0 | DA124: 0 | DB124: 0 | DC124: 0
A126: Pre-tax Cash Flow and IRR
D127: Revenues | E127: Euro 000's | H127: =H124 -> 0 | I127: =I124 -> 5619.492955 | J127: 5783.600837 | K127: 5759.980279 | L127: 5928.190858 | M127: 5903.979786 | N127: 6076.39563 | O127: 6085.01342 | P127: 6228.30552 | Q127: 6202.868762 | R127: 6384.013158 | S127: 6357.940481 | T127: 6543.613487 | U127: 6516.888993 | V127: 6707.203824 | W127: 6716.716253 | X127: 6874.88392 | Y127: 6846.806499 | Z127: 7046.756018 | AA127: 7017.976661 | AB127: 7222.924918 | AC127: 7193.426078 | AD127: 7403.498041 | AE127: 7413.997982 | AF127: 7588.585492 | AG127: 7557.593273 | AH127: 7778.30013 | AI127: 7746.533105 | AJ127: 7972.757633 | AK127: 7940.196432 | AL127: 8172.076574 | AM127: 8183.666544 | AN127: 8376.378488 | AO127: 8342.168877 | AP127: 8585.78795 | AQ127: 8550.723099 | AR127: 8800.432649 | AS127: 8764.491176 | AT127: 9020.443465 | AU127: 9033.236624 | AV127: 9245.954552 | AW127: 9208.193542 | AX127: 9477.103416 | AY127: 9438.39838 | AZ127: 9714.031001 | BA127: 9674.35834 | BB127: 9956.881776 | BC127: 9971.003029 | BD127: 10205.80382 | BE127: 10164.12273 | BF127: 10460.94892 | BG127: 10418.2258 | BH127: 10722.47264 | BI127: 10678.68144 | BJ127: 10990.53446 | BK127: 11006.12168 | BL127: 11265.29782 | BM127: 11219.28969 | BN127: 11546.93026 | BO127: 11499.77193 | BP127: 11835.60352 | BQ127: 0 | BR127: 0 | BS127: 0 | BT127: 0 | BU127: =BU124 -> 0 | BV127: 0 | BW127: 0 | BX127: 0 | BY127: 0 | BZ127: 0 | CA127: 0 | CB127: 0 | CC127: 0 | CD127: 0 | CE127: 0 | CF127: 0 | CG127: 0 | CH127: 0 | CI127: 0 | CJ127: 0 | CK127: 0 | CL127: 0 | CM127: 0 | CN127: 0 | CO127: 0 | CP127: 0 | CQ127: 0 | CR127: 0 | CS127: 0 | CT127: 0 | CU127: 0 | CV127: 0 | CW127: 0 | CX127: 0 | CY127: 0 | CZ127: 0 | DA127: 0 | DB127: 0 | DC127: 0
D128: Total O&M costs | E128: Euro 000's | H128: =H117 -> 0 | I128: =I117 -> 2553.551342 | J128: 2628.123533 | K128: 2617.390126 | L128: 2693.826622 | M128: 2682.824879 | N128: 2761.172287 | O128: 2765.088293 | P128: 2830.201594 | Q128: 2818.642888 | R128: 2900.956634 | S128: 2889.10896 | T128: 2973.48055 | U128: 2961.336684 | V128: 3047.817564 | W128: 3052.140102 | X128: 3124.013003 | Y128: 3111.254354 | Z128: 3202.113328 | AA128: 3189.035713 | AB128: 3282.166161 | AC128: 3268.761606 | AD128: 3364.220315 | AE128: 3368.991589 | AF128: 3448.325823 | AG128: 3434.242662 | AH128: 3534.533969 | AI128: 3520.098729 | AJ128: 3622.897318 | AK128: 3608.101197 | AL128: 3713.469751 | AM128: 3718.736344 | AN128: 3806.306494 | AO128: 3790.76132 | AP128: 3901.464157 | AQ128: 3885.530353 | AR128: 3999.000761 | AS128: 3982.668612 | AT128: 4098.97578 | AU128: 4104.789113 | AV128: 4201.450174 | AW128: 4184.29121 | AX128: 4306.486429 | AY128: 4288.89849 | AZ128: 4414.148589 | BA128: 4396.120953 | BB128: 4524.502304 | BC128: 4530.919137 | BD128: 4637.614862 | BE128: 4618.674576 | BF128: 4753.555233 | BG128: 4734.14144 | BH128: 4872.394114 | BI128: 4852.494976 | BJ128: 4994.203967 | BK128: 5001.286949 | BL128: 5119.059066 | BM128: 5098.152534 | BN128: 5247.035543 | BO128: 5225.606348 | BP128: 5378.211431 | BQ128: 0 | BR128: 0 | BS128: 0 | BT128: 0 | BU128: =BU117 -> 0 | BV128: 0 | BW128: 0 | BX128: 0 | BY128: 0 | BZ128: 0 | CA128: 0 | CB128: 0 | CC128: 0 | CD128: 0 | CE128: 0 | CF128: 0 | CG128: 0 | CH128: 0 | CI128: 0 | CJ128: 0 | CK128: 0 | CL128: 0 | CM128: 0 | CN128: 0 | CO128: 0 | CP128: 0 | CQ128: 0 | CR128: 0 | CS128: 0 | CT128: 0 | CU128: 0 | CV128: 0 | CW128: 0 | CX128: 0 | CY128: 0 | CZ128: 0 | DA128: 0 | DB128: 0 | DC128: 0
D129: EBITDA | E129: Euro 000's | H129: =H127-H128 -> 0 | I129: =I127-I128 -> 3065.941613 | J129: 3155.477304 | K129: 3142.590153 | L129: 3234.364237 | M129: 3221.154907 | N129: 3315.223342 | O129: 3319.925127 | P129: 3398.103926 | Q129: 3384.225874 | R129: 3483.056524 | S129: 3468.831521 | T129: 3570.132937 | U129: 3555.552309 | V129: 3659.386261 | W129: 3664.576151 | X129: 3750.870917 | Y129: 3735.552145 | Z129: 3844.64269 | AA129: 3828.940948 | AB129: 3940.758757 | AC129: 3924.664472 | AD129: 4039.277726 | AE129: 4045.006394 | AF129: 4140.25967 | AG129: 4123.350611 | AH129: 4243.766161 | AI129: 4226.434376 | AJ129: 4349.860315 | AK129: 4332.095236 | AL129: 4458.606823 | AM129: 4464.9302 | AN129: 4570.071994 | AO129: 4551.407557 | AP129: 4684.323794 | AQ129: 4665.192746 | AR129: 4801.431888 | AS129: 4781.822564 | AT129: 4921.467686 | AU129: 4928.447511 | AV129: 5044.504378 | AW129: 5023.902332 | AX129: 5170.616987 | AY129: 5149.49989 | AZ129: 5299.882412 | BA129: 5278.237387 | BB129: 5432.379472 | BC129: 5440.083893 | BD129: 5568.188959 | BE129: 5545.448155 | BF129: 5707.393683 | BG129: 5684.084359 | BH129: 5850.078525 | BI129: 5826.186468 | BJ129: 5996.330488 | BK129: 6004.834727 | BL129: 6146.23875 | BM129: 6121.137158 | BN129: 6299.894719 | BO129: 6274.165587 | BP129: 6457.392087 | BQ129: 0 | BR129: 0 | BS129: 0 | BT129: 0 | BU129: =BU127-BU128 -> 0 | BV129: 0 | BW129: 0 | BX129: 0 | BY129: 0 | BZ129: 0 | CA129: 0 | CB129: 0 | CC129: 0 | CD129: 0 | CE129: 0 | CF129: 0 | CG129: 0 | CH129: 0 | CI129: 0 | CJ129: 0 | CK129: 0 | CL129: 0 | CM129: 0 | CN129: 0 | CO129: 0 | CP129: 0 | CQ129: 0 | CR129: 0 | CS129: 0 | CT129: 0 | CU129: 0 | CV129: 0 | CW129: 0 | CX129: 0 | CY129: 0 | CZ129: 0 | DA129: 0 | DB129: 0 | DC129: 0
D130: CAPEX | E130: Euro 000's | H130: =H103 -> 120508 | I130: =I103 -> 0 | J130: 0 | K130: 0 | L130: 0 | M130: 0 | N130: 0 | O130: 0 | P130: 0 | Q130: 0 | R130: 0 | S130: 0 | T130: 0 | U130: 0 | V130: 0 | W130: 0 | X130: 0 | Y130: 0 | Z130: 0 | AA130: 0 | AB130: 0 | AC130: 0 | AD130: 0 | AE130: 0 | AF130: 0 | AG130: 0 | AH130: 0 | AI130: 0 | AJ130: 0 | AK130: 0 | AL130: 0 | AM130: 0 | AN130: 0 | AO130: 0 | AP130: 0 | AQ130: 0 | AR130: 0 | AS130: 0 | AT130: 0 | AU130: 0 | AV130: 0 | AW130: 0 | AX130: 0 | AY130: 0 | AZ130: 0 | BA130: 0 | BB130: 0 | BC130: 0 | BD130: 0 | BE130: 0 | BF130: 0 | BG130: 0 | BH130: 0 | BI130: 0 | BJ130: 0 | BK130: 0 | BL130: 0 | BM130: 0 | BN130: 0 | BO130: 0 | BP130: 0 | BQ130: 0 | BR130: 0 | BS130: 0 | BT130: 0 | BU130: =BU103 -> 0 | BV130: 0 | BW130: 0 | BX130: 0 | BY130: 0 | BZ130: 0 | CA130: 0 | CB130: 0 | CC130: 0 | CD130: 0 | CE130: 0 | CF130: 0 | CG130: 0 | CH130: 0 | CI130: 0 | CJ130: 0 | CK130: 0 | CL130: 0 | CM130: 0 | CN130: 0 | CO130: 0 | CP130: 0 | CQ130: 0 | CR130: 0 | CS130: 0 | CT130: 0 | CU130: 0 | CV130: 0 | CW130: 0 | CX130: 0 | CY130: 0 | CZ130: 0 | DA130: 0 | DB130: 0 | DC130: 0
D131: Free Cash Flow | H131: =H129-H130 -> -120508 | I131: =I129-I130 -> 3065.941613 | J131: 3155.477304 | K131: 3142.590153 | L131: 3234.364237 | M131: 3221.154907 | N131: 3315.223342 | O131: 3319.925127 | P131: 3398.103926 | Q131: 3384.225874 | R131: 3483.056524 | S131: 3468.831521 | T131: 3570.132937 | U131: 3555.552309 | V131: 3659.386261 | W131: 3664.576151 | X131: 3750.870917 | Y131: 3735.552145 | Z131: 3844.64269 | AA131: 3828.940948 | AB131: 3940.758757 | AC131: 3924.664472 | AD131: 4039.277726 | AE131: 4045.006394 | AF131: 4140.25967 | AG131: 4123.350611 | AH131: 4243.766161 | AI131: 4226.434376 | AJ131: 4349.860315 | AK131: 4332.095236 | AL131: 4458.606823 | AM131: 4464.9302 | AN131: 4570.071994 | AO131: 4551.407557 | AP131: 4684.323794 | AQ131: 4665.192746 | AR131: 4801.431888 | AS131: 4781.822564 | AT131: 4921.467686 | AU131: 4928.447511 | AV131: 5044.504378 | AW131: 5023.902332 | AX131: 5170.616987 | AY131: 5149.49989 | AZ131: 5299.882412 | BA131: 5278.237387 | BB131: 5432.379472 | BC131: 5440.083893 | BD131: 5568.188959 | BE131: 5545.448155 | BF131: 5707.393683 | BG131: 5684.084359 | BH131: 5850.078525 | BI131: 5826.186468 | BJ131: 5996.330488 | BK131: 6004.834727 | BL131: 6146.23875 | BM131: 6121.137158 | BN131: 6299.894719 | BO131: 6274.165587 | BP131: 6457.392087 | BQ131: 0 | BR131: 0 | BS131: 0 | BT131: 0 | BU131: =BU129-BU130 -> 0 | BV131: 0 | BW131: 0 | BX131: 0 | BY131: 0 | BZ131: 0 | CA131: 0 | CB131: 0 | CC131: 0 | CD131: 0 | CE131: 0 | CF131: 0 | CG131: 0 | CH131: 0 | CI131: 0 | CJ131: 0 | CK131: 0 | CL131: 0 | CM131: 0 | CN131: 0 | CO131: 0 | CP131: 0 | CQ131: 0 | CR131: 0 | CS131: 0 | CT131: 0 | CU131: 0 | CV131: 0 | CW131: 0 | CX131: 0 | CY131: 0 | CZ131: 0 | DA131: 0 | DB131: 0 | DC131: 0
D133: Project IRR | E133: =XIRR(H131:DC131,H3:DC3) -> 0.05582313836
D134: NPV at target IRR | E134: =F55 -> 0.075 | F134: =XNPV(E134,H131:DC131,H3:DC3) -> -24149.82661 | G134: npv_out
A136: Debt Sizing
C137: Debt Repayment Switch | E137: True/False | F137: =F72 -> 2021-08-01 | G137: =F73 -> 2041-02-01 | H137: =AND(H$2>=$F$137,H$2<$G$137) -> FALSE | I137: FALSE | J137: TRUE | K137: TRUE | L137: TRUE | M137: TRUE | N137: TRUE | O137: TRUE | P137: TRUE | Q137: TRUE | R137: TRUE | S137: TRUE | T137: TRUE | U137: TRUE | V137: TRUE | W137: TRUE | X137: TRUE | Y137: TRUE | Z137: TRUE | AA137: TRUE | AB137: TRUE | AC137: TRUE | AD137: TRUE | AE137: TRUE | AF137: TRUE | AG137: TRUE | AH137: TRUE | AI137: TRUE | AJ137: TRUE | AK137: TRUE | AL137: TRUE | AM137: TRUE | AN137: TRUE | AO137: TRUE | AP137: TRUE | AQ137: TRUE | AR137: TRUE | AS137: TRUE | AT137: TRUE | AU137: TRUE | AV137: TRUE | AW137: FALSE | AX137: FALSE | AY137: FALSE | AZ137: FALSE | BA137: FALSE | BB137: FALSE | BC137: FALSE | BD137: FALSE | BE137: FALSE | BF137: FALSE | BG137: FALSE | BH137: FALSE | BI137: FALSE | BJ137: FALSE | BK137: FALSE | BL137: FALSE | BM137: FALSE | BN137: FALSE | BO137: FALSE | BP137: FALSE | BQ137: FALSE | BR137: FALSE | BS137: FALSE | BT137: =AND(BT$2>=$F$137,BT$2<$G$137) -> FALSE | BU137: FALSE | BV137: FALSE | BW137: FALSE | BX137: FALSE | BY137: FALSE | BZ137: FALSE | CA137: FALSE | CB137: FALSE | CC137: FALSE | CD137: FALSE | CE137: FALSE | CF137: FALSE | CG137: FALSE | CH137: FALSE | CI137: FALSE | CJ137: FALSE | CK137: FALSE | CL137: FALSE | CM137: FALSE | CN137: FALSE | CO137: FALSE | CP137: FALSE | CQ137: FALSE | CR137: FALSE | CS137: FALSE | CT137: FALSE | CU137: FALSE | CV137: FALSE | CW137: FALSE | CX137: FALSE | CY137: FALSE | CZ137: FALSE | DA137: FALSE | DB137: FALSE | DC137: FALSE
B139: P50 DSCR
C140: Cash flow P50 case
D141: MWh P50 case | E141: MWh | H141: =H94 -> 0 | I141: 168642.768 | J141: 171437.952 | K141: 168642.768 | L141: 171437.952 | M141: 168642.768 | N141: 171437.952 | O141: 169574.496 | P141: 171437.952 | Q141: 168642.768 | R141: 171437.952 | S141: 168642.768 | T141: 171437.952 | U141: 168642.768 | V141: 171437.952 | W141: 169574.496 | X141: 171437.952 | Y141: 168642.768 | Z141: 171437.952 | AA141: 168642.768 | AB141: 171437.952 | AC141: 168642.768 | AD141: 171437.952 | AE141: 169574.496 | AF141: 171437.952 | AG141: 168642.768 | AH141: 171437.952 | AI141: 168642.768 | AJ141: 171437.952 | AK141: 168642.768 | AL141: 171437.952 | AM141: 169574.496 | AN141: 171437.952 | AO141: 168642.768 | AP141: 171437.952 | AQ141: 168642.768 | AR141: 171437.952 | AS141: 168642.768 | AT141: 171437.952 | AU141: 169574.496 | AV141: 171437.952 | AW141: 168642.768 | AX141: 171437.952 | AY141: 168642.768 | AZ141: 171437.952 | BA141: 168642.768 | BB141: 171437.952 | BC141: 169574.496 | BD141: 171437.952 | BE141: 168642.768 | BF141: 171437.952 | BG141: 168642.768 | BH141: 171437.952 | BI141: 168642.768 | BJ141: 171437.952 | BK141: 169574.496 | BL141: 171437.952 | BM141: 168642.768 | BN141: 171437.952 | BO141: 168642.768 | BP141: 171437.952 | BQ141: 0 | BR141: 0 | BS141: 0 | BT141: =BT94 -> 0 | BU141: 0 | BV141: 0 | BW141: 0 | BX141: 0 | BY141: 0 | BZ141: 0 | CA141: 0 | CB141: 0 | CC141: 0 | CD141: 0 | CE141: 0 | CF141: 0 | CG141: 0 | CH141: 0 | CI141: 0 | CJ141: 0 | CK141: 0 | CL141: 0 | CM141: 0 | CN141: 0 | CO141: 0 | CP141: 0 | CQ141: 0 | CR141: 0 | CS141: 0 | CT141: 0 | CU141: 0 | CV141: 0 | CW141: 0 | CX141: 0 | CY141: 0 | CZ141: 0 | DA141: 0 | DB141: 0 | DC141: 0
D142: Price - variable cost | E142: Euro/MWh | H142: =H123-(H106*H110) -> 0 | I142: 18.18009541 | J142: 18.40594377 | K142: 18.6345978 | L142: 18.86609236 | M142: 19.10046274 | N142: 19.33774467 | O142: 19.57797431 | P142: 19.82118829 | Q142: 20.06742367 | R142: 20.31671799 | S142: 20.56910926 | T142: 20.82463594 | U142: 21.08333699 | V142: 21.34525184 | W142: 21.61042042 | X142: 21.87888314 | Y142: 22.15068093 | Z142: 22.42585522 | AA142: 22.70444795 | AB142: 22.9865016 | AC142: 23.27205915 | AD142: 23.56116414 | AE142: 23.85386063 | AF142: 24.15019324 | AG142: 24.45020714 | AH142: 24.75394807 | AI142: 25.06146232 | AJ142: 25.37279677 | AK142: 25.68799888 | AL142: 26.00711669 | AM142: 26.33019885 | AN142: 26.65729461 | AO142: 26.98845382 | AP142: 27.32372698 | AQ142: 27.66316517 | AR142: 28.00682015 | AS142: 28.3547443 | AT142: 28.70699065 | AU142: 29.06361291 | AV142: 29.42466542 | AW142: 29.79020323 | AX142: 30.16028205 | AY142: 30.53495831 | AZ142: 30.91428911 | BA142: 31.29833227 | BB142: 31.68714633 | BC142: 32.08079057 | BD142: 32.47932499 | BE142: 32.88281034 | BF142: 33.29130812 | BG142: 33.7048806 | BH142: 34.12359082 | BI142: 34.54750261 | BJ142: 34.97668059 | BK142: 35.41119018 | BL142: 35.85109761 | BM142: 36.29646993 | BN142: 36.74737505 | BO142: 37.20388168 | BP142: 37.66605942 | BQ142: 0 | BR142: 0 | BS142: 0 | BT142: =BT123-(BT106*BT110) -> 0 | BU142: 0 | BV142: 0 | BW142: 0 | BX142: 0 | BY142: 0 | BZ142: 0 | CA142: 0 | CB142: 0 | CC142: 0 | CD142: 0 | CE142: 0 | CF142: 0 | CG142: 0 | CH142: 0 | CI142: 0 | CJ142: 0 | CK142: 0 | CL142: 0 | CM142: 0 | CN142: 0 | CO142: 0 | CP142: 0 | CQ142: 0 | CR142: 0 | CS142: 0 | CT142: 0 | CU142: 0 | CV142: 0 | CW142: 0 | CX142: 0 | CY142: 0 | CZ142: 0 | DA142: 0 | DB142: 0 | DC142: 0
D143: Margin P50 case | E143: Euro 000's | H143: =H141*H142/1000 -> 0 | I143: =I141*I142/1000 -> 3065.941613 | J143: 3155.477304 | K143: 3142.590153 | L143: 3234.364237 | M143: 3221.154907 | N143: 3315.223342 | O143: 3319.925127 | P143: 3398.103926 | Q143: 3384.225874 | R143: 3483.056524 | S143: 3468.831521 | T143: 3570.132937 | U143: 3555.552309 | V143: 3659.386261 | W143: 3664.576151 | X143: 3750.870917 | Y143: 3735.552145 | Z143: 3844.64269 | AA143: 3828.940948 | AB143: 3940.758757 | AC143: 3924.664472 | AD143: 4039.277726 | AE143: 4045.006394 | AF143: 4140.25967 | AG143: 4123.350611 | AH143: 4243.766161 | AI143: 4226.434376 | AJ143: 4349.860315 | AK143: 4332.095236 | AL143: 4458.606823 | AM143: 4464.9302 | AN143: 4570.071994 | AO143: 4551.407557 | AP143: 4684.323794 | AQ143: 4665.192746 | AR143: 4801.431888 | AS143: 4781.822564 | AT143: 4921.467686 | AU143: 4928.447511 | AV143: 5044.504378 | AW143: 5023.902332 | AX143: 5170.616987 | AY143: 5149.49989 | AZ143: 5299.882412 | BA143: 5278.237387 | BB143: 5432.379472 | BC143: 5440.083893 | BD143: 5568.188959 | BE143: 5545.448155 | BF143: 5707.393683 | BG143: 5684.084359 | BH143: 5850.078525 | BI143: 5826.186468 | BJ143: 5996.330488 | BK143: 6004.834727 | BL143: 6146.23875 | BM143: 6121.137158 | BN143: 6299.894719 | BO143: 6274.165587 | BP143: 6457.392087 | BQ143: 0 | BR143: 0 | BS143: 0 | BT143: 0 | BU143: =BU141*BU142/1000 -> 0 | BV143: 0 | BW143: 0 | BX143: 0 | BY143: 0 | BZ143: 0 | CA143: 0 | CB143: 0 | CC143: 0 | CD143: 0 | CE143: 0 | CF143: 0 | CG143: 0 | CH143: 0 | CI143: 0 | CJ143: 0 | CK143: 0 | CL143: 0 | CM143: 0 | CN143: 0 | CO143: 0 | CP143: 0 | CQ143: 0 | CR143: 0 | CS143: 0 | CT143: 0 | CU143: 0 | CV143: 0 | CW143: 0 | CX143: 0 | CY143: 0 | CZ143: 0 | DA143: 0 | DB143: 0 | DC143: 0
D144: Fixed Cost | E144: Euro 000's | H144: =H116 -> 0 | I144: 0 | J144: 0 | K144: 0 | L144: 0 | M144: 0 | N144: 0 | O144: 0 | P144: 0 | Q144: 0 | R144: 0 | S144: 0 | T144: 0 | U144: 0 | V144: 0 | W144: 0 | X144: 0 | Y144: 0 | Z144: 0 | AA144: 0 | AB144: 0 | AC144: 0 | AD144: 0 | AE144: 0 | AF144: 0 | AG144: 0 | AH144: 0 | AI144: 0 | AJ144: 0 | AK144: 0 | AL144: 0 | AM144: 0 | AN144: 0 | AO144: 0 | AP144: 0 | AQ144: 0 | AR144: 0 | AS144: 0 | AT144: 0 | AU144: 0 | AV144: 0 | AW144: 0 | AX144: 0 | AY144: 0 | AZ144: 0 | BA144: 0 | BB144: 0 | BC144: 0 | BD144: 0 | BE144: 0 | BF144: 0 | BG144: 0 | BH144: 0 | BI144: 0 | BJ144: 0 | BK144: 0 | BL144: 0 | BM144: 0 | BN144: 0 | BO144: 0 | BP144: 0 | BQ144: 0 | BR144: 0 | BS144: 0 | BT144: =BT116 -> 0 | BU144: 0 | BV144: 0 | BW144: 0 | BX144: 0 | BY144: 0 | BZ144: 0 | CA144: 0 | CB144: 0 | CC144: 0 | CD144: 0 | CE144: 0 | CF144: 0 | CG144: 0 | CH144: 0 | CI144: 0 | CJ144: 0 | CK144: 0 | CL144: 0 | CM144: 0 | CN144: 0 | CO144: 0 | CP144: 0 | CQ144: 0 | CR144: 0 | CS144: 0 | CT144: 0 | CU144: 0 | CV144: 0 | CW144: 0 | CX144: 0 | CY144: 0 | CZ144: 0 | DA144: 0 | DB144: 0 | DC144: 0
D145: EBITDA P50 | E145: Euro 000's | H145: =H143-H144 -> 0 | I145: =I143-I144 -> 3065.941613 | J145: 3155.477304 | K145: 3142.590153 | L145: 3234.364237 | M145: 3221.154907 | N145: 3315.223342 | O145: 3319.925127 | P145: 3398.103926 | Q145: 3384.225874 | R145: 3483.056524 | S145: 3468.831521 | T145: 3570.132937 | U145: 3555.552309 | V145: 3659.386261 | W145: 3664.576151 | X145: 3750.870917 | Y145: 3735.552145 | Z145: 3844.64269 | AA145: 3828.940948 | AB145: 3940.758757 | AC145: 3924.664472 | AD145: 4039.277726 | AE145: 4045.006394 | AF145: 4140.25967 | AG145: 4123.350611 | AH145: 4243.766161 | AI145: 4226.434376 | AJ145: 4349.860315 | AK145: 4332.095236 | AL145: 4458.606823 | AM145: 4464.9302 | AN145: 4570.071994 | AO145: 4551.407557 | AP145: 4684.323794 | AQ145: 4665.192746 | AR145: 4801.431888 | AS145: 4781.822564 | AT145: 4921.467686 | AU145: 4928.447511 | AV145: 5044.504378 | AW145: 5023.902332 | AX145: 5170.616987 | AY145: 5149.49989 | AZ145: 5299.882412 | BA145: 5278.237387 | BB145: 5432.379472 | BC145: 5440.083893 | BD145: 5568.188959 | BE145: 5545.448155 | BF145: 5707.393683 | BG145: 5684.084359 | BH145: 5850.078525 | BI145: 5826.186468 | BJ145: 5996.330488 | BK145: 6004.834727 | BL145: 6146.23875 | BM145: 6121.137158 | BN145: 6299.894719 | BO145: 6274.165587 | BP145: 6457.392087 | BQ145: 0 | BR145: 0 | BS145: 0 | BT145: 0 | BU145: =BU143-BU144 -> 0 | BV145: 0 | BW145: 0 | BX145: 0 | BY145: 0 | BZ145: 0 | CA145: 0 | CB145: 0 | CC145: 0 | CD145: 0 | CE145: 0 | CF145: 0 | CG145: 0 | CH145: 0 | CI145: 0 | CJ145: 0 | CK145: 0 | CL145: 0 | CM145: 0 | CN145: 0 | CO145: 0 | CP145: 0 | CQ145: 0 | CR145: 0 | CS145: 0 | CT145: 0 | CU145: 0 | CV145: 0 | CW145: 0 | CX145: 0 | CY145: 0 | CZ145: 0 | DA145: 0 | DB145: 0 | DC145: 0
D146: CFADS P50 case | E146: Euro 000's | H146: =H145 -> 0 | I146: =I145 -> 3065.941613 | J146: 3155.477304 | K146: 3142.590153 | L146: 3234.364237 | M146: 3221.154907 | N146: 3315.223342 | O146: 3319.925127 | P146: 3398.103926 | Q146: 3384.225874 | R146: 3483.056524 | S146: 3468.831521 | T146: 3570.132937 | U146: 3555.552309 | V146: 3659.386261 | W146: 3664.576151 | X146: 3750.870917 | Y146: 3735.552145 | Z146: 3844.64269 | AA146: 3828.940948 | AB146: 3940.758757 | AC146: 3924.664472 | AD146: 4039.277726 | AE146: 4045.006394 | AF146: 4140.25967 | AG146: 4123.350611 | AH146: 4243.766161 | AI146: 4226.434376 | AJ146: 4349.860315 | AK146: 4332.095236 | AL146: 4458.606823 | AM146: 4464.9302 | AN146: 4570.071994 | AO146: 4551.407557 | AP146: 4684.323794 | AQ146: 4665.192746 | AR146: 4801.431888 | AS146: 4781.822564 | AT146: 4921.467686 | AU146: 4928.447511 | AV146: 5044.504378 | AW146: 5023.902332 | AX146: 5170.616987 | AY146: 5149.49989 | AZ146: 5299.882412 | BA146: 5278.237387 | BB146: 5432.379472 | BC146: 5440.083893 | BD146: 5568.188959 | BE146: 5545.448155 | BF146: 5707.393683 | BG146: 5684.084359 | BH146: 5850.078525 | BI146: 5826.186468 | BJ146: 5996.330488 | BK146: 6004.834727 | BL146: 6146.23875 | BM146: 6121.137158 | BN146: 6299.894719 | BO146: 6274.165587 | BP146: 6457.392087 | BQ146: 0 | BR146: 0 | BS146: 0 | BT146: 0 | BU146: =BU145 -> 0 | BV146: 0 | BW146: 0 | BX146: 0 | BY146: 0 | BZ146: 0 | CA146: 0 | CB146: 0 | CC146: 0 | CD146: 0 | CE146: 0 | CF146: 0 | CG146: 0 | CH146: 0 | CI146: 0 | CJ146: 0 | CK146: 0 | CL146: 0 | CM146: 0 | CN146: 0 | CO146: 0 | CP146: 0 | CQ146: 0 | CR146: 0 | CS146: 0 | CT146: 0 | CU146: 0 | CV146: 0 | CW146: 0 | CX146: 0 | CY146: 0 | CZ146: 0 | DA146: 0 | DB146: 0 | DC146: 0
D147: Target Debt service | E147: Euro 000's | F147: =F60 -> 1.35 | H147: =IF(H5,H146/$F$147) -> FALSE | I147: 2271.067861 | J147: 2337.390596 | K147: 2327.844558 | L147: 2395.82536 | M147: 2386.040672 | N147: 2455.720994 | O147: 2459.203797 | P147: 2517.114019 | Q147: 2506.833981 | R147: 2580.04187 | S147: 2569.50483 | T147: 2644.542917 | U147: 2633.742451 | V147: 2710.656489 | W147: 2714.500852 | X147: 2778.422902 | Y147: 2767.075663 | Z147: 2847.883474 | AA147: 2836.252554 | AB147: 2919.080561 | AC147: 2907.158868 | AD147: 2992.057575 | AE147: 2996.301032 | AF147: 3066.859014 | AG147: 3054.333786 | AH147: 3143.53049 | AI147: 3130.692131 | AJ147: 3222.118752 | AK147: 3208.959434 | AL147: 3302.671721 | AM147: 3307.355704 | AN147: 3385.238514 | AO147: 3371.413005 | AP147: 3469.869477 | AQ147: 3455.69833 | AR147: 3556.616214 | AS147: 3542.090789 | AT147: 3645.531619 | AU147: 3650.70186 | AV147: 3736.669909 | AW147: 3721.409135 | AX147: 3830.086657 | AY147: 3814.444363 | AZ147: 3925.838824 | BA147: 3909.805472 | BB147: 4023.984794 | BC147: 4029.691773 | BD147: 4124.584414 | BE147: 4107.739374 | BF147: 4227.699024 | BG147: 4210.432859 | BH147: 4333.3915 | BI147: 4315.69368 | BJ147: 4441.726288 | BK147: 4448.025724 | BL147: 4552.769445 | BM147: 4534.175673 | BN147: 4666.588681 | BO147: 4647.530064 | BP147: 4783.253398 | BQ147: FALSE | BR147: FALSE | BS147: FALSE | BT147: =IF(BT5,BT146/$F$147) -> FALSE | BU147: FALSE | BV147: FALSE | BW147: FALSE | BX147: FALSE | BY147: FALSE | BZ147: FALSE | CA147: FALSE | CB147: FALSE | CC147: FALSE | CD147: FALSE | CE147: FALSE | CF147: FALSE | CG147: FALSE | CH147: FALSE | CI147: FALSE | CJ147: FALSE | CK147: FALSE | CL147: FALSE | CM147: FALSE | CN147: FALSE | CO147: FALSE | CP147: FALSE | CQ147: FALSE | CR147: FALSE | CS147: FALSE | CT147: FALSE | CU147: FALSE | CV147: FALSE | CW147: FALSE | CX147: FALSE | CY147: FALSE | CZ147: FALSE | DA147: FALSE | DB147: FALSE | DC147: FALSE
D149: Target Debt Service over Debt Repayment | E149: Euro 000's | H149: =H147*H$137 -> 0 | I149: =I147*I137 -> 0 | J149: 2337.390596 | K149: 2327.844558 | L149: 2395.82536 | M149: 2386.040672 | N149: 2455.720994 | O149: 2459.203797 | P149: 2517.114019 | Q149: 2506.833981 | R149: 2580.04187 | S149: 2569.50483 | T149: 2644.542917 | U149: 2633.742451 | V149: 2710.656489 | W149: 2714.500852 | X149: 2778.422902 | Y149: 2767.075663 | Z149: 2847.883474 | AA149: 2836.252554 | AB149: 2919.080561 | AC149: 2907.158868 | AD149: 2992.057575 | AE149: 2996.301032 | AF149: 3066.859014 | AG149: 3054.333786 | AH149: 3143.53049 | AI149: 3130.692131 | AJ149: 3222.118752 | AK149: 3208.959434 | AL149: 3302.671721 | AM149: 3307.355704 | AN149: 3385.238514 | AO149: 3371.413005 | AP149: 3469.869477 | AQ149: 3455.69833 | AR149: 3556.616214 | AS149: 3542.090789 | AT149: 3645.531619 | AU149: 3650.70186 | AV149: 3736.669909 | AW149: 0 | AX149: 0 | AY149: 0 | AZ149: 0 | BA149: 0 | BB149: 0 | BC149: 0 | BD149: 0 | BE149: 0 | BF149: 0 | BG149: 0 | BH149: 0 | BI149: 0 | BJ149: 0 | BK149: 0 | BL149: 0 | BM149: 0 | BN149: 0 | BO149: 0 | BP149: 0 | BQ149: 0 | BR149: 0 | BS149: 0 | BT149: 0 | BU149: =BU147*BU137 -> 0 | BV149: 0 | BW149: 0 | BX149: 0 | BY149: 0 | BZ149: 0 | CA149: 0 | CB149: 0 | CC149: 0 | CD149: 0 | CE149: 0 | CF149: 0 | CG149: 0 | CH149: 0 | CI149: 0 | CJ149: 0 | CK149: 0 | CL149: 0 | CM149: 0 | CN149: 0 | CO149: 0 | CP149: 0 | CQ149: 0 | CR149: 0 | CS149: 0 | CT149: 0 | CU149: 0 | CV149: 0 | CW149: 0 | CX149: 0 | CY149: 0 | CZ149: 0 | DA149: 0 | DB149: 0 | DC149: 0
D150: NPV factor | E150: Index | F150: =F78/2 -> 0.0165 | G150: 1 | H150: =G150*(1+$F$150*H$137) -> 1 | I150: =H150*(1+$F$150*I137) -> 1 | J150: 1.0165 | K150: 1.03327225 | L150: 1.050321242 | M150: 1.067651543 | N150: 1.085267793 | O150: 1.103174712 | P150: 1.121377094 | Q150: 1.139879816 | R150: 1.158687833 | S150: 1.177806183 | T150: 1.197239985 | U150: 1.216994444 | V150: 1.237074853 | W150: 1.257486588 | X150: 1.278235117 | Y150: 1.299325996 | Z150: 1.320764875 | AA150: 1.342557495 | AB150: 1.364709694 | AC150: 1.387227404 | AD150: 1.410116656 | AE150: 1.433383581 | AF150: 1.45703441 | AG150: 1.481075478 | AH150: 1.505513223 | AI150: 1.530354191 | AJ150: 1.555605036 | AK150: 1.581272519 | AL150: 1.607363515 | AM150: 1.633885013 | AN150: 1.660844116 | AO150: 1.688248044 | AP150: 1.716104137 | AQ150: 1.744419855 | AR150: 1.773202782 | AS150: 1.802460628 | AT150: 1.832201229 | AU150: 1.862432549 | AV150: 1.893162686 | AW150: 1.893162686 | AX150: 1.893162686 | AY150: 1.893162686 | AZ150: 1.893162686 | BA150: 1.893162686 | BB150: 1.893162686 | BC150: 1.893162686 | BD150: 1.893162686 | BE150: 1.893162686 | BF150: 1.893162686 | BG150: 1.893162686 | BH150: 1.893162686 | BI150: 1.893162686 | BJ150: 1.893162686 | BK150: 1.893162686 | BL150: 1.893162686 | BM150: 1.893162686 | BN150: 1.893162686 | BO150: 1.893162686 | BP150: 1.893162686 | BQ150: 1.893162686 | BR150: 1.893162686 | BS150: 1.893162686 | BT150: 1.893162686 | BU150: =BT150*(1+$F$150*BU137) -> 1.893162686 | BV150: 1.893162686 | BW150: 1.893162686 | BX150: 1.893162686 | BY150: 1.893162686 | BZ150: 1.893162686 | CA150: 1.893162686 | CB150: 1.893162686 | CC150: 1.893162686 | CD150: 1.893162686 | CE150: 1.893162686 | CF150: 1.893162686 | CG150: 1.893162686 | CH150: 1.893162686 | CI150: 1.893162686 | CJ150: 1.893162686 | CK150: 1.893162686 | CL150: 1.893162686 | CM150: 1.893162686 | CN150: 1.893162686 | CO150: 1.893162686 | CP150: 1.893162686 | CQ150: 1.893162686 | CR150: 1.893162686 | CS150: 1.893162686 | CT150: 1.893162686 | CU150: 1.893162686 | CV150: 1.893162686 | CW150: 1.893162686 | CX150: 1.893162686 | CY150: 1.893162686 | CZ150: 1.893162686 | DA150: 1.893162686 | DB150: 1.893162686 | DC150: 1.893162686
D151: Size of Debt from P50 | E151: Euro 000's | F151: =SUMPRODUCT(H149:DC149/H150:DC150) -> 82567.35781 | G151: 1
D153: Opening Balance | H153: =G155 -> 82567.35781 | I153: =H155 -> 82567.35781 | J153: 82567.35781 | K153: 81592.32862 | L153: 80610.75749 | M153: 79545.00962 | N153: 78471.46161 | O153: 77310.51973 | P153: 76126.93951 | Q153: 74865.91999 | R153: 73594.37369 | S153: 72228.63899 | T153: 70850.9067 | U153: 69375.40375 | V153: 67886.35546 | W153: 66295.82383 | X153: 64675.20407 | Y153: 62963.92204 | Z153: 61235.75109 | AA153: 59398.25751 | AB153: 57542.0762 | AC153: 55572.4399 | AD153: 53582.22629 | AE153: 51474.27545 | AF153: 49327.29996 | AG153: 47074.34139 | AH153: 44796.73424 | AI153: 42392.34987 | AJ153: 39961.13151 | AK153: 37398.37143 | AL153: 34806.48512 | AM153: 32078.12041 | AN153: 29300.05369 | AO153: 26398.26606 | AP153: 23462.42445 | AQ153: 20379.68497 | AR153: 17260.25144 | AS153: 13988.42938 | AT153: 10677.14767 | AU153: 7207.788993 | AV153: 3676.015651 | AW153: 1.81444193e-10 | AX153: 1.81444193e-10 | AY153: 1.81444193e-10 | AZ153: 1.81444193e-10 | BA153: 1.81444193e-10 | BB153: 1.81444193e-10 | BC153: 1.81444193e-10 | BD153: 1.81444193e-10 | BE153: 1.81444193e-10 | BF153: 1.81444193e-10 | BG153: 1.81444193e-10 | BH153: 1.81444193e-10 | BI153: 1.81444193e-10 | BJ153: 1.81444193e-10 | BK153: 1.81444193e-10 | BL153: 1.81444193e-10 | BM153: 1.81444193e-10 | BN153: 1.81444193e-10 | BO153: 1.81444193e-10 | BP153: 1.81444193e-10 | BQ153: 1.81444193e-10 | BR153: 1.81444193e-10 | BS153: 1.81444193e-10 | BT153: 1.81444193e-10 | BU153: =BT155 -> 1.81444193e-10 | BV153: 1.81444193e-10 | BW153: 1.81444193e-10 | BX153: 1.81444193e-10 | BY153: 1.81444193e-10 | BZ153: 1.81444193e-10 | CA153: 1.81444193e-10 | CB153: 1.81444193e-10 | CC153: 1.81444193e-10 | CD153: 1.81444193e-10 | CE153: 1.81444193e-10 | CF153: 1.81444193e-10 | CG153: 1.81444193e-10 | CH153: 1.81444193e-10 | CI153: 1.81444193e-10 | CJ153: 1.81444193e-10 | CK153: 1.81444193e-10 | CL153: 1.81444193e-10 | CM153: 1.81444193e-10 | CN153: 1.81444193e-10 | CO153: 1.81444193e-10 | CP153: 1.81444193e-10 | CQ153: 1.81444193e-10 | CR153: 1.81444193e-10 | CS153: 1.81444193e-10 | CT153: 1.81444193e-10 | CU153: 1.81444193e-10 | CV153: 1.81444193e-10 | CW153: 1.81444193e-10 | CX153: 1.81444193e-10 | CY153: 1.81444193e-10 | CZ153: 1.81444193e-10 | DA153: 1.81444193e-10 | DB153: 1.81444193e-10 | DC153: 1.81444193e-10
D154: Less Repayments | H154: =(H149-H156)*H$137 -> 0 | I154: =(I149-I156)*I137 -> 0 | J154: 975.0291916 | K154: 981.5711357 | L154: 1065.747862 | M154: 1073.548013 | N154: 1160.941878 | O154: 1183.580222 | P154: 1261.019517 | Q154: 1271.546301 | R154: 1365.734704 | S154: 1377.732287 | T154: 1475.502956 | U154: 1489.048289 | V154: 1590.531624 | W154: 1620.619759 | X154: 1711.282034 | Y154: 1728.170949 | Z154: 1837.493581 | AA154: 1856.181305 | AB154: 1969.636304 | AC154: 1990.21361 | AD154: 2107.950841 | AE154: 2146.975487 | AF154: 2252.958565 | AG154: 2277.607153 | AH154: 2404.384375 | AI154: 2431.218358 | AJ154: 2562.760082 | AK154: 2591.886305 | AL154: 2728.364716 | AM154: 2778.066717 | AN154: 2901.787628 | AO154: 2935.841615 | AP154: 3082.739473 | AQ154: 3119.433528 | AR154: 3271.822065 | AS154: 3311.281704 | AT154: 3469.358682 | AU154: 3531.773341 | AV154: 3676.015651 | AW154: 0 | AX154: 0 | AY154: 0 | AZ154: 0 | BA154: 0 | BB154: 0 | BC154: 0 | BD154: 0 | BE154: 0 | BF154: 0 | BG154: 0 | BH154: 0 | BI154: 0 | BJ154: 0 | BK154: 0 | BL154: 0 | BM154: 0 | BN154: 0 | BO154: 0 | BP154: 0 | BQ154: 0 | BR154: 0 | BS154: 0 | BT154: 0 | BU154: =(BU149-BU156)*BU137 -> 0 | BV154: 0 | BW154: 0 | BX154: 0 | BY154: 0 | BZ154: 0 | CA154: 0 | CB154: 0 | CC154: 0 | CD154: 0 | CE154: 0 | CF154: 0 | CG154: 0 | CH154: 0 | CI154: 0 | CJ154: 0 | CK154: 0 | CL154: 0 | CM154: 0 | CN154: 0 | CO154: 0 | CP154: 0 | CQ154: 0 | CR154: 0 | CS154: 0 | CT154: 0 | CU154: 0 | CV154: 0 | CW154: 0 | CX154: 0 | CY154: 0 | CZ154: 0 | DA154: 0 | DB154: 0 | DC154: 0
D155: Closing Balance | G155: =F151 -> 82567.35781 | H155: =H153-H154 -> 82567.35781 | I155: =I153-I154 -> 82567.35781 | J155: 81592.32862 | K155: 80610.75749 | L155: 79545.00962 | M155: 78471.46161 | N155: 77310.51973 | O155: 76126.93951 | P155: 74865.91999 | Q155: 73594.37369 | R155: 72228.63899 | S155: 70850.9067 | T155: 69375.40375 | U155: 67886.35546 | V155: 66295.82383 | W155: 64675.20407 | X155: 62963.92204 | Y155: 61235.75109 | Z155: 59398.25751 | AA155: 57542.0762 | AB155: 55572.4399 | AC155: 53582.22629 | AD155: 51474.27545 | AE155: 49327.29996 | AF155: 47074.34139 | AG155: 44796.73424 | AH155: 42392.34987 | AI155: 39961.13151 | AJ155: 37398.37143 | AK155: 34806.48512 | AL155: 32078.12041 | AM155: 29300.05369 | AN155: 26398.26606 | AO155: 23462.42445 | AP155: 20379.68497 | AQ155: 17260.25144 | AR155: 13988.42938 | AS155: 10677.14767 | AT155: 7207.788993 | AU155: 3676.015651 | AV155: 1.81444193e-10 | AW155: 1.81444193e-10 | AX155: 1.81444193e-10 | AY155: 1.81444193e-10 | AZ155: 1.81444193e-10 | BA155: 1.81444193e-10 | BB155: 1.81444193e-10 | BC155: 1.81444193e-10 | BD155: 1.81444193e-10 | BE155: 1.81444193e-10 | BF155: 1.81444193e-10 | BG155: 1.81444193e-10 | BH155: 1.81444193e-10 | BI155: 1.81444193e-10 | BJ155: 1.81444193e-10 | BK155: 1.81444193e-10 | BL155: 1.81444193e-10 | BM155: 1.81444193e-10 | BN155: 1.81444193e-10 | BO155: 1.81444193e-10 | BP155: 1.81444193e-10 | BQ155: 1.81444193e-10 | BR155: 1.81444193e-10 | BS155: 1.81444193e-10 | BT155: 1.81444193e-10 | BU155: =BU153-BU154 -> 1.81444193e-10 | BV155: 1.81444193e-10 | BW155: 1.81444193e-10 | BX155: 1.81444193e-10 | BY155: 1.81444193e-10 | BZ155: 1.81444193e-10 | CA155: 1.81444193e-10 | CB155: 1.81444193e-10 | CC155: 1.81444193e-10 | CD155: 1.81444193e-10 | CE155: 1.81444193e-10 | CF155: 1.81444193e-10 | CG155: 1.81444193e-10 | CH155: 1.81444193e-10 | CI155: 1.81444193e-10 | CJ155: 1.81444193e-10 | CK155: 1.81444193e-10 | CL155: 1.81444193e-10 | CM155: 1.81444193e-10 | CN155: 1.81444193e-10 | CO155: 1.81444193e-10 | CP155: 1.81444193e-10 | CQ155: 1.81444193e-10 | CR155: 1.81444193e-10 | CS155: 1.81444193e-10 | CT155: 1.81444193e-10 | CU155: 1.81444193e-10 | CV155: 1.81444193e-10 | CW155: 1.81444193e-10 | CX155: 1.81444193e-10 | CY155: 1.81444193e-10 | CZ155: 1.81444193e-10 | DA155: 1.81444193e-10 | DB155: 1.81444193e-10 | DC155: 1.81444193e-10
D156: Interest | F156: =F150 -> 0.0165 | H156: =H153*$F$156*H$5 -> 0 | I156: =I153*$F$156*I5 -> 1362.361404 | J156: 1362.361404 | K156: 1346.273422 | L156: 1330.077499 | M156: 1312.492659 | N156: 1294.779117 | O156: 1275.623576 | P156: 1256.094502 | Q156: 1235.28768 | R156: 1214.307166 | S156: 1191.772543 | T156: 1169.039961 | U156: 1144.694162 | V156: 1120.124865 | W156: 1093.881093 | X156: 1067.140867 | Y156: 1038.904714 | Z156: 1010.389893 | AA156: 980.0712489 | AB156: 949.4442573 | AC156: 916.9452583 | AD156: 884.1067338 | AE156: 849.3255449 | AF156: 813.9004493 | AG156: 776.726633 | AH156: 739.146115 | AI156: 699.4737728 | AJ156: 659.3586699 | AK156: 617.0731285 | AL156: 574.3070045 | AM156: 529.2889867 | AN156: 483.4508859 | AO156: 435.57139 | AP156: 387.1300033 | AQ156: 336.264802 | AR156: 284.7941488 | AS156: 230.8090847 | AT156: 176.1729366 | AU156: 118.9285184 | AV156: 60.65425825 | AW156: 2.993829185e-12 | AX156: 2.993829185e-12 | AY156: 2.993829185e-12 | AZ156: 2.993829185e-12 | BA156: 2.993829185e-12 | BB156: 2.993829185e-12 | BC156: 2.993829185e-12 | BD156: 2.993829185e-12 | BE156: 2.993829185e-12 | BF156: 2.993829185e-12 | BG156: 2.993829185e-12 | BH156: 2.993829185e-12 | BI156: 2.993829185e-12 | BJ156: 2.993829185e-12 | BK156: 2.993829185e-12 | BL156: 2.993829185e-12 | BM156: 2.993829185e-12 | BN156: 2.993829185e-12 | BO156: 2.993829185e-12 | BP156: 2.993829185e-12 | BQ156: 0 | BR156: 0 | BS156: 0 | BT156: 0 | BU156: =BU153*$F$156*BU5 -> 0 | BV156: 0 | BW156: 0 | BX156: 0 | BY156: 0 | BZ156: 0 | CA156: 0 | CB156: 0 | CC156: 0 | CD156: 0 | CE156: 0 | CF156: 0 | CG156: 0 | CH156: 0 | CI156: 0 | CJ156: 0 | CK156: 0 | CL156: 0 | CM156: 0 | CN156: 0 | CO156: 0 | CP156: 0 | CQ156: 0 | CR156: 0 | CS156: 0 | CT156: 0 | CU156: 0 | CV156: 0 | CW156: 0 | CX156: 0 | CY156: 0 | CZ156: 0 | DA156: 0 | DB156: 0 | DC156: 0
B158: P90 DSCR
C159: Cash flow P90 case
D160: MWh P90 case | E160: MWh | H160: =H95 -> 0 | I160: 145214.8827 | J160: 147621.7592 | K160: 145214.8827 | L160: 147621.7592 | M160: 145214.8827 | N160: 147621.7592 | O160: 146017.1748 | P160: 147621.7592 | Q160: 145214.8827 | R160: 147621.7592 | S160: 145214.8827 | T160: 147621.7592 | U160: 145214.8827 | V160: 147621.7592 | W160: 146017.1748 | X160: 147621.7592 | Y160: 145214.8827 | Z160: 147621.7592 | AA160: 145214.8827 | AB160: 147621.7592 | AC160: 145214.8827 | AD160: 147621.7592 | AE160: 146017.1748 | AF160: 147621.7592 | AG160: 145214.8827 | AH160: 147621.7592 | AI160: 145214.8827 | AJ160: 147621.7592 | AK160: 145214.8827 | AL160: 147621.7592 | AM160: 146017.1748 | AN160: 147621.7592 | AO160: 145214.8827 | AP160: 147621.7592 | AQ160: 145214.8827 | AR160: 147621.7592 | AS160: 145214.8827 | AT160: 147621.7592 | AU160: 146017.1748 | AV160: 147621.7592 | AW160: 145214.8827 | AX160: 147621.7592 | AY160: 145214.8827 | AZ160: 147621.7592 | BA160: 145214.8827 | BB160: 147621.7592 | BC160: 146017.1748 | BD160: 147621.7592 | BE160: 145214.8827 | BF160: 147621.7592 | BG160: 145214.8827 | BH160: 147621.7592 | BI160: 145214.8827 | BJ160: 147621.7592 | BK160: 146017.1748 | BL160: 147621.7592 | BM160: 145214.8827 | BN160: 147621.7592 | BO160: 145214.8827 | BP160: 147621.7592 | BQ160: 0 | BR160: 0 | BS160: 0 | BT160: =BT95 -> 0 | BU160: 0 | BV160: 0 | BW160: 0 | BX160: 0 | BY160: 0 | BZ160: 0 | CA160: 0 | CB160: 0 | CC160: 0 | CD160: 0 | CE160: 0 | CF160: 0 | CG160: 0 | CH160: 0 | CI160: 0 | CJ160: 0 | CK160: 0 | CL160: 0 | CM160: 0 | CN160: 0 | CO160: 0 | CP160: 0 | CQ160: 0 | CR160: 0 | CS160: 0 | CT160: 0 | CU160: 0 | CV160: 0 | CW160: 0 | CX160: 0 | CY160: 0 | CZ160: 0 | DA160: 0 | DB160: 0 | DC160: 0
D161: Price - variable cost | E161: Euro/MWh | H161: =H142 -> 0 | I161: 18.18009541 | J161: 18.40594377 | K161: 18.6345978 | L161: 18.86609236 | M161: 19.10046274 | N161: 19.33774467 | O161: 19.57797431 | P161: 19.82118829 | Q161: 20.06742367 | R161: 20.31671799 | S161: 20.56910926 | T161: 20.82463594 | U161: 21.08333699 | V161: 21.34525184 | W161: 21.61042042 | X161: 21.87888314 | Y161: 22.15068093 | Z161: 22.42585522 | AA161: 22.70444795 | AB161: 22.9865016 | AC161: 23.27205915 | AD161: 23.56116414 | AE161: 23.85386063 | AF161: 24.15019324 | AG161: 24.45020714 | AH161: 24.75394807 | AI161: 25.06146232 | AJ161: 25.37279677 | AK161: 25.68799888 | AL161: 26.00711669 | AM161: 26.33019885 | AN161: 26.65729461 | AO161: 26.98845382 | AP161: 27.32372698 | AQ161: 27.66316517 | AR161: 28.00682015 | AS161: 28.3547443 | AT161: 28.70699065 | AU161: 29.06361291 | AV161: 29.42466542 | AW161: 29.79020323 | AX161: 30.16028205 | AY161: 30.53495831 | AZ161: 30.91428911 | BA161: 31.29833227 | BB161: 31.68714633 | BC161: 32.08079057 | BD161: 32.47932499 | BE161: 32.88281034 | BF161: 33.29130812 | BG161: 33.7048806 | BH161: 34.12359082 | BI161: 34.54750261 | BJ161: 34.97668059 | BK161: 35.41119018 | BL161: 35.85109761 | BM161: 36.29646993 | BN161: 36.74737505 | BO161: 37.20388168 | BP161: 37.66605942 | BQ161: 0 | BR161: 0 | BS161: 0 | BT161: =BT142 -> 0 | BU161: 0 | BV161: 0 | BW161: 0 | BX161: 0 | BY161: 0 | BZ161: 0 | CA161: 0 | CB161: 0 | CC161: 0 | CD161: 0 | CE161: 0 | CF161: 0 | CG161: 0 | CH161: 0 | CI161: 0 | CJ161: 0 | CK161: 0 | CL161: 0 | CM161: 0 | CN161: 0 | CO161: 0 | CP161: 0 | CQ161: 0 | CR161: 0 | CS161: 0 | CT161: 0 | CU161: 0 | CV161: 0 | CW161: 0 | CX161: 0 | CY161: 0 | CZ161: 0 | DA161: 0 | DB161: 0 | DC161: 0
D162: Margin P90 case | E162: Euro 000's | H162: =H160*H161/1000 -> 0 | I162: =I160*I161/1000 -> 2640.020422 | J162: 2717.117798 | K162: 2706.020933 | L162: 2785.045743 | M162: 2773.671456 | N162: 2854.671887 | O162: 2858.720498 | P162: 2926.038684 | Q162: 2914.088574 | R162: 2999.189651 | S162: 2986.940788 | T162: 3074.169392 | U162: 3061.614308 | V162: 3151.023627 | W162: 3155.492537 | X162: 3229.799218 | Y162: 3216.608532 | Z162: 3310.544198 | AA162: 3297.023745 | AB162: 3393.307803 | AC162: 3379.449339 | AD162: 3478.140498 | AE162: 3483.073338 | AF162: 3565.094011 | AG162: 3550.533962 | AH162: 3654.221361 | AI162: 3639.297311 | AJ162: 3745.576895 | AK162: 3730.279744 | AL162: 3839.216317 | AM162: 3844.66125 | AN162: 3935.196725 | AO162: 3919.125156 | AP162: 4033.576644 | AQ162: 4017.103285 | AR162: 4134.41606 | AS162: 4117.530867 | AT162: 4237.776461 | AU162: 4243.786647 | AV162: 4343.720873 | AW162: 4325.980867 | AX162: 4452.313894 | AY162: 4434.130388 | AZ162: 4563.621742 | BA162: 4544.983648 | BB162: 4677.712285 | BC162: 4684.346406 | BD162: 4794.655093 | BE162: 4775.073445 | BF162: 4914.52147 | BG162: 4894.450282 | BH162: 5037.384507 | BI162: 5016.811539 | BJ162: 5163.319119 | BK162: 5170.641948 | BL162: 5292.402097 | BM162: 5270.787623 | BN162: 5424.71215 | BO162: 5402.557313 | BP162: 5560.329953 | BQ162: 0 | BR162: 0 | BS162: 0 | BT162: 0 | BU162: =BU160*BU161/1000 -> 0 | BV162: 0 | BW162: 0 | BX162: 0 | BY162: 0 | BZ162: 0 | CA162: 0 | CB162: 0 | CC162: 0 | CD162: 0 | CE162: 0 | CF162: 0 | CG162: 0 | CH162: 0 | CI162: 0 | CJ162: 0 | CK162: 0 | CL162: 0 | CM162: 0 | CN162: 0 | CO162: 0 | CP162: 0 | CQ162: 0 | CR162: 0 | CS162: 0 | CT162: 0 | CU162: 0 | CV162: 0 | CW162: 0 | CX162: 0 | CY162: 0 | CZ162: 0 | DA162: 0 | DB162: 0 | DC162: 0
D163: Fixed Cost | E163: Euro 000's | H163: =H144 -> 0 | I163: 0 | J163: 0 | K163: 0 | L163: 0 | M163: 0 | N163: 0 | O163: 0 | P163: 0 | Q163: 0 | R163: 0 | S163: 0 | T163: 0 | U163: 0 | V163: 0 | W163: 0 | X163: 0 | Y163: 0 | Z163: 0 | AA163: 0 | AB163: 0 | AC163: 0 | AD163: 0 | AE163: 0 | AF163: 0 | AG163: 0 | AH163: 0 | AI163: 0 | AJ163: 0 | AK163: 0 | AL163: 0 | AM163: 0 | AN163: 0 | AO163: 0 | AP163: 0 | AQ163: 0 | AR163: 0 | AS163: 0 | AT163: 0 | AU163: 0 | AV163: 0 | AW163: 0 | AX163: 0 | AY163: 0 | AZ163: 0 | BA163: 0 | BB163: 0 | BC163: 0 | BD163: 0 | BE163: 0 | BF163: 0 | BG163: 0 | BH163: 0 | BI163: 0 | BJ163: 0 | BK163: 0 | BL163: 0 | BM163: 0 | BN163: 0 | BO163: 0 | BP163: 0 | BQ163: 0 | BR163: 0 | BS163: 0 | BT163: =BT144 -> 0 | BU163: 0 | BV163: 0 | BW163: 0 | BX163: 0 | BY163: 0 | BZ163: 0 | CA163: 0 | CB163: 0 | CC163: 0 | CD163: 0 | CE163: 0 | CF163: 0 | CG163: 0 | CH163: 0 | CI163: 0 | CJ163: 0 | CK163: 0 | CL163: 0 | CM163: 0 | CN163: 0 | CO163: 0 | CP163: 0 | CQ163: 0 | CR163: 0 | CS163: 0 | CT163: 0 | CU163: 0 | CV163: 0 | CW163: 0 | CX163: 0 | CY163: 0 | CZ163: 0 | DA163: 0 | DB163: 0 | DC163: 0
D164: EBITDA P90 | E164: Euro 000's | H164: =H162-H163 -> 0 | I164: =I162-I163 -> 2640.020422 | J164: 2717.117798 | K164: 2706.020933 | L164: 2785.045743 | M164: 2773.671456 | N164: 2854.671887 | O164: 2858.720498 | P164: 2926.038684 | Q164: 2914.088574 | R164: 2999.189651 | S164: 2986.940788 | T164: 3074.169392 | U164: 3061.614308 | V164: 3151.023627 | W164: 3155.492537 | X164: 3229.799218 | Y164: 3216.608532 | Z164: 3310.544198 | AA164: 3297.023745 | AB164: 3393.307803 | AC164: 3379.449339 | AD164: 3478.140498 | AE164: 3483.073338 | AF164: 3565.094011 | AG164: 3550.533962 | AH164: 3654.221361 | AI164: 3639.297311 | AJ164: 3745.576895 | AK164: 3730.279744 | AL164: 3839.216317 | AM164: 3844.66125 | AN164: 3935.196725 | AO164: 3919.125156 | AP164: 4033.576644 | AQ164: 4017.103285 | AR164: 4134.41606 | AS164: 4117.530867 | AT164: 4237.776461 | AU164: 4243.786647 | AV164: 4343.720873 | AW164: 4325.980867 | AX164: 4452.313894 | AY164: 4434.130388 | AZ164: 4563.621742 | BA164: 4544.983648 | BB164: 4677.712285 | BC164: 4684.346406 | BD164: 4794.655093 | BE164: 4775.073445 | BF164: 4914.52147 | BG164: 4894.450282 | BH164: 5037.384507 | BI164: 5016.811539 | BJ164: 5163.319119 | BK164: 5170.641948 | BL164: 5292.402097 | BM164: 5270.787623 | BN164: 5424.71215 | BO164: 5402.557313 | BP164: 5560.329953 | BQ164: 0 | BR164: 0 | BS164: 0 | BT164: 0 | BU164: =BU162-BU163 -> 0 | BV164: 0 | BW164: 0 | BX164: 0 | BY164: 0 | BZ164: 0 | CA164: 0 | CB164: 0 | CC164: 0 | CD164: 0 | CE164: 0 | CF164: 0 | CG164: 0 | CH164: 0 | CI164: 0 | CJ164: 0 | CK164: 0 | CL164: 0 | CM164: 0 | CN164: 0 | CO164: 0 | CP164: 0 | CQ164: 0 | CR164: 0 | CS164: 0 | CT164: 0 | CU164: 0 | CV164: 0 | CW164: 0 | CX164: 0 | CY164: 0 | CZ164: 0 | DA164: 0 | DB164: 0 | DC164: 0
D165: CFADS P90 case | E165: Euro 000's | H165: =H164 -> 0 | I165: =I164 -> 2640.020422 | J165: 2717.117798 | K165: 2706.020933 | L165: 2785.045743 | M165: 2773.671456 | N165: 2854.671887 | O165: 2858.720498 | P165: 2926.038684 | Q165: 2914.088574 | R165: 2999.189651 | S165: 2986.940788 | T165: 3074.169392 | U165: 3061.614308 | V165: 3151.023627 | W165: 3155.492537 | X165: 3229.799218 | Y165: 3216.608532 | Z165: 3310.544198 | AA165: 3297.023745 | AB165: 3393.307803 | AC165: 3379.449339 | AD165: 3478.140498 | AE165: 3483.073338 | AF165: 3565.094011 | AG165: 3550.533962 | AH165: 3654.221361 | AI165: 3639.297311 | AJ165: 3745.576895 | AK165: 3730.279744 | AL165: 3839.216317 | AM165: 3844.66125 | AN165: 3935.196725 | AO165: 3919.125156 | AP165: 4033.576644 | AQ165: 4017.103285 | AR165: 4134.41606 | AS165: 4117.530867 | AT165: 4237.776461 | AU165: 4243.786647 | AV165: 4343.720873 | AW165: 4325.980867 | AX165: 4452.313894 | AY165: 4434.130388 | AZ165: 4563.621742 | BA165: 4544.983648 | BB165: 4677.712285 | BC165: 4684.346406 | BD165: 4794.655093 | BE165: 4775.073445 | BF165: 4914.52147 | BG165: 4894.450282 | BH165: 5037.384507 | BI165: 5016.811539 | BJ165: 5163.319119 | BK165: 5170.641948 | BL165: 5292.402097 | BM165: 5270.787623 | BN165: 5424.71215 | BO165: 5402.557313 | BP165: 5560.329953 | BQ165: 0 | BR165: 0 | BS165: 0 | BT165: 0 | BU165: =BU164 -> 0 | BV165: 0 | BW165: 0 | BX165: 0 | BY165: 0 | BZ165: 0 | CA165: 0 | CB165: 0 | CC165: 0 | CD165: 0 | CE165: 0 | CF165: 0 | CG165: 0 | CH165: 0 | CI165: 0 | CJ165: 0 | CK165: 0 | CL165: 0 | CM165: 0 | CN165: 0 | CO165: 0 | CP165: 0 | CQ165: 0 | CR165: 0 | CS165: 0 | CT165: 0 | CU165: 0 | CV165: 0 | CW165: 0 | CX165: 0 | CY165: 0 | CZ165: 0 | DA165: 0 | DB165: 0 | DC165: 0
D166: Target Debt Service | E166: Times | F166: =F61 -> 1.15 | H166: =H165/$F$166 -> 0 | I166: =I165/$F$166 -> 2295.669933 | J166: 2362.711129 | K166: 2353.061681 | L166: 2421.778907 | M166: 2411.888223 | N166: 2482.32338 | O166: 2485.843911 | P166: 2544.381464 | Q166: 2533.990064 | R166: 2607.991001 | S166: 2597.339816 | T166: 2673.190776 | U166: 2662.273311 | V166: 2740.020545 | W166: 2743.906554 | X166: 2808.521059 | Y166: 2797.050897 | Z166: 2878.734085 | AA166: 2866.97717 | AB166: 2950.702438 | AC166: 2938.651599 | AD166: 3024.469999 | AE166: 3028.759424 | AF166: 3100.081749 | AG166: 3087.420836 | AH166: 3177.583792 | AI166: 3164.606357 | AJ166: 3257.023387 | AK166: 3243.721516 | AL166: 3338.448972 | AM166: 3343.183695 | AN166: 3421.910196 | AO166: 3407.934918 | AP166: 3507.457951 | AQ166: 3493.133291 | AR166: 3595.1444 | AS166: 3580.461623 | AT166: 3685.02301 | AU166: 3690.249259 | AV166: 3777.148585 | AW166: 3761.722493 | AX166: 3871.5773 | AY166: 3855.765555 | AZ166: 3968.366732 | BA166: 3952.159694 | BB166: 4067.5759 | BC166: 4073.344701 | BD166: 4169.265298 | BE166: 4152.237779 | BF166: 4273.49693 | BG166: 4256.043723 | BH166: 4380.334354 | BI166: 4362.444816 | BJ166: 4489.842712 | BK166: 4496.210389 | BL166: 4602.08878 | BM166: 4583.293585 | BN166: 4717.141 | BO166: 4697.875925 | BP166: 4835.069525 | BQ166: 0 | BR166: 0 | BS166: 0 | BT166: 0 | BU166: =BU165/$F$166 -> 0 | BV166: 0 | BW166: 0 | BX166: 0 | BY166: 0 | BZ166: 0 | CA166: 0 | CB166: 0 | CC166: 0 | CD166: 0 | CE166: 0 | CF166: 0 | CG166: 0 | CH166: 0 | CI166: 0 | CJ166: 0 | CK166: 0 | CL166: 0 | CM166: 0 | CN166: 0 | CO166: 0 | CP166: 0 | CQ166: 0 | CR166: 0 | CS166: 0 | CT166: 0 | CU166: 0 | CV166: 0 | CW166: 0 | CX166: 0 | CY166: 0 | CZ166: 0 | DA166: 0 | DB166: 0 | DC166: 0
D168: Target Debt Service over debt maturity | E168: Euro 000's | H168: =H166*H$137 -> 0 | I168: =I166*I$137 -> 0 | J168: 2362.711129 | K168: 2353.061681 | L168: 2421.778907 | M168: 2411.888223 | N168: 2482.32338 | O168: 2485.843911 | P168: 2544.381464 | Q168: 2533.990064 | R168: 2607.991001 | S168: 2597.339816 | T168: 2673.190776 | U168: 2662.273311 | V168: 2740.020545 | W168: 2743.906554 | X168: 2808.521059 | Y168: 2797.050897 | Z168: 2878.734085 | AA168: 2866.97717 | AB168: 2950.702438 | AC168: 2938.651599 | AD168: 3024.469999 | AE168: 3028.759424 | AF168: 3100.081749 | AG168: 3087.420836 | AH168: 3177.583792 | AI168: 3164.606357 | AJ168: 3257.023387 | AK168: 3243.721516 | AL168: 3338.448972 | AM168: 3343.183695 | AN168: 3421.910196 | AO168: 3407.934918 | AP168: 3507.457951 | AQ168: 3493.133291 | AR168: 3595.1444 | AS168: 3580.461623 | AT168: 3685.02301 | AU168: 3690.249259 | AV168: 3777.148585 | AW168: 0 | AX168: 0 | AY168: 0 | AZ168: 0 | BA168: 0 | BB168: 0 | BC168: 0 | BD168: 0 | BE168: 0 | BF168: 0 | BG168: 0 | BH168: 0 | BI168: 0 | BJ168: 0 | BK168: 0 | BL168: 0 | BM168: 0 | BN168: 0 | BO168: 0 | BP168: 0 | BQ168: 0 | BR168: 0 | BS168: 0 | BT168: 0 | BU168: =BU166*BU$137 -> 0 | BV168: 0 | BW168: 0 | BX168: 0 | BY168: 0 | BZ168: 0 | CA168: 0 | CB168: 0 | CC168: 0 | CD168: 0 | CE168: 0 | CF168: 0 | CG168: 0 | CH168: 0 | CI168: 0 | CJ168: 0 | CK168: 0 | CL168: 0 | CM168: 0 | CN168: 0 | CO168: 0 | CP168: 0 | CQ168: 0 | CR168: 0 | CS168: 0 | CT168: 0 | CU168: 0 | CV168: 0 | CW168: 0 | CX168: 0 | CY168: 0 | CZ168: 0 | DA168: 0 | DB168: 0 | DC168: 0
D169: NPV of debt service =size of debt | E169: Euro 000's | F169: =F150 -> 0.0165 | G169: 1 | H169: =G169*(1+$F$169*H$137) -> 1 | I169: =H169*(1+$F$150*I$137) -> 1 | J169: 1.0165 | K169: 1.03327225 | L169: 1.050321242 | M169: 1.067651543 | N169: 1.085267793 | O169: 1.103174712 | P169: 1.121377094 | Q169: 1.139879816 | R169: 1.158687833 | S169: 1.177806183 | T169: 1.197239985 | U169: 1.216994444 | V169: 1.237074853 | W169: 1.257486588 | X169: 1.278235117 | Y169: 1.299325996 | Z169: 1.320764875 | AA169: 1.342557495 | AB169: 1.364709694 | AC169: 1.387227404 | AD169: 1.410116656 | AE169: 1.433383581 | AF169: 1.45703441 | AG169: 1.481075478 | AH169: 1.505513223 | AI169: 1.530354191 | AJ169: 1.555605036 | AK169: 1.581272519 | AL169: 1.607363515 | AM169: 1.633885013 | AN169: 1.660844116 | AO169: 1.688248044 | AP169: 1.716104137 | AQ169: 1.744419855 | AR169: 1.773202782 | AS169: 1.802460628 | AT169: 1.832201229 | AU169: 1.862432549 | AV169: 1.893162686 | AW169: 1.893162686 | AX169: 1.893162686 | AY169: 1.893162686 | AZ169: 1.893162686 | BA169: 1.893162686 | BB169: 1.893162686 | BC169: 1.893162686 | BD169: 1.893162686 | BE169: 1.893162686 | BF169: 1.893162686 | BG169: 1.893162686 | BH169: 1.893162686 | BI169: 1.893162686 | BJ169: 1.893162686 | BK169: 1.893162686 | BL169: 1.893162686 | BM169: 1.893162686 | BN169: 1.893162686 | BO169: 1.893162686 | BP169: 1.893162686 | BQ169: 1.893162686 | BR169: 1.893162686 | BS169: 1.893162686 | BT169: 1.893162686 | BU169: =BT169*(1+$F$150*BU$137) -> 1.893162686 | BV169: 1.893162686 | BW169: 1.893162686 | BX169: 1.893162686 | BY169: 1.893162686 | BZ169: 1.893162686 | CA169: 1.893162686 | CB169: 1.893162686 | CC169: 1.893162686 | CD169: 1.893162686 | CE169: 1.893162686 | CF169: 1.893162686 | CG169: 1.893162686 | CH169: 1.893162686 | CI169: 1.893162686 | CJ169: 1.893162686 | CK169: 1.893162686 | CL169: 1.893162686 | CM169: 1.893162686 | CN169: 1.893162686 | CO169: 1.893162686 | CP169: 1.893162686 | CQ169: 1.893162686 | CR169: 1.893162686 | CS169: 1.893162686 | CT169: 1.893162686 | CU169: 1.893162686 | CV169: 1.893162686 | CW169: 1.893162686 | CX169: 1.893162686 | CY169: 1.893162686 | CZ169: 1.893162686 | DA169: 1.893162686 | DB169: 1.893162686 | DC169: 1.893162686
D170: Size of Debt from P90 | E170: Euro 000's | F170: =SUMPRODUCT(H168:DC168/H169:DC169) -> 83461.7952 | G170: 2
D172: Opening Balance | H172: =G174 -> 83461.7952 | I172: =H174 -> 83461.7952 | J172: 83461.7952 | K172: 82476.20369 | L172: 81483.99937 | M172: 80406.70646 | N172: 79321.52889 | O172: 78148.01074 | P172: 76951.609 | Q172: 75676.92909 | R172: 74391.60835 | S172: 73011.07889 | T172: 71618.42188 | U172: 70126.93506 | V172: 68621.75618 | W172: 67013.99461 | X172: 65375.81897 | Y172: 63645.99892 | Z172: 61899.10701 | AA172: 60041.70819 | AB172: 58165.4192 | AC172: 56174.44618 | AD172: 54162.67294 | AE172: 52031.88705 | AF172: 49861.65376 | AG172: 47584.2893 | AH172: 45282.00924 | AI172: 42851.5786 | AJ172: 40394.02328 | AK172: 37803.50128 | AL172: 35183.53754 | AM172: 32425.61693 | AN172: 29617.45592 | AO172: 26684.23375 | AP172: 23716.58868 | AQ172: 20600.45445 | AR172: 17447.22865 | AS172: 14139.96353 | AT172: 10792.8113 | AU172: 7285.869679 | AV172: 3715.83727 | AW172: 1.450644049e-10 | AX172: 1.450644049e-10 | AY172: 1.450644049e-10 | AZ172: 1.450644049e-10 | BA172: 1.450644049e-10 | BB172: 1.450644049e-10 | BC172: 1.450644049e-10 | BD172: 1.450644049e-10 | BE172: 1.450644049e-10 | BF172: 1.450644049e-10 | BG172: 1.450644049e-10 | BH172: 1.450644049e-10 | BI172: 1.450644049e-10 | BJ172: 1.450644049e-10 | BK172: 1.450644049e-10 | BL172: 1.450644049e-10 | BM172: 1.450644049e-10 | BN172: 1.450644049e-10 | BO172: 1.450644049e-10 | BP172: 1.450644049e-10 | BQ172: 1.450644049e-10 | BR172: 1.450644049e-10 | BS172: 1.450644049e-10 | BT172: 1.450644049e-10 | BU172: =BT174 -> 1.450644049e-10 | BV172: 1.450644049e-10 | BW172: 1.450644049e-10 | BX172: 1.450644049e-10 | BY172: 1.450644049e-10 | BZ172: 1.450644049e-10 | CA172: 1.450644049e-10 | CB172: 1.450644049e-10 | CC172: 1.450644049e-10 | CD172: 1.450644049e-10 | CE172: 1.450644049e-10 | CF172: 1.450644049e-10 | CG172: 1.450644049e-10 | CH172: 1.450644049e-10 | CI172: 1.450644049e-10 | CJ172: 1.450644049e-10 | CK172: 1.450644049e-10 | CL172: 1.450644049e-10 | CM172: 1.450644049e-10 | CN172: 1.450644049e-10 | CO172: 1.450644049e-10 | CP172: 1.450644049e-10 | CQ172: 1.450644049e-10 | CR172: 1.450644049e-10 | CS172: 1.450644049e-10 | CT172: 1.450644049e-10 | CU172: 1.450644049e-10 | CV172: 1.450644049e-10 | CW172: 1.450644049e-10 | CX172: 1.450644049e-10 | CY172: 1.450644049e-10 | CZ172: 1.450644049e-10 | DA172: 1.450644049e-10 | DB172: 1.450644049e-10 | DC172: 1.450644049e-10
D173: Less Repayments | H173: =(H168-H175)*H$137 -> 0 | I173: =(I168-I175)*I$137 -> 0 | J173: 985.5915081 | K173: 992.2043199 | L173: 1077.292918 | M173: 1085.177566 | N173: 1173.518153 | O173: 1196.401734 | P173: 1274.679916 | Q173: 1285.320734 | R173: 1380.529463 | S173: 1392.657014 | T173: 1491.486815 | U173: 1505.178883 | V173: 1607.761568 | W173: 1638.175642 | X173: 1729.820046 | Y173: 1746.891915 | Z173: 1857.39882 | AA173: 1876.288985 | AB173: 1990.973021 | AC173: 2011.773237 | AD173: 2130.785895 | AE173: 2170.233288 | AF173: 2277.364461 | AG173: 2302.280063 | AH173: 2430.43064 | AI173: 2457.55531 | AJ173: 2590.522003 | AK173: 2619.963745 | AL173: 2757.920602 | AM173: 2808.161016 | AN173: 2933.222173 | AO173: 2967.645061 | AP173: 3116.134238 | AQ173: 3153.225793 | AR173: 3307.265127 | AS173: 3347.152225 | AT173: 3506.941623 | AU173: 3570.032409 | AV173: 3715.83727 | AW173: 0 | AX173: 0 | AY173: 0 | AZ173: 0 | BA173: 0 | BB173: 0 | BC173: 0 | BD173: 0 | BE173: 0 | BF173: 0 | BG173: 0 | BH173: 0 | BI173: 0 | BJ173: 0 | BK173: 0 | BL173: 0 | BM173: 0 | BN173: 0 | BO173: 0 | BP173: 0 | BQ173: 0 | BR173: 0 | BS173: 0 | BT173: 0 | BU173: =(BU168-BU175)*BU$137 -> 0 | BV173: 0 | BW173: 0 | BX173: 0 | BY173: 0 | BZ173: 0 | CA173: 0 | CB173: 0 | CC173: 0 | CD173: 0 | CE173: 0 | CF173: 0 | CG173: 0 | CH173: 0 | CI173: 0 | CJ173: 0 | CK173: 0 | CL173: 0 | CM173: 0 | CN173: 0 | CO173: 0 | CP173: 0 | CQ173: 0 | CR173: 0 | CS173: 0 | CT173: 0 | CU173: 0 | CV173: 0 | CW173: 0 | CX173: 0 | CY173: 0 | CZ173: 0 | DA173: 0 | DB173: 0 | DC173: 0
D174: Closing Balance | G174: =F170 -> 83461.7952 | H174: =H172-H173 -> 83461.7952 | I174: =I172-I173 -> 83461.7952 | J174: 82476.20369 | K174: 81483.99937 | L174: 80406.70646 | M174: 79321.52889 | N174: 78148.01074 | O174: 76951.609 | P174: 75676.92909 | Q174: 74391.60835 | R174: 73011.07889 | S174: 71618.42188 | T174: 70126.93506 | U174: 68621.75618 | V174: 67013.99461 | W174: 65375.81897 | X174: 63645.99892 | Y174: 61899.10701 | Z174: 60041.70819 | AA174: 58165.4192 | AB174: 56174.44618 | AC174: 54162.67294 | AD174: 52031.88705 | AE174: 49861.65376 | AF174: 47584.2893 | AG174: 45282.00924 | AH174: 42851.5786 | AI174: 40394.02328 | AJ174: 37803.50128 | AK174: 35183.53754 | AL174: 32425.61693 | AM174: 29617.45592 | AN174: 26684.23375 | AO174: 23716.58868 | AP174: 20600.45445 | AQ174: 17447.22865 | AR174: 14139.96353 | AS174: 10792.8113 | AT174: 7285.869679 | AU174: 3715.83727 | AV174: 1.450644049e-10 | AW174: 1.450644049e-10 | AX174: 1.450644049e-10 | AY174: 1.450644049e-10 | AZ174: 1.450644049e-10 | BA174: 1.450644049e-10 | BB174: 1.450644049e-10 | BC174: 1.450644049e-10 | BD174: 1.450644049e-10 | BE174: 1.450644049e-10 | BF174: 1.450644049e-10 | BG174: 1.450644049e-10 | BH174: 1.450644049e-10 | BI174: 1.450644049e-10 | BJ174: 1.450644049e-10 | BK174: 1.450644049e-10 | BL174: 1.450644049e-10 | BM174: 1.450644049e-10 | BN174: 1.450644049e-10 | BO174: 1.450644049e-10 | BP174: 1.450644049e-10 | BQ174: 1.450644049e-10 | BR174: 1.450644049e-10 | BS174: 1.450644049e-10 | BT174: 1.450644049e-10 | BU174: =BU172-BU173 -> 1.450644049e-10 | BV174: 1.450644049e-10 | BW174: 1.450644049e-10 | BX174: 1.450644049e-10 | BY174: 1.450644049e-10 | BZ174: 1.450644049e-10 | CA174: 1.450644049e-10 | CB174: 1.450644049e-10 | CC174: 1.450644049e-10 | CD174: 1.450644049e-10 | CE174: 1.450644049e-10 | CF174: 1.450644049e-10 | CG174: 1.450644049e-10 | CH174: 1.450644049e-10 | CI174: 1.450644049e-10 | CJ174: 1.450644049e-10 | CK174: 1.450644049e-10 | CL174: 1.450644049e-10 | CM174: 1.450644049e-10 | CN174: 1.450644049e-10 | CO174: 1.450644049e-10 | CP174: 1.450644049e-10 | CQ174: 1.450644049e-10 | CR174: 1.450644049e-10 | CS174: 1.450644049e-10 | CT174: 1.450644049e-10 | CU174: 1.450644049e-10 | CV174: 1.450644049e-10 | CW174: 1.450644049e-10 | CX174: 1.450644049e-10 | CY174: 1.450644049e-10 | CZ174: 1.450644049e-10 | DA174: 1.450644049e-10 | DB174: 1.450644049e-10 | DC174: 1.450644049e-10
D175: Interest | F175: =F156 -> 0.0165 | H175: =H172*$F$156*H$5 -> 0 | I175: =I172*$F$175*I$5 -> 1377.119621 | J175: =J172*$F$156*J$5 -> 1377.119621 | K175: 1360.857361 | L175: 1344.48599 | M175: 1326.710657 | N175: 1308.805227 | O175: 1289.442177 | P175: 1269.701549 | Q175: 1248.66933 | R175: 1227.461538 | S175: 1204.682802 | T175: 1181.703961 | U175: 1157.094429 | V175: 1132.258977 | W175: 1105.730911 | X175: 1078.701013 | Y175: 1050.158982 | Z175: 1021.335266 | AA175: 990.6881851 | AB175: 959.7294168 | AC175: 926.878362 | AD175: 893.6841036 | AE175: 858.5261363 | AF175: 822.717287 | AG175: 785.1407734 | AH175: 747.1531524 | AI175: 707.0510468 | AJ175: 666.5013842 | AK175: 623.7577712 | AL175: 580.5283694 | AM175: 535.0226794 | AN175: 488.6880227 | AO175: 440.2898568 | AP175: 391.3237133 | AQ175: 339.9074984 | AR175: 287.8792728 | AS175: 233.3093982 | AT175: 178.0813865 | AU175: 120.2168497 | AV175: 61.31131495 | AW175: 2.393562681e-12 | AX175: 2.393562681e-12 | AY175: 2.393562681e-12 | AZ175: 2.393562681e-12 | BA175: 2.393562681e-12 | BB175: 2.393562681e-12 | BC175: 2.393562681e-12 | BD175: 2.393562681e-12 | BE175: 2.393562681e-12 | BF175: 2.393562681e-12 | BG175: 2.393562681e-12 | BH175: 2.393562681e-12 | BI175: 2.393562681e-12 | BJ175: 2.393562681e-12 | BK175: 2.393562681e-12 | BL175: 2.393562681e-12 | BM175: 2.393562681e-12 | BN175: 2.393562681e-12 | BO175: 2.393562681e-12 | BP175: 2.393562681e-12 | BQ175: 0 | BR175: 0 | BS175: 0 | BT175: 0 | BU175: 0 | BV175: =BV172*$F$156*BV$5 -> 0 | BW175: 0 | BX175: 0 | BY175: 0 | BZ175: 0 | CA175: 0 | CB175: 0 | CC175: 0 | CD175: 0 | CE175: 0 | CF175: 0 | CG175: 0 | CH175: 0 | CI175: 0 | CJ175: 0 | CK175: 0 | CL175: 0 | CM175: 0 | CN175: 0 | CO175: 0 | CP175: 0 | CQ175: 0 | CR175: 0 | CS175: 0 | CT175: 0 | CU175: 0 | CV175: 0 | CW175: 0 | CX175: 0 | CY175: 0 | CZ175: 0 | DA175: 0 | DB175: 0 | DC175: 0
D177: P50/P90 EBITDA | I177: =I146/I164 -> 1.161332536 | J177: =J146/J164 -> 1.161332536 | K177: 1.161332536 | L177: 1.161332536 | M177: 1.161332536 | N177: 1.161332536 | O177: 1.161332536 | P177: 1.161332536 | Q177: 1.161332536 | R177: 1.161332536 | S177: 1.161332536 | T177: 1.161332536 | U177: 1.161332536 | V177: 1.161332536 | W177: 1.161332536 | X177: 1.161332536 | Y177: 1.161332536 | Z177: 1.161332536 | AA177: 1.161332536 | AB177: 1.161332536 | AC177: 1.161332536 | AD177: 1.161332536 | AE177: 1.161332536 | AF177: 1.161332536 | AG177: 1.161332536 | AH177: 1.161332536 | AI177: 1.161332536 | AJ177: 1.161332536 | AK177: 1.161332536 | AL177: 1.161332536 | AM177: 1.161332536 | AN177: 1.161332536 | AO177: 1.161332536 | AP177: 1.161332536 | AQ177: 1.161332536 | AR177: 1.161332536 | AS177: 1.161332536 | AT177: 1.161332536 | AU177: 1.161332536 | AV177: 1.161332536 | AW177: 1.161332536 | AX177: 1.161332536 | AY177: 1.161332536 | AZ177: 1.161332536 | BA177: 1.161332536 | BB177: 1.161332536 | BC177: 1.161332536 | BD177: 1.161332536 | BE177: 1.161332536 | BF177: 1.161332536 | BG177: 1.161332536 | BH177: 1.161332536 | BI177: 1.161332536 | BJ177: 1.161332536 | BK177: 1.161332536 | BL177: 1.161332536 | BM177: 1.161332536 | BN177: 1.161332536 | BO177: 1.161332536 | BP177: 1.161332536 | BV177: =BV146/BV164 -> 
B179: P99 DSCR
C180: Cash flow P99 case
D181: MWh P99 case | E181: MWh | H181: =H96 -> 0 | I181: 126115.0909 | J181: 128205.3962 | K181: 126115.0909 | L181: 128205.3962 | M181: 126115.0909 | N181: 128205.3962 | O181: 126811.8593 | P181: 128205.3962 | Q181: 126115.0909 | R181: 128205.3962 | S181: 126115.0909 | T181: 128205.3962 | U181: 126115.0909 | V181: 128205.3962 | W181: 126811.8593 | X181: 128205.3962 | Y181: 126115.0909 | Z181: 128205.3962 | AA181: 126115.0909 | AB181: 128205.3962 | AC181: 126115.0909 | AD181: 128205.3962 | AE181: 126811.8593 | AF181: 128205.3962 | AG181: 126115.0909 | AH181: 128205.3962 | AI181: 126115.0909 | AJ181: 128205.3962 | AK181: 126115.0909 | AL181: 128205.3962 | AM181: 126811.8593 | AN181: 128205.3962 | AO181: 126115.0909 | AP181: 128205.3962 | AQ181: 126115.0909 | AR181: 128205.3962 | AS181: 126115.0909 | AT181: 128205.3962 | AU181: 126811.8593 | AV181: 128205.3962 | AW181: 126115.0909 | AX181: 128205.3962 | AY181: 126115.0909 | AZ181: 128205.3962 | BA181: 126115.0909 | BB181: 128205.3962 | BC181: 126811.8593 | BD181: 128205.3962 | BE181: 126115.0909 | BF181: 128205.3962 | BG181: 126115.0909 | BH181: 128205.3962 | BI181: 126115.0909 | BJ181: 128205.3962 | BK181: 126811.8593 | BL181: 128205.3962 | BM181: 126115.0909 | BN181: 128205.3962 | BO181: 126115.0909 | BP181: 128205.3962 | BQ181: 0 | BR181: 0 | BS181: 0 | BT181: =BT96 -> 0 | BU181: 0 | BV181: 0 | BW181: 0 | BX181: 0 | BY181: 0 | BZ181: 0 | CA181: 0 | CB181: 0 | CC181: 0 | CD181: 0 | CE181: 0 | CF181: 0 | CG181: 0 | CH181: 0 | CI181: 0 | CJ181: 0 | CK181: 0 | CL181: 0 | CM181: 0 | CN181: 0 | CO181: 0 | CP181: 0 | CQ181: 0 | CR181: 0 | CS181: 0 | CT181: 0 | CU181: 0 | CV181: 0 | CW181: 0 | CX181: 0 | CY181: 0 | CZ181: 0 | DA181: 0 | DB181: 0 | DC181: 0
D182: Price - variable cost | E182: Euro/MWh | H182: =H142 -> 0 | I182: 18.18009541 | J182: 18.40594377 | K182: 18.6345978 | L182: 18.86609236 | M182: 19.10046274 | N182: 19.33774467 | O182: 19.57797431 | P182: 19.82118829 | Q182: 20.06742367 | R182: 20.31671799 | S182: 20.56910926 | T182: 20.82463594 | U182: 21.08333699 | V182: 21.34525184 | W182: 21.61042042 | X182: 21.87888314 | Y182: 22.15068093 | Z182: 22.42585522 | AA182: 22.70444795 | AB182: 22.9865016 | AC182: 23.27205915 | AD182: 23.56116414 | AE182: 23.85386063 | AF182: 24.15019324 | AG182: 24.45020714 | AH182: 24.75394807 | AI182: 25.06146232 | AJ182: 25.37279677 | AK182: 25.68799888 | AL182: 26.00711669 | AM182: 26.33019885 | AN182: 26.65729461 | AO182: 26.98845382 | AP182: 27.32372698 | AQ182: 27.66316517 | AR182: 28.00682015 | AS182: 28.3547443 | AT182: 28.70699065 | AU182: 29.06361291 | AV182: 29.42466542 | AW182: 29.79020323 | AX182: 30.16028205 | AY182: 30.53495831 | AZ182: 30.91428911 | BA182: 31.29833227 | BB182: 31.68714633 | BC182: 32.08079057 | BD182: 32.47932499 | BE182: 32.88281034 | BF182: 33.29130812 | BG182: 33.7048806 | BH182: 34.12359082 | BI182: 34.54750261 | BJ182: 34.97668059 | BK182: 35.41119018 | BL182: 35.85109761 | BM182: 36.29646993 | BN182: 36.74737505 | BO182: 37.20388168 | BP182: 37.66605942 | BQ182: 0 | BR182: 0 | BS182: 0 | BT182: =BT142 -> 0 | BU182: 0 | BV182: 0 | BW182: 0 | BX182: 0 | BY182: 0 | BZ182: 0 | CA182: 0 | CB182: 0 | CC182: 0 | CD182: 0 | CE182: 0 | CF182: 0 | CG182: 0 | CH182: 0 | CI182: 0 | CJ182: 0 | CK182: 0 | CL182: 0 | CM182: 0 | CN182: 0 | CO182: 0 | CP182: 0 | CQ182: 0 | CR182: 0 | CS182: 0 | CT182: 0 | CU182: 0 | CV182: 0 | CW182: 0 | CX182: 0 | CY182: 0 | CZ182: 0 | DA182: 0 | DB182: 0 | DC182: 0
D183: Margin P99 case | E183: Euro 000's | H183: =H181*H182/1000 -> 0 | I183: =I181*I182/1000 -> 2292.784385 | J183: 2359.741314 | K183: 2350.103994 | L183: 2418.734847 | M183: 2408.856594 | N183: 2479.203218 | O183: 2482.719324 | P183: 2541.183298 | Q183: 2530.804959 | R183: 2604.712881 | S183: 2594.075083 | T183: 2669.830703 | U183: 2658.92696 | V183: 2736.57647 | W183: 2740.457594 | X183: 2804.990882 | Y183: 2793.535138 | Z183: 2875.115654 | AA183: 2863.373516 | AB183: 2946.993545 | AC183: 2934.957854 | AD183: 3020.668384 | AE183: 3024.952418 | AF183: 3096.185094 | AG183: 3083.540096 | AH183: 3173.589721 | AI183: 3160.628598 | AJ183: 3252.929464 | AK183: 3239.644313 | AL183: 3334.252701 | AM183: 3338.981473 | AN183: 3417.609018 | AO183: 3403.651306 | AP183: 3503.049243 | AQ183: 3488.742589 | AR183: 3590.625475 | AS183: 3575.961154 | AT183: 3680.391111 | AU183: 3685.610791 | AV183: 3772.400889 | AW183: 3756.994187 | AX183: 3866.710911 | AY183: 3850.919042 | AZ183: 3963.378684 | BA183: 3947.192018 | BB183: 4062.463151 | BC183: 4068.224701 | BD183: 4164.02473 | BE183: 4147.018614 | BF183: 4268.125348 | BG183: 4250.694079 | BH183: 4374.828482 | BI183: 4356.961431 | BJ183: 4484.199194 | BK183: 4490.558867 | BL183: 4596.304174 | BM183: 4577.532603 | BN183: 4711.211778 | BO183: 4691.970919 | BP183: 4828.992073 | BQ183: 0 | BR183: 0 | BS183: 0 | BT183: 0 | BU183: =BU181*BU182/1000 -> 0 | BV183: 0 | BW183: 0 | BX183: 0 | BY183: 0 | BZ183: 0 | CA183: 0 | CB183: 0 | CC183: 0 | CD183: 0 | CE183: 0 | CF183: 0 | CG183: 0 | CH183: 0 | CI183: 0 | CJ183: 0 | CK183: 0 | CL183: 0 | CM183: 0 | CN183: 0 | CO183: 0 | CP183: 0 | CQ183: 0 | CR183: 0 | CS183: 0 | CT183: 0 | CU183: 0 | CV183: 0 | CW183: 0 | CX183: 0 | CY183: 0 | CZ183: 0 | DA183: 0 | DB183: 0 | DC183: 0
D184: Fixed Cost | E184: Euro 000's | H184: =H116 -> 0 | I184: 0 | J184: 0 | K184: 0 | L184: 0 | M184: 0 | N184: 0 | O184: 0 | P184: 0 | Q184: 0 | R184: 0 | S184: 0 | T184: 0 | U184: 0 | V184: 0 | W184: 0 | X184: 0 | Y184: 0 | Z184: 0 | AA184: 0 | AB184: 0 | AC184: 0 | AD184: 0 | AE184: 0 | AF184: 0 | AG184: 0 | AH184: 0 | AI184: 0 | AJ184: 0 | AK184: 0 | AL184: 0 | AM184: 0 | AN184: 0 | AO184: 0 | AP184: 0 | AQ184: 0 | AR184: 0 | AS184: 0 | AT184: 0 | AU184: 0 | AV184: 0 | AW184: 0 | AX184: 0 | AY184: 0 | AZ184: 0 | BA184: 0 | BB184: 0 | BC184: 0 | BD184: 0 | BE184: 0 | BF184: 0 | BG184: 0 | BH184: 0 | BI184: 0 | BJ184: 0 | BK184: 0 | BL184: 0 | BM184: 0 | BN184: 0 | BO184: 0 | BP184: 0 | BQ184: 0 | BR184: 0 | BS184: 0 | BT184: =BT116 -> 0 | BU184: 0 | BV184: 0 | BW184: 0 | BX184: 0 | BY184: 0 | BZ184: 0 | CA184: 0 | CB184: 0 | CC184: 0 | CD184: 0 | CE184: 0 | CF184: 0 | CG184: 0 | CH184: 0 | CI184: 0 | CJ184: 0 | CK184: 0 | CL184: 0 | CM184: 0 | CN184: 0 | CO184: 0 | CP184: 0 | CQ184: 0 | CR184: 0 | CS184: 0 | CT184: 0 | CU184: 0 | CV184: 0 | CW184: 0 | CX184: 0 | CY184: 0 | CZ184: 0 | DA184: 0 | DB184: 0 | DC184: 0
D185: EBITDA P99 | E185: Euro 000's | H185: =H183-H184 -> 0 | I185: =I183-I184 -> 2292.784385 | J185: 2359.741314 | K185: 2350.103994 | L185: 2418.734847 | M185: 2408.856594 | N185: 2479.203218 | O185: 2482.719324 | P185: 2541.183298 | Q185: 2530.804959 | R185: 2604.712881 | S185: 2594.075083 | T185: 2669.830703 | U185: 2658.92696 | V185: 2736.57647 | W185: 2740.457594 | X185: 2804.990882 | Y185: 2793.535138 | Z185: 2875.115654 | AA185: 2863.373516 | AB185: 2946.993545 | AC185: 2934.957854 | AD185: 3020.668384 | AE185: 3024.952418 | AF185: 3096.185094 | AG185: 3083.540096 | AH185: 3173.589721 | AI185: 3160.628598 | AJ185: 3252.929464 | AK185: 3239.644313 | AL185: 3334.252701 | AM185: 3338.981473 | AN185: 3417.609018 | AO185: 3403.651306 | AP185: 3503.049243 | AQ185: 3488.742589 | AR185: 3590.625475 | AS185: 3575.961154 | AT185: 3680.391111 | AU185: 3685.610791 | AV185: 3772.400889 | AW185: 3756.994187 | AX185: 3866.710911 | AY185: 3850.919042 | AZ185: 3963.378684 | BA185: 3947.192018 | BB185: 4062.463151 | BC185: 4068.224701 | BD185: 4164.02473 | BE185: 4147.018614 | BF185: 4268.125348 | BG185: 4250.694079 | BH185: 4374.828482 | BI185: 4356.961431 | BJ185: 4484.199194 | BK185: 4490.558867 | BL185: 4596.304174 | BM185: 4577.532603 | BN185: 4711.211778 | BO185: 4691.970919 | BP185: 4828.992073 | BQ185: 0 | BR185: 0 | BS185: 0 | BT185: 0 | BU185: =BU183-BU184 -> 0 | BV185: 0 | BW185: 0 | BX185: 0 | BY185: 0 | BZ185: 0 | CA185: 0 | CB185: 0 | CC185: 0 | CD185: 0 | CE185: 0 | CF185: 0 | CG185: 0 | CH185: 0 | CI185: 0 | CJ185: 0 | CK185: 0 | CL185: 0 | CM185: 0 | CN185: 0 | CO185: 0 | CP185: 0 | CQ185: 0 | CR185: 0 | CS185: 0 | CT185: 0 | CU185: 0 | CV185: 0 | CW185: 0 | CX185: 0 | CY185: 0 | CZ185: 0 | DA185: 0 | DB185: 0 | DC185: 0
D186: CFADS P99 case | E186: Euro 000's | H186: =H185 -> 0 | I186: =I185 -> 2292.784385 | J186: 2359.741314 | K186: 2350.103994 | L186: 2418.734847 | M186: 2408.856594 | N186: 2479.203218 | O186: 2482.719324 | P186: 2541.183298 | Q186: 2530.804959 | R186: 2604.712881 | S186: 2594.075083 | T186: 2669.830703 | U186: 2658.92696 | V186: 2736.57647 | W186: 2740.457594 | X186: 2804.990882 | Y186: 2793.535138 | Z186: 2875.115654 | AA186: 2863.373516 | AB186: 2946.993545 | AC186: 2934.957854 | AD186: 3020.668384 | AE186: 3024.952418 | AF186: 3096.185094 | AG186: 3083.540096 | AH186: 3173.589721 | AI186: 3160.628598 | AJ186: 3252.929464 | AK186: 3239.644313 | AL186: 3334.252701 | AM186: 3338.981473 | AN186: 3417.609018 | AO186: 3403.651306 | AP186: 3503.049243 | AQ186: 3488.742589 | AR186: 3590.625475 | AS186: 3575.961154 | AT186: 3680.391111 | AU186: 3685.610791 | AV186: 3772.400889 | AW186: 3756.994187 | AX186: 3866.710911 | AY186: 3850.919042 | AZ186: 3963.378684 | BA186: 3947.192018 | BB186: 4062.463151 | BC186: 4068.224701 | BD186: 4164.02473 | BE186: 4147.018614 | BF186: 4268.125348 | BG186: 4250.694079 | BH186: 4374.828482 | BI186: 4356.961431 | BJ186: 4484.199194 | BK186: 4490.558867 | BL186: 4596.304174 | BM186: 4577.532603 | BN186: 4711.211778 | BO186: 4691.970919 | BP186: 4828.992073 | BQ186: 0 | BR186: 0 | BS186: 0 | BT186: 0 | BU186: =BU185 -> 0 | BV186: 0 | BW186: 0 | BX186: 0 | BY186: 0 | BZ186: 0 | CA186: 0 | CB186: 0 | CC186: 0 | CD186: 0 | CE186: 0 | CF186: 0 | CG186: 0 | CH186: 0 | CI186: 0 | CJ186: 0 | CK186: 0 | CL186: 0 | CM186: 0 | CN186: 0 | CO186: 0 | CP186: 0 | CQ186: 0 | CR186: 0 | CS186: 0 | CT186: 0 | CU186: 0 | CV186: 0 | CW186: 0 | CX186: 0 | CY186: 0 | CZ186: 0 | DA186: 0 | DB186: 0 | DC186: 0
D187: Target Debt Service | E187: Times | F187: =F62 -> 1 | H187: =H186/$F$187 -> 0 | I187: =I186/$F$187 -> 2292.784385 | J187: 2359.741314 | K187: 2350.103994 | L187: 2418.734847 | M187: 2408.856594 | N187: 2479.203218 | O187: 2482.719324 | P187: 2541.183298 | Q187: 2530.804959 | R187: 2604.712881 | S187: 2594.075083 | T187: 2669.830703 | U187: 2658.92696 | V187: 2736.57647 | W187: 2740.457594 | X187: 2804.990882 | Y187: 2793.535138 | Z187: 2875.115654 | AA187: 2863.373516 | AB187: 2946.993545 | AC187: 2934.957854 | AD187: 3020.668384 | AE187: 3024.952418 | AF187: 3096.185094 | AG187: 3083.540096 | AH187: 3173.589721 | AI187: 3160.628598 | AJ187: 3252.929464 | AK187: 3239.644313 | AL187: 3334.252701 | AM187: 3338.981473 | AN187: 3417.609018 | AO187: 3403.651306 | AP187: 3503.049243 | AQ187: 3488.742589 | AR187: 3590.625475 | AS187: 3575.961154 | AT187: 3680.391111 | AU187: 3685.610791 | AV187: 3772.400889 | AW187: 3756.994187 | AX187: 3866.710911 | AY187: 3850.919042 | AZ187: 3963.378684 | BA187: 3947.192018 | BB187: 4062.463151 | BC187: 4068.224701 | BD187: 4164.02473 | BE187: 4147.018614 | BF187: 4268.125348 | BG187: 4250.694079 | BH187: 4374.828482 | BI187: 4356.961431 | BJ187: 4484.199194 | BK187: 4490.558867 | BL187: 4596.304174 | BM187: 4577.532603 | BN187: 4711.211778 | BO187: 4691.970919 | BP187: 4828.992073 | BQ187: 0 | BR187: 0 | BS187: 0 | BT187: 0 | BU187: =BU186/$F$187 -> 0 | BV187: 0 | BW187: 0 | BX187: 0 | BY187: 0 | BZ187: 0 | CA187: 0 | CB187: 0 | CC187: 0 | CD187: 0 | CE187: 0 | CF187: 0 | CG187: 0 | CH187: 0 | CI187: 0 | CJ187: 0 | CK187: 0 | CL187: 0 | CM187: 0 | CN187: 0 | CO187: 0 | CP187: 0 | CQ187: 0 | CR187: 0 | CS187: 0 | CT187: 0 | CU187: 0 | CV187: 0 | CW187: 0 | CX187: 0 | CY187: 0 | CZ187: 0 | DA187: 0 | DB187: 0 | DC187: 0
D189: Target Debt Service over debt maturity | E189: Euro 000's | H189: =H187*H$137 -> 0 | I189: =I187*I$137 -> 0 | J189: 2359.741314 | K189: 2350.103994 | L189: 2418.734847 | M189: 2408.856594 | N189: 2479.203218 | O189: 2482.719324 | P189: 2541.183298 | Q189: 2530.804959 | R189: 2604.712881 | S189: 2594.075083 | T189: 2669.830703 | U189: 2658.92696 | V189: 2736.57647 | W189: 2740.457594 | X189: 2804.990882 | Y189: 2793.535138 | Z189: 2875.115654 | AA189: 2863.373516 | AB189: 2946.993545 | AC189: 2934.957854 | AD189: 3020.668384 | AE189: 3024.952418 | AF189: 3096.185094 | AG189: 3083.540096 | AH189: 3173.589721 | AI189: 3160.628598 | AJ189: 3252.929464 | AK189: 3239.644313 | AL189: 3334.252701 | AM189: 3338.981473 | AN189: 3417.609018 | AO189: 3403.651306 | AP189: 3503.049243 | AQ189: 3488.742589 | AR189: 3590.625475 | AS189: 3575.961154 | AT189: 3680.391111 | AU189: 3685.610791 | AV189: 3772.400889 | AW189: 0 | AX189: 0 | AY189: 0 | AZ189: 0 | BA189: 0 | BB189: 0 | BC189: 0 | BD189: 0 | BE189: 0 | BF189: 0 | BG189: 0 | BH189: 0 | BI189: 0 | BJ189: 0 | BK189: 0 | BL189: 0 | BM189: 0 | BN189: 0 | BO189: 0 | BP189: 0 | BQ189: 0 | BR189: 0 | BS189: 0 | BT189: 0 | BU189: =BU187*BU$137 -> 0 | BV189: 0 | BW189: 0 | BX189: 0 | BY189: 0 | BZ189: 0 | CA189: 0 | CB189: 0 | CC189: 0 | CD189: 0 | CE189: 0 | CF189: 0 | CG189: 0 | CH189: 0 | CI189: 0 | CJ189: 0 | CK189: 0 | CL189: 0 | CM189: 0 | CN189: 0 | CO189: 0 | CP189: 0 | CQ189: 0 | CR189: 0 | CS189: 0 | CT189: 0 | CU189: 0 | CV189: 0 | CW189: 0 | CX189: 0 | CY189: 0 | CZ189: 0 | DA189: 0 | DB189: 0 | DC189: 0
D190: NPV of debt service =size of debt | E190: Euro 000's | F190: =F169 -> 0.0165 | G190: 1 | H190: =G190*(1+$F$190*H$137) -> 1 | I190: =H190*(1+$F$169*I$137) -> 1 | J190: 1.0165 | K190: 1.03327225 | L190: 1.050321242 | M190: 1.067651543 | N190: 1.085267793 | O190: 1.103174712 | P190: 1.121377094 | Q190: 1.139879816 | R190: 1.158687833 | S190: 1.177806183 | T190: 1.197239985 | U190: 1.216994444 | V190: 1.237074853 | W190: 1.257486588 | X190: 1.278235117 | Y190: 1.299325996 | Z190: 1.320764875 | AA190: 1.342557495 | AB190: 1.364709694 | AC190: 1.387227404 | AD190: 1.410116656 | AE190: 1.433383581 | AF190: 1.45703441 | AG190: 1.481075478 | AH190: 1.505513223 | AI190: 1.530354191 | AJ190: 1.555605036 | AK190: 1.581272519 | AL190: 1.607363515 | AM190: 1.633885013 | AN190: 1.660844116 | AO190: 1.688248044 | AP190: 1.716104137 | AQ190: 1.744419855 | AR190: 1.773202782 | AS190: 1.802460628 | AT190: 1.832201229 | AU190: 1.862432549 | AV190: 1.893162686 | AW190: 1.893162686 | AX190: 1.893162686 | AY190: 1.893162686 | AZ190: 1.893162686 | BA190: 1.893162686 | BB190: 1.893162686 | BC190: 1.893162686 | BD190: 1.893162686 | BE190: 1.893162686 | BF190: 1.893162686 | BG190: 1.893162686 | BH190: 1.893162686 | BI190: 1.893162686 | BJ190: 1.893162686 | BK190: 1.893162686 | BL190: 1.893162686 | BM190: 1.893162686 | BN190: 1.893162686 | BO190: 1.893162686 | BP190: 1.893162686 | BQ190: 1.893162686 | BR190: 1.893162686 | BS190: 1.893162686 | BT190: 1.893162686 | BU190: =BT190*(1+$F$169*BU$137) -> 1.893162686 | BV190: 1.893162686 | BW190: 1.893162686 | BX190: 1.893162686 | BY190: 1.893162686 | BZ190: 1.893162686 | CA190: 1.893162686 | CB190: 1.893162686 | CC190: 1.893162686 | CD190: 1.893162686 | CE190: 1.893162686 | CF190: 1.893162686 | CG190: 1.893162686 | CH190: 1.893162686 | CI190: 1.893162686 | CJ190: 1.893162686 | CK190: 1.893162686 | CL190: 1.893162686 | CM190: 1.893162686 | CN190: 1.893162686 | CO190: 1.893162686 | CP190: 1.893162686 | CQ190: 1.893162686 | CR190: 1.893162686 | CS190: 1.893162686 | CT190: 1.893162686 | CU190: 1.893162686 | CV190: 1.893162686 | CW190: 1.893162686 | CX190: 1.893162686 | CY190: 1.893162686 | CZ190: 1.893162686 | DA190: 1.893162686 | DB190: 1.893162686 | DC190: 1.893162686
D191: Size of Debt from P99 | E191: Euro 000's | F191: =SUMPRODUCT(H189:DC189/H190:DC190) -> 83356.8877 | G191: 3
D193: Opening Balance | H193: =G195 -> 83356.8877 | I193: =H195 -> 83356.8877 | J193: 83356.8877 | K193: 82372.53504 | L193: 81381.57787 | M193: 80305.63906 | N193: 79221.82551 | O193: 78049.78241 | P193: 76854.8845 | Q193: 75581.80679 | R193: 74298.10165 | S193: 72919.30744 | T193: 71528.40093 | U193: 70038.78885 | V193: 68535.5019 | W193: 66929.76121 | X193: 65293.64468 | Y193: 63565.99893 | Z193: 61821.30278 | AA193: 59966.23862 | AB193: 58092.30804 | AC193: 56103.83758 | AD193: 54094.59305 | AE193: 51966.48545 | AF193: 49798.98004 | AG193: 47524.47812 | AH193: 45225.09191 | AI193: 42797.7162 | AJ193: 40343.24992 | AK193: 37755.98408 | AL193: 35139.31351 | AM193: 32384.85948 | AN193: 29580.22819 | AO193: 26650.69294 | AP193: 23686.77806 | AQ193: 20574.56066 | AR193: 17425.29832 | AS193: 14122.19027 | AT193: 10779.24525 | AU193: 7276.711688 | AV193: 3711.16664 | AW193: 1.577973308e-10 | AX193: 1.577973308e-10 | AY193: 1.577973308e-10 | AZ193: 1.577973308e-10 | BA193: 1.577973308e-10 | BB193: 1.577973308e-10 | BC193: 1.577973308e-10 | BD193: 1.577973308e-10 | BE193: 1.577973308e-10 | BF193: 1.577973308e-10 | BG193: 1.577973308e-10 | BH193: 1.577973308e-10 | BI193: 1.577973308e-10 | BJ193: 1.577973308e-10 | BK193: 1.577973308e-10 | BL193: 1.577973308e-10 | BM193: 1.577973308e-10 | BN193: 1.577973308e-10 | BO193: 1.577973308e-10 | BP193: 1.577973308e-10 | BQ193: 1.577973308e-10 | BR193: 1.577973308e-10 | BS193: 1.577973308e-10 | BT193: 1.577973308e-10 | BU193: =BT195 -> 1.577973308e-10 | BV193: 1.577973308e-10 | BW193: 1.577973308e-10 | BX193: 1.577973308e-10 | BY193: 1.577973308e-10 | BZ193: 1.577973308e-10 | CA193: 1.577973308e-10 | CB193: 1.577973308e-10 | CC193: 1.577973308e-10 | CD193: 1.577973308e-10 | CE193: 1.577973308e-10 | CF193: 1.577973308e-10 | CG193: 1.577973308e-10 | CH193: 1.577973308e-10 | CI193: 1.577973308e-10 | CJ193: 1.577973308e-10 | CK193: 1.577973308e-10 | CL193: 1.577973308e-10 | CM193: 1.577973308e-10 | CN193: 1.577973308e-10 | CO193: 1.577973308e-10 | CP193: 1.577973308e-10 | CQ193: 1.577973308e-10 | CR193: 1.577973308e-10 | CS193: 1.577973308e-10 | CT193: 1.577973308e-10 | CU193: 1.577973308e-10 | CV193: 1.577973308e-10 | CW193: 1.577973308e-10 | CX193: 1.577973308e-10 | CY193: 1.577973308e-10 | CZ193: 1.577973308e-10 | DA193: 1.577973308e-10 | DB193: 1.577973308e-10 | DC193: 1.577973308e-10
D194: Less Repayments | H194: =(H189-H196)*H$137 -> 0 | I194: =(I189-I196)*I$137 -> 0 | J194: 984.3526666 | K194: 990.9571663 | L194: 1075.938812 | M194: 1083.81355 | N194: 1172.043097 | O194: 1194.897914 | P194: 1273.077704 | Q194: 1283.705147 | R194: 1378.794203 | S194: 1390.906511 | T194: 1489.612087 | U194: 1503.286945 | V194: 1605.740689 | W194: 1636.116534 | X194: 1727.645745 | Y194: 1744.696155 | Z194: 1855.064158 | AA194: 1873.930579 | AB194: 1988.470463 | AC194: 2009.244534 | AD194: 2128.107599 | AE194: 2167.505408 | AF194: 2274.501923 | AG194: 2299.386207 | AH194: 2427.375704 | AI194: 2454.466281 | AJ194: 2587.26584 | AK194: 2616.670576 | AL194: 2754.454028 | AM194: 2804.631291 | AN194: 2929.535253 | AO194: 2963.914873 | AP194: 3112.217405 | AQ194: 3149.262338 | AR194: 3303.108052 | AS194: 3342.945014 | AT194: 3502.533565 | AU194: 3565.545048 | AV194: 3711.16664 | AW194: 0 | AX194: 0 | AY194: 0 | AZ194: 0 | BA194: 0 | BB194: 0 | BC194: 0 | BD194: 0 | BE194: 0 | BF194: 0 | BG194: 0 | BH194: 0 | BI194: 0 | BJ194: 0 | BK194: 0 | BL194: 0 | BM194: 0 | BN194: 0 | BO194: 0 | BP194: 0 | BQ194: 0 | BR194: 0 | BS194: 0 | BT194: 0 | BU194: =(BU189-BU196)*BU$137 -> 0 | BV194: 0 | BW194: 0 | BX194: 0 | BY194: 0 | BZ194: 0 | CA194: 0 | CB194: 0 | CC194: 0 | CD194: 0 | CE194: 0 | CF194: 0 | CG194: 0 | CH194: 0 | CI194: 0 | CJ194: 0 | CK194: 0 | CL194: 0 | CM194: 0 | CN194: 0 | CO194: 0 | CP194: 0 | CQ194: 0 | CR194: 0 | CS194: 0 | CT194: 0 | CU194: 0 | CV194: 0 | CW194: 0 | CX194: 0 | CY194: 0 | CZ194: 0 | DA194: 0 | DB194: 0 | DC194: 0
D195: Closing Balance | G195: =F191 -> 83356.8877 | H195: =H193-H194 -> 83356.8877 | I195: =I193-I194 -> 83356.8877 | J195: 82372.53504 | K195: 81381.57787 | L195: 80305.63906 | M195: 79221.82551 | N195: 78049.78241 | O195: 76854.8845 | P195: 75581.80679 | Q195: 74298.10165 | R195: 72919.30744 | S195: 71528.40093 | T195: 70038.78885 | U195: 68535.5019 | V195: 66929.76121 | W195: 65293.64468 | X195: 63565.99893 | Y195: 61821.30278 | Z195: 59966.23862 | AA195: 58092.30804 | AB195: 56103.83758 | AC195: 54094.59305 | AD195: 51966.48545 | AE195: 49798.98004 | AF195: 47524.47812 | AG195: 45225.09191 | AH195: 42797.7162 | AI195: 40343.24992 | AJ195: 37755.98408 | AK195: 35139.31351 | AL195: 32384.85948 | AM195: 29580.22819 | AN195: 26650.69294 | AO195: 23686.77806 | AP195: 20574.56066 | AQ195: 17425.29832 | AR195: 14122.19027 | AS195: 10779.24525 | AT195: 7276.711688 | AU195: 3711.16664 | AV195: 1.577973308e-10 | AW195: 1.577973308e-10 | AX195: 1.577973308e-10 | AY195: 1.577973308e-10 | AZ195: 1.577973308e-10 | BA195: 1.577973308e-10 | BB195: 1.577973308e-10 | BC195: 1.577973308e-10 | BD195: 1.577973308e-10 | BE195: 1.577973308e-10 | BF195: 1.577973308e-10 | BG195: 1.577973308e-10 | BH195: 1.577973308e-10 | BI195: 1.577973308e-10 | BJ195: 1.577973308e-10 | BK195: 1.577973308e-10 | BL195: 1.577973308e-10 | BM195: 1.577973308e-10 | BN195: 1.577973308e-10 | BO195: 1.577973308e-10 | BP195: 1.577973308e-10 | BQ195: 1.577973308e-10 | BR195: 1.577973308e-10 | BS195: 1.577973308e-10 | BT195: 1.577973308e-10 | BU195: =BU193-BU194 -> 1.577973308e-10 | BV195: 1.577973308e-10 | BW195: 1.577973308e-10 | BX195: 1.577973308e-10 | BY195: 1.577973308e-10 | BZ195: 1.577973308e-10 | CA195: 1.577973308e-10 | CB195: 1.577973308e-10 | CC195: 1.577973308e-10 | CD195: 1.577973308e-10 | CE195: 1.577973308e-10 | CF195: 1.577973308e-10 | CG195: 1.577973308e-10 | CH195: 1.577973308e-10 | CI195: 1.577973308e-10 | CJ195: 1.577973308e-10 | CK195: 1.577973308e-10 | CL195: 1.577973308e-10 | CM195: 1.577973308e-10 | CN195: 1.577973308e-10 | CO195: 1.577973308e-10 | CP195: 1.577973308e-10 | CQ195: 1.577973308e-10 | CR195: 1.577973308e-10 | CS195: 1.577973308e-10 | CT195: 1.577973308e-10 | CU195: 1.577973308e-10 | CV195: 1.577973308e-10 | CW195: 1.577973308e-10 | CX195: 1.577973308e-10 | CY195: 1.577973308e-10 | CZ195: 1.577973308e-10 | DA195: 1.577973308e-10 | DB195: 1.577973308e-10 | DC195: 1.577973308e-10
D196: Interest | F196: =F190 -> 0.0165 | H196: =H193*$F$196*H$5 -> 0 | I196: 1375.388647 | J196: 1375.388647 | K196: 1359.146828 | L196: 1342.796035 | M196: 1325.043044 | N196: 1307.160121 | O196: 1287.82141 | P196: 1268.105594 | Q196: 1247.099812 | R196: 1225.918677 | S196: 1203.168573 | T196: 1180.218615 | U196: 1155.640016 | V196: 1130.835781 | W196: 1104.34106 | X196: 1077.345137 | Y196: 1048.838982 | Z196: 1020.051496 | AA196: 989.4429372 | AB196: 958.5230827 | AC196: 925.7133201 | AD196: 892.5607852 | AE196: 857.4470099 | AF196: 821.6831706 | AG196: 784.1538889 | AH196: 746.2140165 | AI196: 706.1623174 | AJ196: 665.6636237 | AK196: 622.9737374 | AL196: 579.7986729 | AM196: 534.3501814 | AN196: 488.0737651 | AO196: 439.7364334 | AP196: 390.831838 | AQ196: 339.4802508 | AR196: 287.5174223 | AS196: 233.0161394 | AT196: 177.8575467 | AU196: 120.0657429 | AV196: 61.23424955 | AW196: 2.603655958e-12 | AX196: 2.603655958e-12 | AY196: 2.603655958e-12 | AZ196: 2.603655958e-12 | BA196: 2.603655958e-12 | BB196: 2.603655958e-12 | BC196: 2.603655958e-12 | BD196: 2.603655958e-12 | BE196: 2.603655958e-12 | BF196: 2.603655958e-12 | BG196: 2.603655958e-12 | BH196: 2.603655958e-12 | BI196: 2.603655958e-12 | BJ196: 2.603655958e-12 | BK196: 2.603655958e-12 | BL196: 2.603655958e-12 | BM196: 2.603655958e-12 | BN196: 2.603655958e-12 | BO196: 2.603655958e-12 | BP196: 2.603655958e-12 | BQ196: 0 | BR196: 0 | BS196: 0 | BT196: =BT193*$F$196*BT$5 -> 0 | BU196: 0 | BV196: 0 | BW196: 0 | BX196: 0 | BY196: 0 | BZ196: 0 | CA196: 0 | CB196: 0 | CC196: 0 | CD196: 0 | CE196: 0 | CF196: 0 | CG196: 0 | CH196: 0 | CI196: 0 | CJ196: 0 | CK196: 0 | CL196: 0 | CM196: 0 | CN196: 0 | CO196: 0 | CP196: 0 | CQ196: 0 | CR196: 0 | CS196: 0 | CT196: 0 | CU196: 0 | CV196: 0 | CW196: 0 | CX196: 0 | CY196: 0 | CZ196: 0 | DA196: 0 | DB196: 0 | DC196: 0
D198: Min Debt from DSCR | F198: =MIN(F191,F170,F151) -> 82567.35781 | G198: =MATCH(F198,F:F,0) -> 151 | H198: =INDEX(G:G,$G$198) -> 1 | I198: =INDEX(D:D,$G$198) -> Size of Debt from P50
D200: P99/P50 | I200: =I146/I187 -> 1.33721323 | J200: =J146/J187 -> 1.33721323 | K200: 1.33721323 | L200: 1.33721323 | M200: 1.33721323 | N200: 1.33721323 | O200: 1.33721323 | P200: 1.33721323 | Q200: 1.33721323 | R200: 1.33721323 | S200: 1.33721323 | T200: 1.33721323 | U200: 1.33721323 | V200: 1.33721323 | W200: 1.33721323 | X200: 1.33721323 | Y200: 1.33721323 | Z200: 1.33721323 | AA200: 1.33721323 | AB200: 1.33721323 | AC200: 1.33721323 | AD200: 1.33721323 | AE200: 1.33721323 | AF200: 1.33721323 | AG200: 1.33721323 | AH200: 1.33721323 | AI200: 1.33721323 | AJ200: 1.33721323 | AK200: 1.33721323 | AL200: 1.33721323 | AM200: 1.33721323 | AN200: 1.33721323 | AO200: 1.33721323 | AP200: 1.33721323 | AQ200: 1.33721323 | AR200: 1.33721323 | AS200: 1.33721323 | AT200: 1.33721323 | AU200: 1.33721323 | AV200: 1.33721323 | AW200: 1.33721323 | AX200: 1.33721323 | AY200: 1.33721323 | AZ200: 1.33721323 | BA200: 1.33721323 | BB200: 1.33721323 | BC200: 1.33721323 | BD200: 1.33721323 | BE200: 1.33721323 | BF200: 1.33721323 | BG200: 1.33721323 | BH200: 1.33721323 | BI200: 1.33721323 | BJ200: 1.33721323 | BK200: 1.33721323 | BL200: 1.33721323 | BM200: 1.33721323 | BN200: 1.33721323 | BO200: 1.33721323 | BP200: 1.33721323 | BV200: =BV146/BV187 -> 
A203: Project Finance
B204: Uses and Sources Summary
C205: Uses of Funds
D206: EPC Cost | H206: =F100 -> 112800
D207: Development Cost | H207: =F101 -> 3384
D208: Owners Cost | H208: =F102 -> 4324
D209: Fees | H209: =H213*F80 -> 1568.779798
D210: Total Cost | H210: =SUM(H206:H209) -> 122076.7798
C212: Sources of Funds | K212: DSCR Min | L212: Debt/Cap | M212: Max Debt/Cap
D213: Debt | G213: =H213/H210 -> 0.6763559618 | H213: =MIN(K213,M213) -> 82567.35781 | K213: =F198 -> 82567.35781 | L213: =F64 -> 0.82 | M213: =SUM(H206:H208)/(1/L213-F80) -> 100380.488 | O213: =MATCH(H213,K213:M213,0) -> 1 | P213: =CHOOSE(O213,K212&" "&I198,,M212) -> DSCR Min Size of Debt from P50
D214: Equity | G214: =H214/H210 -> 0.3236440382 | H214: =H210-H213 -> 39509.42199
D215: Total Sources | H215: =SUM(H213:H214) -> 122076.7798
A217: Debt Repayment, Interest and Schedule
B218: PV of CFADS over Loan Life
D219: Debt Repayment Switch | H219: =H137 -> FALSE | I219: FALSE | J219: TRUE | K219: TRUE | L219: TRUE | M219: TRUE | N219: TRUE | O219: TRUE | P219: TRUE | Q219: TRUE | R219: TRUE | S219: TRUE | T219: TRUE | U219: TRUE | V219: TRUE | W219: TRUE | X219: TRUE | Y219: TRUE | Z219: TRUE | AA219: TRUE | AB219: TRUE | AC219: TRUE | AD219: TRUE | AE219: TRUE | AF219: TRUE | AG219: TRUE | AH219: TRUE | AI219: TRUE | AJ219: TRUE | AK219: TRUE | AL219: TRUE | AM219: TRUE | AN219: TRUE | AO219: TRUE | AP219: TRUE | AQ219: TRUE | AR219: TRUE | AS219: TRUE | AT219: TRUE | AU219: TRUE | AV219: TRUE | AW219: FALSE | AX219: FALSE | AY219: FALSE | AZ219: FALSE | BA219: FALSE | BB219: FALSE | BC219: FALSE | BD219: FALSE | BE219: FALSE | BF219: FALSE | BG219: FALSE | BH219: FALSE | BI219: FALSE | BJ219: FALSE | BK219: FALSE | BL219: FALSE | BM219: FALSE | BN219: FALSE | BO219: FALSE | BP219: FALSE | BQ219: FALSE | BR219: FALSE | BS219: FALSE | BT219: =BT137 -> FALSE | BU219: FALSE | BV219: FALSE | BW219: FALSE | BX219: FALSE | BY219: FALSE | BZ219: FALSE | CA219: FALSE | CB219: FALSE | CC219: FALSE | CD219: FALSE | CE219: FALSE | CF219: FALSE | CG219: FALSE | CH219: FALSE | CI219: FALSE | CJ219: FALSE | CK219: FALSE | CL219: FALSE | CM219: FALSE | CN219: FALSE | CO219: FALSE | CP219: FALSE | CQ219: FALSE | CR219: FALSE | CS219: FALSE | CT219: FALSE | CU219: FALSE | CV219: FALSE | CW219: FALSE | CX219: FALSE | CY219: FALSE | CZ219: FALSE | DA219: FALSE | DB219: FALSE | DC219: FALSE
D221: P50 CFADS over Loan Life | H221: =H146*H219 -> 0 | I221: 0 | J221: 3155.477304 | K221: 3142.590153 | L221: 3234.364237 | M221: 3221.154907 | N221: 3315.223342 | O221: 3319.925127 | P221: 3398.103926 | Q221: 3384.225874 | R221: 3483.056524 | S221: 3468.831521 | T221: 3570.132937 | U221: 3555.552309 | V221: 3659.386261 | W221: 3664.576151 | X221: 3750.870917 | Y221: 3735.552145 | Z221: 3844.64269 | AA221: 3828.940948 | AB221: 3940.758757 | AC221: 3924.664472 | AD221: 4039.277726 | AE221: 4045.006394 | AF221: 4140.25967 | AG221: 4123.350611 | AH221: 4243.766161 | AI221: 4226.434376 | AJ221: 4349.860315 | AK221: 4332.095236 | AL221: 4458.606823 | AM221: 4464.9302 | AN221: 4570.071994 | AO221: 4551.407557 | AP221: 4684.323794 | AQ221: 4665.192746 | AR221: 4801.431888 | AS221: 4781.822564 | AT221: 4921.467686 | AU221: 4928.447511 | AV221: 5044.504378 | AW221: 0 | AX221: 0 | AY221: 0 | AZ221: 0 | BA221: 0 | BB221: 0 | BC221: 0 | BD221: 0 | BE221: 0 | BF221: 0 | BG221: 0 | BH221: 0 | BI221: 0 | BJ221: 0 | BK221: 0 | BL221: 0 | BM221: 0 | BN221: 0 | BO221: 0 | BP221: 0 | BQ221: 0 | BR221: 0 | BS221: 0 | BT221: =BT146*BT219 -> 0 | BU221: 0 | BV221: 0 | BW221: 0 | BX221: 0 | BY221: 0 | BZ221: 0 | CA221: 0 | CB221: 0 | CC221: 0 | CD221: 0 | CE221: 0 | CF221: 0 | CG221: 0 | CH221: 0 | CI221: 0 | CJ221: 0 | CK221: 0 | CL221: 0 | CM221: 0 | CN221: 0 | CO221: 0 | CP221: 0 | CQ221: 0 | CR221: 0 | CS221: 0 | CT221: 0 | CU221: 0 | CV221: 0 | CW221: 0 | CX221: 0 | CY221: 0 | CZ221: 0 | DA221: 0 | DB221: 0 | DC221: 0
D222: P90 CFADS over Loan Life | H222: =H186*H219 -> 0 | I222: =I186*I219 -> 0 | J222: 2359.741314 | K222: 2350.103994 | L222: 2418.734847 | M222: 2408.856594 | N222: 2479.203218 | O222: 2482.719324 | P222: 2541.183298 | Q222: 2530.804959 | R222: 2604.712881 | S222: 2594.075083 | T222: 2669.830703 | U222: 2658.92696 | V222: 2736.57647 | W222: 2740.457594 | X222: 2804.990882 | Y222: 2793.535138 | Z222: 2875.115654 | AA222: 2863.373516 | AB222: 2946.993545 | AC222: 2934.957854 | AD222: 3020.668384 | AE222: 3024.952418 | AF222: 3096.185094 | AG222: 3083.540096 | AH222: 3173.589721 | AI222: 3160.628598 | AJ222: 3252.929464 | AK222: 3239.644313 | AL222: 3334.252701 | AM222: 3338.981473 | AN222: 3417.609018 | AO222: 3403.651306 | AP222: 3503.049243 | AQ222: 3488.742589 | AR222: 3590.625475 | AS222: 3575.961154 | AT222: 3680.391111 | AU222: 3685.610791 | AV222: 3772.400889 | AW222: 0 | AX222: 0 | AY222: 0 | AZ222: 0 | BA222: 0 | BB222: 0 | BC222: 0 | BD222: 0 | BE222: 0 | BF222: 0 | BG222: 0 | BH222: 0 | BI222: 0 | BJ222: 0 | BK222: 0 | BL222: 0 | BM222: 0 | BN222: 0 | BO222: 0 | BP222: 0 | BQ222: 0 | BR222: 0 | BS222: 0 | BT222: 0 | BU222: =BU186*BU219 -> 0 | BV222: 0 | BW222: 0 | BX222: 0 | BY222: 0 | BZ222: 0 | CA222: 0 | CB222: 0 | CC222: 0 | CD222: 0 | CE222: 0 | CF222: 0 | CG222: 0 | CH222: 0 | CI222: 0 | CJ222: 0 | CK222: 0 | CL222: 0 | CM222: 0 | CN222: 0 | CO222: 0 | CP222: 0 | CQ222: 0 | CR222: 0 | CS222: 0 | CT222: 0 | CU222: 0 | CV222: 0 | CW222: 0 | CX222: 0 | CY222: 0 | CZ222: 0 | DA222: 0 | DB222: 0 | DC222: 0
D223: P99 CFADS over Loan Life | H223: =H186*H219 -> 0 | I223: =I186*I219 -> 0 | J223: 2359.741314 | K223: 2350.103994 | L223: 2418.734847 | M223: 2408.856594 | N223: 2479.203218 | O223: 2482.719324 | P223: 2541.183298 | Q223: 2530.804959 | R223: 2604.712881 | S223: 2594.075083 | T223: 2669.830703 | U223: 2658.92696 | V223: 2736.57647 | W223: 2740.457594 | X223: 2804.990882 | Y223: 2793.535138 | Z223: 2875.115654 | AA223: 2863.373516 | AB223: 2946.993545 | AC223: 2934.957854 | AD223: 3020.668384 | AE223: 3024.952418 | AF223: 3096.185094 | AG223: 3083.540096 | AH223: 3173.589721 | AI223: 3160.628598 | AJ223: 3252.929464 | AK223: 3239.644313 | AL223: 3334.252701 | AM223: 3338.981473 | AN223: 3417.609018 | AO223: 3403.651306 | AP223: 3503.049243 | AQ223: 3488.742589 | AR223: 3590.625475 | AS223: 3575.961154 | AT223: 3680.391111 | AU223: 3685.610791 | AV223: 3772.400889 | AW223: 0 | AX223: 0 | AY223: 0 | AZ223: 0 | BA223: 0 | BB223: 0 | BC223: 0 | BD223: 0 | BE223: 0 | BF223: 0 | BG223: 0 | BH223: 0 | BI223: 0 | BJ223: 0 | BK223: 0 | BL223: 0 | BM223: 0 | BN223: 0 | BO223: 0 | BP223: 0 | BQ223: 0 | BR223: 0 | BS223: 0 | BT223: 0 | BU223: =BU186*BU219 -> 0 | BV223: 0 | BW223: 0 | BX223: 0 | BY223: 0 | BZ223: 0 | CA223: 0 | CB223: 0 | CC223: 0 | CD223: 0 | CE223: 0 | CF223: 0 | CG223: 0 | CH223: 0 | CI223: 0 | CJ223: 0 | CK223: 0 | CL223: 0 | CM223: 0 | CN223: 0 | CO223: 0 | CP223: 0 | CQ223: 0 | CR223: 0 | CS223: 0 | CT223: 0 | CU223: 0 | CV223: 0 | CW223: 0 | CX223: 0 | CY223: 0 | CZ223: 0 | DA223: 0 | DB223: 0 | DC223: 0
D224: Applied CFADS | F224: =F23 -> 1 | H224: =INDEX(H221:H223,$F$224) -> 0 | I224: =INDEX(I221:I223,$F$224) -> 0 | J224: 3155.477304 | K224: 3142.590153 | L224: 3234.364237 | M224: 3221.154907 | N224: 3315.223342 | O224: 3319.925127 | P224: 3398.103926 | Q224: 3384.225874 | R224: 3483.056524 | S224: 3468.831521 | T224: 3570.132937 | U224: 3555.552309 | V224: 3659.386261 | W224: 3664.576151 | X224: 3750.870917 | Y224: 3735.552145 | Z224: 3844.64269 | AA224: 3828.940948 | AB224: 3940.758757 | AC224: 3924.664472 | AD224: 4039.277726 | AE224: 4045.006394 | AF224: 4140.25967 | AG224: 4123.350611 | AH224: 4243.766161 | AI224: 4226.434376 | AJ224: 4349.860315 | AK224: 4332.095236 | AL224: 4458.606823 | AM224: 4464.9302 | AN224: 4570.071994 | AO224: 4551.407557 | AP224: 4684.323794 | AQ224: 4665.192746 | AR224: 4801.431888 | AS224: 4781.822564 | AT224: 4921.467686 | AU224: 4928.447511 | AV224: 5044.504378 | AW224: 0 | AX224: 0 | AY224: 0 | AZ224: 0 | BA224: 0 | BB224: 0 | BC224: 0 | BD224: 0 | BE224: 0 | BF224: 0 | BG224: 0 | BH224: 0 | BI224: 0 | BJ224: 0 | BK224: 0 | BL224: 0 | BM224: 0 | BN224: 0 | BO224: 0 | BP224: 0 | BQ224: 0 | BR224: 0 | BS224: 0 | BT224: 0 | BU224: =INDEX(BU221:BU223,$F$224) -> 0 | BV224: 0 | BW224: 0 | BX224: 0 | BY224: 0 | BZ224: 0 | CA224: 0 | CB224: 0 | CC224: 0 | CD224: 0 | CE224: 0 | CF224: 0 | CG224: 0 | CH224: 0 | CI224: 0 | CJ224: 0 | CK224: 0 | CL224: 0 | CM224: 0 | CN224: 0 | CO224: 0 | CP224: 0 | CQ224: 0 | CR224: 0 | CS224: 0 | CT224: 0 | CU224: 0 | CV224: 0 | CW224: 0 | CX224: 0 | CY224: 0 | CZ224: 0 | DA224: 0 | DB224: 0 | DC224: 0
D226: Compound Factor | H226: =H190 -> 1 | I226: 1 | J226: 1.0165 | K226: 1.03327225 | L226: 1.050321242 | M226: 1.067651543 | N226: 1.085267793 | O226: 1.103174712 | P226: 1.121377094 | Q226: 1.139879816 | R226: 1.158687833 | S226: 1.177806183 | T226: 1.197239985 | U226: 1.216994444 | V226: 1.237074853 | W226: 1.257486588 | X226: 1.278235117 | Y226: 1.299325996 | Z226: 1.320764875 | AA226: 1.342557495 | AB226: 1.364709694 | AC226: 1.387227404 | AD226: 1.410116656 | AE226: 1.433383581 | AF226: 1.45703441 | AG226: 1.481075478 | AH226: 1.505513223 | AI226: 1.530354191 | AJ226: 1.555605036 | AK226: 1.581272519 | AL226: 1.607363515 | AM226: 1.633885013 | AN226: 1.660844116 | AO226: 1.688248044 | AP226: 1.716104137 | AQ226: 1.744419855 | AR226: 1.773202782 | AS226: 1.802460628 | AT226: 1.832201229 | AU226: 1.862432549 | AV226: 1.893162686 | AW226: 1.893162686 | AX226: 1.893162686 | AY226: 1.893162686 | AZ226: 1.893162686 | BA226: 1.893162686 | BB226: 1.893162686 | BC226: 1.893162686 | BD226: 1.893162686 | BE226: 1.893162686 | BF226: 1.893162686 | BG226: 1.893162686 | BH226: 1.893162686 | BI226: 1.893162686 | BJ226: 1.893162686 | BK226: 1.893162686 | BL226: 1.893162686 | BM226: 1.893162686 | BN226: 1.893162686 | BO226: 1.893162686 | BP226: 1.893162686 | BQ226: 1.893162686 | BR226: 1.893162686 | BS226: 1.893162686 | BT226: =BT190 -> 1.893162686 | BU226: 1.893162686 | BV226: 1.893162686 | BW226: 1.893162686 | BX226: 1.893162686 | BY226: 1.893162686 | BZ226: 1.893162686 | CA226: 1.893162686 | CB226: 1.893162686 | CC226: 1.893162686 | CD226: 1.893162686 | CE226: 1.893162686 | CF226: 1.893162686 | CG226: 1.893162686 | CH226: 1.893162686 | CI226: 1.893162686 | CJ226: 1.893162686 | CK226: 1.893162686 | CL226: 1.893162686 | CM226: 1.893162686 | CN226: 1.893162686 | CO226: 1.893162686 | CP226: 1.893162686 | CQ226: 1.893162686 | CR226: 1.893162686 | CS226: 1.893162686 | CT226: 1.893162686 | CU226: 1.893162686 | CV226: 1.893162686 | CW226: 1.893162686 | CX226: 1.893162686 | CY226: 1.893162686 | CZ226: 1.893162686 | DA226: 1.893162686 | DB226: 1.893162686 | DC226: 1.893162686
D227: PV of CFADS from Applied Cash Flow | F227: =SUMPRODUCT(H224:DC224/H226:DC226) -> 111465.933
D228: Debt Applied in Sources and Uses | F228: =H213 -> 82567.35781
D229: LLCR for Sculpting | F229: =F227/F228 -> 1.35
D231: Tailored Repayment in Max Debt to Capital Case
D232: Minimum DSCR | F232: =F224 -> 1 | G232: =CHOOSE(F232,F60,F61,F62) -> 1.35
D233: Debt Life Target
D234: Non-Constant Curved DSCR
D236: Total Debt Service | F236: =F229 -> 1.35 | H236: =H224/$F$236 -> 0 | I236: 0 | J236: 2337.390596 | K236: 2327.844558 | L236: 2395.82536 | M236: 2386.040672 | N236: 2455.720994 | O236: 2459.203797 | P236: 2517.114019 | Q236: 2506.833981 | R236: 2580.04187 | S236: 2569.50483 | T236: 2644.542917 | U236: 2633.742451 | V236: 2710.656489 | W236: 2714.500852 | X236: 2778.422902 | Y236: 2767.075663 | Z236: 2847.883474 | AA236: 2836.252554 | AB236: 2919.080561 | AC236: 2907.158868 | AD236: 2992.057575 | AE236: 2996.301032 | AF236: 3066.859014 | AG236: 3054.333786 | AH236: 3143.53049 | AI236: 3130.692131 | AJ236: 3222.118752 | AK236: 3208.959434 | AL236: 3302.671721 | AM236: 3307.355704 | AN236: 3385.238514 | AO236: 3371.413005 | AP236: 3469.869477 | AQ236: 3455.69833 | AR236: 3556.616214 | AS236: 3542.090789 | AT236: 3645.531619 | AU236: 3650.70186 | AV236: 3736.669909 | AW236: 0 | AX236: 0 | AY236: 0 | AZ236: 0 | BA236: 0 | BB236: 0 | BC236: 0 | BD236: 0 | BE236: 0 | BF236: 0 | BG236: 0 | BH236: 0 | BI236: 0 | BJ236: 0 | BK236: 0 | BL236: 0 | BM236: 0 | BN236: 0 | BO236: 0 | BP236: 0 | BQ236: 0 | BR236: 0 | BS236: 0 | BT236: =BT224/$F$236 -> 0 | BU236: 0 | BV236: 0 | BW236: 0 | BX236: 0 | BY236: 0 | BZ236: 0 | CA236: 0 | CB236: 0 | CC236: 0 | CD236: 0 | CE236: 0 | CF236: 0 | CG236: 0 | CH236: 0 | CI236: 0 | CJ236: 0 | CK236: 0 | CL236: 0 | CM236: 0 | CN236: 0 | CO236: 0 | CP236: 0 | CQ236: 0 | CR236: 0 | CS236: 0 | CT236: 0 | CU236: 0 | CV236: 0 | CW236: 0 | CX236: 0 | CY236: 0 | CZ236: 0 | DA236: 0 | DB236: 0 | DC236: 0
C238: Debt Schedule
D239: Opening Balance | H239: =G242 -> 0 | I239: =H242 -> 82567.35781 | J239: 82567.35781 | K239: 81592.32862 | L239: 80610.75749 | M239: 79545.00962 | N239: 78471.46161 | O239: 77310.51973 | P239: 76126.93951 | Q239: 74865.91999 | R239: 73594.37369 | S239: 72228.63899 | T239: 70850.9067 | U239: 69375.40375 | V239: 67886.35546 | W239: 66295.82383 | X239: 64675.20407 | Y239: 62963.92204 | Z239: 61235.75109 | AA239: 59398.25751 | AB239: 57542.0762 | AC239: 55572.4399 | AD239: 53582.22629 | AE239: 51474.27545 | AF239: 49327.29996 | AG239: 47074.34139 | AH239: 44796.73424 | AI239: 42392.34987 | AJ239: 39961.13151 | AK239: 37398.37143 | AL239: 34806.48512 | AM239: 32078.12041 | AN239: 29300.05369 | AO239: 26398.26606 | AP239: 23462.42445 | AQ239: 20379.68497 | AR239: 17260.25144 | AS239: 13988.42938 | AT239: 10677.14767 | AU239: 7207.788993 | AV239: 3676.015651 | AW239: 1.591615728e-10 | AX239: 1.591615728e-10 | AY239: 1.591615728e-10 | AZ239: 1.591615728e-10 | BA239: 1.591615728e-10 | BB239: 1.591615728e-10 | BC239: 1.591615728e-10 | BD239: 1.591615728e-10 | BE239: 1.591615728e-10 | BF239: 1.591615728e-10 | BG239: 1.591615728e-10 | BH239: 1.591615728e-10 | BI239: 1.591615728e-10 | BJ239: 1.591615728e-10 | BK239: 1.591615728e-10 | BL239: 1.591615728e-10 | BM239: 1.591615728e-10 | BN239: 1.591615728e-10 | BO239: 1.591615728e-10 | BP239: 1.591615728e-10 | BQ239: 1.591615728e-10 | BR239: 1.591615728e-10 | BS239: 1.591615728e-10 | BT239: 1.591615728e-10 | BU239: =BT242 -> 1.591615728e-10 | BV239: 1.591615728e-10 | BW239: 1.591615728e-10 | BX239: 1.591615728e-10 | BY239: 1.591615728e-10 | BZ239: 1.591615728e-10 | CA239: 1.591615728e-10 | CB239: 1.591615728e-10 | CC239: 1.591615728e-10 | CD239: 1.591615728e-10 | CE239: 1.591615728e-10 | CF239: 1.591615728e-10 | CG239: 1.591615728e-10 | CH239: 1.591615728e-10 | CI239: 1.591615728e-10 | CJ239: 1.591615728e-10 | CK239: 1.591615728e-10 | CL239: 1.591615728e-10 | CM239: 1.591615728e-10 | CN239: 1.591615728e-10 | CO239: 1.591615728e-10 | CP239: 1.591615728e-10 | CQ239: 1.591615728e-10 | CR239: 1.591615728e-10 | CS239: 1.591615728e-10 | CT239: 1.591615728e-10 | CU239: 1.591615728e-10 | CV239: 1.591615728e-10 | CW239: 1.591615728e-10 | CX239: 1.591615728e-10 | CY239: 1.591615728e-10 | CZ239: 1.591615728e-10 | DA239: 1.591615728e-10 | DB239: 1.591615728e-10 | DC239: 1.591615728e-10
D240: Add: Debt Issue | F240: =H213 -> 82567.35781 | H240: =$F$240*H4 -> 82567.35781 | I240: 0 | J240: 0 | K240: 0 | L240: 0 | M240: 0 | N240: 0 | O240: 0 | P240: 0 | Q240: 0 | R240: 0 | S240: 0 | T240: 0 | U240: 0 | V240: 0 | W240: 0 | X240: 0 | Y240: 0 | Z240: 0 | AA240: 0 | AB240: 0 | AC240: 0 | AD240: 0 | AE240: 0 | AF240: 0 | AG240: 0 | AH240: 0 | AI240: 0 | AJ240: 0 | AK240: 0 | AL240: 0 | AM240: 0 | AN240: 0 | AO240: 0 | AP240: 0 | AQ240: 0 | AR240: 0 | AS240: 0 | AT240: 0 | AU240: 0 | AV240: 0 | AW240: 0 | AX240: 0 | AY240: 0 | AZ240: 0 | BA240: 0 | BB240: 0 | BC240: 0 | BD240: 0 | BE240: 0 | BF240: 0 | BG240: 0 | BH240: 0 | BI240: 0 | BJ240: 0 | BK240: 0 | BL240: 0 | BM240: 0 | BN240: 0 | BO240: 0 | BP240: 0 | BQ240: 0 | BR240: 0 | BS240: 0 | BT240: =$F$240*BT4 -> 0 | BU240: 0 | BV240: 0 | BW240: 0 | BX240: 0 | BY240: 0 | BZ240: 0 | CA240: 0 | CB240: 0 | CC240: 0 | CD240: 0 | CE240: 0 | CF240: 0 | CG240: 0 | CH240: 0 | CI240: 0 | CJ240: 0 | CK240: 0 | CL240: 0 | CM240: 0 | CN240: 0 | CO240: 0 | CP240: 0 | CQ240: 0 | CR240: 0 | CS240: 0 | CT240: 0 | CU240: 0 | CV240: 0 | CW240: 0 | CX240: 0 | CY240: 0 | CZ240: 0 | DA240: 0 | DB240: 0 | DC240: 0
D241: Less: Debt Repayment | H241: =(H236-H243)*H219 -> 0 | I241: 0 | J241: 975.0291916 | K241: 981.5711357 | L241: 1065.747862 | M241: 1073.548013 | N241: 1160.941878 | O241: 1183.580222 | P241: 1261.019517 | Q241: 1271.546301 | R241: 1365.734704 | S241: 1377.732287 | T241: 1475.502956 | U241: 1489.048289 | V241: 1590.531624 | W241: 1620.619759 | X241: 1711.282034 | Y241: 1728.170949 | Z241: 1837.493581 | AA241: 1856.181305 | AB241: 1969.636304 | AC241: 1990.21361 | AD241: 2107.950841 | AE241: 2146.975487 | AF241: 2252.958565 | AG241: 2277.607153 | AH241: 2404.384375 | AI241: 2431.218358 | AJ241: 2562.760082 | AK241: 2591.886305 | AL241: 2728.364716 | AM241: 2778.066717 | AN241: 2901.787628 | AO241: 2935.841615 | AP241: 3082.739473 | AQ241: 3119.433528 | AR241: 3271.822065 | AS241: 3311.281704 | AT241: 3469.358682 | AU241: 3531.773341 | AV241: 3676.015651 | AW241: 0 | AX241: 0 | AY241: 0 | AZ241: 0 | BA241: 0 | BB241: 0 | BC241: 0 | BD241: 0 | BE241: 0 | BF241: 0 | BG241: 0 | BH241: 0 | BI241: 0 | BJ241: 0 | BK241: 0 | BL241: 0 | BM241: 0 | BN241: 0 | BO241: 0 | BP241: 0 | BQ241: 0 | BR241: 0 | BS241: 0 | BT241: =(BT236-BT243)*BT219 -> 0 | BU241: 0 | BV241: 0 | BW241: 0 | BX241: 0 | BY241: 0 | BZ241: 0 | CA241: 0 | CB241: 0 | CC241: 0 | CD241: 0 | CE241: 0 | CF241: 0 | CG241: 0 | CH241: 0 | CI241: 0 | CJ241: 0 | CK241: 0 | CL241: 0 | CM241: 0 | CN241: 0 | CO241: 0 | CP241: 0 | CQ241: 0 | CR241: 0 | CS241: 0 | CT241: 0 | CU241: 0 | CV241: 0 | CW241: 0 | CX241: 0 | CY241: 0 | CZ241: 0 | DA241: 0 | DB241: 0 | DC241: 0
D242: Closing Balance | H242: =H239+H240-H241 -> 82567.35781 | I242: =I239+I240-I241 -> 82567.35781 | J242: 81592.32862 | K242: 80610.75749 | L242: 79545.00962 | M242: 78471.46161 | N242: 77310.51973 | O242: 76126.93951 | P242: 74865.91999 | Q242: 73594.37369 | R242: 72228.63899 | S242: 70850.9067 | T242: 69375.40375 | U242: 67886.35546 | V242: 66295.82383 | W242: 64675.20407 | X242: 62963.92204 | Y242: 61235.75109 | Z242: 59398.25751 | AA242: 57542.0762 | AB242: 55572.4399 | AC242: 53582.22629 | AD242: 51474.27545 | AE242: 49327.29996 | AF242: 47074.34139 | AG242: 44796.73424 | AH242: 42392.34987 | AI242: 39961.13151 | AJ242: 37398.37143 | AK242: 34806.48512 | AL242: 32078.12041 | AM242: 29300.05369 | AN242: 26398.26606 | AO242: 23462.42445 | AP242: 20379.68497 | AQ242: 17260.25144 | AR242: 13988.42938 | AS242: 10677.14767 | AT242: 7207.788993 | AU242: 3676.015651 | AV242: 1.591615728e-10 | AW242: 1.591615728e-10 | AX242: 1.591615728e-10 | AY242: 1.591615728e-10 | AZ242: 1.591615728e-10 | BA242: 1.591615728e-10 | BB242: 1.591615728e-10 | BC242: 1.591615728e-10 | BD242: 1.591615728e-10 | BE242: 1.591615728e-10 | BF242: 1.591615728e-10 | BG242: 1.591615728e-10 | BH242: 1.591615728e-10 | BI242: 1.591615728e-10 | BJ242: 1.591615728e-10 | BK242: 1.591615728e-10 | BL242: 1.591615728e-10 | BM242: 1.591615728e-10 | BN242: 1.591615728e-10 | BO242: 1.591615728e-10 | BP242: 1.591615728e-10 | BQ242: 1.591615728e-10 | BR242: 1.591615728e-10 | BS242: 1.591615728e-10 | BT242: 1.591615728e-10 | BU242: =BU239+BU240-BU241 -> 1.591615728e-10 | BV242: 1.591615728e-10 | BW242: 1.591615728e-10 | BX242: 1.591615728e-10 | BY242: 1.591615728e-10 | BZ242: 1.591615728e-10 | CA242: 1.591615728e-10 | CB242: 1.591615728e-10 | CC242: 1.591615728e-10 | CD242: 1.591615728e-10 | CE242: 1.591615728e-10 | CF242: 1.591615728e-10 | CG242: 1.591615728e-10 | CH242: 1.591615728e-10 | CI242: 1.591615728e-10 | CJ242: 1.591615728e-10 | CK242: 1.591615728e-10 | CL242: 1.591615728e-10 | CM242: 1.591615728e-10 | CN242: 1.591615728e-10 | CO242: 1.591615728e-10 | CP242: 1.591615728e-10 | CQ242: 1.591615728e-10 | CR242: 1.591615728e-10 | CS242: 1.591615728e-10 | CT242: 1.591615728e-10 | CU242: 1.591615728e-10 | CV242: 1.591615728e-10 | CW242: 1.591615728e-10 | CX242: 1.591615728e-10 | CY242: 1.591615728e-10 | CZ242: 1.591615728e-10 | DA242: 1.591615728e-10 | DB242: 1.591615728e-10 | DC242: 1.591615728e-10
D243: Intrest Expense | F243: =F196 -> 0.0165 | H243: =H239*$F$243 -> 0 | I243: 1362.361404 | J243: 1362.361404 | K243: 1346.273422 | L243: 1330.077499 | M243: 1312.492659 | N243: 1294.779117 | O243: 1275.623576 | P243: 1256.094502 | Q243: 1235.28768 | R243: 1214.307166 | S243: 1191.772543 | T243: 1169.039961 | U243: 1144.694162 | V243: 1120.124865 | W243: 1093.881093 | X243: 1067.140867 | Y243: 1038.904714 | Z243: 1010.389893 | AA243: 980.0712489 | AB243: 949.4442573 | AC243: 916.9452583 | AD243: 884.1067338 | AE243: 849.3255449 | AF243: 813.9004493 | AG243: 776.726633 | AH243: 739.146115 | AI243: 699.4737728 | AJ243: 659.3586699 | AK243: 617.0731285 | AL243: 574.3070045 | AM243: 529.2889867 | AN243: 483.4508859 | AO243: 435.57139 | AP243: 387.1300033 | AQ243: 336.264802 | AR243: 284.7941488 | AS243: 230.8090847 | AT243: 176.1729366 | AU243: 118.9285184 | AV243: 60.65425825 | AW243: 2.626165951e-12 | AX243: 2.626165951e-12 | AY243: 2.626165951e-12 | AZ243: 2.626165951e-12 | BA243: 2.626165951e-12 | BB243: 2.626165951e-12 | BC243: 2.626165951e-12 | BD243: 2.626165951e-12 | BE243: 2.626165951e-12 | BF243: 2.626165951e-12 | BG243: 2.626165951e-12 | BH243: 2.626165951e-12 | BI243: 2.626165951e-12 | BJ243: 2.626165951e-12 | BK243: 2.626165951e-12 | BL243: 2.626165951e-12 | BM243: 2.626165951e-12 | BN243: 2.626165951e-12 | BO243: 2.626165951e-12 | BP243: 2.626165951e-12 | BQ243: 2.626165951e-12 | BR243: 2.626165951e-12 | BS243: 2.626165951e-12 | BT243: =BT239*$F$243 -> 2.626165951e-12 | BU243: 2.626165951e-12 | BV243: 2.626165951e-12 | BW243: 2.626165951e-12 | BX243: 2.626165951e-12 | BY243: 2.626165951e-12 | BZ243: 2.626165951e-12 | CA243: 2.626165951e-12 | CB243: 2.626165951e-12 | CC243: 2.626165951e-12 | CD243: 2.626165951e-12 | CE243: 2.626165951e-12 | CF243: 2.626165951e-12 | CG243: 2.626165951e-12 | CH243: 2.626165951e-12 | CI243: 2.626165951e-12 | CJ243: 2.626165951e-12 | CK243: 2.626165951e-12 | CL243: 2.626165951e-12 | CM243: 2.626165951e-12 | CN243: 2.626165951e-12 | CO243: 2.626165951e-12 | CP243: 2.626165951e-12 | CQ243: 2.626165951e-12 | CR243: 2.626165951e-12 | CS243: 2.626165951e-12 | CT243: 2.626165951e-12 | CU243: 2.626165951e-12 | CV243: 2.626165951e-12 | CW243: 2.626165951e-12 | CX243: 2.626165951e-12 | CY243: 2.626165951e-12 | CZ243: 2.626165951e-12 | DA243: 2.626165951e-12 | DB243: 2.626165951e-12 | DC243: 2.626165951e-12
C245: Cash Trap Schedule
D246: Opening Balance | H246: =G249 -> 0 | I246: =H249 -> 0 | J246: 1703.580209 | K246: 0 | L246: 0 | M246: 0 | N246: 0 | O246: 0 | P246: 0 | Q246: 0 | R246: 0 | S246: 0 | T246: 0 | U246: 0 | V246: 0 | W246: 0 | X246: 0 | Y246: 0 | Z246: 0 | AA246: 0 | AB246: 0 | AC246: 0 | AD246: 0 | AE246: 0 | AF246: 0 | AG246: 0 | AH246: 0 | AI246: 0 | AJ246: 0 | AK246: 0 | AL246: 0 | AM246: 0 | AN246: 0 | AO246: 0 | AP246: 0 | AQ246: 0 | AR246: 0 | AS246: 0 | AT246: 0 | AU246: 0 | AV246: 0 | AW246: 0 | AX246: 0 | AY246: 0 | AZ246: 0 | BA246: 0 | BB246: 0 | BC246: 0 | BD246: 0 | BE246: 0 | BF246: 0 | BG246: 0 | BH246: 0 | BI246: 0 | BJ246: 0 | BK246: 0 | BL246: 0 | BM246: 0 | BN246: 0 | BO246: 0 | BP246: 0 | BQ246: 0 | BR246: 0 | BS246: 0 | BT246: 0 | BU246: =BT249 -> 0 | BV246: 0 | BW246: 0 | BX246: 0 | BY246: 0 | BZ246: 0 | CA246: 0 | CB246: 0 | CC246: 0 | CD246: 0 | CE246: 0 | CF246: 0 | CG246: 0 | CH246: 0 | CI246: 0 | CJ246: 0 | CK246: 0 | CL246: 0 | CM246: 0 | CN246: 0 | CO246: 0 | CP246: 0 | CQ246: 0 | CR246: 0 | CS246: 0 | CT246: 0 | CU246: 0 | CV246: 0 | CW246: 0 | CX246: 0 | CY246: 0 | CZ246: 0 | DA246: 0 | DB246: 0 | DC246: 0
D247: Add: Cash Trapped | H247: =H262 -> 0 | I247: =I262 -> 1703.580209 | J247: 0 | K247: 0 | L247: 0 | M247: 0 | N247: 0 | O247: 0 | P247: 0 | Q247: 0 | R247: 0 | S247: 0 | T247: 0 | U247: 0 | V247: 0 | W247: 0 | X247: 0 | Y247: 0 | Z247: 0 | AA247: 0 | AB247: 0 | AC247: 0 | AD247: 0 | AE247: 0 | AF247: 0 | AG247: 0 | AH247: 0 | AI247: 0 | AJ247: 0 | AK247: 0 | AL247: 0 | AM247: 0 | AN247: 0 | AO247: 0 | AP247: 0 | AQ247: 0 | AR247: 0 | AS247: 0 | AT247: 0 | AU247: 0 | AV247: 0 | AW247: 0 | AX247: 0 | AY247: 0 | AZ247: 0 | BA247: 0 | BB247: 0 | BC247: 0 | BD247: 0 | BE247: 0 | BF247: 0 | BG247: 0 | BH247: 0 | BI247: 0 | BJ247: 0 | BK247: 0 | BL247: 0 | BM247: 0 | BN247: 0 | BO247: 0 | BP247: 0 | BQ247: 0 | BR247: 0 | BS247: 0 | BT247: 0 | BU247: =BU262 -> 0 | BV247: 0 | BW247: 0 | BX247: 0 | BY247: 0 | BZ247: 0 | CA247: 0 | CB247: 0 | CC247: 0 | CD247: 0 | CE247: 0 | CF247: 0 | CG247: 0 | CH247: 0 | CI247: 0 | CJ247: 0 | CK247: 0 | CL247: 0 | CM247: 0 | CN247: 0 | CO247: 0 | CP247: 0 | CQ247: 0 | CR247: 0 | CS247: 0 | CT247: 0 | CU247: 0 | CV247: 0 | CW247: 0 | CX247: 0 | CY247: 0 | CZ247: 0 | DA247: 0 | DB247: 0 | DC247: 0
... 31 more rows

Sheet Summary (2)
C2: Tariff (Euro/MWH) | E2: ='Intermediate Financial Model'!F2 -> 32.91300051
C3: Inflated Tariff | E3: ='Intermediate Financial Model'!F54 -> TRUE | P3: DSCR (Min) | Q3: =MIN('Intermediate Financial Model'!278:278) -> 1.35
C4: Project IRR | E4: ='Intermediate Financial Model'!E133 -> 0.05582313836 | P4: PLCR | Q4: ='Intermediate Financial Model'!G288 -> 1.968856416
C5: Equity IRR | E5: ='Intermediate Financial Model'!E268 -> 0.07500000298 | P5: LLCR | Q5: ='Intermediate Financial Model'!G284 -> 1.35
C6: Target IRR | E6: ='Intermediate Financial Model'!F55 -> 0.075
C8: O&M Expense | E8: Total
C9: In Fixed Terms (USD/kW-yr) | E9: ='Intermediate Financial Model'!F50 -> 54.1089489
C10: In Variable Terms (USD/kW-yr) | E10: ='Intermediate Financial Model'!I50 -> 14.9559822
C12: 1-Year Uncertainty | E12: ='Intermediate Financial Model'!F20 -> 0.1084
E14: Cap Fac | F14: vs P50 | G14: Debt | H14: EBITDA/P50
C15: P50 DSCR/Amount | D15: ='Intermediate Financial Model'!F60 -> 1.35 | E15: ='Intermediate Financial Model'!F88 -> 0.413 | F15: =E15/$E$15 -> 1 | G15: ='Intermediate Financial Model'!F151 -> 82567.35781 | H15: 1 | J15: Uses of Funds | L15: Euro | M15: Cost/kW
C16: P90 DSCR/Amount | D16: ='Intermediate Financial Model'!F61 -> 1.15 | E16: ='Intermediate Financial Model'!F90 -> 0.3556259617 | F16: =E16/$E$15 -> 0.8610798103 | G16: ='Intermediate Financial Model'!F170 -> 83461.7952 | H16: ='Intermediate Financial Model'!I177 -> 1.161332536 | K16: EPC Cost | L16: ='Intermediate Financial Model'!H206 -> 112800 | M16: =L16/$Q$16 -> 1200 | O16: Capacity (MW) | Q16: ='Intermediate Financial Model'!F16 -> 94
C17: P99 DSCR/Amount | D17: ='Intermediate Financial Model'!F62 -> 1 | E17: ='Intermediate Financial Model'!F91 -> 0.3088512668 | F17: =E17/$E$15 -> 0.7478238905 | G17: ='Intermediate Financial Model'!F191 -> 83356.8877 | H17: ='Intermediate Financial Model'!I200 -> 1.33721323 | K17: Development Cost | L17: ='Intermediate Financial Model'!H207 -> 3384 | M17: =L17/$Q$16 -> 36 | O17: Capacity Factor (P50) | Q17: ='Intermediate Financial Model'!F88 -> 0.413
K18: Owners Cost | L18: ='Intermediate Financial Model'!H208 -> 4324 | M18: 46 | O18: Capacity Factor (P90) | Q18: ='Intermediate Financial Model'!F90 -> 0.3556259617
C19: Max Debt to Capital | D19: ='Intermediate Financial Model'!$F$64 -> 0.82 | G19: ='Intermediate Financial Model'!M213 -> 100380.488 | K19: Fees | L19: ='Intermediate Financial Model'!H209 -> 1568.779798 | M19: 16.68914679 | O19: Capacity Factor (P99) | Q19: ='Intermediate Financial Model'!F91 -> 0.3088512668
K20: Total Cost | L20: ='Intermediate Financial Model'!H210 -> 122076.7798 | M20: 1298.689147
C21: Final Criteria: | E21: ='Intermediate Financial Model'!P213 -> DSCR Min Size of Debt from P50 | J21: Sources of Funds | M21: Percent | O21: Levelised O&M (Euro/MWH) | Q21: ='Intermediate Financial Model'!I50 -> 14.9559822
C22: Debt Tenure | D22: ='Intermediate Financial Model'!$F$70 -> 20 | K22: Debt | L22: ='Intermediate Financial Model'!H213 -> 82567.35781 | M22: =L22/$L$20 -> 0.6763559618
K23: Equity | L23: =L20-L22 -> 39509.42199 | M23: =L23/$L$20 -> 0.3236440382 | O23: Owners Cost | Q23: ='Intermediate Financial Model'!F29 -> 46
K24: Total Sources | L24: =SUM(L22:L23) -> 122076.7798 | M24: 1 | O24: Equity IRR Adj Owners Cost | Q24: ='Intermediate Financial Model'!E272 -> 0.08291777074

Sheet Wind Study Back-up (2)
B2: Wind Farm Rated Power1 MW | C2: 94
B3: Gross Energy Output GWh/annum | C3: 416.5
B4: Wake effect | C4: 94.8
B5: Availability | C5: 95.3
B6: Electrical efficiency | C6: 97.7
B7: Turbine performance | C7: 95.3
B8: Environmental | C8: 97.6
B9: Curtailment | C9: 99.5
B10: Net Energy Output GWh/annum | C10: 340.3
B11: Net Capacity Factor1 | C11: 41.3
B13: Production
H14: 1-year Probability Case
B15: Probability of Exceeding | C15: 1 yr | D15: 10 yr | E15: 20 yr | F15: 1-p | G15: Check | H15: Cap Fac | I15: vs P50 | J15: DSCR
B16: 99 | C16: 256.1 | D16: 281.5 | E16: 283.2 | F16: =1-B16/100 -> 0.01 | G16: =_xlfn.NORM.INV(F16,$C$20,$C$23) -> 256.086207 | H16: =G16/8760/$C$2*1000 -> 0.310995588 | I16: =H16/$H$20 -> 0.7525307287 | J16: =1/I16 -> 1.32884939
B17: 95 | C17: 280.8 | D17: 298.7 | E17: 299.9 | F17: =1-B17/100 -> 0.05 | G17: =_xlfn.NORM.INV(F17,$C$20,$C$23) -> 280.7562987 | H17: =G17/8760/$C$2*1000 -> 0.3409553807 | I17: =H17/$H$20 -> 0.8250258557 | J17: =1/I17 -> 1.212083225
B18: 90 | C18: 293.9 | D18: 307.9 | E18: 308.9 | F18: 0.1 | G18: 293.9078333 | H18: 0.3569268354 | I18: 0.8636727397 | J18: 1.157845969
B19: 75 | C19: 315.9 | D19: 323.3 | E19: 323.8 | F19: 0.25 | G19: 315.883471 | H19: 0.3836144358 | I19: 0.9282499884 | J19: 1.077296001
B20: 50 | C20: 340.3 | D20: 340.3 | E20: 340.3 | F20: 0.5 | G20: 340.3 | H20: 0.4132662975 | I20: 1 | J20: 1
B22: Standard Deviation
B23: In any one year period GWh/annum | C23: 36.2 | D23: =F23/10000 -> 0.1084 | F23: 1084 | G23: 10.64
